Workbook

Sheet Start
A1: START | E1: Excel Toolkit for Mitigation Analysis for Low-Carbon Development Planning | Q1: XLMT-Transport v17.1
C11: Disclaimer
C12: Data used has been obtained from reliable sources. The Ministry of Social Security, National Solidarity, and Environment and Sustainable Development (Environment and Sustainable Development Division) assumes no responsibility for errors and omissions in the data provided. Users are, however, kindly asked to report any errors or deficiencies in this product to the Ministry. The choices of calculation made in this tool are derived from tnc Report (2016).
C14: ©2017 Government of Mauritius and United Nations Environment Programme
C15: All rights reserved. No part of this Guideline and/or Toolkit may be produced, stored in a retrieval system or transmitted, in any form or by any means, electronic, mechanical, photocopying, recording or otherwise without prior permission from the Ministry of Social Security, National Solidarity, and Environment and Sustainable Development (Environment and Sustainable Development Division) and the United Nations Environment Programme. Results based on the use of the Toolkit must be duly acknowledged and referenced; the copyright holder’s endorsement of Users' views, products or services shall not be implied in any way.

Sheet 1. Sector
A1: SECTOR | C1: Excel Toolkit for Mitigation Analysis for Low-Carbon Development Planning | H1: XLMT-Transport v17.1
C5: Contact Details of Registered Users:
C6: STAKEHOLDER | E6: Name | F6: Email | G6: Phone Number | H6: Address
B7: Chair: | C7: National Transport Authority (NTA) | E7: Mr C Bissessur | F7: cbissessur@govmu.org | G7: 202 2822 | H7: MSI Building, Cassis
B8: Members: | C8: Statistics Mauritius
C9: NTA | E9: Mr MRY Lam Hing | F9: ylam-hing@govmu.org | G9: 202 2833 | H9: MSI Building, Cassis
C10: NTA | E10: Mrs J Ramnauth-Ramburn | F10: ntaplanning@govmu.org | G10: 202 2830 | H10: MSI Building, Cassis
C11: Civil Aviation Department
C12: Air Mauritius Ltd
C13: MPI
C14: Land Transport Division
C15: Mechanical Engineering Division)
C16: MoEMRFSOI Shipping Division
C17: Albion Fisheries Research Centre
C18: Mauritius Shipping Corporation Ltd
C19: Mauritius Ports Authority
C20: MoESDDBM
C21: Climate Change Division
C22: Pollution Prevention and Control Division

Sheet 2. Description
A1: DESCRIPTION | F1: Excel Toolkit for Mitigation Analysis for Low-Carbon Development Planning | O1: XLMT-Transport v17.1 | Q1: XLMT-Transport v17.1
B2: Mitigation actions modelled to reduce GHG emissions in land transport (source: TNC, 2016)
B3: Scenarios | G3: TNC Assumptions | L3: Expected GHG emissions/reductions (Gg CO2e)
B4: BAU | C4: Business-As-Usual | G4: # | L4: BAU GHG Emissions: 2020: 1093 ; 2030: 1294 ; 2040: 1453 ; 2050: 1645 ;
B5: SC1 | C5: Fuel Intensity Improvements | G5: These improvements (applied to all vehicles) at the rate of 1% per year pre-2020, and increasing to 1.5% per year post-2020. | L5: Relative to BAU, emissions reductions of: 2020: 11; 2030: 19; 2040: 22; 2050: 25;
B6: SC2 | C6: Improvement through vehicle inspection | G6: Modern vehicle inspection centres leads to an overall reduction in GHG emission reductions of 5% in 2019. An intermediate reduction level of 2.5% is achieved in 2018. | L6: Relative to BAU, emissions reductions of: 2020: 54; 2030: 64; 2040: 73; 2050: 82;
B7: SC3 | C7: Low-carbon options | G7: Modelled that combines three technologies: i) blended bio-ethanol produced in Mauritius ii) hydrid cars and iii) electric cars In all three cases, it is assumed that the low-carbon option will impact gasoline-fueled cars. Assuming there is a total available potential of 20 ML bio-ethanol per year, the low-carbon scenario accounts for a 25% penetration in 2020, and increasing by increments of 5% in subsequent years until 100% penetration is reached in 2035 (i.e. 50% in 2025 and 75% in 2030). | L7: Relative to BAU, emissions reductions of: 2020: 9; 2030: 42; 2040: 99; 2050: 180;
B8: SC4 | C8: Light Rail System (LRS) | G8: LRS generates modal shift away from private cars and buses along the Curepipe – Port Louis corridor. The impact of the LRS on road transport GHG emissions has been modelled taking into account the reduction in car and bus annual distance travelled as follows: 2018: cars – 109 540 000 km; buses – 10 547 000 km 2028: cars – 107 204 000 km; buses – 10 836 000 km 2038: cars – 115 300 000 km; buses – 11 330 000 km The reductions have been kept constant at their 2038 levels for the period 2039 to 2050. Also, 90% of the reduction in car passenger mobility is attributed to gasoline-fueled cars, and the remaining 10% to diesel-fueled cars. | L8: Relative to BAU, emission reductions of: 2020: 25; 2030: 26; 2040: 27; 2050: 27;
B9: SC5 | C9: Cumulative | G9: SC1-SC4 commbined | L9: Relative to BAU, emission reductions of: 2020: 99; 2030: 151; 2040: 221; 2050: 314;
C10: # | G10: BAU is based on the ud1 methodology which projects equivalent GHG emissions after performing a two-layer calibration (see ud1 Report for details) using a parametric model for both passenger and freight mobility followed by an energy balance using published fuel consumption data.

Sheet 3. Query
A1: QUERY | D1: Excel Toolkit for Mitigation Analysis for Low-Carbon Development Planning | O1: XLMT-Transport v17.1
C3: Users can analyze their results after inputting their parameters (if required) and new assumptions. The number of cases of User-defined scenarios that can be made, in addition to the ud1 scenarios (labelled ud1), has been limited to two (labelled ud1 and UD2) for practical reasons. Users can visualize the impact of their assumptions and/or parameter changes made on a number of variables relevant to individual sectors including the Total CO2e emission. Full list of the variables relevant to individual sectors appear in in the individual user manuals. Results can be compared graphically or through tabular representations. Radar dashboards are provided to assess the extent of departure from the targeted annual values estimated by the original ud1 studies. The Toolkit has a pdf reporting system, which provides details of the project and the results of the investigations.

Sheet 4. Data
A1: DATA | C1: Excel Toolkit for Mitigation Analysis for Low-Carbon Development Planning | T1: XLMT-Transport v17.1
C3: Motor Car | I3: Goods Vehicles | N3: Dual Purpose Vehicle | R3: Autocycle | T3: Motorcycle | V3: Double Cab Pick Up | X3: Heavy Motor Car | Z3: Heavy Locomotive | AB3: Light Locomotive | AD3: Motor Tractor | AH3: BUSES
B4: YEAR | C4: Petrol | D4: Diesel | E4: LPG | F4: Hybrid | G4: Electric | I4: Petrol | J4: Diesel | K4: LPG | L4: Hybrid | N4: Petrol | O4: Diesel | P4: LPG | R4: Petrol | T4: Petrol | V4: Diesel | X4: Diesel | Z4: Diesel | AB4: Diesel | AD4: Diesel | AF4: Total | AH4: Diesel
B5: 2000 | C5: =71799+2000 -> 73799 | D5: =6006+500+137 -> 6643 | E5: =119+20 -> 139 | F5: 0 | G5: 0 | I5: 2426 | J5: =17182+1000 -> 18182 | K5: 10 | L5: 0 | N5: 5894 | O5: 10818 | P5: 9 | R5: =95419+2000+500 -> 97919 | T5: =22079+500 -> 22579 | V5: =3600+50 -> 3650 | X5: 1157 | Z5: 26 | AB5: 61 | AD5: 706 | AF5: =SUM(C5:AD5) -> 244018 | AH5: 2394
B6: 2001 | C6: =76158+2000 -> 78158 | D6: =6998+500 -> 7498 | E6: 153 | F6: 0 | G6: 0 | I6: 2520 | J6: =18932+449 -> 19381 | K6: 11 | L6: 0 | N6: 6051 | O6: 11756 | P6: 9 | R6: =98865+1000 -> 99865 | T6: =23216+500 -> 23716 | V6: 3930 | X6: 1252 | Z6: 26 | AB6: 69 | AD6: 754 | AF6: 255149 | AH6: 2408
B7: 2002 | C7: =81476+500 -> 81976 | D7: 8108 | E7: 177 | F7: 0 | G7: 0 | I7: 2569 | J7: 20459 | K7: 13 | L7: 0 | N7: 6120 | O7: 12578 | P7: 10 | R7: =101935+554 -> 102489 | T7: =24430+500 -> 24930 | V7: 4156 | X7: 1349 | Z7: 28 | AB7: 83 | AD7: 796 | AF7: 265841 | AH7: 2450
B8: 2003 | C8: 85695 | D8: 8971 | E8: 186 | F8: 0 | G8: 0 | I8: 2600 | J8: 21395 | K8: 12 | L8: 0 | N8: 6167 | O8: 13511 | P8: 10 | R8: 104968 | T8: 26041 | V8: 4328 | X8: 1422 | Z8: 33 | AB8: 160 | AD8: 872 | AF8: 276371 | AH8: 2460
B9: 2004 | C9: 92245 | D9: 9618 | E9: 200 | F9: 0 | G9: 0 | I9: 2612 | J9: 22322 | K9: 12 | L9: 0 | N9: 6208 | O9: 14223 | P9: 11 | R9: 108210 | T9: 28503 | V9: 4609 | X9: 1478 | Z9: 33 | AB9: 199 | AD9: 922 | AF9: 291405 | AH9: 2457
B10: 2005 | C10: 97973 | D10: 10237 | E10: 203 | F10: 0 | G10: 0 | I10: 2675 | J10: 23215 | K10: 12 | L10: 0 | N10: 6214 | O10: 15539 | P10: 11 | R10: 110583 | T10: 31099 | V10: 4750 | X10: 1709 | Z10: 32 | AB10: 248 | AD10: 996 | AF10: 305496 | AH10: 2560
B11: 2006 | C11: 103102 | D11: 10750 | E11: 204 | F11: 0 | G11: 0 | I11: 2685 | J11: 23983 | K11: 12 | L11: 0 | N11: 6298 | O11: 16690 | P11: 11 | R11: 113456 | T11: 34200 | V11: 4772 | X11: 1920 | Z11: 36 | AB11: 285 | AD11: 1036 | AF11: 319440 | AH11: 2612
B12: 2007 | C12: 109090 | D12: 11345 | E12: 204 | F12: 0 | G12: 0 | I12: 2712 | J12: 24790 | K12: 13 | L12: 0 | N12: 6301 | O12: 17910 | P12: 12 | R12: 115107 | T12: 38012 | V12: 4913 | X12: 2279 | Z12: 39 | AB12: 332 | AD12: 1086 | AF12: 334145 | AH12: 2753
B13: 2008 | C13: 118980 | D13: 12023 | E13: 207 | F13: 0 | G13: 0 | I13: 2743 | J13: 25826 | K13: 13 | L13: 0 | N13: 6436 | O13: 19316 | P13: 12 | R13: 114454 | T13: 42368 | V13: 4979 | X13: 2449 | Z13: 42 | AB13: 400 | AD13: 1158 | AF13: 351406 | AH13: 2762
B14: 2009 | C14: 124217 | D14: 12421 | E14: 211 | F14: 42 | G14: 0 | I14: 2726 | J14: 26514 | K14: 13 | L14: 0 | N14: 6377 | O14: 20470 | P14: 12 | R14: 118798 | T14: 45295 | V14: 5042 | X14: 2632 | Z14: 40 | AB14: 485 | AD14: 1225 | AF14: 366520 | AH14: 2803
B15: 2010 | C15: 131916 | D15: 13000 | E15: 214 | F15: 161 | G15: 0 | I15: 2539 | J15: 27637 | K15: 14 | L15: 0 | N15: 6385 | O15: 21656 | P15: 12 | R15: 121644 | T15: 49126 | V15: 5172 | X15: 2778 | Z15: 42 | AB15: 557 | AD15: 1262 | AF15: 384115 | AH15: 2845
B16: 2011 | C16: 139364 | D16: 13696 | E16: 218 | F16: 315 | G16: 2 | I16: 2751 | J16: 28362 | K16: 14 | L16: 0 | N16: 6203 | O16: 22562 | P16: 12 | R16: 122653 | T16: 54172 | V16: 5553 | X16: 3010 | Z16: 42 | AB16: 644 | AD16: 1346 | AF16: 400919 | AH16: 2912
B17: 2012 | C17: 148726 | D17: 14493 | E17: 218 | F17: 703 | G17: 5 | I17: 2704 | J17: 29276 | K17: 15 | L17: 0 | N17: 6284 | O17: 24117 | P17: 12 | R17: 124737 | T17: 60109 | V17: 5251 | X17: 3136 | Z17: 46 | AB17: 706 | AD17: 1388 | AF17: 421926 | AH17: 2957
B18: 2013 | C18: 160039 | D18: 15141 | E18: 218 | F18: 1389 | G18: 6 | I18: 2855 | J18: 29888 | K18: 17 | L18: 0 | N18: 6327 | O18: 24121 | P18: 12 | R18: 125013 | T18: 66631 | V18: 6349 | X18: 3248 | Z18: 42 | AB18: 792 | AD18: 1407 | AF18: 443495 | AH18: 2963
B19: 2014 | C19: 172053 | D19: 15815 | E19: 220 | F19: 1824 | G19: 8 | I19: 3203 | J19: 30325 | K19: 17 | L19: 1 | N19: 6254 | O19: 24253 | P19: 13 | R19: 123713 | T19: 74081 | V19: 7438 | X19: 3501 | Z19: 42 | AB19: 854 | AD19: 1437 | AF19: 465052 | AH19: 3006
B20: 2015 | C20: 184850 | D20: 16468 | E20: 224 | F20: 2411 | G20: 19 | I20: 3423 | J20: 30820 | K20: 17 | L20: 2 | N20: 5994 | O20: 23753 | P20: 13 | R20: 123118 | T20: 80159 | V20: 8836 | X20: 3621 | Z20: 44 | AB20: 911 | AD20: 1461 | AF20: 486144 | AH20: 2980
B21: 2016
B22: 2017
B23: 2018
B24: 2019
B25: 2020
B26: 2021
B27: 2022
B28: 2023
B29: 2024
B30: 2025
B31: 2026
B32: 2027
B33: 2028
B34: 2029
B35: 2030
B36: 2031
B37: 2032
B38: 2033
B39: 2034
B40: 2035
B41: 2036
B42: 2037
B43: 2038
B44: 2039
B45: 2040
B46: 2041
B47: 2042
B48: 2043
B49: 2044
B50: 2045
B51: 2046
B52: 2047
B53: 2048
B54: 2049
B55: 2050

Sheet 5. TNC Parameters
A1: PARAMETERS | C1: TNC | E1: Excel Toolkit for Mitigation Analysis for Low-Carbon Development Planning | P1: XLMT-Transport v17.1
A2: This page contain values used for the Transport Toolkit for key parameters. Parameters are values that do not change in time; the latter are in 'T-User Assumptions'.
A3: The ud1 values have been used as default in this Toolkit. The Chair of the Energy: Transport Group can change these parameters against a password - provided it is justified and accepted by all parties concerned.
D5: Do not modify | F5: Modify TNC vlaues
D6: TNC | F6: Chair
A7: Model parameters for Fuel Densities, kg/L
A8: Gasoline | D8: =F8 -> 0.71 | F8: 0.71 | U8: Gasoline cons, G_2WH (L) = Dt X FI/100
A9: Diesel | D9: =F9 -> 0.85 | F9: 0.85 | I9: MOBILITY | U9: Gasoline cons, G_2WH (kg) = G_2WhH(L) X d (kg/L)
A10: LPG | D10: 0.557 | F10: 0.557 | J10: TNC | L10: Chair | U10: Total distance travelled, Dt (km) = TD X N_2WH
I11: Ksat | J11: =L11 -> 10000 | L11: 10000
I12: k | J12: =L12 -> -0.000427 | L12: -0.000427
A13: Model parameters for Autocycles | I13: Mobility = Ksat*(1-exp(k*X))
A14: Parameter | B14: Symbol | C14: Units | D14: Value | I14: where X = GDP/capita (const 1980 $)
A15: Fuel intensity | B15: FI_Ac | C15: L/100km | D15: =F15 -> 2.5 | F15: 2.5
A16: Vehicle occupancy | B16: Oc | C16: number of persons | D16: =F16 -> 1 | F16: 1
A17: Days utilised | B17: DU | C17: days/yr | D17: 300 | E17: nu | F17: 300
A18: Transit distance | B18: TD | C18: km/yr | D18: 5600 | F18: 5600
A20: Model parameters for Motorcycles
A21: Fuel intensity | B21: FI_Mc | C21: L/100km | D21: =F21 -> 3 | F21: 3
A22: Vehicle occupancy | B22: Oc | C22: number of persons | D22: =F22 -> 1 | F22: 1
A23: Days utilised | B23: DU | C23: days/yr | D23: 300 | E23: nu | F23: 300
A24: Transit distance | B24: TD | C24: km/yr | D24: 5600 | F24: 5600 | U24: Model Parameters for Goods vehicles | Y24: ?
U25: Fuel Intensity | V25: FI_DPV | W25: L/100 km | X25: 15
A26: Model Parameters | D26: Car | U26: Occupancy | V26: O_DPV | W26: PAX | X26: 1
A27: Fuel Intensity (Petrol) | B27: FI_X_P | C27: L/100 km | D27: =F27 -> 6.5 | F27: 6.5 | U27: Transit distance | V27: TD_DPV | W27: km/yr | X27: 40000
A28: Occupancy (Petrol) | B28: Oc_X_P | C28: PAX | D28: =F28 -> 1.9 | F28: 1.9
A29: Transit distance (Petrol) | B29: TD_X_P | C29: km/yr | D29: 13500 | F29: 13500
A30: Fuel Intensity (Diesel) | B30: FI_X_D | C30: L/100 km | D30: 7 | F30: 7
A31: Occupancy (Diesel) | B31: Oc_X_D | C31: PAX | D31: 1.9 | F31: 1.9
A32: Transit distance (Diesel) | B32: TD_X_D | C32: km/yr | D32: 13500 | F32: 13500
A33: Fuel Intensity (LPG) | B33: FI_X_L | C33: L/100 km | D33: 8 | F33: 8
A34: Occupancy (LPG) | B34: Oc_X_L | C34: PAX | D34: 1.9 | F34: 1.9
A35: Transit distance (LPG) | B35: TD_X_L | C35: km/yr | D35: 13500 | F35: 13500
A36: Fuel Intensity (Hybrid) | B36: FI_X_L | C36: L/100 km | D36: 4 | F36: 4
A37: Occupancy (Hybrid) | B37: Oc_X_L | C37: PAX | D37: 1.9 | F37: 1.9
A38: Transit distance (Hybrid) | B38: TD_X_L | C38: km/yr | D38: 13500 | F38: 13500
A41: Model Parameters | D41: DPV
A42: Fuel Intensity (Petrol) | B42: FI_X_P | C42: L/100 km | D42: =F42 -> 11.5 | F42: 11.5
A43: Occupancy (Petrol) | B43: Oc_X_P | C43: PAX | D43: =F43 -> 1.9 | F43: 1.9
A44: Transit distance (Petrol) | B44: TD_X_P | C44: km/yr | D44: 13500 | F44: 13500 | H44: Parameters for freight mobility
A45: Fuel Intensity (Diesel) | B45: FI_X_D | C45: L/100 km | D45: 11.3 | F45: 11.3 | H45: % share petrol and diesel | K45: Fuel intensity (L/tonne-km)
A46: Occupancy (Diesel) | B46: Oc_X_D | C46: PAX | D46: 1.9 | F46: 1.9 | H46: Petrol | I46: 0.03 | K46: 0.0469
A47: Transit distance (Diesel) | B47: TD_X_D | C47: km/yr | D47: 13500 | F47: 13500 | H47: Diesel | I47: 0.97 | K47: 0.0368
A48: Fuel Intensity (LPG) | B48: FI_X_L | C48: L/100 km | D48: 14.1 | F48: 14.1
A49: Occupancy (LPG) | B49: Oc_X_L | C49: PAX | D49: 1.9 | F49: 1.9
A50: Transit distance (LPG) | B50: TD_X_L | C50: km/yr | D50: 13500 | F50: 13500
A51: Fuel Intensity (Hybrid) | B51: FI_X_L | C51: L/100 km
A52: Occupancy (Hybrid) | B52: Oc_X_L | C52: PAX | H52: FUEL EMISSION FACTORS | L52: NCV | M52: EFCO2 | N52: EFCH4 | O52: EFN20
A53: Transit distance (Hybrid) | B53: TD_X_L | C53: km/yr | H53: Fuel | I53: kgCO2/TJ | J53: kgCH4/TJ | K53: kgN2O/TJ | L53: TJ/Ggfuel | M53: kgCO2/kgfuel | N53: kgCH4/kgfuel | O53: kgN2O/kgfuel
H54: Gasoline | I54: 69300 | J54: 33 | K54: 3.2 | L54: 44.8 | M54: =I54*L54*0.000001 -> 3.10464 | N54: =J54*L54*0.000001 -> 0.0014784 | O54: =K54*L54*0.000001 -> 0.00014336
H55: Diesel | I55: 74100 | J55: 3.9 | K55: 3.9 | L55: 43.3 | M55: =I55*L55*0.000001 -> 3.20853 | N55: =J55*L55*0.000001 -> 0.00016887 | O55: =K55*L55*0.000001 -> 0.00016887
A56: Model Parameters | D56: Good Vehicles | H56: LPG | I56: 63100 | J56: 62 | K56: 0.2 | L56: 52.2 | M56: =I56*L56*0.000001 -> 3.29382 | N56: =J56*L56*0.000001 -> 0.0032364 | O56: =K56*L56*0.000001 -> 1.044e-05
A57: Fuel Intensity (Petrol) | B57: FI_X_P | C57: L/100 km | D57: =F57 -> 20 | E57: nu | F57: 20
A58: Occupancy (Petrol) | B58: Oc_X_P | C58: PAX
A59: Transit distance (Petrol) | B59: TD_X_P | C59: km/yr | I59: Ethanol parameters
A60: Fuel Intensity (Diesel) | B60: FI_X_D | C60: L/100 km | D60: =F60 -> 30 | E60: nu | F60: 30 | I60: Volume | J60: 20000000 | K60: L
A61: Occupancy (Diesel) | B61: Oc_X_D | C61: PAX | I61: NCV | J61: 27 | K61: TJ/Gg
A62: Transit distance (Diesel) | B62: TD_X_D | C62: km/yr | I62: Gasoline equivalent
A63: Fuel Intensity (LPG) | B63: FI_X_L | C63: L/100 km | I63: Volume | J63: =J60*J61/L54 -> 12053571.43 | K63: L
A64: Occupancy (LPG) | B64: Oc_X_L | C64: PAX | I64: Weight | J64: =J63*D8/1000 -> 8558.035714 | K64: tonne
A65: Transit distance (LPG) | B65: TD_X_L | C65: km/yr
A66: Fuel Intensity (Hybrid) | B66: FI_X_L | C66: L/100 km
A67: Occupancy (Hybrid) | B67: Oc_X_L | C67: PAX
A68: Transit distance (Hybrid) | B68: TD_X_L | C68: km/yr
I69: GLOBAL WARMING POTENTIAL
I70: GHG | J70: GWP
A71: Model Parameters for Buses | I71: CO2 | J71: 1
A72: Fuel Intensity | B72: FI_Bus | C72: L/100km | D72: =F72 -> 30.3 | F72: 30.3 | I72: CH4 | J72: 25
A73: Occupancy | B73: O_Bus | C73: PAX | D73: =F73 -> 35 | F73: 35 | I73: N2O | J73: 298
A74: Transit distance | B74: TD_Bus | C74: km/yr | D74: 38000 | F74: 38000
A75: Psssenger daily transit distance | C75: PAX km / day | D75: 17.9 | E75: nu | F75: 17.9
A76: Days per year | D76: 300 | E76: nu | F76: 300
A77: Annual bus passengers | D77: 240000000 | E77: nu | F77: 240000000
A80: Allocation of total PAX km by fuel type (%) | F80: default 2015
A81: Gasoline | D81: =F81 -> 54.93036214 | F81: =TNC_MP!Y25 -> 54.93036214
A82: Diesel | D82: =F82 -> 45.01485431 | F82: =TNC_MP!Z25 -> 45.01485431
A83: LPG | D83: =F83 -> 0.05478354139 | F83: =TNC_MP!AA25 -> 0.05478354139
A85: Percentage allocation of PAX km by type of vehicles | F85: default 2015
A86: Petrol | B86: A/cycle | D86: =F86 -> 11.31127352 | F86: =TNC_MP!AD25 -> 11.31127352
B87: Cars | D87: =F87 -> 77.78730937 | F87: =TNC_MP!AE25 -> 77.78730937
B88: M/cycle | D88: 7.364482644 | F88: =TNC_MP!AF25 -> 7.364482644
B89: DPV | D89: 2.522353976 | F89: =TNC_MP!AG25 -> 2.522353976
B90: Hybrid | D90: 1.014580486 | F90: =TNC_MP!AH25 -> 1.014580486
A91: TOTAL | B91: TOTAL | D91: 100 | F91: =SUM(F86:F90) -> 100
A93: Diesel | B93: Cars | D93: =F93 -> 8.456424318 | F93: =TNC_MP!AK25 -> 8.456424318
B94: DPV | D94: =F94 -> 12.19731885 | F94: =TNC_MP!AL25 -> 12.19731885
B95: Goods Vehicle
B96: Buses | D96: =F96 -> 79.34625683 | F96: =TNC_MP!AN25 -> 79.34625683
A97: TOTAL | B97: TOTAL | D97: =SUM(D93:D96) -> 100 | F97: =F93+F94+F96 -> 100
A99: LPG | B99: Cars | D99: =F99 -> 94.51476793 | F99: =TNC_MP!AQ25 -> 94.51476793
B100: DPV | D100: =F100 -> 5.485232068 | F100: =TNC_MP!AR25 -> 5.485232068
B101: Goods Vehicle
A102: TOTAL | B102: TOTAL | D102: =D99+D100 -> 100 | F102: =F99+F100 -> 100
A104: Scenario 4 LRT
A105: MLRT Car | B105: Petrol | D105: =F105 -> 0.9 | F105: 0.9
B106: Diesel | D106: =F106 -> 0.1 | F106: 0.1
D107: =SUM(D105:D106) -> 1 | F107: =SUM(F105:F106) -> 1
A109: Percentage Residual decrease per annum - the 5 year average decline in consumption | D109: =F109 -> 0.071 | F109: 0.071

Sheet 5. UD1 Parameters
A1: PARAMETERS | C1: UD1 | E1: Excel Toolkit for Mitigation Analysis for Low-Carbon Development Planning | P1: XLMT-Transport v17.1
A2: This page contain values used for the Transport Toolkit for key parameters. Parameters are values that do not change in time; the latter are in 'T-User Assumptions'.
A3: The ud1 values have been used as default in this Toolkit. The Chair of the Energy: Transport Group can change these parameters against a password - provided it is justified and accepted by all parties concerned.
D5: (locked) | F5: Modify
D6: UD1 | F6: USER
A7: Model parameters for Fuel Densities, kg/L | F7: UD1
A8: Gasoline | D8: ='5. TNC Parameters'!F8 -> 0.71 | F8: 0.71 | U8: Gasoline cons, G_2WH (L) = Dt X FI/100
A9: Diesel | D9: ='5. TNC Parameters'!F9 -> 0.85 | F9: 0.85 | I9: MOBILITY | U9: Gasoline cons, G_2WH (kg) = G_2WhH(L) X d (kg/L)
A10: LPG | D10: ='5. TNC Parameters'!F10 -> 0.557 | F10: 0.557 | J10: TNC | L10: USER-UD1 | U10: Total distance travelled, Dt (km) = TD X N_2WH
I11: Ksat | J11: ='5. TNC Parameters'!L11 -> 10000 | L11: 10000
I12: k | J12: ='5. TNC Parameters'!L12 -> -0.000427 | L12: -0.000427
A13: Model parameters for Autocycles | I13: Mobility = Ksat*(1-exp(k*X))
A14: Parameter | B14: Symbol | C14: Units | D14: Value | J14: where X = GDP/capita (const 1980 $)
A15: Fuel intensity | B15: FI_Ac | C15: L/100km | D15: ='5. UD1 Parameters'!F15 -> 2.5 | F15: 2.5
A16: Vehicle occupancy | B16: Oc | C16: number of persons | D16: ='5. UD1 Parameters'!F16 -> 1 | F16: 1
A17: Days utilised | B17: DU | C17: days/yr | D17: ='5. UD1 Parameters'!F17 -> 300 | E17: nu | F17: 300
A18: Transit distance | B18: TD | C18: km/yr | D18: ='5. UD1 Parameters'!F18 -> 5600 | F18: 5600
A20: Model parameters for Motorcycles
A21: Fuel intensity | B21: FI_Mc | C21: L/100km | D21: ='5. UD1 Parameters'!F21 -> 3 | F21: 3
A22: Vehicle occupancy | B22: Oc | C22: number of persons | D22: ='5. UD1 Parameters'!F22 -> 1 | F22: 1
A23: Days utilised | B23: DU | C23: days/yr | D23: ='5. UD1 Parameters'!F23 -> 300 | E23: nu | F23: 300
A24: Transit distance | B24: TD | C24: km/yr | D24: ='5. UD1 Parameters'!F24 -> 5600 | F24: 5600 | U24: Model Parameters for Goods vehicles | Y24: ?
U25: Fuel Intensity | V25: FI_DPV | W25: L/100 km | X25: 15
A26: Model Parameters | D26: Car | U26: Occupancy | V26: O_DPV | W26: PAX | X26: 1
A27: Fuel Intensity (Petrol) | B27: FI_X_P | C27: L/100 km | D27: ='5. UD1 Parameters'!F27 -> 6.5 | F27: 6.5 | U27: Transit distance | V27: TD_DPV | W27: km/yr | X27: 40000
A28: Occupancy (Petrol) | B28: Oc_X_P | C28: PAX | D28: ='5. UD1 Parameters'!F28 -> 1.9 | F28: 1.9
A29: Transit distance (Petrol) | B29: TD_X_P | C29: km/yr | D29: ='5. UD1 Parameters'!F29 -> 13500 | F29: 13500
A30: Fuel Intensity (Diesel) | B30: FI_X_D | C30: L/100 km | D30: ='5. UD1 Parameters'!F30 -> 7 | F30: 7
A31: Occupancy (Diesel) | B31: Oc_X_D | C31: PAX | D31: ='5. UD1 Parameters'!F31 -> 1.9 | F31: 1.9
A32: Transit distance (Diesel) | B32: TD_X_D | C32: km/yr | D32: ='5. UD1 Parameters'!F32 -> 13500 | F32: 13500
A33: Fuel Intensity (LPG) | B33: FI_X_L | C33: L/100 km | D33: ='5. UD1 Parameters'!F33 -> 8 | F33: 8
A34: Occupancy (LPG) | B34: Oc_X_L | C34: PAX | D34: ='5. UD1 Parameters'!F34 -> 1.9 | F34: 1.9
A35: Transit distance (LPG) | B35: TD_X_L | C35: km/yr | D35: ='5. UD1 Parameters'!F35 -> 13500 | F35: 13500
A36: Fuel Intensity (Hybrid) | B36: FI_X_L | C36: L/100 km | D36: ='5. UD1 Parameters'!F36 -> 4 | F36: 4
A37: Occupancy (Hybrid) | B37: Oc_X_L | C37: PAX | D37: ='5. UD1 Parameters'!F37 -> 1.9 | F37: 1.9
A38: Transit distance (Hybrid) | B38: TD_X_L | C38: km/yr | D38: ='5. UD1 Parameters'!F38 -> 13500 | F38: 13500
A41: Model Parameters | D41: DPV
A42: Fuel Intensity (Petrol) | B42: FI_X_P | C42: L/100 km | D42: ='5. UD1 Parameters'!F42 -> 11.5 | F42: 11.5
A43: Occupancy (Petrol) | B43: Oc_X_P | C43: PAX | D43: ='5. UD1 Parameters'!F43 -> 1.9 | F43: 1.9
A44: Transit distance (Petrol) | B44: TD_X_P | C44: km/yr | D44: ='5. UD1 Parameters'!F44 -> 13500 | F44: 13500 | H44: Parameters for freight mobility
A45: Fuel Intensity (Diesel) | B45: FI_X_D | C45: L/100 km | D45: ='5. UD1 Parameters'!F45 -> 11.3 | F45: 11.3 | H45: % share petrol and diesel | K45: Fuel intensity (L/tonne-km)
A46: Occupancy (Diesel) | B46: Oc_X_D | C46: PAX | D46: ='5. UD1 Parameters'!F46 -> 1.9 | F46: 1.9 | H46: Petrol | I46: 0.03 | K46: 0.0469
A47: Transit distance (Diesel) | B47: TD_X_D | C47: km/yr | D47: ='5. UD1 Parameters'!F47 -> 13500 | F47: 13500 | H47: Diesel | I47: 0.97 | J47: nu | K47: 0.0368 | L47: nu
A48: Fuel Intensity (LPG) | B48: FI_X_L | C48: L/100 km | D48: ='5. UD1 Parameters'!F48 -> 14.1 | F48: 14.1
A49: Occupancy (LPG) | B49: Oc_X_L | C49: PAX | D49: ='5. UD1 Parameters'!F49 -> 1.9 | F49: 1.9
A50: Transit distance (LPG) | B50: TD_X_L | C50: km/yr | D50: ='5. UD1 Parameters'!F50 -> 13500 | F50: 13500
A51: Fuel Intensity (Hybrid) | B51: FI_X_L | C51: L/100 km
A52: Occupancy (Hybrid) | B52: Oc_X_L | C52: PAX | H52: FUEL EMISSION FACTORS | L52: NCV | M52: EFCO2 | N52: EFCH4 | O52: EFN20
A53: Transit distance (Hybrid) | B53: TD_X_L | C53: km/yr | H53: Fuel | I53: kgCO2/TJ | J53: kgCH4/TJ | K53: kgN2O/TJ | L53: TJ/Ggfuel | M53: kgCO2/kgfuel | N53: kgCH4/kgfuel | O53: kgN2O/kgfuel
H54: Gasoline | I54: 69300 | J54: 33 | K54: 3.2 | L54: 44.8 | M54: =I54*L54*0.000001 -> 3.10464 | N54: =J54*L54*0.000001 -> 0.0014784 | O54: =K54*L54*0.000001 -> 0.00014336
H55: Diesel | I55: 74100 | J55: 3.9 | K55: 3.9 | L55: 43.3 | M55: =I55*L55*0.000001 -> 3.20853 | N55: =J55*L55*0.000001 -> 0.00016887 | O55: =K55*L55*0.000001 -> 0.00016887
A56: Model Parameters | D56: Good Vehicles | H56: LPG | I56: 63100 | J56: 62 | K56: 0.2 | L56: 52.2 | M56: =I56*L56*0.000001 -> 3.29382 | N56: =J56*L56*0.000001 -> 0.0032364 | O56: =K56*L56*0.000001 -> 1.044e-05
A57: Fuel Intensity (Petrol) | B57: FI_X_P | C57: L/100 km | D57: ='5. UD1 Parameters'!F57 -> 20 | E57: nu | F57: 20 | G57: nu
A58: Occupancy (Petrol) | B58: Oc_X_P | C58: PAX
A59: Transit distance (Petrol) | B59: TD_X_P | C59: km/yr | I59: Ethanol parameters
A60: Fuel Intensity (Diesel) | B60: FI_X_D | C60: L/100 km | D60: ='5. UD1 Parameters'!F60 -> 30 | E60: nu | F60: 30 | G60: nu | I60: Volume | J60: 20000000 | K60: L
A61: Occupancy (Diesel) | B61: Oc_X_D | C61: PAX | I61: NCV | J61: 27 | K61: TJ/Gg
A62: Transit distance (Diesel) | B62: TD_X_D | C62: km/yr | I62: Gasoline equivalent
A63: Fuel Intensity (LPG) | B63: FI_X_L | C63: L/100 km | I63: Volume | J63: =J60*J61/L54 -> 12053571.43 | K63: L
A64: Occupancy (LPG) | B64: Oc_X_L | C64: PAX | I64: Weight | J64: =J63*D8/1000 -> 8558.035714 | K64: tonne
A65: Transit distance (LPG) | B65: TD_X_L | C65: km/yr
A66: Fuel Intensity (Hybrid) | B66: FI_X_L | C66: L/100 km
A67: Occupancy (Hybrid) | B67: Oc_X_L | C67: PAX
A68: Transit distance (Hybrid) | B68: TD_X_L | C68: km/yr
I69: GLOBAL WARMING POTENTIAL
J70: GWP
A71: Model Parameters for Buses | I71: CO2 | J71: 1
A72: Fuel Intensity | B72: FI_Bus | C72: L/100km | D72: ='5. UD1 Parameters'!F72 -> 30.3 | F72: 30.3 | I72: CH4 | J72: 25
A73: Occupancy | B73: O_Bus | C73: PAX | D73: ='5. UD1 Parameters'!F73 -> 35 | F73: 35 | I73: N2O | J73: 298
A74: Transit distance | B74: TD_Bus | C74: km/yr | D74: ='5. UD1 Parameters'!F74 -> 38000 | F74: 38000
A75: Psssenger daily transit distance | C75: PAX km / day | D75: ='5. UD1 Parameters'!F75 -> 17.9 | E75: nu | F75: 17.9 | G75: nu
A76: Days per year | D76: ='5. UD1 Parameters'!F76 -> 300 | E76: nu | F76: 300 | G76: nu
A77: Annual bus passengers | D77: ='5. UD1 Parameters'!F77 -> 240000000 | E77: nu | F77: 240000000 | G77: nu
A80: Allocation of total PAX km by fuel type (%) | E80: default 2015
A81: Gasoline | D81: ='5. TNC Parameters'!F81 -> 54.93036214 | F81: =UD1_MP!Y25 -> 54.93036214
A82: Diesel | D82: ='5. TNC Parameters'!F82 -> 45.01485431 | F82: =UD1_MP!Z25 -> 45.01485431
A83: LPG | D83: ='5. TNC Parameters'!F83 -> 0.05478354139 | F83: =UD1_MP!AA25 -> 0.05478354139
A85: Percentage allocation of PAX km by type of vehicles | E85: default 2015
A86: Petrol | B86: A/cycle | D86: ='5. TNC Parameters'!F86 -> 11.31127352 | F86: =UD1_MP!AD25 -> 11.31127352
B87: Cars | D87: ='5. TNC Parameters'!F87 -> 77.78730937 | F87: =UD1_MP!AE25 -> 77.78730937
B88: M/cycle | D88: ='5. TNC Parameters'!F88 -> 7.364482644 | F88: =UD1_MP!AF25 -> 7.364482644
B89: DPV | D89: ='5. TNC Parameters'!F89 -> 2.522353976 | F89: =UD1_MP!AG25 -> 2.522353976
B90: Hybrid | D90: ='5. TNC Parameters'!F90 -> 1.014580486 | F90: =UD1_MP!AH25 -> 1.014580486
A91: TOTAL | B91: TOTAL | D91: ='5. TNC Parameters'!F91 -> 100 | F91: =SUM(F86:F90) -> 100
A93: Diesel | B93: Cars | D93: ='5. TNC Parameters'!F93 -> 8.456424318 | F93: =UD1_MP!AK25 -> 8.456424318
B94: DPV | D94: ='5. TNC Parameters'!F94 -> 12.19731885 | F94: =UD1_MP!AL25 -> 12.19731885
B95: Goods Vehicle
B96: Buses | D96: ='5. TNC Parameters'!F96 -> 79.34625683 | F96: =UD1_MP!AN25 -> 79.34625683
A97: TOTAL | B97: TOTAL | D97: ='5. TNC Parameters'!F97 -> 100 | F97: =F93+F94+F96 -> 100
A99: LPG | B99: Cars | D99: ='5. TNC Parameters'!D99 -> 94.51476793 | F99: =UD1_MP!AQ25 -> 94.51476793
B100: DPV | D100: ='5. TNC Parameters'!D100 -> 5.485232068 | F100: =UD1_MP!AR25 -> 5.485232068
B101: Goods Vehicle
A102: TOTAL | B102: TOTAL | D102: =D99+D100 -> 100 | F102: =F99+F100 -> 100
A104: Scenario 4 LRT
A105: MLRT Car | B105: Petrol | D105: ='5. TNC Parameters'!D105 -> 0.9 | F105: 0.9
B106: Diesel | D106: ='5. TNC Parameters'!D106 -> 0.1 | F106: 0.1
D107: =SUM(D105:D106) -> 1 | F107: =SUM(F105:F106) -> 1
A109: Percentage Residual decrease per annum - the 5 year average decline in consumption | D109: ='5. TNC Parameters'!D109 -> 0.071 | F109: 0.071

Sheet 5. UD2 Parameters
A1: PARAMETERS | C1: UD2 | E1: Excel Toolkit for Mitigation Analysis for Low-Carbon Development Planning | P1: XLMT-Transport v17.1
A2: This page contain values used for the Transport Toolkit for key parameters. Parameters are values that do not change in time; the latter are in 'T-User Assumptions'.
A3: The ud2 values have been used as default in this Toolkit. The Chair of the Energy: Transport Group can change these parameters against a password - provided it is justified and accepted by all parties concerned.
D5: (locked) | F5: Modify
D6: UD2 | F6: USER
A7: Model parameters for Fuel Densities, kg/L | F7: UD2
A8: Gasoline | D8: ='5. TNC Parameters'!D8 -> 0.71 | F8: =D8 -> 0.71 | U8: Gasoline cons, G_2WH (L) = Dt X FI/100
A9: Diesel | D9: ='5. TNC Parameters'!D9 -> 0.85 | F9: 0.85 | I9: MOBILITY | U9: Gasoline cons, G_2WH (kg) = G_2WhH(L) X d (kg/L)
A10: LPG | D10: ='5. TNC Parameters'!D10 -> 0.557 | F10: 0.557 | J10: TNC | L10: USER-UD2 | U10: Total distance travelled, Dt (km) = TD X N_2WH
I11: Ksat | J11: ='5. TNC Parameters'!J11:K11 -> 10000 | L11: 10000
I12: k | J12: ='5. TNC Parameters'!J12:K12 -> -0.000427 | L12: -0.000427
A13: Model parameters for Autocycles | I13: Mobility = Ksat*(1-exp(k*X))
A14: Parameter | B14: Symbol | C14: Units | D14: Value | F14: =D14 -> Value | J14: where X = GDP/capita (const 1980 $)
A15: Fuel intensity | B15: FI_Ac | C15: L/100km | D15: ='5. TNC Parameters'!D15 -> 2.5 | F15: =D15 -> 2.5
A16: Vehicle occupancy | B16: Oc | C16: number of persons | D16: ='5. TNC Parameters'!D16 -> 1 | F16: 1
A17: Days utilised | B17: DU | C17: days/yr | D17: ='5. TNC Parameters'!D17 -> 300 | E17: nu | F17: 300
A18: Transit distance | B18: TD | C18: km/yr | D18: ='5. TNC Parameters'!D18 -> 5600 | F18: 5600
A20: Model parameters for Motorcycles
A21: Fuel intensity | B21: FI_Mc | C21: L/100km | D21: ='5. TNC Parameters'!D21 -> 3 | F21: =D21 -> 3
A22: Vehicle occupancy | B22: Oc | C22: number of persons | D22: ='5. TNC Parameters'!D22 -> 1 | F22: 1
A23: Days utilised | B23: DU | C23: days/yr | D23: ='5. TNC Parameters'!D23 -> 300 | E23: nu | F23: 300
A24: Transit distance | B24: TD | C24: km/yr | D24: ='5. TNC Parameters'!D24 -> 5600 | F24: 5600 | U24: Model Parameters for Goods vehicles | Y24: ?
U25: Fuel Intensity | V25: FI_DPV | W25: L/100 km | X25: 15
A26: Model Parameters | D26: Car | F26: =D26 -> Car | U26: Occupancy | V26: O_DPV | W26: PAX | X26: 1
A27: Fuel Intensity (Petrol) | B27: FI_X_P | C27: L/100 km | D27: ='5. TNC Parameters'!D27 -> 6.5 | F27: =D27 -> 6.5 | U27: Transit distance | V27: TD_DPV | W27: km/yr | X27: 40000
A28: Occupancy (Petrol) | B28: Oc_X_P | C28: PAX | D28: ='5. TNC Parameters'!D28 -> 1.9 | F28: 1.9
A29: Transit distance (Petrol) | B29: TD_X_P | C29: km/yr | D29: ='5. TNC Parameters'!D29 -> 13500 | F29: 13500
A30: Fuel Intensity (Diesel) | B30: FI_X_D | C30: L/100 km | D30: ='5. TNC Parameters'!D30 -> 7 | F30: 7
A31: Occupancy (Diesel) | B31: Oc_X_D | C31: PAX | D31: ='5. TNC Parameters'!D31 -> 1.9 | F31: 1.9
A32: Transit distance (Diesel) | B32: TD_X_D | C32: km/yr | D32: ='5. TNC Parameters'!D32 -> 13500 | F32: 13500
A33: Fuel Intensity (LPG) | B33: FI_X_L | C33: L/100 km | D33: ='5. TNC Parameters'!D33 -> 8 | F33: 8
A34: Occupancy (LPG) | B34: Oc_X_L | C34: PAX | D34: ='5. TNC Parameters'!D34 -> 1.9 | F34: 1.9
A35: Transit distance (LPG) | B35: TD_X_L | C35: km/yr | D35: ='5. TNC Parameters'!D35 -> 13500 | F35: 13500
A36: Fuel Intensity (Hybrid) | B36: FI_X_L | C36: L/100 km | D36: ='5. TNC Parameters'!D36 -> 4 | F36: 4
A37: Occupancy (Hybrid) | B37: Oc_X_L | C37: PAX | D37: ='5. TNC Parameters'!D37 -> 1.9 | F37: 1.9
A38: Transit distance (Hybrid) | B38: TD_X_L | C38: km/yr | D38: ='5. TNC Parameters'!D38 -> 13500 | F38: 13500
A41: Model Parameters | D41: DPV | F41: =D41 -> DPV
A42: Fuel Intensity (Petrol) | B42: FI_X_P | C42: L/100 km | D42: ='5. TNC Parameters'!D42 -> 11.5 | F42: =D42 -> 11.5
A43: Occupancy (Petrol) | B43: Oc_X_P | C43: PAX | D43: ='5. TNC Parameters'!D43 -> 1.9 | F43: =D43 -> 1.9
A44: Transit distance (Petrol) | B44: TD_X_P | C44: km/yr | D44: ='5. TNC Parameters'!D44 -> 13500 | F44: 13500 | H44: Parameters for freight mobility
A45: Fuel Intensity (Diesel) | B45: FI_X_D | C45: L/100 km | D45: ='5. TNC Parameters'!D45 -> 11.3 | F45: =D45 -> 11.3 | H45: % share petrol and diesel | K45: Fuel intensity (L/tonne-km)
A46: Occupancy (Diesel) | B46: Oc_X_D | C46: PAX | D46: ='5. TNC Parameters'!D46 -> 1.9 | F46: 1.9 | H46: Petrol | I46: 0.03 | K46: 0.0469
A47: Transit distance (Diesel) | B47: TD_X_D | C47: km/yr | D47: ='5. TNC Parameters'!D47 -> 13500 | F47: 13500 | H47: Diesel | I47: 0.97 | J47: NU | K47: 0.0368 | L47: NU
A48: Fuel Intensity (LPG) | B48: FI_X_L | C48: L/100 km | D48: ='5. TNC Parameters'!D48 -> 14.1 | F48: 14.1
A49: Occupancy (LPG) | B49: Oc_X_L | C49: PAX | D49: ='5. TNC Parameters'!D49 -> 1.9 | F49: 1.9
A50: Transit distance (LPG) | B50: TD_X_L | C50: km/yr | D50: ='5. TNC Parameters'!D50 -> 13500 | F50: 13500
A51: Fuel Intensity (Hybrid) | B51: FI_X_L | C51: L/100 km
A52: Occupancy (Hybrid) | B52: Oc_X_L | C52: PAX | H52: FUEL EMISSION FACTORS | L52: NCV | M52: EFCO2 | N52: EFCH4 | O52: EFN20
A53: Transit distance (Hybrid) | B53: TD_X_L | C53: km/yr | H53: Fuel | I53: kgCO2/TJ | J53: kgCH4/TJ | K53: kgN2O/TJ | L53: TJ/Ggfuel | M53: kgCO2/kgfuel | N53: kgCH4/kgfuel | O53: kgN2O/kgfuel
H54: Gasoline | I54: 69300 | J54: 33 | K54: 3.2 | L54: 44.8 | M54: =I54*L54*0.000001 -> 3.10464 | N54: =J54*L54*0.000001 -> 0.0014784 | O54: =K54*L54*0.000001 -> 0.00014336
H55: Diesel | I55: 74100 | J55: 3.9 | K55: 3.9 | L55: 43.3 | M55: =I55*L55*0.000001 -> 3.20853 | N55: =J55*L55*0.000001 -> 0.00016887 | O55: =K55*L55*0.000001 -> 0.00016887
A56: Model Parameters | D56: Good Vehicles | F56: =D56 -> Good Vehicles | H56: LPG | I56: 63100 | J56: 62 | K56: 0.2 | L56: 52.2 | M56: =I56*L56*0.000001 -> 3.29382 | N56: =J56*L56*0.000001 -> 0.0032364 | O56: =K56*L56*0.000001 -> 1.044e-05
A57: Fuel Intensity (Petrol) | B57: FI_X_P | C57: L/100 km | D57: ='5. TNC Parameters'!D57 -> 20 | E57: nu | F57: =D57 -> 20
A58: Occupancy (Petrol) | B58: Oc_X_P | C58: PAX
A59: Transit distance (Petrol) | B59: TD_X_P | C59: km/yr | I59: Ethanol parameters
A60: Fuel Intensity (Diesel) | B60: FI_X_D | C60: L/100 km | D60: ='5. TNC Parameters'!D60 -> 30 | E60: nu | F60: 30 | I60: Volume | J60: 20000000 | K60: L
A61: Occupancy (Diesel) | B61: Oc_X_D | C61: PAX | I61: NCV | J61: 27 | K61: TJ/Gg
A62: Transit distance (Diesel) | B62: TD_X_D | C62: km/yr | I62: Gasoline equivalent
A63: Fuel Intensity (LPG) | B63: FI_X_L | C63: L/100 km | I63: Volume | J63: =J60*J61/L54 -> 12053571.43 | K63: L
A64: Occupancy (LPG) | B64: Oc_X_L | C64: PAX | I64: Weight | J64: =J63*D8/1000 -> 8558.035714 | K64: tonne
A65: Transit distance (LPG) | B65: TD_X_L | C65: km/yr
A66: Fuel Intensity (Hybrid) | B66: FI_X_L | C66: L/100 km
A67: Occupancy (Hybrid) | B67: Oc_X_L | C67: PAX
A68: Transit distance (Hybrid) | B68: TD_X_L | C68: km/yr
I69: GLOBAL WARMING POTENTIAL
I70: GHG | J70: GWP
A71: Model Parameters for Buses | I71: CO2 | J71: 1
A72: Fuel Intensity | B72: FI_Bus | C72: L/100km | D72: ='5. TNC Parameters'!D72 -> 30.3 | F72: =D72 -> 30.3 | I72: CH4 | J72: 25
A73: Occupancy | B73: O_Bus | C73: PAX | D73: ='5. TNC Parameters'!D73 -> 35 | F73: 35 | I73: N2O | J73: 298
A74: Transit distance | B74: TD_Bus | C74: km/yr | D74: ='5. TNC Parameters'!D74 -> 38000 | F74: 38000
A75: Psssenger daily transit distance | C75: PAX km / day | D75: ='5. TNC Parameters'!D75 -> 17.9 | E75: nu | F75: 17.9
A76: Days per year | D76: ='5. TNC Parameters'!D76 -> 300 | E76: nu | F76: 300
A77: Annual bus passengers | D77: ='5. TNC Parameters'!D77 -> 240000000 | E77: nu | F77: 240000000
A80: Allocation of total PAX km by fuel type (%) | E80: default 2015
A81: Gasoline | D81: ='5. TNC Parameters'!D81 -> 54.93036214 | F81: =UD2_MP!Y25 -> 54.93036214
A82: Diesel | D82: ='5. TNC Parameters'!D82 -> 45.01485431 | F82: =UD2_MP!Z25 -> 45.01485431
A83: LPG | D83: ='5. TNC Parameters'!D83 -> 0.05478354139 | F83: =UD2_MP!AA25 -> 0.05478354139
A85: Percentage allocation of PAX km by type of vehicles | E85: default 2015
A86: Petrol | B86: A/cycle | D86: ='5. TNC Parameters'!D86 -> 11.31127352 | F86: =UD2_MP!AD25 -> 11.31127352
B87: Cars | D87: ='5. TNC Parameters'!D87 -> 77.78730937 | F87: =UD2_MP!AE25 -> 77.78730937
B88: M/cycle | D88: ='5. TNC Parameters'!D88 -> 7.364482644 | F88: =UD2_MP!AF25 -> 7.364482644
B89: DPV | D89: ='5. TNC Parameters'!D89 -> 2.522353976 | F89: =UD2_MP!AG25 -> 2.522353976
B90: Hybrid | D90: ='5. TNC Parameters'!D90 -> 1.014580486 | F90: =UD2_MP!AH25 -> 1.014580486
A91: TOTAL | B91: TOTAL | D91: ='5. TNC Parameters'!D91 -> 100 | F91: =SUM(F86:F90) -> 100
A93: Diesel | B93: Cars | D93: ='5. TNC Parameters'!D93 -> 8.456424318 | F93: =UD2_MP!AK25 -> 8.456424318
B94: DPV | D94: ='5. TNC Parameters'!D94 -> 12.19731885 | F94: =UD2_MP!AL25 -> 12.19731885
B95: Goods Vehicle
B96: Buses | D96: ='5. TNC Parameters'!D96 -> 79.34625683 | F96: =UD2_MP!AN25 -> 79.34625683
A97: TOTAL | B97: TOTAL | D97: ='5. TNC Parameters'!D97 -> 100 | F97: =F93+F94+F96 -> 100
A99: LPG | B99: Cars | D99: ='5. TNC Parameters'!D99 -> 94.51476793 | F99: =UD2_MP!AQ25 -> 94.51476793
B100: DPV | D100: ='5. TNC Parameters'!D100 -> 5.485232068 | F100: =UD2_MP!AR25 -> 5.485232068
B101: Goods Vehicle
A102: TOTAL | B102: TOTAL | D102: ='5. TNC Parameters'!D102 -> 100 | F102: =F99+F100 -> 100
A104: Scenario 4 LRT
A105: MLRT Car | B105: Petrol | D105: ='5. TNC Parameters'!D105 -> 0.9 | F105: =D105 -> 0.9
B106: Diesel | D106: ='5. TNC Parameters'!D106 -> 0.1 | F106: 0.1
D107: ='5. TNC Parameters'!D107 -> 1 | F107: =SUM(F105:F106) -> 1
A109: Percentage Residual decrease per annum - the 5 year average decline in consumption | D109: ='5. TNC Parameters'!D109 -> 0.071 | F109: 0.071

Sheet 6. TNC Assumptions
A1: ASSUMPTIONS | D1: TNC | F1: Excel Toolkit for Mitigation Analysis for Low-Carbon Development Planning | Q1: XLMT-Transport v17.1
A2: Users can input values in the 'User-specified' columns for different scenarios. Then, proceed to 'Query' for results.
E4: SCENARIO 1 | L4: SCENARIO 2 | S4: SCENARIO 3 - Low carbon strategies | AH4: SCENARIO 4 - LRT System
B5: Population | C5: Population | E5: FUEL ECONOMY IMPROVES BY x% ANNUALLY | L5: IMPROVEMENTS through BETTER VEHICLE MAINTENANCE | S5: Hybrid & Electric vehicles | AE5: Blended Ethanol | AH5: Light Rail System
S6: Percentage allocation of PAX km by type of petrol vehicles | AE6: Penetration rate
B7: Default | C7: Chair | E7: Default | F7: Chair | G7: Default | H7: Chair | I7: Default | J7: Chair | L7: Default | M7: Chair | N7: Default | O7: Chair | P7: Default | Q7: Chair | S7: Default | T7: Chair | U7: Default | V7: Chair | W7: Default | X7: Chair | Y7: Default | Z7: Chair | AA7: Default | AB7: Chair | AC7: Default | AD7: Chair | AE7: Default | AF7: Chair
B8: Population | C8: Population | E8: Gasoline | F8: Gasoline | G8: Diesel | H8: Diesel | I8: LPG | J8: LPG | L8: Gasoline | M8: Gasoline | N8: Diesel | O8: Diesel | P8: LPG | Q8: LPG | S8: Hybrid | T8: Hybrid | U8: Electric | V8: Electric | W8: Cars (petrol) | X8: Cars (petrol) | Y8: A/Cycle | Z8: A/Cycle | AA8: M/Cycle | AB8: M/Cycle | AC8: DPV | AD8: DPV | AE8: Ethanol | AF8: Ethanol
A9: YEAR | D9: YEAR | E9: x% | F9: x% | G9: x% | H9: x% | I9: x% | J9: x% | K9: YEAR | L9: x% | M9: x% | N9: x% | O9: x% | P9: x% | Q9: x% | R9: YEAR | S9: x% | T9: x% | U9: x% | V9: x% | W9: x% | X9: x% | Y9: x% | Z9: x% | AA9: x% | AB9: x% | AC9: x% | AD9: x% | AE9: x% | AF9: x% | AG9: YEAR
A10: 2000 | D10: 2000 | E10: 0 | F10: 0 | G10: 0 | H10: 0 | I10: 0 | J10: 0 | K10: 2000 | L10: 0 | M10: 0 | N10: 0 | O10: 0 | P10: 0 | Q10: 0 | R10: 2000 | AG10: 2000
A11: 2001 | D11: 2001 | E11: 0 | F11: 0 | G11: 0 | H11: 0 | I11: 0 | J11: 0 | K11: 2001 | L11: 0 | M11: 0 | N11: 0 | O11: 0 | P11: 0 | Q11: 0 | R11: 2001 | AG11: 2001
A12: 2002 | D12: 2002 | E12: 0 | F12: 0 | G12: 0 | H12: 0 | I12: 0 | J12: 0 | K12: 2002 | L12: 0 | M12: 0 | N12: 0 | O12: 0 | P12: 0 | Q12: 0 | R12: 2002 | AG12: 2002
A13: 2003 | D13: 2003 | E13: 0 | F13: 0 | G13: 0 | H13: 0 | I13: 0 | J13: 0 | K13: 2003 | L13: 0 | M13: 0 | N13: 0 | O13: 0 | P13: 0 | Q13: 0 | R13: 2003 | AG13: 2003
A14: 2004 | D14: 2004 | E14: 0 | F14: 0 | G14: 0 | H14: 0 | I14: 0 | J14: 0 | K14: 2004 | L14: 0 | M14: 0 | N14: 0 | O14: 0 | P14: 0 | Q14: 0 | R14: 2004 | Y14: lockeds area | AG14: 2004
A15: 2005 | D15: 2005 | E15: 0 | F15: 0 | G15: 0 | H15: 0 | I15: 0 | J15: 0 | K15: 2005 | L15: 0 | M15: 0 | N15: 0 | O15: 0 | P15: 0 | Q15: 0 | R15: 2005 | AG15: 2005
A16: 2006 | D16: 2006 | E16: 0 | F16: 0 | G16: 0 | H16: 0 | I16: 0 | J16: 0 | K16: 2006 | L16: 0 | M16: 0 | N16: 0 | O16: 0 | P16: 0 | Q16: 0 | R16: 2006 | AG16: 2006
A17: 2007 | D17: 2007 | E17: 0 | F17: 0 | G17: 0 | H17: 0 | I17: 0 | J17: 0 | K17: 2007 | L17: 0 | M17: 0 | N17: 0 | O17: 0 | P17: 0 | Q17: 0 | R17: 2007 | AG17: 2007
A18: 2008 | D18: 2008 | E18: 0 | F18: 0 | G18: 0 | H18: 0 | I18: 0 | J18: 0 | K18: 2008 | L18: 0 | M18: 0 | N18: 0 | O18: 0 | P18: 0 | Q18: 0 | R18: 2008 | AG18: 2008 | AH18: Petrol | AI18: Diesel
A19: 2009 | D19: 2009 | E19: 0 | F19: 0 | G19: 0 | H19: 0 | I19: 0 | J19: 0 | K19: 2009 | L19: 0 | M19: 0 | N19: 0 | O19: 0 | P19: 0 | Q19: 0 | R19: 2009 | AG19: 2009 | AH19: MLRT Car | AI19: MLRT Bus
A20: 2010 | B20: 1210391 | C20: 1210391 | D20: 2010 | E20: 0 | F20: 0 | G20: 0 | H20: 0 | I20: 0 | J20: 0 | K20: 2010 | L20: 0 | M20: 0 | N20: 0 | O20: 0 | P20: 0 | Q20: 0 | R20: 2010 | S20: ='5. TNC Parameters'!$F$90 -> 1.014580486 | T20: =S20 -> 1.014580486 | U20: 0 | V20: =U20 -> 0 | W20: ='5. TNC Parameters'!$F$87 -> 77.78730937 | X20: =W20 -> 77.78730937 | Y20: ='5. TNC Parameters'!$F$86 -> 11.31127352 | Z20: =Y20 -> 11.31127352 | AA20: ='5. TNC Parameters'!$F$88 -> 7.364482644 | AB20: =AA20 -> 7.364482644 | AC20: ='5. TNC Parameters'!$F$89 -> 2.522353976 | AD20: =AC20 -> 2.522353976 | AE20: 0 | AF20: =AE20 -> 0 | AG20: 2010 | AH20: 0 | AI20: 0
A21: 2011 | B21: 1211979 | C21: 1211979 | D21: 2011 | E21: 0 | F21: 0 | G21: 0 | H21: 0 | I21: 0 | J21: 0 | K21: 2011 | L21: 0 | M21: 0 | N21: 0 | O21: 0 | P21: 0 | Q21: 0 | R21: 2011 | S21: ='5. TNC Parameters'!$F$90 -> 1.014580486 | T21: 1.014580486 | U21: 0 | V21: 0 | W21: ='5. TNC Parameters'!$F$87 -> 77.78730937 | X21: 77.78730937 | Y21: ='5. TNC Parameters'!$F$86 -> 11.31127352 | Z21: 11.31127352 | AA21: ='5. TNC Parameters'!$F$88 -> 7.364482644 | AB21: 7.364482644 | AC21: ='5. TNC Parameters'!$F$89 -> 2.522353976 | AD21: 2.522353976 | AE21: 0 | AF21: =AE21 -> 0 | AG21: 2011 | AH21: 0 | AI21: 0
A22: 2012 | B22: 1214987 | C22: 1214987 | D22: 2012 | E22: 0 | F22: 0 | G22: 0 | H22: 0 | I22: 0 | J22: 0 | K22: 2012 | L22: 0 | M22: 0 | N22: 0 | O22: 0 | P22: 0 | Q22: 0 | R22: 2012 | S22: ='5. TNC Parameters'!$F$90 -> 1.014580486 | T22: 1.014580486 | U22: 0 | V22: 0 | W22: ='5. TNC Parameters'!$F$87 -> 77.78730937 | X22: 77.78730937 | Y22: ='5. TNC Parameters'!$F$86 -> 11.31127352 | Z22: 11.31127352 | AA22: ='5. TNC Parameters'!$F$88 -> 7.364482644 | AB22: 7.364482644 | AC22: ='5. TNC Parameters'!$F$89 -> 2.522353976 | AD22: 2.522353976 | AE22: 0 | AF22: 0 | AG22: 2012 | AH22: 0 | AI22: 0
A23: 2013 | B23: 1217341 | C23: 1217341 | D23: 2013 | E23: 0 | F23: 0 | G23: 0 | H23: 0 | I23: 0 | J23: 0 | K23: 2013 | L23: 0 | M23: 0 | N23: 0 | O23: 0 | P23: 0 | Q23: 0 | R23: 2013 | S23: ='5. TNC Parameters'!$F$90 -> 1.014580486 | T23: 1.014580486 | U23: 0 | V23: 0 | W23: ='5. TNC Parameters'!$F$87 -> 77.78730937 | X23: 77.78730937 | Y23: ='5. TNC Parameters'!$F$86 -> 11.31127352 | Z23: 11.31127352 | AA23: ='5. TNC Parameters'!$F$88 -> 7.364482644 | AB23: 7.364482644 | AC23: ='5. TNC Parameters'!$F$89 -> 2.522353976 | AD23: 2.522353976 | AE23: 0 | AF23: 0 | AG23: 2013 | AH23: 0 | AI23: 0
A24: 2014 | B24: 1219265 | C24: 1219265 | D24: 2014 | E24: 0 | F24: 0 | G24: 0 | H24: 0 | I24: 0 | J24: 0 | K24: 2014 | L24: 0 | M24: 0 | N24: 0 | O24: 0 | P24: 0 | Q24: 0 | R24: 2014 | S24: ='5. TNC Parameters'!$F$90 -> 1.014580486 | T24: 1.014580486 | U24: 0 | V24: 0 | W24: ='5. TNC Parameters'!$F$87 -> 77.78730937 | X24: 77.78730937 | Y24: ='5. TNC Parameters'!$F$86 -> 11.31127352 | Z24: 11.31127352 | AA24: ='5. TNC Parameters'!$F$88 -> 7.364482644 | AB24: 7.364482644 | AC24: ='5. TNC Parameters'!$F$89 -> 2.522353976 | AD24: 2.522353976 | AE24: 0 | AF24: 0 | AG24: 2014 | AH24: 0 | AI24: 0
A25: 2015 | B25: 1219929.2 | C25: 1219929.2 | D25: 2015 | E25: 0 | F25: 0 | G25: 0 | H25: 0 | I25: 0 | J25: 0 | K25: 2015 | L25: 0 | M25: 0 | N25: 0 | O25: 0 | P25: 0 | Q25: 0 | R25: 2015 | S25: ='5. TNC Parameters'!$F$90 -> 1.014580486 | T25: 1.014580486 | U25: 0 | V25: 0 | W25: ='5. TNC Parameters'!$F$87 -> 77.78730937 | X25: 77.78730937 | Y25: ='5. TNC Parameters'!$F$86 -> 11.31127352 | Z25: 11.31127352 | AA25: ='5. TNC Parameters'!$F$88 -> 7.364482644 | AB25: 7.364482644 | AC25: ='5. TNC Parameters'!$F$89 -> 2.522353976 | AD25: 2.522353976 | AE25: 0 | AF25: 0 | AG25: 2015 | AH25: 0 | AI25: 0
A26: 2016 | B26: 1220593.4 | C26: 1220593.4 | D26: 2016 | E26: 0.01 | F26: =E26 -> 0.01 | G26: 0.01 | H26: 0.01 | I26: 0.01 | J26: 0.01 | K26: 2016 | L26: 0 | M26: 0 | N26: 0 | O26: 0 | P26: 0 | Q26: 0 | R26: 2016 | S26: =S25+0.21 -> 1.224580486 | T26: 1.224580486 | U26: 0 | V26: 0 | W26: =100-Z26-AB26-AD26-T26-V26 -> 77.57730937 | X26: 77.57730937 | Y26: ='5. TNC Parameters'!$F$86 -> 11.31127352 | Z26: 11.31127352 | AA26: ='5. TNC Parameters'!$F$88 -> 7.364482644 | AB26: 7.364482644 | AC26: ='5. TNC Parameters'!$F$89 -> 2.522353976 | AD26: 2.522353976 | AE26: 0 | AF26: 0 | AG26: 2016 | AH26: 0 | AI26: 0
A27: 2017 | B27: 1221257.6 | C27: 1221257.6 | D27: 2017 | E27: 0.01 | F27: =E27 -> 0.01 | G27: 0.01 | H27: 0.01 | I27: 0.01 | J27: 0.01 | K27: 2017 | L27: 0 | M27: 0 | N27: 0 | O27: 0 | P27: 0 | Q27: 0 | R27: 2017 | S27: =S26+0.21 -> 1.434580486 | T27: 1.434580486 | U27: 0 | V27: 0 | W27: =100-Z27-AB27-AD27-T27-V27 -> 77.36730937 | X27: 77.36730937 | Y27: ='5. TNC Parameters'!$F$86 -> 11.31127352 | Z27: 11.31127352 | AA27: ='5. TNC Parameters'!$F$88 -> 7.364482644 | AB27: 7.364482644 | AC27: ='5. TNC Parameters'!$F$89 -> 2.522353976 | AD27: 2.522353976 | AE27: 0 | AF27: 0 | AG27: 2017 | AH27: 0 | AI27: 0
A28: 2018 | B28: 1221921.8 | C28: 1221921.8 | D28: 2018 | E28: 0.01 | F28: =E28 -> 0.01 | G28: 0.01 | H28: 0.01 | I28: 0.01 | J28: 0.01 | K28: 2018 | L28: 0.025 | M28: 0.025 | N28: 0.025 | O28: 0.025 | P28: 0 | Q28: 0 | R28: 2018 | S28: =S27+0.21 -> 1.644580486 | T28: 1.644580486 | U28: 0 | V28: 0 | W28: 77.15730937 | X28: 77.15730937 | Y28: ='5. TNC Parameters'!$F$86 -> 11.31127352 | Z28: 11.31127352 | AA28: ='5. TNC Parameters'!$F$88 -> 7.364482644 | AB28: 7.364482644 | AC28: ='5. TNC Parameters'!$F$89 -> 2.522353976 | AD28: 2.522353976 | AE28: 0 | AF28: 0 | AG28: 2018 | AH28: 208126000 | AI28: 369145000
A29: 2019 | B29: 1222586 | C29: 1222586 | D29: 2019 | E29: 0.01 | F29: =E29 -> 0.01 | G29: 0.01 | H29: 0.01 | I29: 0.01 | J29: 0.01 | K29: 2019 | L29: 0.05 | M29: 0.05 | N29: 0.05 | O29: 0.05 | P29: 0 | Q29: 0 | R29: 2019 | S29: =S28+0.21 -> 1.854580486 | T29: 1.854580486 | U29: 0 | V29: 0 | W29: 76.94730937 | X29: 76.94730937 | Y29: ='5. TNC Parameters'!$F$86 -> 11.31127352 | Z29: 11.31127352 | AA29: ='5. TNC Parameters'!$F$88 -> 7.364482644 | AB29: 7.364482644 | AC29: ='5. TNC Parameters'!$F$89 -> 2.522353976 | AD29: 2.522353976 | AE29: 0 | AF29: 0 | AG29: 2019 | AH29: 207682160 | AI29: 370156500
A30: 2020 | B30: 1221855.6 | C30: 1221855.6 | D30: 2020 | E30: 0.01 | F30: =E30 -> 0.01 | G30: 0.01 | H30: 0.01 | I30: 0.01 | J30: 0.01 | K30: 2020 | L30: 0.05 | M30: 0.05 | N30: 0.05 | O30: 0.05 | P30: 0 | Q30: 0 | R30: 2020 | S30: =S29+0.21 -> 2.064580486 | T30: 2.064580486 | U30: 0 | V30: 0 | W30: 76.73730937 | X30: 76.73730937 | Y30: ='5. TNC Parameters'!$F$86 -> 11.31127352 | Z30: 11.31127352 | AA30: ='5. TNC Parameters'!$F$88 -> 7.364482644 | AB30: 7.364482644 | AC30: ='5. TNC Parameters'!$F$89 -> 2.522353976 | AD30: 2.522353976 | AE30: 0.25 | AF30: 0.25 | AG30: 2020 | AH30: 207238320 | AI30: 371168000
A31: 2021 | B31: 1221125.2 | C31: 1221125.2 | D31: 2021 | E31: 0.015 | F31: 0.015 | G31: 0.015 | H31: 0.015 | I31: 0.015 | J31: 0.015 | K31: 2021 | L31: 0.05 | M31: 0.05 | N31: 0.05 | O31: 0.05 | P31: 0 | Q31: 0 | R31: 2021 | S31: =S30+0.5 -> 2.564580486 | T31: 2.564580486 | U31: =U30+0.1 -> 0.1 | V31: 0.1 | W31: 76.13730937 | X31: 76.13730937 | Y31: ='5. TNC Parameters'!$F$86 -> 11.31127352 | Z31: 11.31127352 | AA31: ='5. TNC Parameters'!$F$88 -> 7.364482644 | AB31: 7.364482644 | AC31: ='5. TNC Parameters'!$F$89 -> 2.522353976 | AD31: 2.522353976 | AE31: 0.3 | AF31: 0.3 | AG31: 2021 | AH31: 206794480 | AI31: 372179500
A32: 2022 | B32: 1220394.8 | C32: 1220394.8 | D32: 2022 | E32: 0.015 | F32: 0.015 | G32: 0.015 | H32: 0.015 | I32: 0.015 | J32: 0.015 | K32: 2022 | L32: 0.05 | M32: 0.05 | N32: 0.05 | O32: 0.05 | P32: 0 | Q32: 0 | R32: 2022 | S32: =S31+0.5 -> 3.064580486 | T32: 3.064580486 | U32: =U31+0.1 -> 0.2 | V32: 0.2 | W32: 75.53730937 | X32: 75.53730937 | Y32: ='5. TNC Parameters'!$F$86 -> 11.31127352 | Z32: 11.31127352 | AA32: ='5. TNC Parameters'!$F$88 -> 7.364482644 | AB32: 7.364482644 | AC32: ='5. TNC Parameters'!$F$89 -> 2.522353976 | AD32: 2.522353976 | AE32: 0.35 | AF32: 0.35 | AG32: 2022 | AH32: 206350640 | AI32: 373191000
A33: 2023 | B33: 1219664.4 | C33: 1219664.4 | D33: 2023 | E33: 0.015 | F33: 0.015 | G33: 0.015 | H33: 0.015 | I33: 0.015 | J33: 0.015 | K33: 2023 | L33: 0.05 | M33: 0.05 | N33: 0.05 | O33: 0.05 | P33: 0 | Q33: 0 | R33: 2023 | S33: =S32+0.5 -> 3.564580486 | T33: 3.564580486 | U33: =U32+0.1 -> 0.3 | V33: 0.3 | W33: 74.93730937 | X33: 74.93730937 | Y33: ='5. TNC Parameters'!$F$86 -> 11.31127352 | Z33: 11.31127352 | AA33: ='5. TNC Parameters'!$F$88 -> 7.364482644 | AB33: 7.364482644 | AC33: ='5. TNC Parameters'!$F$89 -> 2.522353976 | AD33: 2.522353976 | AE33: 0.4 | AF33: 0.4 | AG33: 2023 | AH33: 205906800 | AI33: 374202500
A34: 2024 | B34: 1218934 | C34: 1218934 | D34: 2024 | E34: 0.015 | F34: 0.015 | G34: 0.015 | H34: 0.015 | I34: 0.015 | J34: 0.015 | K34: 2024 | L34: 0.05 | M34: 0.05 | N34: 0.05 | O34: 0.05 | P34: 0 | Q34: 0 | R34: 2024 | S34: =S33+0.5 -> 4.064580486 | T34: 4.064580486 | U34: =U33+0.1 -> 0.4 | V34: 0.4 | W34: 74.33730937 | X34: 74.33730937 | Y34: ='5. TNC Parameters'!$F$86 -> 11.31127352 | Z34: 11.31127352 | AA34: ='5. TNC Parameters'!$F$88 -> 7.364482644 | AB34: 7.364482644 | AC34: ='5. TNC Parameters'!$F$89 -> 2.522353976 | AD34: 2.522353976 | AE34: 0.45 | AF34: 0.45 | AG34: 2024 | AH34: 205462960 | AI34: 375214000
A35: 2025 | B35: 1216191.2 | C35: 1216191.2 | D35: 2025 | E35: 0.015 | F35: 0.015 | G35: 0.015 | H35: 0.015 | I35: 0.015 | J35: 0.015 | K35: 2025 | L35: 0.05 | M35: 0.05 | N35: 0.05 | O35: 0.05 | P35: 0 | Q35: 0 | R35: 2025 | S35: =S34+0.5 -> 4.564580486 | T35: 4.564580486 | U35: =U34+0.1 -> 0.5 | V35: 0.5 | W35: 73.73730937 | X35: 73.73730937 | Y35: ='5. TNC Parameters'!$F$86 -> 11.31127352 | Z35: 11.31127352 | AA35: ='5. TNC Parameters'!$F$88 -> 7.364482644 | AB35: 7.364482644 | AC35: ='5. TNC Parameters'!$F$89 -> 2.522353976 | AD35: 2.522353976 | AE35: 0.5 | AF35: 0.5 | AG35: 2025 | AH35: 205019120 | AI35: 376225500
A36: 2026 | B36: 1213448.4 | C36: 1213448.4 | D36: 2026 | E36: 0.015 | F36: 0.015 | G36: 0.015 | H36: 0.015 | I36: 0.015 | J36: 0.015 | K36: 2026 | L36: 0.05 | M36: 0.05 | N36: 0.05 | O36: 0.05 | P36: 0 | Q36: 0 | R36: 2026 | S36: =S35+0.75 -> 5.314580486 | T36: 5.314580486 | U36: =U35+0.2 -> 0.7 | V36: 0.7 | W36: 72.78730937 | X36: 72.78730937 | Y36: ='5. TNC Parameters'!$F$86 -> 11.31127352 | Z36: 11.31127352 | AA36: ='5. TNC Parameters'!$F$88 -> 7.364482644 | AB36: 7.364482644 | AC36: ='5. TNC Parameters'!$F$89 -> 2.522353976 | AD36: 2.522353976 | AE36: 0.55 | AF36: 0.55 | AG36: 2026 | AH36: 204575280 | AI36: 377237000
A37: 2027 | B37: 1210705.6 | C37: 1210705.6 | D37: 2027 | E37: 0.015 | F37: 0.015 | G37: 0.015 | H37: 0.015 | I37: 0.015 | J37: 0.015 | K37: 2027 | L37: 0.05 | M37: 0.05 | N37: 0.05 | O37: 0.05 | P37: 0 | Q37: 0 | R37: 2027 | S37: =S36+0.75 -> 6.064580486 | T37: 6.064580486 | U37: =U36+0.2 -> 0.9 | V37: 0.9 | W37: 71.83730937 | X37: 71.83730937 | Y37: ='5. TNC Parameters'!$F$86 -> 11.31127352 | Z37: 11.31127352 | AA37: ='5. TNC Parameters'!$F$88 -> 7.364482644 | AB37: 7.364482644 | AC37: ='5. TNC Parameters'!$F$89 -> 2.522353976 | AD37: 2.522353976 | AE37: 0.6 | AF37: 0.6 | AG37: 2027 | AH37: 204131440 | AI37: 378248500
A38: 2028 | B38: 1207962.8 | C38: 1207962.8 | D38: 2028 | E38: 0.015 | F38: 0.015 | G38: 0.015 | H38: 0.015 | I38: 0.015 | J38: 0.015 | K38: 2028 | L38: 0.05 | M38: 0.05 | N38: 0.05 | O38: 0.05 | P38: 0 | Q38: 0 | R38: 2028 | S38: =S37+0.75 -> 6.814580486 | T38: 6.814580486 | U38: =U37+0.2 -> 1.1 | V38: 1.1 | W38: 70.88730937 | X38: 70.88730937 | Y38: ='5. TNC Parameters'!$F$86 -> 11.31127352 | Z38: 11.31127352 | AA38: ='5. TNC Parameters'!$F$88 -> 7.364482644 | AB38: 7.364482644 | AC38: ='5. TNC Parameters'!$F$89 -> 2.522353976 | AD38: 2.522353976 | AE38: 0.65 | AF38: 0.65 | AG38: 2028 | AH38: 203687600 | AI38: 379260000
A39: 2029 | B39: 1205220 | C39: 1205220 | D39: 2029 | E39: 0.015 | F39: 0.015 | G39: 0.015 | H39: 0.015 | I39: 0.015 | J39: 0.015 | K39: 2029 | L39: 0.05 | M39: 0.05 | N39: 0.05 | O39: 0.05 | P39: 0 | Q39: 0 | R39: 2029 | S39: =S38+0.75 -> 7.564580486 | T39: 7.564580486 | U39: =U38+0.2 -> 1.3 | V39: 1.3 | W39: 69.93730937 | X39: 69.93730937 | Y39: ='5. TNC Parameters'!$F$86 -> 11.31127352 | Z39: 11.31127352 | AA39: ='5. TNC Parameters'!$F$88 -> 7.364482644 | AB39: 7.364482644 | AC39: ='5. TNC Parameters'!$F$89 -> 2.522353976 | AD39: 2.522353976 | AE39: 0.7 | AF39: 0.7 | AG39: 2029 | AH39: 205225840 | AI39: 380989000
A40: 2030 | B40: 1202477.2 | C40: 1202477.2 | D40: 2030 | E40: 0.015 | F40: 0.015 | G40: 0.015 | H40: 0.015 | I40: 0.015 | J40: 0.015 | K40: 2030 | L40: 0.05 | M40: 0.05 | N40: 0.05 | O40: 0.05 | P40: 0 | Q40: 0 | R40: 2030 | S40: =S39+0.75 -> 8.314580486 | T40: 8.314580486 | U40: =U39+0.2 -> 1.5 | V40: 1.5 | W40: 68.98730937 | X40: 68.98730937 | Y40: ='5. TNC Parameters'!$F$86 -> 11.31127352 | Z40: 11.31127352 | AA40: ='5. TNC Parameters'!$F$88 -> 7.364482644 | AB40: 7.364482644 | AC40: ='5. TNC Parameters'!$F$89 -> 2.522353976 | AD40: 2.522353976 | AE40: 0.75 | AF40: 0.75 | AG40: 2030 | AH40: 206764080 | AI40: 382718000
A41: 2031 | B41: 1199734.4 | C41: 1199734.4 | D41: 2031 | E41: 0.015 | F41: 0.015 | G41: 0.015 | H41: 0.015 | I41: 0.015 | J41: 0.015 | K41: 2031 | L41: 0.05 | M41: 0.05 | N41: 0.05 | O41: 0.05 | P41: 0 | Q41: 0 | R41: 2031 | S41: =S40+1 -> 9.314580486 | T41: 9.314580486 | U41: =U40+0.4 -> 1.9 | V41: 1.9 | W41: 67.58730937 | X41: 67.58730937 | Y41: ='5. TNC Parameters'!$F$86 -> 11.31127352 | Z41: 11.31127352 | AA41: ='5. TNC Parameters'!$F$88 -> 7.364482644 | AB41: 7.364482644 | AC41: ='5. TNC Parameters'!$F$89 -> 2.522353976 | AD41: 2.522353976 | AE41: 0.8 | AF41: 0.8 | AG41: 2031 | AH41: 208302320 | AI41: 384447000
A42: 2032 | B42: 1196991.6 | C42: 1196991.6 | D42: 2032 | E42: 0.015 | F42: 0.015 | G42: 0.015 | H42: 0.015 | I42: 0.015 | J42: 0.015 | K42: 2032 | L42: 0.05 | M42: 0.05 | N42: 0.05 | O42: 0.05 | P42: 0 | Q42: 0 | R42: 2032 | S42: =S41+1 -> 10.31458049 | T42: 10.31458049 | U42: =U41+0.4 -> 2.3 | V42: 2.3 | W42: 66.18730937 | X42: 66.18730937 | Y42: ='5. TNC Parameters'!$F$86 -> 11.31127352 | Z42: 11.31127352 | AA42: ='5. TNC Parameters'!$F$88 -> 7.364482644 | AB42: 7.364482644 | AC42: ='5. TNC Parameters'!$F$89 -> 2.522353976 | AD42: 2.522353976 | AE42: 0.85 | AF42: 0.85 | AG42: 2032 | AH42: 209840560 | AI42: 386176000
A43: 2033 | B43: 1194248.8 | C43: 1194248.8 | D43: 2033 | E43: 0.015 | F43: 0.015 | G43: 0.015 | H43: 0.015 | I43: 0.015 | J43: 0.015 | K43: 2033 | L43: 0.05 | M43: 0.05 | N43: 0.05 | O43: 0.05 | P43: 0 | Q43: 0 | R43: 2033 | S43: =S42+1 -> 11.31458049 | T43: 11.31458049 | U43: =U42+0.4 -> 2.7 | V43: 2.7 | W43: 64.78730937 | X43: 64.78730937 | Y43: ='5. TNC Parameters'!$F$86 -> 11.31127352 | Z43: 11.31127352 | AA43: ='5. TNC Parameters'!$F$88 -> 7.364482644 | AB43: 7.364482644 | AC43: ='5. TNC Parameters'!$F$89 -> 2.522353976 | AD43: 2.522353976 | AE43: 0.9 | AF43: 0.9 | AG43: 2033 | AH43: 211378800 | AI43: 387905000
A44: 2034 | B44: 1179270 | C44: 1179270 | D44: 2034 | E44: 0.015 | F44: 0.015 | G44: 0.015 | H44: 0.015 | I44: 0.015 | J44: 0.015 | K44: 2034 | L44: 0.05 | M44: 0.05 | N44: 0.05 | O44: 0.05 | P44: 0 | Q44: 0 | R44: 2034 | S44: =S43+1 -> 12.31458049 | T44: 12.31458049 | U44: =U43+0.4 -> 3.1 | V44: 3.1 | W44: 63.38730937 | X44: 63.38730937 | Y44: ='5. TNC Parameters'!$F$86 -> 11.31127352 | Z44: 11.31127352 | AA44: ='5. TNC Parameters'!$F$88 -> 7.364482644 | AB44: 7.364482644 | AC44: ='5. TNC Parameters'!$F$89 -> 2.522353976 | AD44: 2.522353976 | AE44: 0.95 | AF44: 0.95 | AG44: 2034 | AH44: 212917040 | AI44: 389634000
A45: 2035 | B45: 1174080 | C45: 1174080 | D45: 2035 | E45: 0.015 | F45: 0.015 | G45: 0.015 | H45: 0.015 | I45: 0.015 | J45: 0.015 | K45: 2035 | L45: 0.05 | M45: 0.05 | N45: 0.05 | O45: 0.05 | P45: 0 | Q45: 0 | R45: 2035 | S45: =S44+1 -> 13.31458049 | T45: 13.31458049 | U45: =U44+0.4 -> 3.5 | V45: 3.5 | W45: 61.98730937 | X45: 61.98730937 | Y45: ='5. TNC Parameters'!$F$86 -> 11.31127352 | Z45: 11.31127352 | AA45: ='5. TNC Parameters'!$F$88 -> 7.364482644 | AB45: 7.364482644 | AC45: ='5. TNC Parameters'!$F$89 -> 2.522353976 | AD45: 2.522353976 | AE45: 1 | AF45: 1 | AG45: 2035 | AH45: 214455280 | AI45: 391363000
A46: 2036 | B46: 1168890 | C46: 1168890 | D46: 2036 | E46: 0.015 | F46: 0.015 | G46: 0.015 | H46: 0.015 | I46: 0.015 | J46: 0.015 | K46: 2036 | L46: 0.05 | M46: 0.05 | N46: 0.05 | O46: 0.05 | P46: 0 | Q46: 0 | R46: 2036 | S46: =S45+1.5 -> 14.81458049 | T46: 14.81458049 | U46: =U45+0.8 -> 4.3 | V46: 4.3 | W46: 59.68730937 | X46: 59.68730937 | Y46: ='5. TNC Parameters'!$F$86 -> 11.31127352 | Z46: 11.31127352 | AA46: ='5. TNC Parameters'!$F$88 -> 7.364482644 | AB46: 7.364482644 | AC46: ='5. TNC Parameters'!$F$89 -> 2.522353976 | AD46: 2.522353976 | AE46: 1 | AF46: 1 | AG46: 2036 | AH46: 215993520 | AI46: 393092000
A47: 2037 | B47: 1163700 | C47: 1163700 | D47: 2037 | E47: 0.015 | F47: 0.015 | G47: 0.015 | H47: 0.015 | I47: 0.015 | J47: 0.015 | K47: 2037 | L47: 0.05 | M47: 0.05 | N47: 0.05 | O47: 0.05 | P47: 0 | Q47: 0 | R47: 2037 | S47: =S46+1.5 -> 16.31458049 | T47: 16.31458049 | U47: =U46+0.8 -> 5.1 | V47: 5.1 | W47: 57.38730937 | X47: 57.38730937 | Y47: ='5. TNC Parameters'!$F$86 -> 11.31127352 | Z47: 11.31127352 | AA47: ='5. TNC Parameters'!$F$88 -> 7.364482644 | AB47: 7.364482644 | AC47: ='5. TNC Parameters'!$F$89 -> 2.522353976 | AD47: 2.522353976 | AE47: 1 | AF47: 1 | AG47: 2037 | AH47: 217531760 | AI47: 394821000
A48: 2038 | B48: 1158510 | C48: 1158510 | D48: 2038 | E48: 0.015 | F48: 0.015 | G48: 0.015 | H48: 0.015 | I48: 0.015 | J48: 0.015 | K48: 2038 | L48: 0.05 | M48: 0.05 | N48: 0.05 | O48: 0.05 | P48: 0 | Q48: 0 | R48: 2038 | S48: =S47+1.5 -> 17.81458049 | T48: 17.81458049 | U48: =U47+0.8 -> 5.9 | V48: 5.9 | W48: 55.08730937 | X48: 55.08730937 | Y48: ='5. TNC Parameters'!$F$86 -> 11.31127352 | Z48: 11.31127352 | AA48: ='5. TNC Parameters'!$F$88 -> 7.364482644 | AB48: 7.364482644 | AC48: ='5. TNC Parameters'!$F$89 -> 2.522353976 | AD48: 2.522353976 | AE48: 1 | AF48: 1 | AG48: 2038 | AH48: 219070000 | AI48: 396550000
A49: 2039 | B49: 1140226 | C49: 1140226 | D49: 2039 | E49: 0.015 | F49: 0.015 | G49: 0.015 | H49: 0.015 | I49: 0.015 | J49: 0.015 | K49: 2039 | L49: 0.05 | M49: 0.05 | N49: 0.05 | O49: 0.05 | P49: 0 | Q49: 0 | R49: 2039 | S49: =S48+1.5 -> 19.31458049 | T49: 19.31458049 | U49: =U48+0.8 -> 6.7 | V49: 6.7 | W49: 52.78730937 | X49: 52.78730937 | Y49: ='5. TNC Parameters'!$F$86 -> 11.31127352 | Z49: 11.31127352 | AA49: ='5. TNC Parameters'!$F$88 -> 7.364482644 | AB49: 7.364482644 | AC49: ='5. TNC Parameters'!$F$89 -> 2.522353976 | AD49: 2.522353976 | AE49: 1 | AF49: 1 | AG49: 2039 | AH49: 219070000 | AI49: 396550000
A50: 2040 | B50: 1130418.8 | C50: 1130418.8 | D50: 2040 | E50: 0.015 | F50: 0.015 | G50: 0.015 | H50: 0.015 | I50: 0.015 | J50: 0.015 | K50: 2040 | L50: 0.05 | M50: 0.05 | N50: 0.05 | O50: 0.05 | P50: 0 | Q50: 0 | R50: 2040 | S50: =S49+1.5 -> 20.81458049 | T50: 20.81458049 | U50: =U49+0.8 -> 7.5 | V50: 7.5 | W50: 50.48730937 | X50: 50.48730937 | Y50: ='5. TNC Parameters'!$F$86 -> 11.31127352 | Z50: 11.31127352 | AA50: ='5. TNC Parameters'!$F$88 -> 7.364482644 | AB50: =AA50 -> 7.364482644 | AC50: ='5. TNC Parameters'!$F$89 -> 2.522353976 | AD50: 2.522353976 | AE50: 1 | AF50: 1 | AG50: 2040 | AH50: 219070000 | AI50: 396550000
A51: 2041 | B51: 1120611.6 | C51: 1120611.6 | D51: 2041 | E51: 0.015 | F51: 0.015 | G51: 0.015 | H51: 0.015 | I51: 0.015 | J51: 0.015 | K51: 2041 | L51: 0.05 | M51: 0.05 | N51: 0.05 | O51: 0.05 | P51: 0 | Q51: 0 | R51: 2041 | S51: =S50+2 -> 22.81458049 | T51: 22.81458049 | U51: =U50+1 -> 8.5 | V51: 8.5 | W51: 47.48730937 | X51: 47.48730937 | Y51: ='5. TNC Parameters'!$F$86 -> 11.31127352 | Z51: 11.31127352 | AA51: ='5. TNC Parameters'!$F$88 -> 7.364482644 | AB51: 7.364482644 | AC51: ='5. TNC Parameters'!$F$89 -> 2.522353976 | AD51: 2.522353976 | AE51: 1 | AF51: 1 | AG51: 2041 | AH51: 219070000 | AI51: 396550000
A52: 2042 | B52: 1110804.4 | C52: 1110804.4 | D52: 2042 | E52: 0.015 | F52: 0.015 | G52: 0.015 | H52: 0.015 | I52: 0.015 | J52: 0.015 | K52: 2042 | L52: 0.05 | M52: 0.05 | N52: 0.05 | O52: 0.05 | P52: 0 | Q52: 0 | R52: 2042 | S52: =S51+2 -> 24.81458049 | T52: 24.81458049 | U52: =U51+1 -> 9.5 | V52: 9.5 | W52: 44.48730937 | X52: 44.48730937 | Y52: ='5. TNC Parameters'!$F$86 -> 11.31127352 | Z52: 11.31127352 | AA52: ='5. TNC Parameters'!$F$88 -> 7.364482644 | AB52: 7.364482644 | AC52: ='5. TNC Parameters'!$F$89 -> 2.522353976 | AD52: 2.522353976 | AE52: 1 | AF52: 1 | AG52: 2042 | AH52: 219070000 | AI52: 396550000
A53: 2043 | B53: 1100997.2 | C53: 1100997.2 | D53: 2043 | E53: 0.015 | F53: 0.015 | G53: 0.015 | H53: 0.015 | I53: 0.015 | J53: 0.015 | K53: 2043 | L53: 0.05 | M53: 0.05 | N53: 0.05 | O53: 0.05 | P53: 0 | Q53: 0 | R53: 2043 | S53: =S52+2 -> 26.81458049 | T53: 26.81458049 | U53: =U52+1 -> 10.5 | V53: 10.5 | W53: 41.48730937 | X53: 41.48730937 | Y53: ='5. TNC Parameters'!$F$86 -> 11.31127352 | Z53: 11.31127352 | AA53: ='5. TNC Parameters'!$F$88 -> 7.364482644 | AB53: 7.364482644 | AC53: ='5. TNC Parameters'!$F$89 -> 2.522353976 | AD53: 2.522353976 | AE53: 1 | AF53: 1 | AG53: 2043 | AH53: 219070000 | AI53: 396550000
A54: 2044 | B54: 1091190 | C54: 1091190 | D54: 2044 | E54: 0.015 | F54: 0.015 | G54: 0.015 | H54: 0.015 | I54: 0.015 | J54: 0.015 | K54: 2044 | L54: 0.05 | M54: 0.05 | N54: 0.05 | O54: 0.05 | P54: 0 | Q54: 0 | R54: 2044 | S54: =S53+2 -> 28.81458049 | T54: 28.81458049 | U54: =U53+1 -> 11.5 | V54: 11.5 | W54: 38.48730937 | X54: 38.48730937 | Y54: ='5. TNC Parameters'!$F$86 -> 11.31127352 | Z54: 11.31127352 | AA54: ='5. TNC Parameters'!$F$88 -> 7.364482644 | AB54: 7.364482644 | AC54: ='5. TNC Parameters'!$F$89 -> 2.522353976 | AD54: 2.522353976 | AE54: 1 | AF54: 1 | AG54: 2044 | AH54: 219070000 | AI54: 396550000
A55: 2045 | B55: 1080164.2 | C55: 1080164.2 | D55: 2045 | E55: 0.015 | F55: 0.015 | G55: 0.015 | H55: 0.015 | I55: 0.015 | J55: 0.015 | K55: 2045 | L55: 0.05 | M55: 0.05 | N55: 0.05 | O55: 0.05 | P55: 0 | Q55: 0 | R55: 2045 | S55: =S54+2 -> 30.81458049 | T55: 30.81458049 | U55: =U54+1 -> 12.5 | V55: 12.5 | W55: 35.48730937 | X55: 35.48730937 | Y55: ='5. TNC Parameters'!$F$86 -> 11.31127352 | Z55: 11.31127352 | AA55: ='5. TNC Parameters'!$F$88 -> 7.364482644 | AB55: 7.364482644 | AC55: ='5. TNC Parameters'!$F$89 -> 2.522353976 | AD55: 2.522353976 | AE55: 1 | AF55: 1 | AG55: 2045 | AH55: 219070000 | AI55: 396550000
A56: 2046 | B56: 1069138.4 | C56: 1069138.4 | D56: 2046 | E56: 0.015 | F56: 0.015 | G56: 0.015 | H56: 0.015 | I56: 0.015 | J56: 0.015 | K56: 2046 | L56: 0.05 | M56: 0.05 | N56: 0.05 | O56: 0.05 | P56: 0 | Q56: 0 | R56: 2046 | S56: =S55+2.5 -> 33.31458049 | T56: 33.31458049 | U56: =U55+1.25 -> 13.75 | V56: 13.75 | W56: 31.73730937 | X56: 31.73730937 | Y56: ='5. TNC Parameters'!$F$86 -> 11.31127352 | Z56: 11.31127352 | AA56: ='5. TNC Parameters'!$F$88 -> 7.364482644 | AB56: 7.364482644 | AC56: ='5. TNC Parameters'!$F$89 -> 2.522353976 | AD56: 2.522353976 | AE56: 1 | AF56: 1 | AG56: 2046 | AH56: 219070000 | AI56: 396550000
A57: 2047 | B57: 1058112.6 | C57: 1058112.6 | D57: 2047 | E57: 0.015 | F57: 0.015 | G57: 0.015 | H57: 0.015 | I57: 0.015 | J57: 0.015 | K57: 2047 | L57: 0.05 | M57: 0.05 | N57: 0.05 | O57: 0.05 | P57: 0 | Q57: 0 | R57: 2047 | S57: =S56+2.5 -> 35.81458049 | T57: 35.81458049 | U57: =U56+1.25 -> 15 | V57: 15 | W57: 27.98730937 | X57: 27.98730937 | Y57: ='5. TNC Parameters'!$F$86 -> 11.31127352 | Z57: 11.31127352 | AA57: ='5. TNC Parameters'!$F$88 -> 7.364482644 | AB57: 7.364482644 | AC57: ='5. TNC Parameters'!$F$89 -> 2.522353976 | AD57: 2.522353976 | AE57: 1 | AF57: 1 | AG57: 2047 | AH57: 219070000 | AI57: 396550000
A58: 2048 | B58: 1047086.8 | C58: 1047086.8 | D58: 2048 | E58: 0.015 | F58: 0.015 | G58: 0.015 | H58: 0.015 | I58: 0.015 | J58: 0.015 | K58: 2048 | L58: 0.05 | M58: 0.05 | N58: 0.05 | O58: 0.05 | P58: 0 | Q58: 0 | R58: 2048 | S58: =S57+2.5 -> 38.31458049 | T58: 38.31458049 | U58: =U57+1.25 -> 16.25 | V58: 16.25 | W58: 24.23730937 | X58: 24.23730937 | Y58: ='5. TNC Parameters'!$F$86 -> 11.31127352 | Z58: 11.31127352 | AA58: ='5. TNC Parameters'!$F$88 -> 7.364482644 | AB58: 7.364482644 | AC58: ='5. TNC Parameters'!$F$89 -> 2.522353976 | AD58: 2.522353976 | AE58: 1 | AF58: 1 | AG58: 2048 | AH58: 219070000 | AI58: 396550000
A59: 2049 | B59: 1036061 | C59: 1036061 | D59: 2049 | E59: 0.015 | F59: 0.015 | G59: 0.015 | H59: 0.015 | I59: 0.015 | J59: 0.015 | K59: 2049 | L59: 0.05 | M59: 0.05 | N59: 0.05 | O59: 0.05 | P59: 0 | Q59: 0 | R59: 2049 | S59: =S58+2.5 -> 40.81458049 | T59: 40.81458049 | U59: =U58+1.25 -> 17.5 | V59: 17.5 | W59: 20.48730937 | X59: 20.48730937 | Y59: ='5. TNC Parameters'!$F$86 -> 11.31127352 | Z59: 11.31127352 | AA59: ='5. TNC Parameters'!$F$88 -> 7.364482644 | AB59: 7.364482644 | AC59: ='5. TNC Parameters'!$F$89 -> 2.522353976 | AD59: 2.522353976 | AE59: 1 | AF59: 1 | AG59: 2049 | AH59: 219070000 | AI59: 396550000
A60: 2050 | B60: 1024556.2 | C60: 1024556.2 | D60: 2050 | E60: 0.015 | F60: 0.015 | G60: 0.015 | H60: 0.015 | I60: 0.015 | J60: 0.015 | K60: 2050 | L60: 0.05 | M60: 0.05 | N60: 0.05 | O60: 0.05 | P60: 0 | Q60: 0 | R60: 2050 | S60: =S59+2.5 -> 43.31458049 | T60: =T59+2.5 -> 43.31458049 | U60: =U59+1.25 -> 18.75 | V60: =V59+1.25 -> 18.75 | W60: 16.73730937 | X60: 16.73730937 | Y60: ='5. TNC Parameters'!$F$86 -> 11.31127352 | Z60: 11.31127352 | AA60: ='5. TNC Parameters'!$F$88 -> 7.364482644 | AB60: 7.364482644 | AC60: ='5. TNC Parameters'!$F$89 -> 2.522353976 | AD60: 2.522353976 | AE60: 1 | AF60: 1 | AG60: 2050 | AH60: 219070000 | AI60: 396550000
E62: Note 1
E63: SCENARIO 1 | L63: SCENARIO 2
E64: FUEL ECONOMY IMPROVES BY 1% ANNUALLY TO 2020. | L64: PRIVATISATION OF VEHICLE INSPECTION & FITNESS CENTRES LEADS TO BETTER VEHICLE MAINTENANCE AND THEREFORE LOWER EMISSIONS. | S64: Hybrid | T64: 2016-2020 | U64: 0.21 | V64: 2021-2025 | W64: 0.5 | X64: 2026-2030 | Y64: 0.75 | Z64: 2031-2035 | AA64: 1 | AB64: 2036-2040 | AC64: 1.5 | AD64: 2041-2045 | AE64: 2 | AF64: 2046-2050 | AG64: 2.5
E65: AFTER 2020, THE FUEL ECONOMY IMPROVES AT A RATE OF 1.5% pa. THESE IMPROVEMENTS ARE APPLIED TO THE TOTAL FUEL CALCULATED IN THE BAU CASE. | L65: IT IS ASSUMED THAT THE NEW SYSTEM IS PUT IN PLACE IN 2017, RESULTING IN A DECREASE IN OVERALL EMISSIONS BY 5% IN 2019. | S65: Electric | T65: 2016-2020 | U65: 0 | V65: 2021-2025 | W65: 0.1 | X65: 2026-2030 | Y65: 0.2 | Z65: 2031-2035 | AA65: 0.4 | AB65: 2036-2040 | AC65: 0.8 | AD65: 2041-2045 | AE65: 1 | AF65: 2046-2050 | AG65: 1.25
E66: IMPROVEMENTS APPLY TO YEAR 2016 ONWARDS | S66: This section allocates the share of low-carbon technologies - i.e. hybrid and electric vehicles.
L67: ud1 applies to gasoline and diesel only | S67: ASSUMPTION: Hybrid and Electric vehicles are substitutes for only gasoline-driven vehicles.
S68: The average annual increase in the absolute share of hybrid vehicles in the PAX km mix has been 0.21% between 2012 and 2015.
S69: It is assumed that this increase will continue until 2020, afterwhich the increase will be an absolute 0.5% annual between 2020 and 2025.
S70: Between 2025 and 2030, the increase is at 1% absolute per year.

Sheet 6. UD1 Assumptions
A1: ASSUMPTIONS | D1: UD1 | F1: Excel Toolkit for Mitigation Analysis for Low-Carbon Development Planning | Q1: XLMT-Transport v17.1
A2: Users can input values in the 'User-specified' columns for different scenarios. Then, proceed to 'Query' for results.
E4: SCENARIO 1 | L4: SCENARIO 2 | S4: SCENARIO 3 - Low carbon strategies | AH4: SCENARIO 4 - LRT System
B5: Population | C5: Population | E5: FUEL ECONOMY IMPROVES BY x% ANNUALLY | L5: IMPROVEMENTS through BETTER VEHICLE MAINTENANCE | S5: Hybrid & Electric vehicles | AE5: Blended Ethanol | AH5: Light Rail System
S6: Percentage allocation of PAX km by type of petrol vehicles | AE6: Penetration rate
B7: Default | C7: Users-specified | E7: Default | F7: User-specified | G7: Default | H7: User-specified | I7: Default | J7: User-specified | L7: Default | M7: User-specified | N7: Default | O7: User-specified | P7: Default | Q7: User-specified | S7: Default | T7: User specified | U7: Default | V7: User specified | W7: Default | X7: User specified | Y7: Default | Z7: User specified | AA7: Default | AB7: User specified | AC7: Default | AD7: User specified | AE7: Default | AF7: User specified
B8: Population | C8: Population | E8: Gasoline | F8: Gasoline | G8: Diesel | H8: Diesel | I8: LPG | J8: LPG | L8: Gasoline | M8: Gasoline | N8: Diesel | O8: Diesel | P8: LPG | Q8: LPG | S8: Hybrid | T8: Hybrid | U8: Electric | V8: Electric | W8: Cars (petrol) | X8: Cars (petrol) | Y8: A/Cycle | Z8: A/Cycle | AA8: M/Cycle | AB8: M/Cycle | AC8: DPV | AD8: DPV | AE8: Ethanol | AF8: Ethanol
A9: YEAR | D9: YEAR | E9: x% | F9: x% | G9: x% | H9: x% | I9: x% | J9: x% | K9: YEAR | L9: x% | M9: x% | N9: x% | O9: x% | P9: x% | Q9: x% | R9: YEAR | S9: x% | T9: x% | U9: x% | V9: x% | W9: x% | X9: x% | Y9: x% | Z9: x% | AA9: x% | AB9: x% | AC9: x% | AD9: x% | AE9: x% | AF9: x% | AG9: YEAR
A10: 2000 | D10: 2000 | E10: 0 | F10: 0 | G10: 0 | H10: 0 | I10: 0 | J10: 0 | K10: 2000 | L10: 0 | M10: 0 | N10: 0 | O10: 0 | P10: 0 | Q10: 0 | R10: 2000 | AG10: 2000
A11: 2001 | D11: 2001 | E11: 0 | F11: 0 | G11: 0 | H11: 0 | I11: 0 | J11: 0 | K11: 2001 | L11: 0 | M11: 0 | N11: 0 | O11: 0 | P11: 0 | Q11: 0 | R11: 2001 | AG11: 2001
A12: 2002 | D12: 2002 | E12: 0 | F12: 0 | G12: 0 | H12: 0 | I12: 0 | J12: 0 | K12: 2002 | L12: 0 | M12: 0 | N12: 0 | O12: 0 | P12: 0 | Q12: 0 | R12: 2002 | AG12: 2002
A13: 2003 | D13: 2003 | E13: 0 | F13: 0 | G13: 0 | H13: 0 | I13: 0 | J13: 0 | K13: 2003 | L13: 0 | M13: 0 | N13: 0 | O13: 0 | P13: 0 | Q13: 0 | R13: 2003 | AG13: 2003
A14: 2004 | D14: 2004 | E14: 0 | F14: 0 | G14: 0 | H14: 0 | I14: 0 | J14: 0 | K14: 2004 | L14: 0 | M14: 0 | N14: 0 | O14: 0 | P14: 0 | Q14: 0 | R14: 2004 | Y14: lockeds area | AG14: 2004
A15: 2005 | D15: 2005 | E15: 0 | F15: 0 | G15: 0 | H15: 0 | I15: 0 | J15: 0 | K15: 2005 | L15: 0 | M15: 0 | N15: 0 | O15: 0 | P15: 0 | Q15: 0 | R15: 2005 | AG15: 2005
A16: 2006 | D16: 2006 | E16: 0 | F16: 0 | G16: 0 | H16: 0 | I16: 0 | J16: 0 | K16: 2006 | L16: 0 | M16: 0 | N16: 0 | O16: 0 | P16: 0 | Q16: 0 | R16: 2006 | AG16: 2006
A17: 2007 | D17: 2007 | E17: 0 | F17: 0 | G17: 0 | H17: 0 | I17: 0 | J17: 0 | K17: 2007 | L17: 0 | M17: 0 | N17: 0 | O17: 0 | P17: 0 | Q17: 0 | R17: 2007 | AG17: 2007
A18: 2008 | D18: 2008 | E18: 0 | F18: 0 | G18: 0 | H18: 0 | I18: 0 | J18: 0 | K18: 2008 | L18: 0 | M18: 0 | N18: 0 | O18: 0 | P18: 0 | Q18: 0 | R18: 2008 | AG18: 2008 | AH18: Petrol | AI18: Diesel
A19: 2009 | D19: 2009 | E19: 0 | F19: 0 | G19: 0 | H19: 0 | I19: 0 | J19: 0 | K19: 2009 | L19: 0 | M19: 0 | N19: 0 | O19: 0 | P19: 0 | Q19: 0 | R19: 2009 | AG19: 2009 | AH19: MLRT Car | AI19: MLRT Bus
A20: 2010 | B20: 1210391 | C20: 1210391 | D20: 2010 | E20: 0 | F20: 0 | G20: 0 | H20: 0 | I20: 0 | J20: 0 | K20: 2010 | L20: 0 | M20: 0 | N20: 0 | O20: 0 | P20: 0 | Q20: 0 | R20: 2010 | S20: ='5. TNC Parameters'!$F$90 -> 1.014580486 | T20: =S20 -> 1.014580486 | U20: 0 | V20: =U20 -> 0 | W20: ='5. TNC Parameters'!$F$87 -> 77.78730937 | X20: =W20 -> 77.78730937 | Y20: ='5. TNC Parameters'!$F$86 -> 11.31127352 | Z20: =Y20 -> 11.31127352 | AA20: ='5. TNC Parameters'!$F$88 -> 7.364482644 | AB20: =AA20 -> 7.364482644 | AC20: ='5. TNC Parameters'!$F$89 -> 2.522353976 | AD20: =AC20 -> 2.522353976 | AE20: 0 | AF20: =AE20 -> 0 | AG20: 2010 | AH20: 0 | AI20: 0
A21: 2011 | B21: 1211979 | C21: 1211979 | D21: 2011 | E21: 0 | F21: 0 | G21: 0 | H21: 0 | I21: 0 | J21: 0 | K21: 2011 | L21: 0 | M21: 0 | N21: 0 | O21: 0 | P21: 0 | Q21: 0 | R21: 2011 | S21: ='5. TNC Parameters'!$F$90 -> 1.014580486 | T21: 1.014580486 | U21: 0 | V21: 0 | W21: ='5. TNC Parameters'!$F$87 -> 77.78730937 | X21: 77.78730937 | Y21: ='5. TNC Parameters'!$F$86 -> 11.31127352 | Z21: 11.31127352 | AA21: ='5. TNC Parameters'!$F$88 -> 7.364482644 | AB21: 7.364482644 | AC21: ='5. TNC Parameters'!$F$89 -> 2.522353976 | AD21: 2.522353976 | AE21: 0 | AF21: =AE21 -> 0 | AG21: 2011 | AH21: 0 | AI21: 0
A22: 2012 | B22: 1214987 | C22: 1214987 | D22: 2012 | E22: 0 | F22: 0 | G22: 0 | H22: 0 | I22: 0 | J22: 0 | K22: 2012 | L22: 0 | M22: 0 | N22: 0 | O22: 0 | P22: 0 | Q22: 0 | R22: 2012 | S22: ='5. TNC Parameters'!$F$90 -> 1.014580486 | T22: 1.014580486 | U22: 0 | V22: 0 | W22: ='5. TNC Parameters'!$F$87 -> 77.78730937 | X22: 77.78730937 | Y22: ='5. TNC Parameters'!$F$86 -> 11.31127352 | Z22: 11.31127352 | AA22: ='5. TNC Parameters'!$F$88 -> 7.364482644 | AB22: 7.364482644 | AC22: ='5. TNC Parameters'!$F$89 -> 2.522353976 | AD22: 2.522353976 | AE22: 0 | AF22: 0 | AG22: 2012 | AH22: 0 | AI22: 0
A23: 2013 | B23: 1217341 | C23: 1217341 | D23: 2013 | E23: 0 | F23: 0 | G23: 0 | H23: 0 | I23: 0 | J23: 0 | K23: 2013 | L23: 0 | M23: 0 | N23: 0 | O23: 0 | P23: 0 | Q23: 0 | R23: 2013 | S23: ='5. TNC Parameters'!$F$90 -> 1.014580486 | T23: 1.014580486 | U23: 0 | V23: 0 | W23: ='5. TNC Parameters'!$F$87 -> 77.78730937 | X23: 77.78730937 | Y23: ='5. TNC Parameters'!$F$86 -> 11.31127352 | Z23: 11.31127352 | AA23: ='5. TNC Parameters'!$F$88 -> 7.364482644 | AB23: 7.364482644 | AC23: ='5. TNC Parameters'!$F$89 -> 2.522353976 | AD23: 2.522353976 | AE23: 0 | AF23: 0 | AG23: 2013 | AH23: 0 | AI23: 0
A24: 2014 | B24: 1219265 | C24: 1219265 | D24: 2014 | E24: 0 | F24: 0 | G24: 0 | H24: 0 | I24: 0 | J24: 0 | K24: 2014 | L24: 0 | M24: 0 | N24: 0 | O24: 0 | P24: 0 | Q24: 0 | R24: 2014 | S24: ='5. TNC Parameters'!$F$90 -> 1.014580486 | T24: 1.014580486 | U24: 0 | V24: 0 | W24: ='5. TNC Parameters'!$F$87 -> 77.78730937 | X24: 77.78730937 | Y24: ='5. TNC Parameters'!$F$86 -> 11.31127352 | Z24: 11.31127352 | AA24: ='5. TNC Parameters'!$F$88 -> 7.364482644 | AB24: 7.364482644 | AC24: ='5. TNC Parameters'!$F$89 -> 2.522353976 | AD24: 2.522353976 | AE24: 0 | AF24: 0 | AG24: 2014 | AH24: 0 | AI24: 0
A25: 2015 | B25: 1219929.2 | C25: 1219929.2 | D25: 2015 | E25: 0 | F25: 0 | G25: 0 | H25: 0 | I25: 0 | J25: 0 | K25: 2015 | L25: 0 | M25: 0 | N25: 0 | O25: 0 | P25: 0 | Q25: 0 | R25: 2015 | S25: ='5. TNC Parameters'!$F$90 -> 1.014580486 | T25: 1.014580486 | U25: 0 | V25: 0 | W25: ='5. TNC Parameters'!$F$87 -> 77.78730937 | X25: 77.78730937 | Y25: ='5. TNC Parameters'!$F$86 -> 11.31127352 | Z25: 11.31127352 | AA25: ='5. TNC Parameters'!$F$88 -> 7.364482644 | AB25: 7.364482644 | AC25: ='5. TNC Parameters'!$F$89 -> 2.522353976 | AD25: 2.522353976 | AE25: 0 | AF25: 0 | AG25: 2015 | AH25: 0 | AI25: 0
A26: 2016 | B26: 1220593.4 | C26: 1220593.4 | D26: 2016 | E26: 0.01 | F26: =E26 -> 0.01 | G26: 0.01 | H26: 0.01 | I26: 0.01 | J26: 0.01 | K26: 2016 | L26: 0 | M26: 0 | N26: 0 | O26: 0 | P26: 0 | Q26: 0 | R26: 2016 | S26: =S25+0.21 -> 1.224580486 | T26: 1.224580486 | U26: 0 | V26: 0 | W26: =100-Z26-AB26-AD26-T26-V26 -> 77.57730937 | X26: 77.57730937 | Y26: ='5. TNC Parameters'!$F$86 -> 11.31127352 | Z26: 11.31127352 | AA26: ='5. TNC Parameters'!$F$88 -> 7.364482644 | AB26: 7.364482644 | AC26: ='5. TNC Parameters'!$F$89 -> 2.522353976 | AD26: 2.522353976 | AE26: 0 | AF26: 0 | AG26: 2016 | AH26: 0 | AI26: 0
A27: 2017 | B27: 1221257.6 | C27: 1221257.6 | D27: 2017 | E27: 0.01 | F27: =E27 -> 0.01 | G27: 0.01 | H27: 0.01 | I27: 0.01 | J27: 0.01 | K27: 2017 | L27: 0 | M27: 0 | N27: 0 | O27: 0 | P27: 0 | Q27: 0 | R27: 2017 | S27: =S26+0.21 -> 1.434580486 | T27: 1.434580486 | U27: 0 | V27: 0 | W27: =100-Z27-AB27-AD27-T27-V27 -> 77.36730937 | X27: 77.36730937 | Y27: ='5. TNC Parameters'!$F$86 -> 11.31127352 | Z27: 11.31127352 | AA27: ='5. TNC Parameters'!$F$88 -> 7.364482644 | AB27: 7.364482644 | AC27: ='5. TNC Parameters'!$F$89 -> 2.522353976 | AD27: 2.522353976 | AE27: 0 | AF27: 0 | AG27: 2017 | AH27: 0 | AI27: 0
A28: 2018 | B28: 1221921.8 | C28: 1221921.8 | D28: 2018 | E28: 0.01 | F28: =E28 -> 0.01 | G28: 0.01 | H28: 0.01 | I28: 0.01 | J28: 0.01 | K28: 2018 | L28: 0.025 | M28: 0.025 | N28: 0.025 | O28: 0.025 | P28: 0 | Q28: 0 | R28: 2018 | S28: =S27+0.21 -> 1.644580486 | T28: 1.644580486 | U28: 0 | V28: 0 | W28: 77.15730937 | X28: 77.15730937 | Y28: ='5. TNC Parameters'!$F$86 -> 11.31127352 | Z28: 11.31127352 | AA28: ='5. TNC Parameters'!$F$88 -> 7.364482644 | AB28: 7.364482644 | AC28: ='5. TNC Parameters'!$F$89 -> 2.522353976 | AD28: 2.522353976 | AE28: 0 | AF28: 0 | AG28: 2018 | AH28: 208126000 | AI28: 369145000
A29: 2019 | B29: 1222586 | C29: 1222586 | D29: 2019 | E29: 0.01 | F29: =E29 -> 0.01 | G29: 0.01 | H29: 0.01 | I29: 0.01 | J29: 0.01 | K29: 2019 | L29: 0.05 | M29: 0.05 | N29: 0.05 | O29: 0.05 | P29: 0 | Q29: 0 | R29: 2019 | S29: =S28+0.21 -> 1.854580486 | T29: 1.854580486 | U29: 0 | V29: 0 | W29: 76.94730937 | X29: 76.94730937 | Y29: ='5. TNC Parameters'!$F$86 -> 11.31127352 | Z29: 11.31127352 | AA29: ='5. TNC Parameters'!$F$88 -> 7.364482644 | AB29: 7.364482644 | AC29: ='5. TNC Parameters'!$F$89 -> 2.522353976 | AD29: 2.522353976 | AE29: 0 | AF29: 0 | AG29: 2019 | AH29: 207682160 | AI29: 370156500
A30: 2020 | B30: 1221855.6 | C30: 1221855.6 | D30: 2020 | E30: 0.01 | F30: =E30 -> 0.01 | G30: 0.01 | H30: 0.01 | I30: 0.01 | J30: 0.01 | K30: 2020 | L30: 0.05 | M30: 0.05 | N30: 0.05 | O30: 0.05 | P30: 0 | Q30: 0 | R30: 2020 | S30: =S29+0.21 -> 2.064580486 | T30: 2.064580486 | U30: 0 | V30: 0 | W30: 76.73730937 | X30: 76.73730937 | Y30: ='5. TNC Parameters'!$F$86 -> 11.31127352 | Z30: 11.31127352 | AA30: ='5. TNC Parameters'!$F$88 -> 7.364482644 | AB30: 7.364482644 | AC30: ='5. TNC Parameters'!$F$89 -> 2.522353976 | AD30: 2.522353976 | AE30: 0.25 | AF30: 0.25 | AG30: 2020 | AH30: 207238320 | AI30: 371168000
A31: 2021 | B31: 1221125.2 | C31: 1221125.2 | D31: 2021 | E31: 0.015 | F31: 0.015 | G31: 0.015 | H31: 0.015 | I31: 0.015 | J31: 0.015 | K31: 2021 | L31: 0.05 | M31: 0.05 | N31: 0.05 | O31: 0.05 | P31: 0 | Q31: 0 | R31: 2021 | S31: =S30+0.5 -> 2.564580486 | T31: 2.564580486 | U31: =U30+0.1 -> 0.1 | V31: 0.1 | W31: 76.13730937 | X31: 76.13730937 | Y31: ='5. TNC Parameters'!$F$86 -> 11.31127352 | Z31: 11.31127352 | AA31: ='5. TNC Parameters'!$F$88 -> 7.364482644 | AB31: 7.364482644 | AC31: ='5. TNC Parameters'!$F$89 -> 2.522353976 | AD31: 2.522353976 | AE31: 0.3 | AF31: 0.3 | AG31: 2021 | AH31: 206794480 | AI31: 372179500
A32: 2022 | B32: 1220394.8 | C32: 1220394.8 | D32: 2022 | E32: 0.015 | F32: 0.015 | G32: 0.015 | H32: 0.015 | I32: 0.015 | J32: 0.015 | K32: 2022 | L32: 0.05 | M32: 0.05 | N32: 0.05 | O32: 0.05 | P32: 0 | Q32: 0 | R32: 2022 | S32: =S31+0.5 -> 3.064580486 | T32: 3.064580486 | U32: =U31+0.1 -> 0.2 | V32: 0.2 | W32: 75.53730937 | X32: 75.53730937 | Y32: ='5. TNC Parameters'!$F$86 -> 11.31127352 | Z32: 11.31127352 | AA32: ='5. TNC Parameters'!$F$88 -> 7.364482644 | AB32: 7.364482644 | AC32: ='5. TNC Parameters'!$F$89 -> 2.522353976 | AD32: 2.522353976 | AE32: 0.35 | AF32: 0.35 | AG32: 2022 | AH32: 206350640 | AI32: 373191000
A33: 2023 | B33: 1219664.4 | C33: 1219664.4 | D33: 2023 | E33: 0.015 | F33: 0.015 | G33: 0.015 | H33: 0.015 | I33: 0.015 | J33: 0.015 | K33: 2023 | L33: 0.05 | M33: 0.05 | N33: 0.05 | O33: 0.05 | P33: 0 | Q33: 0 | R33: 2023 | S33: =S32+0.5 -> 3.564580486 | T33: 3.564580486 | U33: =U32+0.1 -> 0.3 | V33: 0.3 | W33: 74.93730937 | X33: 74.93730937 | Y33: ='5. TNC Parameters'!$F$86 -> 11.31127352 | Z33: 11.31127352 | AA33: ='5. TNC Parameters'!$F$88 -> 7.364482644 | AB33: 7.364482644 | AC33: ='5. TNC Parameters'!$F$89 -> 2.522353976 | AD33: 2.522353976 | AE33: 0.4 | AF33: 0.4 | AG33: 2023 | AH33: 205906800 | AI33: 374202500
A34: 2024 | B34: 1218934 | C34: 1218934 | D34: 2024 | E34: 0.015 | F34: 0.015 | G34: 0.015 | H34: 0.015 | I34: 0.015 | J34: 0.015 | K34: 2024 | L34: 0.05 | M34: 0.05 | N34: 0.05 | O34: 0.05 | P34: 0 | Q34: 0 | R34: 2024 | S34: =S33+0.5 -> 4.064580486 | T34: 4.064580486 | U34: =U33+0.1 -> 0.4 | V34: 0.4 | W34: 74.33730937 | X34: 74.33730937 | Y34: ='5. TNC Parameters'!$F$86 -> 11.31127352 | Z34: 11.31127352 | AA34: ='5. TNC Parameters'!$F$88 -> 7.364482644 | AB34: 7.364482644 | AC34: ='5. TNC Parameters'!$F$89 -> 2.522353976 | AD34: 2.522353976 | AE34: 0.45 | AF34: 0.45 | AG34: 2024 | AH34: 205462960 | AI34: 375214000
A35: 2025 | B35: 1216191.2 | C35: 1216191.2 | D35: 2025 | E35: 0.015 | F35: 0.015 | G35: 0.015 | H35: 0.015 | I35: 0.015 | J35: 0.015 | K35: 2025 | L35: 0.05 | M35: 0.05 | N35: 0.05 | O35: 0.05 | P35: 0 | Q35: 0 | R35: 2025 | S35: =S34+0.5 -> 4.564580486 | T35: 4.564580486 | U35: =U34+0.1 -> 0.5 | V35: 0.5 | W35: 73.73730937 | X35: 73.73730937 | Y35: ='5. TNC Parameters'!$F$86 -> 11.31127352 | Z35: 11.31127352 | AA35: ='5. TNC Parameters'!$F$88 -> 7.364482644 | AB35: 7.364482644 | AC35: ='5. TNC Parameters'!$F$89 -> 2.522353976 | AD35: 2.522353976 | AE35: 0.5 | AF35: 0.5 | AG35: 2025 | AH35: 205019120 | AI35: 376225500
A36: 2026 | B36: 1213448.4 | C36: 1213448.4 | D36: 2026 | E36: 0.015 | F36: 0.015 | G36: 0.015 | H36: 0.015 | I36: 0.015 | J36: 0.015 | K36: 2026 | L36: 0.05 | M36: 0.05 | N36: 0.05 | O36: 0.05 | P36: 0 | Q36: 0 | R36: 2026 | S36: =S35+0.75 -> 5.314580486 | T36: 5.314580486 | U36: =U35+0.2 -> 0.7 | V36: 0.7 | W36: 72.78730937 | X36: 72.78730937 | Y36: ='5. TNC Parameters'!$F$86 -> 11.31127352 | Z36: 11.31127352 | AA36: ='5. TNC Parameters'!$F$88 -> 7.364482644 | AB36: 7.364482644 | AC36: ='5. TNC Parameters'!$F$89 -> 2.522353976 | AD36: 2.522353976 | AE36: 0.55 | AF36: 0.55 | AG36: 2026 | AH36: 204575280 | AI36: 377237000
A37: 2027 | B37: 1210705.6 | C37: 1210705.6 | D37: 2027 | E37: 0.015 | F37: 0.015 | G37: 0.015 | H37: 0.015 | I37: 0.015 | J37: 0.015 | K37: 2027 | L37: 0.05 | M37: 0.05 | N37: 0.05 | O37: 0.05 | P37: 0 | Q37: 0 | R37: 2027 | S37: =S36+0.75 -> 6.064580486 | T37: 6.064580486 | U37: =U36+0.2 -> 0.9 | V37: 0.9 | W37: 71.83730937 | X37: 71.83730937 | Y37: ='5. TNC Parameters'!$F$86 -> 11.31127352 | Z37: 11.31127352 | AA37: ='5. TNC Parameters'!$F$88 -> 7.364482644 | AB37: 7.364482644 | AC37: ='5. TNC Parameters'!$F$89 -> 2.522353976 | AD37: 2.522353976 | AE37: 0.6 | AF37: 0.6 | AG37: 2027 | AH37: 204131440 | AI37: 378248500
A38: 2028 | B38: 1207962.8 | C38: 1207962.8 | D38: 2028 | E38: 0.015 | F38: 0.015 | G38: 0.015 | H38: 0.015 | I38: 0.015 | J38: 0.015 | K38: 2028 | L38: 0.05 | M38: 0.05 | N38: 0.05 | O38: 0.05 | P38: 0 | Q38: 0 | R38: 2028 | S38: =S37+0.75 -> 6.814580486 | T38: 6.814580486 | U38: =U37+0.2 -> 1.1 | V38: 1.1 | W38: 70.88730937 | X38: 70.88730937 | Y38: ='5. TNC Parameters'!$F$86 -> 11.31127352 | Z38: 11.31127352 | AA38: ='5. TNC Parameters'!$F$88 -> 7.364482644 | AB38: 7.364482644 | AC38: ='5. TNC Parameters'!$F$89 -> 2.522353976 | AD38: 2.522353976 | AE38: 0.65 | AF38: 0.65 | AG38: 2028 | AH38: 203687600 | AI38: 379260000
A39: 2029 | B39: 1205220 | C39: 1205220 | D39: 2029 | E39: 0.015 | F39: 0.015 | G39: 0.015 | H39: 0.015 | I39: 0.015 | J39: 0.015 | K39: 2029 | L39: 0.05 | M39: 0.05 | N39: 0.05 | O39: 0.05 | P39: 0 | Q39: 0 | R39: 2029 | S39: =S38+0.75 -> 7.564580486 | T39: 7.564580486 | U39: =U38+0.2 -> 1.3 | V39: 1.3 | W39: 69.93730937 | X39: 69.93730937 | Y39: ='5. TNC Parameters'!$F$86 -> 11.31127352 | Z39: 11.31127352 | AA39: ='5. TNC Parameters'!$F$88 -> 7.364482644 | AB39: 7.364482644 | AC39: ='5. TNC Parameters'!$F$89 -> 2.522353976 | AD39: 2.522353976 | AE39: 0.7 | AF39: 0.7 | AG39: 2029 | AH39: 205225840 | AI39: 380989000
A40: 2030 | B40: 1202477.2 | C40: 1202477.2 | D40: 2030 | E40: 0.015 | F40: 0.015 | G40: 0.015 | H40: 0.015 | I40: 0.015 | J40: 0.015 | K40: 2030 | L40: 0.05 | M40: 0.05 | N40: 0.05 | O40: 0.05 | P40: 0 | Q40: 0 | R40: 2030 | S40: =S39+0.75 -> 8.314580486 | T40: 8.314580486 | U40: =U39+0.2 -> 1.5 | V40: 1.5 | W40: 68.98730937 | X40: 68.98730937 | Y40: ='5. TNC Parameters'!$F$86 -> 11.31127352 | Z40: 11.31127352 | AA40: ='5. TNC Parameters'!$F$88 -> 7.364482644 | AB40: 7.364482644 | AC40: ='5. TNC Parameters'!$F$89 -> 2.522353976 | AD40: 2.522353976 | AE40: 0.75 | AF40: 0.75 | AG40: 2030 | AH40: 206764080 | AI40: 382718000
A41: 2031 | B41: 1199734.4 | C41: 1199734.4 | D41: 2031 | E41: 0.015 | F41: 0.015 | G41: 0.015 | H41: 0.015 | I41: 0.015 | J41: 0.015 | K41: 2031 | L41: 0.05 | M41: 0.05 | N41: 0.05 | O41: 0.05 | P41: 0 | Q41: 0 | R41: 2031 | S41: =S40+1 -> 9.314580486 | T41: 9.314580486 | U41: =U40+0.4 -> 1.9 | V41: 1.9 | W41: 67.58730937 | X41: 67.58730937 | Y41: ='5. TNC Parameters'!$F$86 -> 11.31127352 | Z41: 11.31127352 | AA41: ='5. TNC Parameters'!$F$88 -> 7.364482644 | AB41: 7.364482644 | AC41: ='5. TNC Parameters'!$F$89 -> 2.522353976 | AD41: 2.522353976 | AE41: 0.8 | AF41: 0.8 | AG41: 2031 | AH41: 208302320 | AI41: 384447000
A42: 2032 | B42: 1196991.6 | C42: 1196991.6 | D42: 2032 | E42: 0.015 | F42: 0.015 | G42: 0.015 | H42: 0.015 | I42: 0.015 | J42: 0.015 | K42: 2032 | L42: 0.05 | M42: 0.05 | N42: 0.05 | O42: 0.05 | P42: 0 | Q42: 0 | R42: 2032 | S42: =S41+1 -> 10.31458049 | T42: 10.31458049 | U42: =U41+0.4 -> 2.3 | V42: 2.3 | W42: 66.18730937 | X42: 66.18730937 | Y42: ='5. TNC Parameters'!$F$86 -> 11.31127352 | Z42: 11.31127352 | AA42: ='5. TNC Parameters'!$F$88 -> 7.364482644 | AB42: 7.364482644 | AC42: ='5. TNC Parameters'!$F$89 -> 2.522353976 | AD42: 2.522353976 | AE42: 0.85 | AF42: 0.85 | AG42: 2032 | AH42: 209840560 | AI42: 386176000
A43: 2033 | B43: 1194248.8 | C43: 1194248.8 | D43: 2033 | E43: 0.015 | F43: 0.015 | G43: 0.015 | H43: 0.015 | I43: 0.015 | J43: 0.015 | K43: 2033 | L43: 0.05 | M43: 0.05 | N43: 0.05 | O43: 0.05 | P43: 0 | Q43: 0 | R43: 2033 | S43: =S42+1 -> 11.31458049 | T43: 11.31458049 | U43: =U42+0.4 -> 2.7 | V43: 2.7 | W43: 64.78730937 | X43: 64.78730937 | Y43: ='5. TNC Parameters'!$F$86 -> 11.31127352 | Z43: 11.31127352 | AA43: ='5. TNC Parameters'!$F$88 -> 7.364482644 | AB43: 7.364482644 | AC43: ='5. TNC Parameters'!$F$89 -> 2.522353976 | AD43: 2.522353976 | AE43: 0.9 | AF43: 0.9 | AG43: 2033 | AH43: 211378800 | AI43: 387905000
A44: 2034 | B44: 1179270 | C44: 1179270 | D44: 2034 | E44: 0.015 | F44: 0.015 | G44: 0.015 | H44: 0.015 | I44: 0.015 | J44: 0.015 | K44: 2034 | L44: 0.05 | M44: 0.05 | N44: 0.05 | O44: 0.05 | P44: 0 | Q44: 0 | R44: 2034 | S44: =S43+1 -> 12.31458049 | T44: 12.31458049 | U44: =U43+0.4 -> 3.1 | V44: 3.1 | W44: 63.38730937 | X44: 63.38730937 | Y44: ='5. TNC Parameters'!$F$86 -> 11.31127352 | Z44: 11.31127352 | AA44: ='5. TNC Parameters'!$F$88 -> 7.364482644 | AB44: 7.364482644 | AC44: ='5. TNC Parameters'!$F$89 -> 2.522353976 | AD44: 2.522353976 | AE44: 0.95 | AF44: 0.95 | AG44: 2034 | AH44: 212917040 | AI44: 389634000
A45: 2035 | B45: 1174080 | C45: 1174080 | D45: 2035 | E45: 0.015 | F45: 0.015 | G45: 0.015 | H45: 0.015 | I45: 0.015 | J45: 0.015 | K45: 2035 | L45: 0.05 | M45: 0.05 | N45: 0.05 | O45: 0.05 | P45: 0 | Q45: 0 | R45: 2035 | S45: =S44+1 -> 13.31458049 | T45: 13.31458049 | U45: =U44+0.4 -> 3.5 | V45: 3.5 | W45: 61.98730937 | X45: 61.98730937 | Y45: ='5. TNC Parameters'!$F$86 -> 11.31127352 | Z45: 11.31127352 | AA45: ='5. TNC Parameters'!$F$88 -> 7.364482644 | AB45: 7.364482644 | AC45: ='5. TNC Parameters'!$F$89 -> 2.522353976 | AD45: 2.522353976 | AE45: 1 | AF45: 1 | AG45: 2035 | AH45: 214455280 | AI45: 391363000
A46: 2036 | B46: 1168890 | C46: 1168890 | D46: 2036 | E46: 0.015 | F46: 0.015 | G46: 0.015 | H46: 0.015 | I46: 0.015 | J46: 0.015 | K46: 2036 | L46: 0.05 | M46: 0.05 | N46: 0.05 | O46: 0.05 | P46: 0 | Q46: 0 | R46: 2036 | S46: =S45+1.5 -> 14.81458049 | T46: 14.81458049 | U46: =U45+0.8 -> 4.3 | V46: 4.3 | W46: 59.68730937 | X46: 59.68730937 | Y46: ='5. TNC Parameters'!$F$86 -> 11.31127352 | Z46: 11.31127352 | AA46: ='5. TNC Parameters'!$F$88 -> 7.364482644 | AB46: 7.364482644 | AC46: ='5. TNC Parameters'!$F$89 -> 2.522353976 | AD46: 2.522353976 | AE46: 1 | AF46: 1 | AG46: 2036 | AH46: 215993520 | AI46: 393092000
A47: 2037 | B47: 1163700 | C47: 1163700 | D47: 2037 | E47: 0.015 | F47: 0.015 | G47: 0.015 | H47: 0.015 | I47: 0.015 | J47: 0.015 | K47: 2037 | L47: 0.05 | M47: 0.05 | N47: 0.05 | O47: 0.05 | P47: 0 | Q47: 0 | R47: 2037 | S47: =S46+1.5 -> 16.31458049 | T47: 16.31458049 | U47: =U46+0.8 -> 5.1 | V47: 5.1 | W47: 57.38730937 | X47: 57.38730937 | Y47: ='5. TNC Parameters'!$F$86 -> 11.31127352 | Z47: 11.31127352 | AA47: ='5. TNC Parameters'!$F$88 -> 7.364482644 | AB47: 7.364482644 | AC47: ='5. TNC Parameters'!$F$89 -> 2.522353976 | AD47: 2.522353976 | AE47: 1 | AF47: 1 | AG47: 2037 | AH47: 217531760 | AI47: 394821000
A48: 2038 | B48: 1158510 | C48: 1158510 | D48: 2038 | E48: 0.015 | F48: 0.015 | G48: 0.015 | H48: 0.015 | I48: 0.015 | J48: 0.015 | K48: 2038 | L48: 0.05 | M48: 0.05 | N48: 0.05 | O48: 0.05 | P48: 0 | Q48: 0 | R48: 2038 | S48: =S47+1.5 -> 17.81458049 | T48: 17.81458049 | U48: =U47+0.8 -> 5.9 | V48: 5.9 | W48: 55.08730937 | X48: 55.08730937 | Y48: ='5. TNC Parameters'!$F$86 -> 11.31127352 | Z48: 11.31127352 | AA48: ='5. TNC Parameters'!$F$88 -> 7.364482644 | AB48: 7.364482644 | AC48: ='5. TNC Parameters'!$F$89 -> 2.522353976 | AD48: 2.522353976 | AE48: 1 | AF48: 1 | AG48: 2038 | AH48: 219070000 | AI48: 396550000
A49: 2039 | B49: 1140226 | C49: 1140226 | D49: 2039 | E49: 0.015 | F49: 0.015 | G49: 0.015 | H49: 0.015 | I49: 0.015 | J49: 0.015 | K49: 2039 | L49: 0.05 | M49: 0.05 | N49: 0.05 | O49: 0.05 | P49: 0 | Q49: 0 | R49: 2039 | S49: =S48+1.5 -> 19.31458049 | T49: 19.31458049 | U49: =U48+0.8 -> 6.7 | V49: 6.7 | W49: 52.78730937 | X49: 52.78730937 | Y49: ='5. TNC Parameters'!$F$86 -> 11.31127352 | Z49: 11.31127352 | AA49: ='5. TNC Parameters'!$F$88 -> 7.364482644 | AB49: 7.364482644 | AC49: ='5. TNC Parameters'!$F$89 -> 2.522353976 | AD49: 2.522353976 | AE49: 1 | AF49: 1 | AG49: 2039 | AH49: 219070000 | AI49: 396550000
A50: 2040 | B50: 1130418.8 | C50: 1130418.8 | D50: 2040 | E50: 0.015 | F50: 0.015 | G50: 0.015 | H50: 0.015 | I50: 0.015 | J50: 0.015 | K50: 2040 | L50: 0.05 | M50: 0.05 | N50: 0.05 | O50: 0.05 | P50: 0 | Q50: 0 | R50: 2040 | S50: =S49+1.5 -> 20.81458049 | T50: 20.81458049 | U50: =U49+0.8 -> 7.5 | V50: 7.5 | W50: 50.48730937 | X50: 50.48730937 | Y50: ='5. TNC Parameters'!$F$86 -> 11.31127352 | Z50: 11.31127352 | AA50: ='5. TNC Parameters'!$F$88 -> 7.364482644 | AB50: 7.364482644 | AC50: ='5. TNC Parameters'!$F$89 -> 2.522353976 | AD50: 2.522353976 | AE50: 1 | AF50: 1 | AG50: 2040 | AH50: 219070000 | AI50: 396550000
A51: 2041 | B51: 1120611.6 | C51: 1120611.6 | D51: 2041 | E51: 0.015 | F51: 0.015 | G51: 0.015 | H51: 0.015 | I51: 0.015 | J51: 0.015 | K51: 2041 | L51: 0.05 | M51: 0.05 | N51: 0.05 | O51: 0.05 | P51: 0 | Q51: 0 | R51: 2041 | S51: =S50+2 -> 22.81458049 | T51: 22.81458049 | U51: =U50+1 -> 8.5 | V51: 8.5 | W51: 47.48730937 | X51: 47.48730937 | Y51: ='5. TNC Parameters'!$F$86 -> 11.31127352 | Z51: 11.31127352 | AA51: ='5. TNC Parameters'!$F$88 -> 7.364482644 | AB51: 7.364482644 | AC51: ='5. TNC Parameters'!$F$89 -> 2.522353976 | AD51: 2.522353976 | AE51: 1 | AF51: 1 | AG51: 2041 | AH51: 219070000 | AI51: 396550000
A52: 2042 | B52: 1110804.4 | C52: 1110804.4 | D52: 2042 | E52: 0.015 | F52: 0.015 | G52: 0.015 | H52: 0.015 | I52: 0.015 | J52: 0.015 | K52: 2042 | L52: 0.05 | M52: 0.05 | N52: 0.05 | O52: 0.05 | P52: 0 | Q52: 0 | R52: 2042 | S52: =S51+2 -> 24.81458049 | T52: 24.81458049 | U52: =U51+1 -> 9.5 | V52: 9.5 | W52: 44.48730937 | X52: 44.48730937 | Y52: ='5. TNC Parameters'!$F$86 -> 11.31127352 | Z52: 11.31127352 | AA52: ='5. TNC Parameters'!$F$88 -> 7.364482644 | AB52: 7.364482644 | AC52: ='5. TNC Parameters'!$F$89 -> 2.522353976 | AD52: 2.522353976 | AE52: 1 | AF52: 1 | AG52: 2042 | AH52: 219070000 | AI52: 396550000
A53: 2043 | B53: 1100997.2 | C53: 1100997.2 | D53: 2043 | E53: 0.015 | F53: 0.015 | G53: 0.015 | H53: 0.015 | I53: 0.015 | J53: 0.015 | K53: 2043 | L53: 0.05 | M53: 0.05 | N53: 0.05 | O53: 0.05 | P53: 0 | Q53: 0 | R53: 2043 | S53: =S52+2 -> 26.81458049 | T53: 26.81458049 | U53: =U52+1 -> 10.5 | V53: 10.5 | W53: 41.48730937 | X53: 41.48730937 | Y53: ='5. TNC Parameters'!$F$86 -> 11.31127352 | Z53: 11.31127352 | AA53: ='5. TNC Parameters'!$F$88 -> 7.364482644 | AB53: 7.364482644 | AC53: ='5. TNC Parameters'!$F$89 -> 2.522353976 | AD53: 2.522353976 | AE53: 1 | AF53: 1 | AG53: 2043 | AH53: 219070000 | AI53: 396550000
A54: 2044 | B54: 1091190 | C54: 1091190 | D54: 2044 | E54: 0.015 | F54: 0.015 | G54: 0.015 | H54: 0.015 | I54: 0.015 | J54: 0.015 | K54: 2044 | L54: 0.05 | M54: 0.05 | N54: 0.05 | O54: 0.05 | P54: 0 | Q54: 0 | R54: 2044 | S54: =S53+2 -> 28.81458049 | T54: 28.81458049 | U54: =U53+1 -> 11.5 | V54: 11.5 | W54: 38.48730937 | X54: 38.48730937 | Y54: ='5. TNC Parameters'!$F$86 -> 11.31127352 | Z54: 11.31127352 | AA54: ='5. TNC Parameters'!$F$88 -> 7.364482644 | AB54: 7.364482644 | AC54: ='5. TNC Parameters'!$F$89 -> 2.522353976 | AD54: 2.522353976 | AE54: 1 | AF54: 1 | AG54: 2044 | AH54: 219070000 | AI54: 396550000
A55: 2045 | B55: 1080164.2 | C55: 1080164.2 | D55: 2045 | E55: 0.015 | F55: 0.015 | G55: 0.015 | H55: 0.015 | I55: 0.015 | J55: 0.015 | K55: 2045 | L55: 0.05 | M55: 0.05 | N55: 0.05 | O55: 0.05 | P55: 0 | Q55: 0 | R55: 2045 | S55: =S54+2 -> 30.81458049 | T55: 30.81458049 | U55: =U54+1 -> 12.5 | V55: 12.5 | W55: 35.48730937 | X55: 35.48730937 | Y55: ='5. TNC Parameters'!$F$86 -> 11.31127352 | Z55: 11.31127352 | AA55: ='5. TNC Parameters'!$F$88 -> 7.364482644 | AB55: 7.364482644 | AC55: ='5. TNC Parameters'!$F$89 -> 2.522353976 | AD55: 2.522353976 | AE55: 1 | AF55: 1 | AG55: 2045 | AH55: 219070000 | AI55: 396550000
A56: 2046 | B56: 1069138.4 | C56: 1069138.4 | D56: 2046 | E56: 0.015 | F56: 0.015 | G56: 0.015 | H56: 0.015 | I56: 0.015 | J56: 0.015 | K56: 2046 | L56: 0.05 | M56: 0.05 | N56: 0.05 | O56: 0.05 | P56: 0 | Q56: 0 | R56: 2046 | S56: =S55+2.5 -> 33.31458049 | T56: 33.31458049 | U56: =U55+1.25 -> 13.75 | V56: 13.75 | W56: 31.73730937 | X56: 31.73730937 | Y56: ='5. TNC Parameters'!$F$86 -> 11.31127352 | Z56: 11.31127352 | AA56: ='5. TNC Parameters'!$F$88 -> 7.364482644 | AB56: 7.364482644 | AC56: ='5. TNC Parameters'!$F$89 -> 2.522353976 | AD56: 2.522353976 | AE56: 1 | AF56: 1 | AG56: 2046 | AH56: 219070000 | AI56: 396550000
A57: 2047 | B57: 1058112.6 | C57: 1058112.6 | D57: 2047 | E57: 0.015 | F57: 0.015 | G57: 0.015 | H57: 0.015 | I57: 0.015 | J57: 0.015 | K57: 2047 | L57: 0.05 | M57: 0.05 | N57: 0.05 | O57: 0.05 | P57: 0 | Q57: 0 | R57: 2047 | S57: =S56+2.5 -> 35.81458049 | T57: 35.81458049 | U57: =U56+1.25 -> 15 | V57: 15 | W57: 27.98730937 | X57: 27.98730937 | Y57: ='5. TNC Parameters'!$F$86 -> 11.31127352 | Z57: 11.31127352 | AA57: ='5. TNC Parameters'!$F$88 -> 7.364482644 | AB57: 7.364482644 | AC57: ='5. TNC Parameters'!$F$89 -> 2.522353976 | AD57: 2.522353976 | AE57: 1 | AF57: 1 | AG57: 2047 | AH57: 219070000 | AI57: 396550000
A58: 2048 | B58: 1047086.8 | C58: 1047086.8 | D58: 2048 | E58: 0.015 | F58: 0.015 | G58: 0.015 | H58: 0.015 | I58: 0.015 | J58: 0.015 | K58: 2048 | L58: 0.05 | M58: 0.05 | N58: 0.05 | O58: 0.05 | P58: 0 | Q58: 0 | R58: 2048 | S58: =S57+2.5 -> 38.31458049 | T58: 38.31458049 | U58: =U57+1.25 -> 16.25 | V58: 16.25 | W58: 24.23730937 | X58: 24.23730937 | Y58: ='5. TNC Parameters'!$F$86 -> 11.31127352 | Z58: 11.31127352 | AA58: ='5. TNC Parameters'!$F$88 -> 7.364482644 | AB58: 7.364482644 | AC58: ='5. TNC Parameters'!$F$89 -> 2.522353976 | AD58: 2.522353976 | AE58: 1 | AF58: 1 | AG58: 2048 | AH58: 219070000 | AI58: 396550000
A59: 2049 | B59: 1036061 | C59: 1036061 | D59: 2049 | E59: 0.015 | F59: 0.015 | G59: 0.015 | H59: 0.015 | I59: 0.015 | J59: 0.015 | K59: 2049 | L59: 0.05 | M59: 0.05 | N59: 0.05 | O59: 0.05 | P59: 0 | Q59: 0 | R59: 2049 | S59: =S58+2.5 -> 40.81458049 | T59: 40.81458049 | U59: =U58+1.25 -> 17.5 | V59: 17.5 | W59: 20.48730937 | X59: 20.48730937 | Y59: ='5. TNC Parameters'!$F$86 -> 11.31127352 | Z59: 11.31127352 | AA59: ='5. TNC Parameters'!$F$88 -> 7.364482644 | AB59: 7.364482644 | AC59: ='5. TNC Parameters'!$F$89 -> 2.522353976 | AD59: 2.522353976 | AE59: 1 | AF59: 1 | AG59: 2049 | AH59: 219070000 | AI59: 396550000
A60: 2050 | B60: 1024556.2 | C60: 1024556.2 | D60: 2050 | E60: 0.015 | F60: 0.015 | G60: 0.015 | H60: 0.015 | I60: 0.015 | J60: 0.015 | K60: 2050 | L60: 0.05 | M60: 0.05 | N60: 0.05 | O60: 0.05 | P60: 0 | Q60: 0 | R60: 2050 | S60: =S59+2.5 -> 43.31458049 | T60: 43.31458049 | U60: =U59+1.25 -> 18.75 | V60: 18.75 | W60: 16.73730937 | X60: 16.73730937 | Y60: ='5. TNC Parameters'!$F$86 -> 11.31127352 | Z60: 11.31127352 | AA60: ='5. TNC Parameters'!$F$88 -> 7.364482644 | AB60: 7.364482644 | AC60: ='5. TNC Parameters'!$F$89 -> 2.522353976 | AD60: 2.522353976 | AE60: 1 | AF60: 1 | AG60: 2050 | AH60: 219070000 | AI60: 396550000
E62: Note 1
E63: SCENARIO 1 | L63: SCENARIO 2
E64: FUEL ECONOMY IMPROVES BY 1% ANNUALLY TO 2020. | L64: PRIVATISATION OF VEHICLE INSPECTION & FITNESS CENTRES LEADS TO BETTER VEHICLE MAINTENANCE AND THEREFORE LOWER EMISSIONS. | S64: Hybrid | T64: 2016-2020 | U64: 0.21 | V64: 2021-2025 | W64: 0.5 | X64: 2026-2030 | Y64: 0.75 | Z64: 2031-2035 | AA64: 1 | AB64: 2036-2040 | AC64: 1.5 | AD64: 2041-2045 | AE64: 2 | AF64: 2046-2050 | AG64: 2.5
E65: AFTER 2020, THE FUEL ECONOMY IMPROVES AT A RATE OF 1.5% pa. THESE IMPROVEMENTS ARE APPLIED TO THE TOTAL FUEL CALCULATED IN THE BAU CASE. | L65: IT IS ASSUMED THAT THE NEW SYSTEM IS PUT IN PLACE IN 2017, RESULTING IN A DECREASE IN OVERALL EMISSIONS BY 5% IN 2019. | S65: Electric | T65: 2016-2020 | U65: 0 | V65: 2021-2025 | W65: 0.1 | X65: 2026-2030 | Y65: 0.2 | Z65: 2031-2035 | AA65: 0.4 | AB65: 2036-2040 | AC65: 0.8 | AD65: 2041-2045 | AE65: 1 | AF65: 2046-2050 | AG65: 1.25
E66: IMPROVEMENTS APPLY TO YEAR 2016 ONWARDS | S66: This section allocates the share of low-carbon technologies - i.e. hybrid and electric vehicles.
L67: ud1 applies to gasoline and diesel only | S67: ASSUMPTION: Hybrid and Electric vehicles are substitutes for only gasoline-driven vehicles.
S68: The average annual increase in the absolute share of hybrid vehicles in the PAX km mix has been 0.21% between 2012 and 2015.
S69: It is assumed that this increase will continue until 2020, afterwhich the increase will be an absolute 0.5% annual between 2020 and 2025.
S70: Between 2025 and 2030, the increase is at 1% absolute per year.

Sheet 6. UD2 Assumptions
A1: ASSUMPTIONS | D1: UD2 | F1: Excel Toolkit for Mitigation Analysis for Low-Carbon Development Planning | Q1: XLMT-Transport v17.1
A2: Users can input values in the 'User-specified' columns for different scenarios. Then, proceed to 'Query' for results.
E4: SCENARIO 1 | L4: SCENARIO 2 | S4: SCENARIO 3 - Low carbon strategies | AH4: SCENARIO 4 - LRT System
B5: Population | C5: Population | E5: FUEL ECONOMY IMPROVES BY x% ANNUALLY | L5: IMPROVEMENTS through BETTER VEHICLE MAINTENANCE | S5: Hybrid & Electric vehicles | AE5: Blended Ethanol | AH5: Light Rail Transit System
S6: Percentage allocation of PAX km by type of petrol vehicles | AE6: Penetration rate
B7: Default | C7: Users-specified | E7: Default | F7: User-specified | G7: Default | H7: User-specified | I7: Default | J7: User-specified | L7: Default | M7: User-specified | N7: Default | O7: User-specified | P7: Default | Q7: User-specified | S7: Default | T7: User specified | U7: Default | V7: User specified | W7: Default | X7: User specified | Y7: Default | Z7: User specified | AA7: Default | AB7: User specified | AC7: Default | AD7: User specified | AE7: Default | AF7: User specified
B8: Population | C8: Population | E8: Gasoline | F8: =D8 -> 0 | G8: Diesel | H8: Diesel | I8: LPG | L8: Gasoline | M8: Gasoline | N8: Diesel | O8: Diesel | P8: LPG | Q8: LPG | S8: Hybrid | T8: Hybrid | U8: Electric | V8: Electric | W8: Cars (petrol) | X8: Cars (petrol) | Y8: A/Cycle | Z8: A/Cycle | AA8: M/Cycle | AB8: M/Cycle | AC8: DPV | AD8: DPV | AE8: Ethanol | AF8: Ethanol
A9: YEAR | D9: YEAR | E9: x% | F9: x% | G9: x% | H9: x% | I9: x% | J9: x% | K9: YEAR | L9: x% | M9: x% | N9: x% | O9: x% | P9: x% | Q9: x% | R9: YEAR | S9: x% | T9: x% | U9: x% | V9: x% | W9: x% | X9: x% | Y9: x% | Z9: x% | AA9: x% | AB9: x% | AC9: x% | AD9: x% | AE9: x% | AF9: x% | AG9: YEAR
A10: 2000 | D10: 2000 | E10: 0 | F10: 0 | G10: 0 | H10: 0 | I10: 0 | J10: 0 | K10: 2000 | L10: 0 | M10: 0 | N10: 0 | O10: 0 | P10: 0 | Q10: 0 | R10: 2000 | AG10: 2000
A11: 2001 | D11: 2001 | E11: 0 | F11: 0 | G11: 0 | H11: 0 | I11: 0 | J11: 0 | K11: 2001 | L11: 0 | M11: 0 | N11: 0 | O11: 0 | P11: 0 | Q11: 0 | R11: 2001 | AG11: 2001
A12: 2002 | D12: 2002 | E12: 0 | F12: 0 | G12: 0 | H12: 0 | I12: 0 | J12: 0 | K12: 2002 | L12: 0 | M12: 0 | N12: 0 | O12: 0 | P12: 0 | Q12: 0 | R12: 2002 | AG12: 2002
A13: 2003 | D13: 2003 | E13: 0 | F13: 0 | G13: 0 | H13: 0 | I13: 0 | J13: 0 | K13: 2003 | L13: 0 | M13: 0 | N13: 0 | O13: 0 | P13: 0 | Q13: 0 | R13: 2003 | AG13: 2003
A14: 2004 | D14: 2004 | E14: 0 | F14: 0 | G14: 0 | H14: 0 | I14: 0 | J14: 0 | K14: 2004 | L14: 0 | M14: 0 | N14: 0 | O14: 0 | P14: 0 | Q14: 0 | R14: 2004 | Y14: lockeds area | AG14: 2004
A15: 2005 | D15: 2005 | E15: 0 | F15: 0 | G15: 0 | H15: 0 | I15: 0 | J15: 0 | K15: 2005 | L15: 0 | M15: 0 | N15: 0 | O15: 0 | P15: 0 | Q15: 0 | R15: 2005 | AG15: 2005
A16: 2006 | D16: 2006 | E16: 0 | F16: 0 | G16: 0 | H16: 0 | I16: 0 | J16: 0 | K16: 2006 | L16: 0 | M16: 0 | N16: 0 | O16: 0 | P16: 0 | Q16: 0 | R16: 2006 | AG16: 2006
A17: 2007 | D17: 2007 | E17: 0 | F17: 0 | G17: 0 | H17: 0 | I17: 0 | J17: 0 | K17: 2007 | L17: 0 | M17: 0 | N17: 0 | O17: 0 | P17: 0 | Q17: 0 | R17: 2007 | AG17: 2007
A18: 2008 | D18: 2008 | E18: 0 | F18: 0 | G18: 0 | H18: 0 | I18: 0 | J18: 0 | K18: 2008 | L18: 0 | M18: 0 | N18: 0 | O18: 0 | P18: 0 | Q18: 0 | R18: 2008 | AG18: 2008 | AH18: Petrol | AI18: Diesel
A19: 2009 | D19: 2009 | E19: 0 | F19: 0 | G19: 0 | H19: 0 | I19: 0 | J19: 0 | K19: 2009 | L19: 0 | M19: 0 | N19: 0 | O19: 0 | P19: 0 | Q19: 0 | R19: 2009 | AG19: 2009 | AH19: MLRT Car | AI19: MLRT Bus
A20: 2010 | B20: 1210391 | C20: 1210391 | D20: 2010 | E20: 0 | F20: 0 | G20: 0 | H20: 0 | I20: 0 | J20: 0 | K20: 2010 | L20: 0 | M20: 0 | N20: 0 | O20: 0 | P20: 0 | Q20: 0 | R20: 2010 | S20: ='5. TNC Parameters'!$F$90 -> 1.014580486 | T20: =S20 -> 1.014580486 | U20: 0 | V20: =U20 -> 0 | W20: ='5. TNC Parameters'!$F$87 -> 77.78730937 | X20: =W20 -> 77.78730937 | Y20: ='5. TNC Parameters'!$F$86 -> 11.31127352 | Z20: =Y20 -> 11.31127352 | AA20: ='5. TNC Parameters'!$F$88 -> 7.364482644 | AB20: =AA20 -> 7.364482644 | AC20: ='5. TNC Parameters'!$F$89 -> 2.522353976 | AD20: =AC20 -> 2.522353976 | AE20: 0 | AF20: =AE20 -> 0 | AG20: 2010 | AH20: 0 | AI20: 0
A21: 2011 | B21: 1211979 | C21: 1211979 | D21: 2011 | E21: 0 | F21: 0 | G21: 0 | H21: 0 | I21: 0 | J21: 0 | K21: 2011 | L21: 0 | M21: 0 | N21: 0 | O21: 0 | P21: 0 | Q21: 0 | R21: 2011 | S21: ='5. TNC Parameters'!$F$90 -> 1.014580486 | T21: 1.014580486 | U21: 0 | V21: 0 | W21: ='5. TNC Parameters'!$F$87 -> 77.78730937 | X21: 77.78730937 | Y21: ='5. TNC Parameters'!$F$86 -> 11.31127352 | Z21: 11.31127352 | AA21: ='5. TNC Parameters'!$F$88 -> 7.364482644 | AB21: 7.364482644 | AC21: ='5. TNC Parameters'!$F$89 -> 2.522353976 | AD21: 2.522353976 | AE21: 0 | AF21: =AE21 -> 0 | AG21: 2011 | AH21: 0 | AI21: 0
A22: 2012 | B22: 1214987 | C22: 1214987 | D22: 2012 | E22: 0 | F22: 0 | G22: 0 | H22: 0 | I22: 0 | J22: 0 | K22: 2012 | L22: 0 | M22: 0 | N22: 0 | O22: 0 | P22: 0 | Q22: 0 | R22: 2012 | S22: ='5. TNC Parameters'!$F$90 -> 1.014580486 | T22: 1.014580486 | U22: 0 | V22: 0 | W22: ='5. TNC Parameters'!$F$87 -> 77.78730937 | X22: 77.78730937 | Y22: ='5. TNC Parameters'!$F$86 -> 11.31127352 | Z22: 11.31127352 | AA22: ='5. TNC Parameters'!$F$88 -> 7.364482644 | AB22: 7.364482644 | AC22: ='5. TNC Parameters'!$F$89 -> 2.522353976 | AD22: 2.522353976 | AE22: 0 | AF22: 0 | AG22: 2012 | AH22: 0 | AI22: 0
A23: 2013 | B23: 1217341 | C23: 1217341 | D23: 2013 | E23: 0 | F23: 0 | G23: 0 | H23: 0 | I23: 0 | J23: 0 | K23: 2013 | L23: 0 | M23: 0 | N23: 0 | O23: 0 | P23: 0 | Q23: 0 | R23: 2013 | S23: ='5. TNC Parameters'!$F$90 -> 1.014580486 | T23: 1.014580486 | U23: 0 | V23: 0 | W23: ='5. TNC Parameters'!$F$87 -> 77.78730937 | X23: 77.78730937 | Y23: ='5. TNC Parameters'!$F$86 -> 11.31127352 | Z23: 11.31127352 | AA23: ='5. TNC Parameters'!$F$88 -> 7.364482644 | AB23: 7.364482644 | AC23: ='5. TNC Parameters'!$F$89 -> 2.522353976 | AD23: 2.522353976 | AE23: 0 | AF23: 0 | AG23: 2013 | AH23: 0 | AI23: 0
A24: 2014 | B24: 1219265 | C24: 1219265 | D24: 2014 | E24: 0 | F24: 0 | G24: 0 | H24: 0 | I24: 0 | J24: 0 | K24: 2014 | L24: 0 | M24: 0 | N24: 0 | O24: 0 | P24: 0 | Q24: 0 | R24: 2014 | S24: ='5. TNC Parameters'!$F$90 -> 1.014580486 | T24: 1.014580486 | U24: 0 | V24: 0 | W24: ='5. TNC Parameters'!$F$87 -> 77.78730937 | X24: 77.78730937 | Y24: ='5. TNC Parameters'!$F$86 -> 11.31127352 | Z24: 11.31127352 | AA24: ='5. TNC Parameters'!$F$88 -> 7.364482644 | AB24: 7.364482644 | AC24: ='5. TNC Parameters'!$F$89 -> 2.522353976 | AD24: 2.522353976 | AE24: 0 | AF24: 0 | AG24: 2014 | AH24: 0 | AI24: 0
A25: 2015 | B25: 1219929.2 | C25: 1219929.2 | D25: 2015 | E25: 0 | F25: 0 | G25: 0 | H25: 0 | I25: 0 | J25: 0 | K25: 2015 | L25: 0 | M25: 0 | N25: 0 | O25: 0 | P25: 0 | Q25: 0 | R25: 2015 | S25: ='5. TNC Parameters'!$F$90 -> 1.014580486 | T25: 1.014580486 | U25: 0 | V25: 0 | W25: ='5. TNC Parameters'!$F$87 -> 77.78730937 | X25: 77.78730937 | Y25: ='5. TNC Parameters'!$F$86 -> 11.31127352 | Z25: 11.31127352 | AA25: ='5. TNC Parameters'!$F$88 -> 7.364482644 | AB25: 7.364482644 | AC25: ='5. TNC Parameters'!$F$89 -> 2.522353976 | AD25: 2.522353976 | AE25: 0 | AF25: 0 | AG25: 2015 | AH25: 0 | AI25: 0
A26: 2016 | B26: 1220593.4 | C26: 1220593.4 | D26: 2016 | E26: 0.01 | F26: =E26 -> 0.01 | G26: 0.01 | H26: 0.01 | I26: 0.01 | J26: 0.01 | K26: 2016 | L26: 0 | M26: 0 | N26: 0 | O26: 0 | P26: 0 | Q26: 0 | R26: 2016 | S26: =S25+0.21 -> 1.224580486 | T26: 1.224580486 | U26: 0 | V26: 0 | W26: =100-Z26-AB26-AD26-T26-V26 -> 77.57730937 | X26: 77.57730937 | Y26: ='5. TNC Parameters'!$F$86 -> 11.31127352 | Z26: 11.31127352 | AA26: ='5. TNC Parameters'!$F$88 -> 7.364482644 | AB26: 7.364482644 | AC26: ='5. TNC Parameters'!$F$89 -> 2.522353976 | AD26: 2.522353976 | AE26: 0 | AF26: 0 | AG26: 2016 | AH26: 0 | AI26: 0
A27: 2017 | B27: 1221257.6 | C27: 1221257.6 | D27: 2017 | E27: 0.01 | F27: =E27 -> 0.01 | G27: 0.01 | H27: 0.01 | I27: 0.01 | J27: 0.01 | K27: 2017 | L27: 0 | M27: 0 | N27: 0 | O27: 0 | P27: 0 | Q27: 0 | R27: 2017 | S27: =S26+0.21 -> 1.434580486 | T27: 1.434580486 | U27: 0 | V27: 0 | W27: =100-Z27-AB27-AD27-T27-V27 -> 77.36730937 | X27: 77.36730937 | Y27: ='5. TNC Parameters'!$F$86 -> 11.31127352 | Z27: 11.31127352 | AA27: ='5. TNC Parameters'!$F$88 -> 7.364482644 | AB27: 7.364482644 | AC27: ='5. TNC Parameters'!$F$89 -> 2.522353976 | AD27: 2.522353976 | AE27: 0 | AF27: 0 | AG27: 2017 | AH27: 0 | AI27: 0
A28: 2018 | B28: 1221921.8 | C28: 1221921.8 | D28: 2018 | E28: 0.01 | F28: =E28 -> 0.01 | G28: 0.01 | H28: 0.01 | I28: 0.01 | J28: 0.01 | K28: 2018 | L28: 0.025 | M28: 0.025 | N28: 0.025 | O28: 0.025 | P28: 0 | Q28: 0 | R28: 2018 | S28: =S27+0.21 -> 1.644580486 | T28: 1.644580486 | U28: 0 | V28: 0 | W28: 77.15730937 | X28: 77.15730937 | Y28: ='5. TNC Parameters'!$F$86 -> 11.31127352 | Z28: 11.31127352 | AA28: ='5. TNC Parameters'!$F$88 -> 7.364482644 | AB28: 7.364482644 | AC28: ='5. TNC Parameters'!$F$89 -> 2.522353976 | AD28: 2.522353976 | AE28: 0 | AF28: 0 | AG28: 2018 | AH28: 208126000 | AI28: 369145000
A29: 2019 | B29: 1222586 | C29: 1222586 | D29: 2019 | E29: 0.01 | F29: =E29 -> 0.01 | G29: 0.01 | H29: 0.01 | I29: 0.01 | J29: 0.01 | K29: 2019 | L29: 0.05 | M29: 0.05 | N29: 0.05 | O29: 0.05 | P29: 0 | Q29: 0 | R29: 2019 | S29: =S28+0.21 -> 1.854580486 | T29: 1.854580486 | U29: 0 | V29: 0 | W29: 76.94730937 | X29: 76.94730937 | Y29: ='5. TNC Parameters'!$F$86 -> 11.31127352 | Z29: 11.31127352 | AA29: ='5. TNC Parameters'!$F$88 -> 7.364482644 | AB29: 7.364482644 | AC29: ='5. TNC Parameters'!$F$89 -> 2.522353976 | AD29: 2.522353976 | AE29: 0 | AF29: 0 | AG29: 2019 | AH29: 207682160 | AI29: 370156500
A30: 2020 | B30: 1221855.6 | C30: 1221855.6 | D30: 2020 | E30: 0.01 | F30: =E30 -> 0.01 | G30: 0.01 | H30: 0.01 | I30: 0.01 | J30: 0.01 | K30: 2020 | L30: 0.05 | M30: 0.05 | N30: 0.05 | O30: 0.05 | P30: 0 | Q30: 0 | R30: 2020 | S30: =S29+0.21 -> 2.064580486 | T30: 2.064580486 | U30: 0 | V30: 0 | W30: 76.73730937 | X30: 76.73730937 | Y30: ='5. TNC Parameters'!$F$86 -> 11.31127352 | Z30: 11.31127352 | AA30: ='5. TNC Parameters'!$F$88 -> 7.364482644 | AB30: 7.364482644 | AC30: ='5. TNC Parameters'!$F$89 -> 2.522353976 | AD30: 2.522353976 | AE30: 0.25 | AF30: 0.25 | AG30: 2020 | AH30: 207238320 | AI30: 371168000
A31: 2021 | B31: 1221125.2 | C31: 1221125.2 | D31: 2021 | E31: 0.015 | F31: 0.015 | G31: 0.015 | H31: 0.015 | I31: 0.015 | J31: 0.015 | K31: 2021 | L31: 0.05 | M31: 0.05 | N31: 0.05 | O31: 0.05 | P31: 0 | Q31: 0 | R31: 2021 | S31: =S30+0.5 -> 2.564580486 | T31: 2.564580486 | U31: =U30+0.1 -> 0.1 | V31: 0.1 | W31: 76.13730937 | X31: 76.13730937 | Y31: ='5. TNC Parameters'!$F$86 -> 11.31127352 | Z31: 11.31127352 | AA31: ='5. TNC Parameters'!$F$88 -> 7.364482644 | AB31: 7.364482644 | AC31: ='5. TNC Parameters'!$F$89 -> 2.522353976 | AD31: 2.522353976 | AE31: 0.3 | AF31: 0.3 | AG31: 2021 | AH31: 206794480 | AI31: 372179500
A32: 2022 | B32: 1220394.8 | C32: 1220394.8 | D32: 2022 | E32: 0.015 | F32: 0.015 | G32: 0.015 | H32: 0.015 | I32: 0.015 | J32: 0.015 | K32: 2022 | L32: 0.05 | M32: 0.05 | N32: 0.05 | O32: 0.05 | P32: 0 | Q32: 0 | R32: 2022 | S32: =S31+0.5 -> 3.064580486 | T32: 3.064580486 | U32: =U31+0.1 -> 0.2 | V32: 0.2 | W32: 75.53730937 | X32: 75.53730937 | Y32: ='5. TNC Parameters'!$F$86 -> 11.31127352 | Z32: 11.31127352 | AA32: ='5. TNC Parameters'!$F$88 -> 7.364482644 | AB32: 7.364482644 | AC32: ='5. TNC Parameters'!$F$89 -> 2.522353976 | AD32: 2.522353976 | AE32: 0.35 | AF32: 0.35 | AG32: 2022 | AH32: 206350640 | AI32: 373191000
A33: 2023 | B33: 1219664.4 | C33: 1219664.4 | D33: 2023 | E33: 0.015 | F33: 0.015 | G33: 0.015 | H33: 0.015 | I33: 0.015 | J33: 0.015 | K33: 2023 | L33: 0.05 | M33: 0.05 | N33: 0.05 | O33: 0.05 | P33: 0 | Q33: 0 | R33: 2023 | S33: =S32+0.5 -> 3.564580486 | T33: 3.564580486 | U33: =U32+0.1 -> 0.3 | V33: 0.3 | W33: 74.93730937 | X33: 74.93730937 | Y33: ='5. TNC Parameters'!$F$86 -> 11.31127352 | Z33: 11.31127352 | AA33: ='5. TNC Parameters'!$F$88 -> 7.364482644 | AB33: 7.364482644 | AC33: ='5. TNC Parameters'!$F$89 -> 2.522353976 | AD33: 2.522353976 | AE33: 0.4 | AF33: 0.4 | AG33: 2023 | AH33: 205906800 | AI33: 374202500
A34: 2024 | B34: 1218934 | C34: 1218934 | D34: 2024 | E34: 0.015 | F34: 0.015 | G34: 0.015 | H34: 0.015 | I34: 0.015 | J34: 0.015 | K34: 2024 | L34: 0.05 | M34: 0.05 | N34: 0.05 | O34: 0.05 | P34: 0 | Q34: 0 | R34: 2024 | S34: =S33+0.5 -> 4.064580486 | T34: 4.064580486 | U34: =U33+0.1 -> 0.4 | V34: 0.4 | W34: 74.33730937 | X34: 74.33730937 | Y34: ='5. TNC Parameters'!$F$86 -> 11.31127352 | Z34: 11.31127352 | AA34: ='5. TNC Parameters'!$F$88 -> 7.364482644 | AB34: 7.364482644 | AC34: ='5. TNC Parameters'!$F$89 -> 2.522353976 | AD34: 2.522353976 | AE34: 0.45 | AF34: 0.45 | AG34: 2024 | AH34: 205462960 | AI34: 375214000
A35: 2025 | B35: 1216191.2 | C35: 1216191.2 | D35: 2025 | E35: 0.015 | F35: 0.015 | G35: 0.015 | H35: 0.015 | I35: 0.015 | J35: 0.015 | K35: 2025 | L35: 0.05 | M35: 0.05 | N35: 0.05 | O35: 0.05 | P35: 0 | Q35: 0 | R35: 2025 | S35: =S34+0.5 -> 4.564580486 | T35: 4.564580486 | U35: =U34+0.1 -> 0.5 | V35: 0.5 | W35: 73.73730937 | X35: 73.73730937 | Y35: ='5. TNC Parameters'!$F$86 -> 11.31127352 | Z35: 11.31127352 | AA35: ='5. TNC Parameters'!$F$88 -> 7.364482644 | AB35: 7.364482644 | AC35: ='5. TNC Parameters'!$F$89 -> 2.522353976 | AD35: 2.522353976 | AE35: 0.5 | AF35: 0.5 | AG35: 2025 | AH35: 205019120 | AI35: 376225500
A36: 2026 | B36: 1213448.4 | C36: 1213448.4 | D36: 2026 | E36: 0.015 | F36: 0.015 | G36: 0.015 | H36: 0.015 | I36: 0.015 | J36: 0.015 | K36: 2026 | L36: 0.05 | M36: 0.05 | N36: 0.05 | O36: 0.05 | P36: 0 | Q36: 0 | R36: 2026 | S36: =S35+0.75 -> 5.314580486 | T36: 5.314580486 | U36: =U35+0.2 -> 0.7 | V36: 0.7 | W36: 72.78730937 | X36: 72.78730937 | Y36: ='5. TNC Parameters'!$F$86 -> 11.31127352 | Z36: 11.31127352 | AA36: ='5. TNC Parameters'!$F$88 -> 7.364482644 | AB36: 7.364482644 | AC36: ='5. TNC Parameters'!$F$89 -> 2.522353976 | AD36: 2.522353976 | AE36: 0.55 | AF36: 0.55 | AG36: 2026 | AH36: 204575280 | AI36: 377237000
A37: 2027 | B37: 1210705.6 | C37: 1210705.6 | D37: 2027 | E37: 0.015 | F37: 0.015 | G37: 0.015 | H37: 0.015 | I37: 0.015 | J37: 0.015 | K37: 2027 | L37: 0.05 | M37: 0.05 | N37: 0.05 | O37: 0.05 | P37: 0 | Q37: 0 | R37: 2027 | S37: =S36+0.75 -> 6.064580486 | T37: 6.064580486 | U37: =U36+0.2 -> 0.9 | V37: 0.9 | W37: 71.83730937 | X37: 71.83730937 | Y37: ='5. TNC Parameters'!$F$86 -> 11.31127352 | Z37: 11.31127352 | AA37: ='5. TNC Parameters'!$F$88 -> 7.364482644 | AB37: 7.364482644 | AC37: ='5. TNC Parameters'!$F$89 -> 2.522353976 | AD37: 2.522353976 | AE37: 0.6 | AF37: 0.6 | AG37: 2027 | AH37: 204131440 | AI37: 378248500
A38: 2028 | B38: 1207962.8 | C38: 1207962.8 | D38: 2028 | E38: 0.015 | F38: 0.015 | G38: 0.015 | H38: 0.015 | I38: 0.015 | J38: 0.015 | K38: 2028 | L38: 0.05 | M38: 0.05 | N38: 0.05 | O38: 0.05 | P38: 0 | Q38: 0 | R38: 2028 | S38: =S37+0.75 -> 6.814580486 | T38: 6.814580486 | U38: =U37+0.2 -> 1.1 | V38: 1.1 | W38: 70.88730937 | X38: 70.88730937 | Y38: ='5. TNC Parameters'!$F$86 -> 11.31127352 | Z38: 11.31127352 | AA38: ='5. TNC Parameters'!$F$88 -> 7.364482644 | AB38: 7.364482644 | AC38: ='5. TNC Parameters'!$F$89 -> 2.522353976 | AD38: 2.522353976 | AE38: 0.65 | AF38: 0.65 | AG38: 2028 | AH38: 203687600 | AI38: 379260000
A39: 2029 | B39: 1205220 | C39: 1205220 | D39: 2029 | E39: 0.015 | F39: 0.015 | G39: 0.015 | H39: 0.015 | I39: 0.015 | J39: 0.015 | K39: 2029 | L39: 0.05 | M39: 0.05 | N39: 0.05 | O39: 0.05 | P39: 0 | Q39: 0 | R39: 2029 | S39: =S38+0.75 -> 7.564580486 | T39: 7.564580486 | U39: =U38+0.2 -> 1.3 | V39: 1.3 | W39: 69.93730937 | X39: 69.93730937 | Y39: ='5. TNC Parameters'!$F$86 -> 11.31127352 | Z39: 11.31127352 | AA39: ='5. TNC Parameters'!$F$88 -> 7.364482644 | AB39: 7.364482644 | AC39: ='5. TNC Parameters'!$F$89 -> 2.522353976 | AD39: 2.522353976 | AE39: 0.7 | AF39: 0.7 | AG39: 2029 | AH39: 205225840 | AI39: 380989000
A40: 2030 | B40: 1202477.2 | C40: 1202477.2 | D40: 2030 | E40: 0.015 | F40: 0.015 | G40: 0.015 | H40: 0.015 | I40: 0.015 | J40: 0.015 | K40: 2030 | L40: 0.05 | M40: 0.05 | N40: 0.05 | O40: 0.05 | P40: 0 | Q40: 0 | R40: 2030 | S40: =S39+0.75 -> 8.314580486 | T40: 8.314580486 | U40: =U39+0.2 -> 1.5 | V40: 1.5 | W40: 68.98730937 | X40: 68.98730937 | Y40: ='5. TNC Parameters'!$F$86 -> 11.31127352 | Z40: 11.31127352 | AA40: ='5. TNC Parameters'!$F$88 -> 7.364482644 | AB40: 7.364482644 | AC40: ='5. TNC Parameters'!$F$89 -> 2.522353976 | AD40: 2.522353976 | AE40: 0.75 | AF40: 0.75 | AG40: 2030 | AH40: 206764080 | AI40: 382718000
A41: 2031 | B41: 1199734.4 | C41: 1199734.4 | D41: 2031 | E41: 0.015 | F41: 0.015 | G41: 0.015 | H41: 0.015 | I41: 0.015 | J41: 0.015 | K41: 2031 | L41: 0.05 | M41: 0.05 | N41: 0.05 | O41: 0.05 | P41: 0 | Q41: 0 | R41: 2031 | S41: =S40+1 -> 9.314580486 | T41: 9.314580486 | U41: =U40+0.4 -> 1.9 | V41: 1.9 | W41: 67.58730937 | X41: 67.58730937 | Y41: ='5. TNC Parameters'!$F$86 -> 11.31127352 | Z41: 11.31127352 | AA41: ='5. TNC Parameters'!$F$88 -> 7.364482644 | AB41: 7.364482644 | AC41: ='5. TNC Parameters'!$F$89 -> 2.522353976 | AD41: 2.522353976 | AE41: 0.8 | AF41: 0.8 | AG41: 2031 | AH41: 208302320 | AI41: 384447000
A42: 2032 | B42: 1196991.6 | C42: 1196991.6 | D42: 2032 | E42: 0.015 | F42: 0.015 | G42: 0.015 | H42: 0.015 | I42: 0.015 | J42: 0.015 | K42: 2032 | L42: 0.05 | M42: 0.05 | N42: 0.05 | O42: 0.05 | P42: 0 | Q42: 0 | R42: 2032 | S42: =S41+1 -> 10.31458049 | T42: 10.31458049 | U42: =U41+0.4 -> 2.3 | V42: 2.3 | W42: 66.18730937 | X42: 66.18730937 | Y42: ='5. TNC Parameters'!$F$86 -> 11.31127352 | Z42: 11.31127352 | AA42: ='5. TNC Parameters'!$F$88 -> 7.364482644 | AB42: 7.364482644 | AC42: ='5. TNC Parameters'!$F$89 -> 2.522353976 | AD42: 2.522353976 | AE42: 0.85 | AF42: 0.85 | AG42: 2032 | AH42: 209840560 | AI42: 386176000
A43: 2033 | B43: 1194248.8 | C43: 1194248.8 | D43: 2033 | E43: 0.015 | F43: 0.015 | G43: 0.015 | H43: 0.015 | I43: 0.015 | J43: 0.015 | K43: 2033 | L43: 0.05 | M43: 0.05 | N43: 0.05 | O43: 0.05 | P43: 0 | Q43: 0 | R43: 2033 | S43: =S42+1 -> 11.31458049 | T43: 11.31458049 | U43: =U42+0.4 -> 2.7 | V43: 2.7 | W43: 64.78730937 | X43: 64.78730937 | Y43: ='5. TNC Parameters'!$F$86 -> 11.31127352 | Z43: 11.31127352 | AA43: ='5. TNC Parameters'!$F$88 -> 7.364482644 | AB43: 7.364482644 | AC43: ='5. TNC Parameters'!$F$89 -> 2.522353976 | AD43: 2.522353976 | AE43: 0.9 | AF43: 0.9 | AG43: 2033 | AH43: 211378800 | AI43: 387905000
A44: 2034 | B44: 1179270 | C44: 1179270 | D44: 2034 | E44: 0.015 | F44: 0.015 | G44: 0.015 | H44: 0.015 | I44: 0.015 | J44: 0.015 | K44: 2034 | L44: 0.05 | M44: 0.05 | N44: 0.05 | O44: 0.05 | P44: 0 | Q44: 0 | R44: 2034 | S44: =S43+1 -> 12.31458049 | T44: 12.31458049 | U44: =U43+0.4 -> 3.1 | V44: 3.1 | W44: 63.38730937 | X44: 63.38730937 | Y44: ='5. TNC Parameters'!$F$86 -> 11.31127352 | Z44: 11.31127352 | AA44: ='5. TNC Parameters'!$F$88 -> 7.364482644 | AB44: 7.364482644 | AC44: ='5. TNC Parameters'!$F$89 -> 2.522353976 | AD44: 2.522353976 | AE44: 0.95 | AF44: 0.95 | AG44: 2034 | AH44: 212917040 | AI44: 389634000
A45: 2035 | B45: 1174080 | C45: 1174080 | D45: 2035 | E45: 0.015 | F45: 0.015 | G45: 0.015 | H45: 0.015 | I45: 0.015 | J45: 0.015 | K45: 2035 | L45: 0.05 | M45: 0.05 | N45: 0.05 | O45: 0.05 | P45: 0 | Q45: 0 | R45: 2035 | S45: =S44+1 -> 13.31458049 | T45: 13.31458049 | U45: =U44+0.4 -> 3.5 | V45: 3.5 | W45: 61.98730937 | X45: 61.98730937 | Y45: ='5. TNC Parameters'!$F$86 -> 11.31127352 | Z45: 11.31127352 | AA45: ='5. TNC Parameters'!$F$88 -> 7.364482644 | AB45: 7.364482644 | AC45: ='5. TNC Parameters'!$F$89 -> 2.522353976 | AD45: 2.522353976 | AE45: 1 | AF45: 1 | AG45: 2035 | AH45: 214455280 | AI45: 391363000
A46: 2036 | B46: 1168890 | C46: 1168890 | D46: 2036 | E46: 0.015 | F46: 0.015 | G46: 0.015 | H46: 0.015 | I46: 0.015 | J46: 0.015 | K46: 2036 | L46: 0.05 | M46: 0.05 | N46: 0.05 | O46: 0.05 | P46: 0 | Q46: 0 | R46: 2036 | S46: =S45+1.5 -> 14.81458049 | T46: 14.81458049 | U46: =U45+0.8 -> 4.3 | V46: 4.3 | W46: 59.68730937 | X46: 59.68730937 | Y46: ='5. TNC Parameters'!$F$86 -> 11.31127352 | Z46: 11.31127352 | AA46: ='5. TNC Parameters'!$F$88 -> 7.364482644 | AB46: 7.364482644 | AC46: ='5. TNC Parameters'!$F$89 -> 2.522353976 | AD46: 2.522353976 | AE46: 1 | AF46: 1 | AG46: 2036 | AH46: 215993520 | AI46: 393092000
A47: 2037 | B47: 1163700 | C47: 1163700 | D47: 2037 | E47: 0.015 | F47: 0.015 | G47: 0.015 | H47: 0.015 | I47: 0.015 | J47: 0.015 | K47: 2037 | L47: 0.05 | M47: 0.05 | N47: 0.05 | O47: 0.05 | P47: 0 | Q47: 0 | R47: 2037 | S47: =S46+1.5 -> 16.31458049 | T47: 16.31458049 | U47: =U46+0.8 -> 5.1 | V47: 5.1 | W47: 57.38730937 | X47: 57.38730937 | Y47: ='5. TNC Parameters'!$F$86 -> 11.31127352 | Z47: 11.31127352 | AA47: ='5. TNC Parameters'!$F$88 -> 7.364482644 | AB47: 7.364482644 | AC47: ='5. TNC Parameters'!$F$89 -> 2.522353976 | AD47: 2.522353976 | AE47: 1 | AF47: 1 | AG47: 2037 | AH47: 217531760 | AI47: 394821000
A48: 2038 | B48: 1158510 | C48: 1158510 | D48: 2038 | E48: 0.015 | F48: 0.015 | G48: 0.015 | H48: 0.015 | I48: 0.015 | J48: 0.015 | K48: 2038 | L48: 0.05 | M48: 0.05 | N48: 0.05 | O48: 0.05 | P48: 0 | Q48: 0 | R48: 2038 | S48: =S47+1.5 -> 17.81458049 | T48: 17.81458049 | U48: =U47+0.8 -> 5.9 | V48: 5.9 | W48: 55.08730937 | X48: 55.08730937 | Y48: ='5. TNC Parameters'!$F$86 -> 11.31127352 | Z48: 11.31127352 | AA48: ='5. TNC Parameters'!$F$88 -> 7.364482644 | AB48: 7.364482644 | AC48: ='5. TNC Parameters'!$F$89 -> 2.522353976 | AD48: 2.522353976 | AE48: 1 | AF48: 1 | AG48: 2038 | AH48: 219070000 | AI48: 396550000
A49: 2039 | B49: 1140226 | C49: 1140226 | D49: 2039 | E49: 0.015 | F49: 0.015 | G49: 0.015 | H49: 0.015 | I49: 0.015 | J49: 0.015 | K49: 2039 | L49: 0.05 | M49: 0.05 | N49: 0.05 | O49: 0.05 | P49: 0 | Q49: 0 | R49: 2039 | S49: =S48+1.5 -> 19.31458049 | T49: 19.31458049 | U49: =U48+0.8 -> 6.7 | V49: 6.7 | W49: 52.78730937 | X49: 52.78730937 | Y49: ='5. TNC Parameters'!$F$86 -> 11.31127352 | Z49: 11.31127352 | AA49: ='5. TNC Parameters'!$F$88 -> 7.364482644 | AB49: 7.364482644 | AC49: ='5. TNC Parameters'!$F$89 -> 2.522353976 | AD49: 2.522353976 | AE49: 1 | AF49: 1 | AG49: 2039 | AH49: 219070000 | AI49: 396550000
A50: 2040 | B50: 1130418.8 | C50: 1130418.8 | D50: 2040 | E50: 0.015 | F50: 0.015 | G50: 0.015 | H50: 0.015 | I50: 0.015 | J50: 0.015 | K50: 2040 | L50: 0.05 | M50: 0.05 | N50: 0.05 | O50: 0.05 | P50: 0 | Q50: 0 | R50: 2040 | S50: =S49+1.5 -> 20.81458049 | T50: 20.81458049 | U50: =U49+0.8 -> 7.5 | V50: 7.5 | W50: 50.48730937 | X50: 50.48730937 | Y50: ='5. TNC Parameters'!$F$86 -> 11.31127352 | Z50: 11.31127352 | AA50: ='5. TNC Parameters'!$F$88 -> 7.364482644 | AB50: 7.364482644 | AC50: ='5. TNC Parameters'!$F$89 -> 2.522353976 | AD50: 2.522353976 | AE50: 1 | AF50: 1 | AG50: 2040 | AH50: 219070000 | AI50: 396550000
A51: 2041 | B51: 1120611.6 | C51: 1120611.6 | D51: 2041 | E51: 0.015 | F51: 0.015 | G51: 0.015 | H51: 0.015 | I51: 0.015 | J51: 0.015 | K51: 2041 | L51: 0.05 | M51: 0.05 | N51: 0.05 | O51: 0.05 | P51: 0 | Q51: 0 | R51: 2041 | S51: =S50+2 -> 22.81458049 | T51: 22.81458049 | U51: =U50+1 -> 8.5 | V51: 8.5 | W51: 47.48730937 | X51: 47.48730937 | Y51: ='5. TNC Parameters'!$F$86 -> 11.31127352 | Z51: 11.31127352 | AA51: ='5. TNC Parameters'!$F$88 -> 7.364482644 | AB51: 7.364482644 | AC51: ='5. TNC Parameters'!$F$89 -> 2.522353976 | AD51: 2.522353976 | AE51: 1 | AF51: 1 | AG51: 2041 | AH51: 219070000 | AI51: 396550000
A52: 2042 | B52: 1110804.4 | C52: 1110804.4 | D52: 2042 | E52: 0.015 | F52: 0.015 | G52: 0.015 | H52: 0.015 | I52: 0.015 | J52: 0.015 | K52: 2042 | L52: 0.05 | M52: 0.05 | N52: 0.05 | O52: 0.05 | P52: 0 | Q52: 0 | R52: 2042 | S52: =S51+2 -> 24.81458049 | T52: 24.81458049 | U52: =U51+1 -> 9.5 | V52: 9.5 | W52: 44.48730937 | X52: 44.48730937 | Y52: ='5. TNC Parameters'!$F$86 -> 11.31127352 | Z52: 11.31127352 | AA52: ='5. TNC Parameters'!$F$88 -> 7.364482644 | AB52: 7.364482644 | AC52: ='5. TNC Parameters'!$F$89 -> 2.522353976 | AD52: 2.522353976 | AE52: 1 | AF52: 1 | AG52: 2042 | AH52: 219070000 | AI52: 396550000
A53: 2043 | B53: 1100997.2 | C53: 1100997.2 | D53: 2043 | E53: 0.015 | F53: 0.015 | G53: 0.015 | H53: 0.015 | I53: 0.015 | J53: 0.015 | K53: 2043 | L53: 0.05 | M53: 0.05 | N53: 0.05 | O53: 0.05 | P53: 0 | Q53: 0 | R53: 2043 | S53: =S52+2 -> 26.81458049 | T53: 26.81458049 | U53: =U52+1 -> 10.5 | V53: 10.5 | W53: 41.48730937 | X53: 41.48730937 | Y53: ='5. TNC Parameters'!$F$86 -> 11.31127352 | Z53: 11.31127352 | AA53: ='5. TNC Parameters'!$F$88 -> 7.364482644 | AB53: 7.364482644 | AC53: ='5. TNC Parameters'!$F$89 -> 2.522353976 | AD53: 2.522353976 | AE53: 1 | AF53: 1 | AG53: 2043 | AH53: 219070000 | AI53: 396550000
A54: 2044 | B54: 1091190 | C54: 1091190 | D54: 2044 | E54: 0.015 | F54: 0.015 | G54: 0.015 | H54: 0.015 | I54: 0.015 | J54: 0.015 | K54: 2044 | L54: 0.05 | M54: 0.05 | N54: 0.05 | O54: 0.05 | P54: 0 | Q54: 0 | R54: 2044 | S54: =S53+2 -> 28.81458049 | T54: 28.81458049 | U54: =U53+1 -> 11.5 | V54: 11.5 | W54: 38.48730937 | X54: 38.48730937 | Y54: ='5. TNC Parameters'!$F$86 -> 11.31127352 | Z54: 11.31127352 | AA54: ='5. TNC Parameters'!$F$88 -> 7.364482644 | AB54: 7.364482644 | AC54: ='5. TNC Parameters'!$F$89 -> 2.522353976 | AD54: 2.522353976 | AE54: 1 | AF54: 1 | AG54: 2044 | AH54: 219070000 | AI54: 396550000
A55: 2045 | B55: 1080164.2 | C55: 1080164.2 | D55: 2045 | E55: 0.015 | F55: 0.015 | G55: 0.015 | H55: 0.015 | I55: 0.015 | J55: 0.015 | K55: 2045 | L55: 0.05 | M55: 0.05 | N55: 0.05 | O55: 0.05 | P55: 0 | Q55: 0 | R55: 2045 | S55: =S54+2 -> 30.81458049 | T55: 30.81458049 | U55: =U54+1 -> 12.5 | V55: 12.5 | W55: 35.48730937 | X55: 35.48730937 | Y55: ='5. TNC Parameters'!$F$86 -> 11.31127352 | Z55: 11.31127352 | AA55: ='5. TNC Parameters'!$F$88 -> 7.364482644 | AB55: 7.364482644 | AC55: ='5. TNC Parameters'!$F$89 -> 2.522353976 | AD55: 2.522353976 | AE55: 1 | AF55: 1 | AG55: 2045 | AH55: 219070000 | AI55: 396550000
A56: 2046 | B56: 1069138.4 | C56: 1069138.4 | D56: 2046 | E56: 0.015 | F56: 0.015 | G56: 0.015 | H56: 0.015 | I56: 0.015 | J56: 0.015 | K56: 2046 | L56: 0.05 | M56: 0.05 | N56: 0.05 | O56: 0.05 | P56: 0 | Q56: 0 | R56: 2046 | S56: =S55+2.5 -> 33.31458049 | T56: 33.31458049 | U56: =U55+1.25 -> 13.75 | V56: 13.75 | W56: 31.73730937 | X56: 31.73730937 | Y56: ='5. TNC Parameters'!$F$86 -> 11.31127352 | Z56: 11.31127352 | AA56: ='5. TNC Parameters'!$F$88 -> 7.364482644 | AB56: 7.364482644 | AC56: ='5. TNC Parameters'!$F$89 -> 2.522353976 | AD56: 2.522353976 | AE56: 1 | AF56: 1 | AG56: 2046 | AH56: 219070000 | AI56: 396550000
A57: 2047 | B57: 1058112.6 | C57: 1058112.6 | D57: 2047 | E57: 0.015 | F57: 0.015 | G57: 0.015 | H57: 0.015 | I57: 0.015 | J57: 0.015 | K57: 2047 | L57: 0.05 | M57: 0.05 | N57: 0.05 | O57: 0.05 | P57: 0 | Q57: 0 | R57: 2047 | S57: =S56+2.5 -> 35.81458049 | T57: 35.81458049 | U57: =U56+1.25 -> 15 | V57: 15 | W57: 27.98730937 | X57: 27.98730937 | Y57: ='5. TNC Parameters'!$F$86 -> 11.31127352 | Z57: 11.31127352 | AA57: ='5. TNC Parameters'!$F$88 -> 7.364482644 | AB57: 7.364482644 | AC57: ='5. TNC Parameters'!$F$89 -> 2.522353976 | AD57: 2.522353976 | AE57: 1 | AF57: 1 | AG57: 2047 | AH57: 219070000 | AI57: 396550000
A58: 2048 | B58: 1047086.8 | C58: 1047086.8 | D58: 2048 | E58: 0.015 | F58: 0.015 | G58: 0.015 | H58: 0.015 | I58: 0.015 | J58: 0.015 | K58: 2048 | L58: 0.05 | M58: 0.05 | N58: 0.05 | O58: 0.05 | P58: 0 | Q58: 0 | R58: 2048 | S58: =S57+2.5 -> 38.31458049 | T58: 38.31458049 | U58: =U57+1.25 -> 16.25 | V58: 16.25 | W58: 24.23730937 | X58: 24.23730937 | Y58: ='5. TNC Parameters'!$F$86 -> 11.31127352 | Z58: 11.31127352 | AA58: ='5. TNC Parameters'!$F$88 -> 7.364482644 | AB58: 7.364482644 | AC58: ='5. TNC Parameters'!$F$89 -> 2.522353976 | AD58: 2.522353976 | AE58: 1 | AF58: 1 | AG58: 2048 | AH58: 219070000 | AI58: 396550000
A59: 2049 | B59: 1036061 | C59: 1036061 | D59: 2049 | E59: 0.015 | F59: 0.015 | G59: 0.015 | H59: 0.015 | I59: 0.015 | J59: 0.015 | K59: 2049 | L59: 0.05 | M59: 0.05 | N59: 0.05 | O59: 0.05 | P59: 0 | Q59: 0 | R59: 2049 | S59: =S58+2.5 -> 40.81458049 | T59: 40.81458049 | U59: =U58+1.25 -> 17.5 | V59: 17.5 | W59: 20.48730937 | X59: 20.48730937 | Y59: ='5. TNC Parameters'!$F$86 -> 11.31127352 | Z59: 11.31127352 | AA59: ='5. TNC Parameters'!$F$88 -> 7.364482644 | AB59: 7.364482644 | AC59: ='5. TNC Parameters'!$F$89 -> 2.522353976 | AD59: 2.522353976 | AE59: 1 | AF59: 1 | AG59: 2049 | AH59: 219070000 | AI59: 396550000
A60: 2050 | B60: 1024556.2 | C60: 1024556.2 | D60: 2050 | E60: 0.015 | F60: 0.015 | G60: 0.015 | H60: 0.015 | I60: 0.015 | J60: 0.015 | K60: 2050 | L60: 0.05 | M60: 0.05 | N60: 0.05 | O60: 0.05 | P60: 0 | Q60: 0 | R60: 2050 | S60: =S59+2.5 -> 43.31458049 | T60: 43.31458049 | U60: =U59+1.25 -> 18.75 | V60: 18.75 | W60: 16.73730937 | X60: 16.73730937 | Y60: ='5. TNC Parameters'!$F$86 -> 11.31127352 | Z60: 11.31127352 | AA60: ='5. TNC Parameters'!$F$88 -> 7.364482644 | AB60: 7.364482644 | AC60: ='5. TNC Parameters'!$F$89 -> 2.522353976 | AD60: 2.522353976 | AE60: 1 | AF60: 1 | AG60: 2050 | AH60: 219070000 | AI60: 396550000
E62: Note 1
E63: SCENARIO 1 | L63: SCENARIO 2
E64: FUEL ECONOMY IMPROVES BY 1% ANNUALLY TO 2020. | L64: PRIVATISATION OF VEHICLE INSPECTION & FITNESS CENTRES LEADS TO BETTER VEHICLE MAINTENANCE AND THEREFORE LOWER EMISSIONS. | S64: Hybrid | T64: 2016-2020 | U64: 0.21 | V64: 2021-2025 | W64: 0.5 | X64: 2026-2030 | Y64: 0.75 | Z64: 2031-2035 | AA64: 1 | AB64: 2036-2040 | AC64: 1.5 | AD64: 2041-2045 | AE64: 2 | AF64: 2046-2050 | AG64: 2.5
E65: AFTER 2020, THE FUEL ECONOMY IMPROVES AT A RATE OF 1.5% pa. THESE IMPROVEMENTS ARE APPLIED TO THE TOTAL FUEL CALCULATED IN THE BAU CASE. | L65: IT IS ASSUMED THAT THE NEW SYSTEM IS PUT IN PLACE IN 2017, RESULTING IN A DECREASE IN OVERALL EMISSIONS BY 5% IN 2019. | S65: Electric | T65: 2016-2020 | U65: 0 | V65: 2021-2025 | W65: 0.1 | X65: 2026-2030 | Y65: 0.2 | Z65: 2031-2035 | AA65: 0.4 | AB65: 2036-2040 | AC65: 0.8 | AD65: 2041-2045 | AE65: 1 | AF65: 2046-2050 | AG65: 1.25
E66: IMPROVEMENTS APPLY TO YEAR 2016 ONWARDS | S66: This section allocates the share of low-carbon technologies - i.e. hybrid and electric vehicles.
L67: ud1 applies to gasoline and diesel only | S67: ASSUMPTION: Hybrid and Electric vehicles are substitutes for only gasoline-driven vehicles.
S68: The average annual increase in the absolute share of hybrid vehicles in the PAX km mix has been 0.21% between 2012 and 2015.
S69: It is assumed that this increase will continue until 2020, afterwhich the increase will be an absolute 0.5% annual between 2020 and 2025.
S70: Between 2025 and 2030, the increase is at 1% absolute per year.

Sheet 7. Calculations
A1: Free Worksheet | E1: Excel Toolkit for Mitigation Analysis for Low-Carbon Development Planning | P1: XLMT-Transport v17.1

Sheet ChartPlotLegend
A1: GRAPHICS | C1: Excel Toolkit for Mitigation Analysis for Low-Carbon Development Planning | I1: XLMT-Transport v17.1
O2: Year | P2: TNC 45:BAU | Q2: TNC 62:SC1 | R2: TNC 79:SC2 | S2: TNC 114:SC3 | T2: TNC 158:SC4 | U2: Sparkline
G3: Legend Code | H3: Scenario | I3: Definition | O3: 2010 | P3: 850.8940896 | Q3: 850.8940896 | R3: 850.8940896 | S3: 850.8940896 | T3: 850.8940896
G4: TNC 45: | H4: BAU | I4: Total GHG (CO2e) Emissions from Vehicles (Gg/year) | O4: 2011 | P4: 874.5980725 | Q4: 874.5980725 | R4: 874.5980725 | S4: 874.5980725 | T4: 874.5980725
G5: TNC 62: | H5: SC1 | I5: Total GHG (CO2e) Emissions from Vehicles after Fuel Intensity Improvements (Gg/year) | O5: 2012 | P5: 913.3231966 | Q5: 913.3231966 | R5: 913.3231966 | S5: 913.3231966 | T5: 913.3231966
G6: TNC 79: | H6: SC2 | I6: Total GHG (CO2e) Emissions from Vehicles after Improvements in Vehicle Maintenance (Gg/year) | O6: 2013 | P6: 942.4135437 | Q6: 942.4135437 | R6: 942.4135437 | S6: 942.4135437 | T6: 942.4135437
G7: TNC 114: | H7: SC3 | I7: Total GHG (CO2e) Emissions from Vehicles under low-carbon options (Gg/year) | O7: 2014 | P7: 982.3197768 | Q7: 982.3197768 | R7: 982.3197768 | S7: 982.3197768 | T7: 982.3197768
G8: TNC 158: | H8: SC4 | I8: Total GHG (CO2e) Emissions from Vehicles with MLRT System (Gg/year) | O8: 2015 | P8: 997.4424425 | Q8: 997.4424425 | R8: 997.4424425 | S8: 997.4424425 | T8: 997.4424425
O9: 2016 | P9: 1016.272489 | Q9: 1006.109765 | R9: 1016.272489 | S9: 1015.901691 | T9: 1016.272489
F10: Observations: | O10: 2017 | P10: 1035.337427 | Q10: 1024.984053 | R10: 1035.337427 | S10: 1034.58794 | T10: 1035.337427
O11: 2018 | P11: 1054.624916 | Q11: 1044.078666 | R11: 1028.477686 | S11: 1053.489339 | T11: 1029.146566
O12: 2019 | P12: 1074.143493 | Q12: 1063.402058 | R12: 1020.844102 | S12: 1072.614932 | T12: 1048.676287
O13: 2020 | P13: 1093.279592 | Q13: 1082.346796 | R13: 1038.996436 | S13: 1084.540489 | T13: 1067.82353
O14: 2021 | P14: 1112.63781 | Q14: 1095.948242 | R14: 1057.361698 | S14: 1101.116798 | T14: 1087.192892
O15: 2022 | P15: 1132.235126 | Q15: 1115.251599 | R15: 1075.955884 | S15: 1117.91343 | T15: 1106.801352
O16: 2023 | P16: 1152.091254 | Q16: 1134.809885 | R16: 1094.797592 | S16: 1134.952143 | T16: 1126.668624
O17: 2024 | P17: 1172.228644 | Q17: 1154.645214 | R17: 1113.908034 | S17: 1152.257408 | T17: 1146.817158
O18: 2025 | P18: 1191.65502 | Q18: 1173.780195 | R18: 1132.344399 | S18: 1168.851777 | T18: 1166.254678
O19: 2026 | P19: 1211.373145 | Q19: 1193.202548 | R19: 1151.059248 | S19: 1184.76325 | T19: 1185.983947
O20: 2027 | P20: 1231.416346 | Q20: 1212.945101 | R20: 1170.084146 | S20: 1200.989796 | T20: 1206.038291
O21: 2028 | P21: 1251.820739 | Q21: 1233.043427 | R21: 1189.453315 | S21: 1217.570844 | T21: 1226.453828
O22: 2029 | P22: 1272.6251 | Q22: 1253.535724 | R22: 1209.203512 | S22: 1234.548277 | T22: 1247.093876
O23: 2030 | P23: 1293.870717 | Q23: 1274.462657 | R23: 1229.373885 | S23: 1251.966258 | T23: 1268.175181
O24: 2031 | P24: 1310.683142 | Q24: 1291.022895 | R24: 1245.33362 | S24: 1263.491987 | T24: 1284.823292
O25: 2032 | P25: 1327.821969 | Q25: 1307.904639 | R25: 1261.604288 | S25: 1275.347233 | T25: 1301.797806
O26: 2033 | P26: 1345.310708 | Q26: 1325.131047 | R26: 1278.208163 | S26: 1287.558077 | T26: 1319.122232
O27: 2034 | P27: 1356.080666 | Q27: 1335.739456 | R27: 1288.429676 | S27: 1293.415805 | T27: 1329.727878
O28: 2035 | P28: 1372.847788 | Q28: 1352.255071 | R28: 1304.349377 | S28: 1305.044225 | T28: 1346.330686
O29: 2036 | P29: 1390.020932 | Q29: 1369.170618 | R29: 1320.655433 | S29: 1315.559917 | T29: 1363.339518
O30: 2037 | P30: 1407.629003 | Q30: 1386.514568 | R30: 1337.375257 | S30: 1326.558291 | T30: 1380.783275
O31: 2038 | P31: 1425.701275 | Q31: 1404.315755 | R31: 1354.536618 | S31: 1338.071884 | T31: 1398.691234
O32: 2039 | P32: 1436.363768 | Q32: 1414.818311 | R32: 1364.658913 | S32: 1342.964633 | T32: 1409.353727
O33: 2040 | P33: 1452.604776 | Q33: 1430.815704 | R33: 1380.081451 | S33: 1353.122159 | T33: 1425.594736
O34: 2041 | P34: 1469.375638 | Q34: 1447.335003 | R34: 1396.007787 | S34: 1362.063296 | T34: 1442.365598
O35: 2042 | P35: 1486.711034 | Q35: 1464.410369 | R35: 1412.470838 | S35: 1371.714263 | T35: 1459.700994
O36: 2043 | P36: 1504.645215 | Q36: 1482.075537 | R36: 1429.503112 | S36: 1382.11137 | T36: 1477.635175
O37: 2044 | P37: 1523.21195 | Q37: 1500.363771 | R37: 1447.136665 | S37: 1393.289912 | T37: 1496.20191
O38: 2045 | P38: 1541.68889 | Q38: 1518.563556 | R38: 1464.68521 | S38: 1404.651166 | T38: 1514.678849
O39: 2046 | P39: 1560.860681 | Q39: 1537.44777 | R39: 1482.894168 | S39: 1414.870029 | T39: 1533.85064
O40: 2047 | P40: 1580.760496 | Q40: 1557.049088 | R40: 1501.795032 | S40: 1426.026815 | T40: 1553.750455
O41: 2048 | P41: 1601.420908 | Q41: 1577.399594 | R41: 1521.418725 | S41: 1438.154563 | T41: 1574.410867
O42: 2049 | P42: 1622.87396 | Q42: 1598.53085 | R42: 1541.795669 | S42: 1451.285487 | T42: 1595.863919
O43: 2050 | P43: 1644.85164 | Q43: 1620.178866 | R43: 1562.671228 | S43: 1465.222545 | T43: 1617.8416

Sheet RadarPlot
A1: Radar Dashboard | E1: Excel Toolkit for Mitigation Analysis for Low-Carbon Development Planning | J1: XLMT-Transport v17.1
N2: Year | O2: TNC 15:BAU | P2: TNC 46:SC1
G3: Legend Code | H3: Scenario | I3: Definition | N3: 2010 | O3: 12091.4136 | P3: 115266
G4: TNC 15: | H4: BAU | I4: Fuel Consumption for Autocycles (tonne) | N4: 2011 | O4: 12191.7082 | P4: 117370
G5: TNC 46: | H5: SC1 | I5: Total Gasoline Consumption after Fuel Intensity Improvements (tonne) | N5: 2012 | O5: 12398.8578 | P5: 123352
G6: Ratio = | H6: (TNC 46:/TNC 15:) | N6: 2013 | O6: 12426.2922 | P6: 128928
N7: 2014 | O7: 12297.0722 | P7: 137244
N8: 2015 | O8: 11785.06921 | P8: 142215.2636
N9: 2016 | O9: 11916.99254 | P9: 143890.6024
F10: Observations: | N10: 2017 | O10: 12043.78992 | P10: 145509.8901
N11: 2018 | O11: 12165.33044 | P11: 143394.9572
N12: 2019 | O12: 12281.50751 | P12: 141146.3477
N13: 2020 | O13: 12381.24856 | P13: 142394.9569
N14: 2021 | O14: 12474.90841 | P14: 143580.2861
N15: 2022 | O15: 12562.47894 | P15: 144702.4317
N16: 2023 | O16: 12643.98301 | P16: 145761.8447
N17: 2024 | O17: 12719.47434 | P17: 146759.3297
N18: 2025 | O18: 12771.14118 | P18: 147495.3529
N19: 2026 | O19: 12816.24801 | P19: 148163.7366
N20: 2027 | O20: 12854.98558 | P20: 148766.8462
N21: 2028 | O21: 12887.57492 | P21: 149307.3955
N22: 2029 | O22: 12914.26464 | P22: 149788.4164
N23: 2030 | O23: 12935.3278 | P23: 150213.2245
N24: 2031 | O24: 12942.60459 | P24: 150449.3669
N25: 2032 | O25: 12946.56267 | P25: 150652.917
N26: 2033 | O26: 12947.37279 | P26: 150825.9294
N27: 2034 | O27: 12820.53706 | P27: 149572.3661
N28: 2035 | O28: 12789.30761 | P28: 149396.0324
N29: 2036 | O29: 12755.1335 | P29: 149191.8836
N30: 2037 | O30: 12718.24154 | P30: 148962.6204
N31: 2038 | O31: 12678.85512 | P31: 148710.9097
N32: 2039 | O32: 12498.29762 | P32: 146881.7162
N33: 2040 | O33: 12404.51512 | P33: 146031.5312
N34: 2041 | O34: 12308.45856 | P34: 145161.8839
N35: 2042 | O35: 12210.404 | P35: 144276.0523
N36: 2043 | O36: 12110.60897 | P36: 143377.1118
N37: 2044 | O37: 12009.31127 | P37: 142467.9224
N38: 2045 | O38: 11893.45093 | P38: 141402.2194
N39: 2046 | O39: 11776.43693 | P39: 140330.5846
N40: 2047 | O40: 11658.46115 | P40: 139255.3805
N41: 2048 | O41: 11539.69256 | P41: 138178.719
N42: 2049 | O42: 11420.27811 | P42: 137102.4713
N43: 2050 | O43: 11295.07945 | P43: 135969.2427

Sheet DiffPlot
A1: % Difference | E1: Excel Toolkit for Mitigation Analysis for Low-Carbon Development Planning | I1: XLMT-Transport v17.1
N2: Year | O2: TNC 15:BAU | P2: TNC 46:SC1
G3: Legend Code | H3: Scenario | I3: Definition | N3: 2010 | O3: 12091.4136 | P3: 115266
G4: TNC 15: | H4: BAU | I4: Fuel Consumption for Autocycles (tonne) | N4: 2011 | O4: 12191.7082 | P4: 117370
G5: TNC 46: | H5: SC1 | I5: Total Gasoline Consumption after Fuel Intensity Improvements (tonne) | N5: 2012 | O5: 12398.8578 | P5: 123352
G6: % Change = | H6: (TNC 46:-TNC 15:) x 100/TNC 15: | N6: 2013 | O6: 12426.2922 | P6: 128928
N7: 2014 | O7: 12297.0722 | P7: 137244
N8: 2015 | O8: 11785.06921 | P8: 142215.2636
N9: 2016 | O9: 11916.99254 | P9: 143890.6024
F10: Observations: | N10: 2017 | O10: 12043.78992 | P10: 145509.8901
N11: 2018 | O11: 12165.33044 | P11: 143394.9572
N12: 2019 | O12: 12281.50751 | P12: 141146.3477
N13: 2020 | O13: 12381.24856 | P13: 142394.9569
N14: 2021 | O14: 12474.90841 | P14: 143580.2861
N15: 2022 | O15: 12562.47894 | P15: 144702.4317
N16: 2023 | O16: 12643.98301 | P16: 145761.8447
N17: 2024 | O17: 12719.47434 | P17: 146759.3297
N18: 2025 | O18: 12771.14118 | P18: 147495.3529
N19: 2026 | O19: 12816.24801 | P19: 148163.7366
N20: 2027 | O20: 12854.98558 | P20: 148766.8462
N21: 2028 | O21: 12887.57492 | P21: 149307.3955
N22: 2029 | O22: 12914.26464 | P22: 149788.4164
N23: 2030 | O23: 12935.3278 | P23: 150213.2245
N24: 2031 | O24: 12942.60459 | P24: 150449.3669
N25: 2032 | O25: 12946.56267 | P25: 150652.917
N26: 2033 | O26: 12947.37279 | P26: 150825.9294
N27: 2034 | O27: 12820.53706 | P27: 149572.3661
N28: 2035 | O28: 12789.30761 | P28: 149396.0324
N29: 2036 | O29: 12755.1335 | P29: 149191.8836
N30: 2037 | O30: 12718.24154 | P30: 148962.6204
N31: 2038 | O31: 12678.85512 | P31: 148710.9097
N32: 2039 | O32: 12498.29762 | P32: 146881.7162
N33: 2040 | O33: 12404.51512 | P33: 146031.5312
N34: 2041 | O34: 12308.45856 | P34: 145161.8839
N35: 2042 | O35: 12210.404 | P35: 144276.0523
N36: 2043 | O36: 12110.60897 | P36: 143377.1118
N37: 2044 | O37: 12009.31127 | P37: 142467.9224
N38: 2045 | O38: 11893.45093 | P38: 141402.2194
N39: 2046 | O39: 11776.43693 | P39: 140330.5846
N40: 2047 | O40: 11658.46115 | P40: 139255.3805
N41: 2048 | O41: 11539.69256 | P41: 138178.719
N42: 2049 | O42: 11420.27811 | P42: 137102.4713
N43: 2050 | O43: 11295.07945 | P43: 135969.2427

Sheet Report
A1: REPORT | C1: Excel Toolkit for Mitigation Analysis for Low-Carbon Development Planning | O1: XLMT-Transport v17.1 | Q1: XLMT-Transport v17.1
B4: User Name: | C4: ABC
B7: Project Code: | C7: Proj01
B10: Project Detail: | C10: TNC Plot

Sheet ....

Sheet Radar Ratio (hidden)
A1: Variable1 | B1: Variable2 | C1: Ratio | D1: R1 | E1: R2 | F1: R3 | G1: R4 | H1: R5
A2: 12091.4136 | B2: 115266 | C2: =B2/A2 -> 9.532880424 | D2: 0.125 | E2: 0.5 | F2: 1 | G2: 1.5 | H2: 2.15
A3: 12191.7082 | B3: 117370 | C3: =B3/A3 -> 9.627034873 | D3: 0.125 | E3: 0.5 | F3: 1 | G3: 1.5 | H3: 2.15
A4: 12398.8578 | B4: 123352 | C4: 9.948658335 | D4: 0.125 | E4: 0.5 | F4: 1 | G4: 1.5 | H4: 2.15
A5: 12426.2922 | B5: 128928 | C5: 10.37541995 | D5: 0.125 | E5: 0.5 | F5: 1 | G5: 1.5 | H5: 2.15
A6: 12297.0722 | B6: 137244 | C6: 11.16070539 | D6: 0.125 | E6: 0.5 | F6: 1 | G6: 1.5 | H6: 2.15
A7: 11785.06921 | B7: 142215.2636 | C7: 12.06741013 | D7: 0.125 | E7: 0.5 | F7: 1 | G7: 1.5 | H7: 2.15
A8: 11916.99254 | B8: 143890.6024 | C8: 12.07440568 | D8: 0.125 | E8: 0.5 | F8: 1 | G8: 1.5 | H8: 2.15
A9: 12043.78992 | B9: 145509.8901 | C9: 12.08173599 | D9: 0.125 | E9: 0.5 | F9: 1 | G9: 1.5 | H9: 2.15
A10: 12165.33044 | B10: 143394.9572 | C10: 11.78718144 | D10: 0.125 | E10: 0.5 | F10: 1 | G10: 1.5 | H10: 2.15
A11: 12281.50751 | B11: 141146.3477 | C11: 11.49259141 | D11: 0.125 | E11: 0.5 | F11: 1 | G11: 1.5 | H11: 2.15
A12: 12381.24856 | B12: 142394.9569 | C12: 11.50085601 | D12: 0.125 | E12: 0.5 | F12: 1 | G12: 1.5 | H12: 2.15
A13: 12474.90841 | B13: 143580.2861 | C13: 11.50952627 | D13: 0.125 | E13: 0.5 | F13: 1 | G13: 1.5 | H13: 2.15
A14: 12562.47894 | B14: 144702.4317 | C14: 11.51862084 | D14: 0.125 | E14: 0.5 | F14: 1 | G14: 1.5 | H14: 2.15
A15: 12643.98301 | B15: 145761.8447 | C15: 11.52815886 | D15: 0.125 | E15: 0.5 | F15: 1 | G15: 1.5 | H15: 2.15
A16: 12719.47434 | B16: 146759.3297 | C16: 11.53815997 | D16: 0.125 | E16: 0.5 | F16: 1 | G16: 1.5 | H16: 2.15
A17: 12771.14118 | B17: 147495.3529 | C17: 11.54911302 | D17: 0.125 | E17: 0.5 | F17: 1 | G17: 1.5 | H17: 2.15
A18: 12816.24801 | B18: 148163.7366 | C18: 11.56061715 | D18: 0.125 | E18: 0.5 | F18: 1 | G18: 1.5 | H18: 2.15
A19: 12854.98558 | B19: 148766.8462 | C19: 11.57269647 | D19: 0.125 | E19: 0.5 | F19: 1 | G19: 1.5 | H19: 2.15
A20: 12887.57492 | B20: 149307.3955 | C20: 11.58537556 | D20: 0.125 | E20: 0.5 | F20: 1 | G20: 1.5 | H20: 2.15
A21: 12914.26464 | B21: 149788.4164 | C21: 11.59867949 | D21: 0.125 | E21: 0.5 | F21: 1 | G21: 1.5 | H21: 2.15
A22: 12935.3278 | B22: 150213.2245 | C22: 11.61263377 | D22: 0.125 | E22: 0.5 | F22: 1 | G22: 1.5 | H22: 2.15
A23: 12942.60459 | B23: 150449.3669 | C23: 11.62435009 | D23: 0.125 | E23: 0.5 | F23: 1 | G23: 1.5 | H23: 2.15
A24: 12946.56267 | B24: 150652.917 | C24: 11.63651858 | D24: 0.125 | E24: 0.5 | F24: 1 | G24: 1.5 | H24: 2.15
A25: 12947.37279 | B25: 150825.9294 | C25: 11.64915321 | D25: 0.125 | E25: 0.5 | F25: 1 | G25: 1.5 | H25: 2.15
A26: 12820.53706 | B26: 149572.3661 | C26: 11.6666225 | D26: 0.125 | E26: 0.5 | F26: 1 | G26: 1.5 | H26: 2.15
A27: 12789.30761 | B27: 149396.0324 | C27: 11.68132294 | D27: 0.125 | E27: 0.5 | F27: 1 | G27: 1.5 | H27: 2.15
A28: 12755.1335 | B28: 149191.8836 | C28: 11.69661482 | D28: 0.125 | E28: 0.5 | F28: 1 | G28: 1.5 | H28: 2.15
A29: 12718.24154 | B29: 148962.6204 | C29: 11.71251701 | D29: 0.125 | E29: 0.5 | F29: 1 | G29: 1.5 | H29: 2.15
A30: 12678.85512 | B30: 148710.9097 | C30: 11.72904874 | D30: 0.125 | E30: 0.5 | F30: 1 | G30: 1.5 | H30: 2.15
A31: 12498.29762 | B31: 146881.7162 | C31: 11.75213782 | D31: 0.125 | E31: 0.5 | F31: 1 | G31: 1.5 | H31: 2.15
A32: 12404.51512 | B32: 146031.5312 | C32: 11.77244977 | D32: 0.125 | E32: 0.5 | F32: 1 | G32: 1.5 | H32: 2.15
A33: 12308.45856 | B33: 145161.8839 | C33: 11.79366882 | D33: 0.125 | E33: 0.5 | F33: 1 | G33: 1.5 | H33: 2.15
A34: 12210.404 | B34: 144276.0523 | C34: 11.81582954 | D34: 0.125 | E34: 0.5 | F34: 1 | G34: 1.5 | H34: 2.15
A35: 12110.60897 | B35: 143377.1118 | C35: 11.83896798 | D35: 0.125 | E35: 0.5 | F35: 1 | G35: 1.5 | H35: 2.15
A36: 12009.31127 | B36: 142467.9224 | C36: 11.8631218 | D36: 0.125 | E36: 0.5 | F36: 1 | G36: 1.5 | H36: 2.15
A37: 11893.45093 | B37: 141402.2194 | C37: 11.88908251 | D37: 0.125 | E37: 0.5 | F37: 1 | G37: 1.5 | H37: 2.15
A38: 11776.43693 | B38: 140330.5846 | C38: 11.91621757 | D38: 0.125 | E38: 0.5 | F38: 1 | G38: 1.5 | H38: 2.15
A39: 11658.46115 | B39: 139255.3805 | C39: 11.94457645 | D39: 0.125 | E39: 0.5 | F39: 1 | G39: 1.5 | H39: 2.15
A40: 11539.69256 | B40: 138178.719 | C40: 11.97421146 | D40: 0.125 | E40: 0.5 | F40: 1 | G40: 1.5 | H40: 2.15
A41: 11420.27811 | B41: 137102.4713 | C41: 12.00517798 | D41: 0.125 | E41: 0.5 | F41: 1 | G41: 1.5 | H41: 2.15
A42: 11295.07945 | B42: 135969.2427 | C42: 12.03791823 | D42: 0.125 | E42: 0.5 | F42: 1 | G42: 1.5 | H42: 2.15

Sheet Diff (hidden)
A1: Variable 1 | B1: Variable 2 | C1: Diff
A2: 12091.4136 | B2: 115266 | C2: =(A2-B2)*100/A2 -> -853.2880424
A3: 12191.7082 | B3: 117370 | C3: =(A3-B3)*100/A3 -> -862.7034873
A4: 12398.8578 | B4: 123352 | C4: -894.8658335
A5: 12426.2922 | B5: 128928 | C5: -937.541995
A6: 12297.0722 | B6: 137244 | C6: -1016.070539
A7: 11785.06921 | B7: 142215.2636 | C7: -1106.741013
A8: 11916.99254 | B8: 143890.6024 | C8: -1107.440568
A9: 12043.78992 | B9: 145509.8901 | C9: -1108.173599
A10: 12165.33044 | B10: 143394.9572 | C10: -1078.718144
A11: 12281.50751 | B11: 141146.3477 | C11: -1049.259141
A12: 12381.24856 | B12: 142394.9569 | C12: -1050.085601
A13: 12474.90841 | B13: 143580.2861 | C13: -1050.952627
A14: 12562.47894 | B14: 144702.4317 | C14: -1051.862084
A15: 12643.98301 | B15: 145761.8447 | C15: -1052.815886
A16: 12719.47434 | B16: 146759.3297 | C16: -1053.815997
A17: 12771.14118 | B17: 147495.3529 | C17: -1054.911302
A18: 12816.24801 | B18: 148163.7366 | C18: -1056.061715
A19: 12854.98558 | B19: 148766.8462 | C19: -1057.269647
A20: 12887.57492 | B20: 149307.3955 | C20: -1058.537556
A21: 12914.26464 | B21: 149788.4164 | C21: -1059.867949
A22: 12935.3278 | B22: 150213.2245 | C22: -1061.263377
A23: 12942.60459 | B23: 150449.3669 | C23: -1062.435009
A24: 12946.56267 | B24: 150652.917 | C24: -1063.651858
A25: 12947.37279 | B25: 150825.9294 | C25: -1064.915321
A26: 12820.53706 | B26: 149572.3661 | C26: -1066.66225
A27: 12789.30761 | B27: 149396.0324 | C27: -1068.132294
A28: 12755.1335 | B28: 149191.8836 | C28: -1069.661482
A29: 12718.24154 | B29: 148962.6204 | C29: -1071.251701
A30: 12678.85512 | B30: 148710.9097 | C30: -1072.904874
A31: 12498.29762 | B31: 146881.7162 | C31: -1075.213782
A32: 12404.51512 | B32: 146031.5312 | C32: -1077.244977
A33: 12308.45856 | B33: 145161.8839 | C33: -1079.366882
A34: 12210.404 | B34: 144276.0523 | C34: -1081.582954
A35: 12110.60897 | B35: 143377.1118 | C35: -1083.896798
A36: 12009.31127 | B36: 142467.9224 | C36: -1086.31218
A37: 11893.45093 | B37: 141402.2194 | C37: -1088.908251
A38: 11776.43693 | B38: 140330.5846 | C38: -1091.621757
A39: 11658.46115 | B39: 139255.3805 | C39: -1094.457645
A40: 11539.69256 | B40: 138178.719 | C40: -1097.421146
A41: 11420.27811 | B41: 137102.4713 | C41: -1100.517798
A42: 11295.07945 | B42: 135969.2427 | C42: -1103.791823

Sheet All TNC Plots (hidden)
B1: Nett Passenger Mobility (PAX km) | C1: Passenger Mobility for All Gasoline Vehicles (PAX km) | D1: Passenger Mobility for All Diesel Vehicles (PAX km) | E1: Passenger Mobility for All LPG Vehicles (PAX km) | F1: Passenger Mobility for Autocycles (PAX km) | G1: Passenger Mobility for Motorcycles (PAX km) | H1: Passenger Mobility for Petrol Cars (PAX km) | I1: Passenger Mobility for Petrol DPVs (PAX km) | J1: Passenger Mobility for Hybrid Cars (PAX km) | K1: Passenger Mobility for Diesel Cars (PAX km) | L1: Passenger Mobility for Diesel DPVs (PAX km) | M1: Passenger Mobility for Buses (PAX km) | N1: Passenger Mobility for LPG Cars (PAX- km) | O1: Passenger Mobility for LPG DPVs (PAX km) | P1: Fuel Consumption for Autocycles (tonne) | Q1: Fuel Consumption for Petrol Cars (tonne) | R1: Fuel Consumption for Motorcycles (tonne) | S1: Fuel Consumption for Petrol DPVs (tonne) | T1: Fuel Consumption for Hybrid Cars (tonne) | U1: Fuel Consumption for Petrol Good Vehicles (tonne) | V1: Fuel Consumption for All Petrol Vehicles (tonne) | W1: Fuel Consumption for Diesel Cars (tonne) | X1: Fuel Consumption for Diesel DPVs (tonne) | Y1: Fuel Consumption for Buses (tonne) | Z1: Fuel Consumption for Diesel Freights (tonne) | AA1: Fuel Consumption for All Diesel Vehicles (tonne) | AB1: Fuel Consumption for LPG Cars (tonne) | AC1: Fuel Consumption for LPG DPVs (tonne) | AD1: Fuel Consumption- Residual (tonne) | AE1: Fuel Consumption for all LPG Vehicles (tonne) | AF1: 10X Fuel Consumption: LPG (total) (tonne) | AG1: Fuel Consumption for ALL Vehicles (tonne) | AH1: CO2 Emissions from Petrol Vehicles (Gg/year) | AI1: CH4 Emissions from Petrol Vehicles (Gg/year) | AJ1: N2O Emissions from Petrol Vehicles (Gg/year) | AK1: CO2 Emissions from Diesel Vehicles (Gg/year) | AL1: CH4 Emissions from Diesel Vehicles (Gg/year) | AM1: N2O Emissions from Diesel Vehicles (Gg/year) | AN1: CO2 Emissions from LPG Vehicles (Gg/year) | AO1: CH4 Emissions from LPG Vehicles (Gg/year) | AP1: N2O Emissions from LPG Vehicles (Gg/year) | AQ1: Total CO2 Emissions from Vehicles (Gg/year) | AR1: Total CH4 Emissions from Vehicles (Gg/year) | AS1: Total N2O Emissions from Vehicles (Gg/year) | AT1: Total GHG (CO2e) Emissions from Vehicles (Gg/year) | AU1: Total Gasoline Consumption after Fuel Intensity Improvements (tonne) | AV1: Total Diesel Consumption after Fuel Intensity Improvements (tonne) | AW1: Total LPG Consumption after Fuel Intensity Improvements (tonne) | AX1: Total Fuel Consumption after Fuel Intensity Improvements (tonne) | AY1: CO2 Emissions from Petrol Vehicles after Fuel Intensity Improvements (Gg/year) | AZ1: CH4 Emissions from Petrol Vehicles after Fuel Intensity Improvements (Gg/year) | BA1: N2O Emissions from Petrol Vehicles after Fuel Intensity Improvements (Gg/year) | BB1: CO2 Emissions from Diesel Vehicles after Fuel Intensity Improvements (Gg/year) | BC1: CH4 Emissions from Diesel Vehicles after Fuel Intensity Improvements (Gg/year) | BD1: N2O Emissions from Diesel Vehicles after Fuel Intensity Improvements (Gg/year) | BE1: CO2 Emissions from LPG Vehicles after Fuel Intensity Improvements (Gg/year) | BF1: CH4 Emissions from LPG Vehicles after Fuel Intensity Improvements (Gg/year) | BG1: N2O Emissions from LPG Vehicles after Fuel Intensity Improvements (Gg/year) | BH1: Total CO2 Emissions from Vehicles after Fuel Intensity Improvements (Gg/year) | BI1: Total CH4 Emissions from Vehicles after Fuel Intensity Improvements (Gg/year) | BJ1: Total N2O Emissions from Vehicles after Fuel Intensity Improvements (Gg/year) | BK1: Total GHG (CO2e) Emissions from Vehicles after Fuel Intensity Improvements (Gg/year) | BL1: Total Gasoline Consumption after Improvements in Vehicle Maintenance (tonne) | BM1: Total Diesel Consumption after Improvements in Vehicle Maintenance (tonne) | BN1: Total LG Consumption after Improvements in Vehicle Maintenance (tonne) | BO1: Total Fuel Consumption after Improvements in Vehicle Maintenance (tonne) | BP1: CO2 Emissions from Petrol Vehicles after Improvements in Vehicle Maintenance (Gg/year) | BQ1: CH4 Emissions from Petrol Vehicles after Improvements in Vehicle Maintenance (Gg/year) | BR1: N2O Emissions from Petrol Vehicles after Improvements in Vehicle Maintenance (Gg/year) | BS1: CO2 Emissions from Diesel Vehicles after Improvements in Vehicle Maintenance (Gg/year) | BT1: CH4 Emissions from Diesel Vehicles after Improvements in Vehicle Maintenance (Gg/year) | BU1: N2O Emissions from Diesel Vehicles after Improvements in Vehicle Maintenance (Gg/year) | BV1: CO2 Emissions from LPG Vehicles after Improvements in Vehicle Maintenance (Gg/year) | BW1: CH4 Emissions from LPG Vehicles after Improvements in Vehicle Maintenance (Gg/year) | BX1: N2O Emissions from LPG Vehicles after Improvements in Vehicle Maintenance (Gg/year) | BY1: Total CO2 Emissions from Vehicles after Improvements in Vehicle Maintenance (Gg/year) | BZ1: Total CH4 Emissions from Vehicles after Improvements in Vehicle Maintenance (Gg/year) | CA1: Total N2O Emissions from Vehicles after Improvements in Vehicle Maintenance (Gg/year) | CB1: Total GHG (CO2e) Emissions from Vehicles after Improvements in Vehicle Maintenance (Gg/year) | CC1: Passenger Mobility for Autocycles with H/E Vs substitutes (PAX km) | CD1: Passenger Mobility for Motorcycles with H/E Vs substitutes (PAX km) | CE1: Passenger Mobility for Petrol Cars with H/E Vs substitutes (PAX km) | CF1: Passenger Mobility for Petrol DPVs with H/E Vs substitutes (PAX km) | CG1: Passenger Mobility for Hybrid Vs with H/E Vs substitutes (PAX km) | CH1: Passenger Mobility for Electric Vs with H/E Vs substitutes (PAX km) | CI1: Fuel Consumption for Autocycles with H/E Vs substitutes (tonne) | CJ1: Fuel Consumption for Motorcycles with H/E Vs substitutes (tonne) | CK1: Fuel Consumption for Petrol Cars with H/E Vs substitutes (tonne) | CL1: Fuel Consumption for DPVs with H/E Vs substitutes (tonne) | CM1: Fuel Consumption for Hybrid Cars with H/E Vs substitutes (tonne) | CN1: Fuel Consumption for Goods Vehicles with H/E Vs substitutes (tonne) | CO1: Total Gasoline Consumption with H/E Vs substitutes (tonne) | CP1: Total Diesel Consumption with H/E Vs substitutes (tonne) | CQ1: Total LPG Consumption with H/E Vs substitutes (tonne) | CR1: Total Fuel Consumption with H/E Vs substitutes (tonne) | CS1: Total Gasoline Consumption with H/E Vs substitutes (tonne) | CT1: Ethanol Consumption (Gasoline Equivalence) (tonne) | CU1: Total Gasoline Consumption under low-carbon options (tonne) | CV1: Total Diesel Consumption under low-carbon options (tonne) | CW1: Total LPG Consumption under low-carbon options (tonne) | CX1: Total Fuel Consumption under low-carbon options (tonne) | CY1: CO2 Emissions from Petrol Vehicles under low-carbon options (Gg/year) | CZ1: CH4 Emissions from Petrol Vehicles under low-carbon options (Gg/year) | DA1: N2O Emissions from Petrol Vehicles under low-carbon options (Gg/year) | DB1: CO2 Emissions from Diesel Vehicles under low-carbon options (Gg/year) | DC1: CH4 Emissions from Diesel Vehicles under low-carbon options (Gg/year) | DD1: N2O Emissions from Diesel Vehicles under low-carbon options (Gg/year) | DE1: CO2 Emissions from LPG Vehicles under low-carbon options (Gg/year) | DF1: CH4 Emissions from LPG Vehicles under low-carbon options (Gg/year) | DG1: N2O Emissions from LPG Vehicles under low-carbon options (Gg/year) | DH1: Total CO2 Emissions from Vehicles under low-carbon options (Gg/year) | DI1: Total CH4 Emissions from Vehicles under low-carbon options (Gg/year) | DJ1: Total N2O Emissions from Vehicles under low-carbon options (Gg/year) | DK1: Total GHG (CO2e) Emissions from Vehicles under low-carbon options (Gg/year) | DL1: MLRT Car Passenger Mobility (PAX km) | DM1: Passenger Mobility for Autocycles with MLRT (PAX km) | DN1: Passenger Mobility for Motorcycles with MLRT (PAX km) | DO1: Passenger Mobility for Petrol Cars with MLRT (PAX km) | DP1: Passenger Mobility for Petrol DPVs with MLRT (PAX km) | DQ1: Passenger Mobility for Hybrids with MLRT (PAX km) | DR1: MLRT Bus Passenger Mobility (PAX km) | DS1: Passenger Mobility for Buses with MLRT (PAX km) | DT1: Passenger Mobility for Diesel Cars with MLRT (PAX km) | DU1: Passenger Mobility for Diesel DPVs with MLRT (PAX km) | DV1: Reduction in Passenger Mobility by Buses with MLRT (PAX km) | DW1: Passenger Mobility for LG Cars with MLRT (PAX km) | DX1: Passenger Mobility for LPG DPVs with MLRT (PAX km) | DY1: Fuel Consumption for Autocycles with MRLT (tonne) | DZ1: Fuel Consumption for Motorcycles with MRLT (tonne) | EA1: Fuel Consumption for Petrol Cars with MRLT (tonne) | EB1: Fuel Consumption for Petrol DPVs with MRLT (tonne) | EC1: Fuel Consumption for Hybrids with MRLT (tonne) | ED1: Fuel Consumption for Goods Vehicles with MRLT (tonne) | EE1: Total Gasoline Consumption for Petrol Vs with MRLT (tonne) | EF1: Fuel Consumption for Diesel Cars with MRLT (tonne) | EG1: Fuel Consumption for Diesel DPVs with MRLT (tonne) | EH1: Fuel Consumption for Diesel Buses with MRLT (tonne) | EI1: Fuel Consumption for Diesel Freights with MRLT (tonne) | EJ1: Total Fuel Consumption for Diesel Vehicles with MRLT (tonne) | EK1: Fuel Consumption for LPG Cars with MRLT (tonne) | EL1: Fuel Consumption for LPG DPVs with MRLT (tonne) | EM1: LPG Residual with MRLT (tonne) | EN1: Total Consumption for LPG Vehicles with MRLT (tonne) | EO1: 10 X Total Consumption for LPG Vehicles with MRLT (tonne) | EP1: Total Fuel Consumption for ALL Vehcicles with MRLT (tonne) | EQ1: CO2 Emissions from Petrol Vehicles with MLRT System (Gg/year) | ER1: CH4 Emissions from Petrol Vehicles with MLRT System (Gg/year) | ES1: N2O Emissions from Petrol Vehicles with MLRT System (Gg/year) | ET1: CO2 Emissions from Diesel Vehicles with MLRT System (Gg/year) | EU1: CH4 Emissions from Diesel Vehicles with MLRT System (Gg/year) | EV1: N2O Emissions from Diesel Vehicles with MLRT System (Gg/year) | EW1: CO2 Emissions from LPG Vehicles with MLRT System (Gg/year) | EX1: CH4 Emissions from LPG Vehicles with MLRT System (Gg/year) | EY1: N2O Emissions from LPG Vehicles with MLRT System (Gg/year) | EZ1: Total CO2 Emissions from Vehicles with MLRT System (Gg/year) | FA1: Total CH4 Emissions from Vehicles with MLRT System (Gg/year) | FB1: Total N2O Emissions from Vehicles with MLRT System (Gg/year) | FC1: Total GHG (CO2e) Emissions from Vehicles with MLRT System (Gg/year)
A2: TNC | B2: BAU | C2: BAU | D2: BAU | E2: BAU | F2: BAU | G2: BAU | H2: BAU | I2: BAU | J2: BAU | K2: BAU | L2: BAU | M2: BAU | N2: BAU | O2: BAU | P2: BAU | Q2: BAU | R2: BAU | S2: BAU | T2: BAU | U2: BAU | V2: BAU | W2: BAU | X2: BAU | Y2: BAU | Z2: BAU | AA2: BAU | AB2: BAU | AC2: BAU | AD2: BAU | AE2: BAU | AF2: BAU | AG2: BAU | AH2: BAU | AI2: BAU | AJ2: BAU | AK2: BAU | AL2: BAU | AM2: BAU | AN2: BAU | AO2: BAU | AP2: BAU | AQ2: BAU | AR2: BAU | AS2: BAU | AT2: BAU | AU2: SC1 | AV2: SC1 | AW2: SC1 | AX2: SC1 | AY2: SC1 | AZ2: SC1 | BA2: SC1 | BB2: SC1 | BC2: SC1 | BD2: SC1 | BE2: SC1 | BF2: SC1 | BG2: SC1 | BH2: SC1 | BI2: SC1 | BJ2: SC1 | BK2: SC1 | BL2: SC2 | BM2: SC2 | BN2: SC2 | BO2: SC2 | BP2: SC2 | BQ2: SC2 | BR2: SC2 | BS2: SC2 | BT2: SC2 | BU2: SC2 | BV2: SC2 | BW2: SC2 | BX2: SC2 | BY2: SC2 | BZ2: SC2 | CA2: SC2 | CB2: SC2 | CC2: SC3 | CD2: SC3 | CE2: SC3 | CF2: SC3 | CG2: SC3 | CH2: SC3 | CI2: SC3 | CJ2: SC3 | CK2: SC3 | CL2: SC3 | CM2: SC3 | CN2: SC3 | CO2: SC3 | CP2: SC3 | CQ2: SC3 | CR2: SC3 | CS2: SC3 | CT2: SC3 | CU2: SC3 | CV2: SC3 | CW2: SC3 | CX2: SC3 | CY2: SC3 | CZ2: SC3 | DA2: SC3 | DB2: SC3 | DC2: SC3 | DD2: SC3 | DE2: SC3 | DF2: SC3 | DG2: SC3 | DH2: SC3 | DI2: SC3 | DJ2: SC3 | DK2: SC3 | DL2: SC4 | DM2: SC4 | DN2: SC4 | DO2: SC4 | DP2: SC4 | DQ2: SC4 | DR2: SC4 | DS2: SC4 | DT2: SC4 | DU2: SC4 | DV2: SC4 | DW2: SC4 | DX2: SC4 | DY2: SC4 | DZ2: SC4 | EA2: SC4 | EB2: SC4 | EC2: SC4 | ED2: SC4 | EE2: SC4 | EF2: SC4 | EG2: SC4 | EH2: SC4 | EI2: SC4 | EJ2: SC4 | EK2: SC4 | EL2: SC4 | EM2: SC4 | EN2: SC4 | EO2: SC4 | EP2: SC4 | EQ2: SC4 | ER2: SC4 | ES2: SC4 | ET2: SC4 | EU2: SC4 | EV2: SC4 | EW2: SC4 | EX2: SC4 | EY2: SC4 | EZ2: SC4 | FA2: SC4 | FB2: SC4 | FC2: SC4
B3: 1 | C3: 2 | D3: 3 | E3: 4 | F3: 5 | G3: 6 | H3: 7 | I3: 8 | J3: 9 | K3: 10 | L3: 11 | M3: 12 | N3: 13 | O3: 14 | P3: 15 | Q3: 16 | R3: 17 | S3: 18 | T3: 19 | U3: 20 | V3: 21 | W3: 22 | X3: 23 | Y3: 24 | Z3: 25 | AA3: 26 | AB3: 27 | AC3: 28 | AD3: 29 | AE3: 30 | AF3: 31 | AG3: 32 | AH3: 33 | AI3: 34 | AJ3: 35 | AK3: 36 | AL3: 37 | AM3: 38 | AN3: 39 | AO3: 40 | AP3: 41 | AQ3: 42 | AR3: 43 | AS3: 44 | AT3: 45 | AU3: 46 | AV3: 47 | AW3: 48 | AX3: 49 | AY3: 50 | AZ3: 51 | BA3: 52 | BB3: 53 | BC3: 54 | BD3: 55 | BE3: 56 | BF3: 57 | BG3: 58 | BH3: 59 | BI3: 60 | BJ3: 61 | BK3: 62 | BL3: 63 | BM3: 64 | BN3: 65 | BO3: 66 | BP3: 67 | BQ3: 68 | BR3: 69 | BS3: 70 | BT3: 71 | BU3: 72 | BV3: 73 | BW3: 74 | BX3: 75 | BY3: 76 | BZ3: 77 | CA3: 78 | CB3: 79 | CC3: 80 | CD3: 81 | CE3: 82 | CF3: 83 | CG3: 84 | CH3: 85 | CI3: 86 | CJ3: 87 | CK3: 88 | CL3: 89 | CM3: 90 | CN3: 91 | CO3: 92 | CP3: 93 | CQ3: 94 | CR3: 95 | CS3: 96 | CT3: 97 | CU3: 98 | CV3: 99 | CW3: 100 | CX3: 101 | CY3: 102 | CZ3: 103 | DA3: 104 | DB3: 105 | DC3: 106 | DD3: 107 | DE3: 108 | DF3: 109 | DG3: 110 | DH3: 111 | DI3: 112 | DJ3: 113 | DK3: 114 | DL3: 115 | DM3: 116 | DN3: 117 | DO3: 118 | DP3: 119 | DQ3: 120 | DR3: 121 | DS3: 122 | DT3: 123 | DU3: 124 | DV3: 125 | DW3: 126 | DX3: 127 | DY3: 128 | DZ3: 129 | EA3: 130 | EB3: 131 | EC3: 132 | ED3: 133 | EE3: 134 | EF3: 135 | EG3: 136 | EH3: 137 | EI3: 138 | EJ3: 139 | EK3: 140 | EL3: 141 | EM3: 142 | EN3: 143 | EO3: 144 | EP3: 145 | EQ3: 146 | ER3: 147 | ES3: 148 | ET3: 149 | EU3: 150 | EV3: 151 | EW3: 152 | EX3: 153 | EY3: 154 | EZ3: 155 | FA3: 156 | FB3: 157 | FC3: 158
A4: ='UD1 BAU'!A7 -> 2010 | B4: ='TNC BAU'!B7 -> 9991295818 | C4: ='TNC BAU'!C7 -> 5488254976 | D4: ='TNC BAU'!D7 -> 4497567257 | E4: ='TNC BAU'!E7 -> 5473585.68 | F4: ='TNC BAU'!H7 -> 620791531.8 | G4: ='TNC BAU'!I7 -> 404181585.1 | H4: ='TNC BAU'!J7 -> 4269165877 | I4: ='TNC BAU'!K7 -> 138433217.6 | J4: ='TNC BAU'!L7 -> 55682764.02 | K4: ='TNC BAU'!O7 -> 380333371.2 | L4: ='TNC BAU'!P7 -> 548582618.8 | M4: ='TNC BAU'!Q7 -> 3568651267 | N4: ='TNC BAU'!T7 -> 5173346.803 | O4: ='TNC BAU'!U7 -> 300238.8769 | P4: ='TNC BAU'!AC7 -> 12091.4136 | Q4: ='TNC BAU'!AD7 -> 82186.9659 | R4: ='TNC BAU'!AE7 -> 5859.74928 | S4: ='TNC BAU'!AF7 -> 7038.025875 | T4: ='TNC BAU'!AG7 -> 61.7274 | U4: ='TNC BAU'!AH7 -> 8028.117945 | V4: ='TNC BAU'!AI7 -> 115266 | W4: ='TNC BAU'!AJ7 -> 10442.25 | X4: ='TNC BAU'!AK7 -> 28080.7938 | Y4: ='TNC BAU'!AL7 -> 27843.7305 | Z4: ='TNC BAU'!AM7 -> 77109.41023 | AA4: ='TNC BAU'!AN7 -> 143476.1845 | AB4: ='TNC BAU'!AO7 -> 128.73384 | AC4: ='TNC BAU'!AP7 -> 12.722994 | AD4: ='TNC BAU'!AQ7 -> 4499.543166 | AE4: ='TNC BAU'!AR7 -> 4641 | AF4: ='TNC BAU'!AS7 -> 46410 | AG4: ='TNC BAU'!AU7 -> 263383.1845 | AH4: ='TNC BAU'!AY7 -> 357.8594342 | AI4: ='TNC BAU'!AZ7 -> 0.1704092544 | AJ4: ='TNC BAU'!BA7 -> 0.01652453376 | AK4: ='TNC BAU'!BB7 -> 460.3476424 | AL4: ='TNC BAU'!BC7 -> 0.02422882328 | AM4: ='TNC BAU'!BD7 -> 0.02422882328 | AN4: ='TNC BAU'!BE7 -> 15.28661862 | AO4: ='TNC BAU'!BF7 -> 0.0150201324 | AP4: ='TNC BAU'!BG7 -> 4.845204e-05 | AQ4: ='TNC BAU'!BI7 -> 833.4936952 | AR4: ='TNC BAU'!BJ7 -> 0.2096582101 | AS4: ='TNC BAU'!BK7 -> 0.04080180908 | AT4: ='TNC BAU'!BL7 -> 850.8940896 | AU4: ='TNC Sc2'!A8 -> 115266 | AV4: ='TNC Sc1'!B10 -> 143476.1845 | AW4: ='TNC Sc1'!C10 -> 4641 | AX4: ='TNC Sc1'!D10 -> 263383.1845 | AY4: ='TNC Sc1'!G10 -> 357.8594342 | AZ4: ='TNC Sc1'!H10 -> 0.1704092544 | BA4: ='TNC Sc1'!I10 -> 0.01652453376 | BB4: ='TNC Sc1'!J10 -> 460.3476424 | BC4: ='TNC Sc1'!K10 -> 0.02422882328 | BD4: ='TNC Sc1'!L10 -> 0.02422882328 | BE4: ='TNC Sc1'!M10 -> 15.28661862 | BF4: ='TNC Sc1'!N10 -> 0.0150201324 | BG4: ='TNC Sc1'!O10 -> 4.845204e-05 | BH4: ='TNC Sc1'!Q10 -> 833.4936952 | BI4: ='TNC Sc1'!R10 -> 0.2096582101 | BJ4: ='TNC Sc1'!S10 -> 0.04080180908 | BK4: ='TNC Sc1'!T10 -> 850.8940896 | BL4: ='TNC Sc2'!A8 -> 115266 | BM4: ='TNC Sc2'!B8 -> 143476.1845 | BN4: ='TNC Sc2'!C8 -> 4641 | BO4: ='TNC Sc2'!D8 -> 263383.1845 | BP4: ='TNC Sc2'!G8 -> 357.8594342 | BQ4: ='TNC Sc2'!H8 -> 0.1704092544 | BR4: ='TNC Sc2'!I8 -> 0.01652453376 | BS4: ='TNC Sc2'!J8 -> 460.3476424 | BT4: ='TNC Sc2'!K8 -> 0.02422882328 | BU4: ='TNC Sc2'!L8 -> 0.02422882328 | BV4: ='TNC Sc2'!M8 -> 15.28661862 | BW4: ='TNC Sc2'!N8 -> 0.0150201324 | BX4: ='TNC Sc2'!O8 -> 4.845204e-05 | BY4: ='TNC Sc2'!Q8 -> 833.4936952 | BZ4: ='TNC Sc2'!R8 -> 0.2096582101 | CA4: ='TNC Sc2'!S8 -> 0.04080180908 | CB4: ='TNC Sc2'!T8 -> 850.8940896 | CC4: ='TNC Sc3'!B9 -> 620791531.8 | CD4: ='TNC Sc3'!C9 -> 404181585.1 | CE4: ='TNC Sc3'!D9 -> 4269165877 | CF4: ='TNC Sc3'!E9 -> 138433217.6 | CG4: ='TNC Sc3'!F9 -> 55682764.02 | CH4: ='TNC Sc3'!G9 -> 0 | CI4: ='TNC Sc3'!K9 -> 12091.4136 | CJ4: ='TNC Sc3'!L9 -> 5859.74928 | CK4: ='TNC Sc3'!M9 -> 82186.9659 | CL4: ='TNC Sc3'!N9 -> 7038.025875 | CM4: ='TNC Sc3'!O9 -> 61.7274 | CN4: ='TNC Sc3'!P9 -> 8028.117945 | CO4: ='TNC Sc3'!Q9 -> 115266 | CP4: ='TNC Sc3'!S9 -> 143476.1845 | CQ4: ='TNC Sc3'!T9 -> 4641 | CR4: ='TNC Sc3'!V9 -> 263383.1845 | CS4: ='TNC Sc3'!Z9 -> 115266 | CT4: ='TNC Sc3'!AA9 -> 0 | CU4: ='TNC Sc3'!AB9 -> 115266 | CV4: ='TNC Sc3'!AC9 -> 143476.1845 | CW4: ='TNC Sc3'!AD9 -> 4641 | CX4: ='TNC Sc3'!AE9 -> 263383.1845 | CY4: ='TNC Sc3'!AI9 -> 357.8594342 | CZ4: ='TNC Sc3'!AJ9 -> 0.1704092544 | DA4: ='TNC Sc3'!AK9 -> 0.01652453376 | DB4: ='TNC Sc3'!AL9 -> 460.3476424 | DC4: ='TNC Sc3'!AM9 -> 0.02422882328 | DD4: ='TNC Sc3'!AN9 -> 0.02422882328 | DE4: ='TNC Sc3'!AO9 -> 15.28661862 | DF4: ='TNC Sc3'!AP9 -> 0.0150201324 | DG4: ='TNC Sc3'!AQ9 -> 4.845204e-05 | DH4: ='TNC Sc3'!AS9 -> 833.4936952 | DI4: ='TNC Sc3'!AT9 -> 0.2096582101 | DJ4: ='TNC Sc3'!AU9 -> 0.04080180908 | DK4: ='TNC Sc3'!AV9 -> 850.8940896 | DL4: ='TNC Sc4'!B5 -> 0 | DM4: ='TNC Sc4'!C5 -> 620791531.8 | DN4: ='TNC Sc4'!D5 -> 404181585.1 | DO4: ='TNC Sc4'!E5 -> 4269165877 | DP4: ='TNC Sc4'!F5 -> 138433217.6 | DQ4: ='TNC Sc4'!G5 -> 55682764.02 | DR4: ='TNC Sc4'!I5 -> 0 | DS4: ='TNC Sc4'!J5 -> 3568651267 | DT4: ='TNC Sc4'!K5 -> 380333371.2 | DU4: ='TNC Sc4'!L5 -> 548582618.8 | DV4: ='TNC Sc4'!M5 -> 3568651267 | DW4: ='TNC Sc4'!P5 -> 5173346.803 | DX4: ='TNC Sc4'!Q5 -> 300238.8769 | DY4: ='TNC Sc4'!V5 -> 12091.4136 | DZ4: ='TNC Sc4'!W5 -> 5859.74928 | EA4: ='TNC Sc4'!X5 -> 82186.9659 | EB4: ='TNC Sc4'!Y5 -> 7038.025875 | EC4: ='TNC Sc4'!Z5 -> 61.7274 | ED4: ='TNC Sc4'!AA5 -> 8028.117945 | EE4: ='TNC Sc4'!AB5 -> 115266 | EF4: ='TNC Sc4'!AC5 -> 10442.25 | EG4: ='TNC Sc4'!AD5 -> 28080.7938 | EH4: ='TNC Sc4'!AE5 -> 27843.7305 | EI4: ='TNC Sc4'!AF5 -> 77109.41023 | EJ4: ='TNC Sc4'!AG5 -> 143476.1845 | EK4: ='TNC Sc4'!AI5 -> 128.73384 | EL4: ='TNC Sc4'!AJ5 -> 12.722994 | EM4: ='TNC Sc4'!AK5 -> 4499.543166 | EN4: ='TNC Sc4'!AL5 -> 4641 | EO4: ='TNC Sc4'!AM5 -> 46410 | EP4: ='TNC Sc4'!AO5 -> 263383.1845 | EQ4: ='TNC Sc4'!AT5 -> 357.8594342 | ER4: ='TNC Sc4'!AU5 -> 0.1704092544 | ES4: ='TNC Sc4'!AV5 -> 0.01652453376 | ET4: ='TNC Sc4'!AW5 -> 460.3476424 | EU4: ='TNC Sc4'!AX5 -> 0.02422882328 | EV4: ='TNC Sc4'!AY5 -> 0.02422882328 | EW4: ='TNC Sc4'!AZ5 -> 15.28661862 | EX4: ='TNC Sc4'!BA5 -> 0.0150201324 | EY4: ='TNC Sc4'!BB5 -> 4.845204e-05 | EZ4: ='TNC Sc4'!BD5 -> 833.4936952 | FA4: ='TNC Sc4'!BE5 -> 0.2096582101 | FB4: ='TNC Sc4'!BF5 -> 0.04080180908 | FC4: ='TNC Sc4'!BG5 -> 850.8940896
A5: ='UD1 BAU'!A8 -> 2011 | B5: ='TNC BAU'!B8 -> 1.013546572e+10 | C5: ='TNC BAU'!C8 -> 5567448022 | D5: ='TNC BAU'!D8 -> 4562465126 | E5: ='TNC BAU'!E8 -> 5552567.055 | F5: ='TNC BAU'!H8 -> 629749273.9 | G5: ='TNC BAU'!I8 -> 410013743.3 | H5: ='TNC BAU'!J8 -> 4330768017 | I5: ='TNC BAU'!K8 -> 140430746.5 | J5: ='TNC BAU'!L8 -> 56486241.22 | K5: ='TNC BAU'!O8 -> 385821410.4 | L5: ='TNC BAU'!P8 -> 556498418.8 | M5: ='TNC BAU'!Q8 -> 3620145297 | N5: ='TNC BAU'!T8 -> 5247995.866 | O5: ='TNC BAU'!U8 -> 304571.1887 | P5: ='TNC BAU'!AC8 -> 12191.7082 | Q5: ='TNC BAU'!AD8 -> 86827.2561 | R5: ='TNC BAU'!AE8 -> 6461.63616 | S5: ='TNC BAU'!AF8 -> 6837.411825 | T5: ='TNC BAU'!AG8 -> 120.771 | U5: ='TNC BAU'!AH8 -> 4931.216715 | V5: ='TNC BAU'!AI8 -> 117370 | W5: ='TNC BAU'!AJ8 -> 11001.312 | X5: ='TNC BAU'!AK8 -> 29255.58135 | Y5: ='TNC BAU'!AL8 -> 28499.4528 | Z5: ='TNC BAU'!AM8 -> 80074.81516 | AA5: ='TNC BAU'!AN8 -> 148831.1613 | AB5: ='TNC BAU'!AO8 -> 131.14008 | AC5: ='TNC BAU'!AP8 -> 12.722994 | AD5: ='TNC BAU'!AQ8 -> 4358.136926 | AE5: ='TNC BAU'!AR8 -> 4502 | AF5: ='TNC BAU'!AS8 -> 45020 | AG5: ='TNC BAU'!AU8 -> 270703.1613 | AH5: ='TNC BAU'!AY8 -> 364.3915968 | AI5: ='TNC BAU'!AZ8 -> 0.173519808 | AJ5: ='TNC BAU'!BA8 -> 0.0168261632 | AK5: ='TNC BAU'!BB8 -> 477.529246 | AL5: ='TNC BAU'!BC8 -> 0.02513311821 | AM5: ='TNC BAU'!BD8 -> 0.02513311821 | AN5: ='TNC BAU'!BE8 -> 14.82877764 | AO5: ='TNC BAU'!BF8 -> 0.0145702728 | AP5: ='TNC BAU'!BG8 -> 4.700088e-05 | AQ5: ='TNC BAU'!BI8 -> 856.7496204 | AR5: ='TNC BAU'!BJ8 -> 0.213223199 | AS5: ='TNC BAU'!BK8 -> 0.04200628229 | AT5: ='TNC BAU'!BL8 -> 874.5980725 | AU5: ='TNC Sc2'!A9 -> 117370 | AV5: ='TNC Sc1'!B11 -> 148831.1613 | AW5: ='TNC Sc1'!C11 -> 4502 | AX5: ='TNC Sc1'!D11 -> 270703.1613 | AY5: ='TNC Sc1'!G11 -> 364.3915968 | AZ5: ='TNC Sc1'!H11 -> 0.173519808 | BA5: ='TNC Sc1'!I11 -> 0.0168261632 | BB5: ='TNC Sc1'!J11 -> 477.529246 | BC5: ='TNC Sc1'!K11 -> 0.02513311821 | BD5: ='TNC Sc1'!L11 -> 0.02513311821 | BE5: ='TNC Sc1'!M11 -> 14.82877764 | BF5: ='TNC Sc1'!N11 -> 0.0145702728 | BG5: ='TNC Sc1'!O11 -> 4.700088e-05 | BH5: ='TNC Sc1'!Q11 -> 856.7496204 | BI5: ='TNC Sc1'!R11 -> 0.213223199 | BJ5: ='TNC Sc1'!S11 -> 0.04200628229 | BK5: ='TNC Sc1'!T11 -> 874.5980725 | BL5: ='TNC Sc2'!A9 -> 117370 | BM5: ='TNC Sc2'!B9 -> 148831.1613 | BN5: ='TNC Sc2'!C9 -> 4502 | BO5: ='TNC Sc2'!D9 -> 270703.1613 | BP5: ='TNC Sc2'!G9 -> 364.3915968 | BQ5: ='TNC Sc2'!H9 -> 0.173519808 | BR5: ='TNC Sc2'!I9 -> 0.0168261632 | BS5: ='TNC Sc2'!J9 -> 477.529246 | BT5: ='TNC Sc2'!K9 -> 0.02513311821 | BU5: ='TNC Sc2'!L9 -> 0.02513311821 | BV5: ='TNC Sc2'!M9 -> 14.82877764 | BW5: ='TNC Sc2'!N9 -> 0.0145702728 | BX5: ='TNC Sc2'!O9 -> 4.700088e-05 | BY5: ='TNC Sc2'!Q9 -> 856.7496204 | BZ5: ='TNC Sc2'!R9 -> 0.213223199 | CA5: ='TNC Sc2'!S9 -> 0.04200628229 | CB5: ='TNC Sc2'!T9 -> 874.5980725 | CC5: ='TNC Sc3'!B10 -> 629749273.9 | CD5: ='TNC Sc3'!C10 -> 410013743.3 | CE5: ='TNC Sc3'!D10 -> 4330768017 | CF5: ='TNC Sc3'!E10 -> 140430746.5 | CG5: ='TNC Sc3'!F10 -> 56486241.22 | CH5: ='TNC Sc3'!G10 -> 0 | CI5: ='TNC Sc3'!K10 -> 12191.7082 | CJ5: ='TNC Sc3'!L10 -> 6461.63616 | CK5: ='TNC Sc3'!M10 -> 86827.2561 | CL5: ='TNC Sc3'!N10 -> 6837.411825 | CM5: ='TNC Sc3'!O10 -> 120.771 | CN5: ='TNC Sc3'!P10 -> 4931.216715 | CO5: ='TNC Sc3'!Q10 -> 117370 | CP5: ='TNC Sc3'!S10 -> 148831.1613 | CQ5: ='TNC Sc3'!T10 -> 4502 | CR5: ='TNC Sc3'!V10 -> 270703.1613 | CS5: ='TNC Sc3'!Z10 -> 117370 | CT5: ='TNC Sc3'!AA10 -> 0 | CU5: ='TNC Sc3'!AB10 -> 117370 | CV5: ='TNC Sc3'!AC10 -> 148831.1613 | CW5: ='TNC Sc3'!AD10 -> 4502 | CX5: ='TNC Sc3'!AE10 -> 270703.1613 | CY5: ='TNC Sc3'!AI10 -> 364.3915968 | CZ5: ='TNC Sc3'!AJ10 -> 0.173519808 | DA5: ='TNC Sc3'!AK10 -> 0.0168261632 | DB5: ='TNC Sc3'!AL10 -> 477.529246 | DC5: ='TNC Sc3'!AM10 -> 0.02513311821 | DD5: ='TNC Sc3'!AN10 -> 0.02513311821 | DE5: ='TNC Sc3'!AO10 -> 14.82877764 | DF5: ='TNC Sc3'!AP10 -> 0.0145702728 | DG5: ='TNC Sc3'!AQ10 -> 4.700088e-05 | DH5: ='TNC Sc3'!AS10 -> 856.7496204 | DI5: ='TNC Sc3'!AT10 -> 0.213223199 | DJ5: ='TNC Sc3'!AU10 -> 0.04200628229 | DK5: ='TNC Sc3'!AV10 -> 874.5980725 | DL5: ='TNC Sc4'!B6 -> 0 | DM5: ='TNC Sc4'!C6 -> 629749273.9 | DN5: ='TNC Sc4'!D6 -> 410013743.3 | DO5: ='TNC Sc4'!E6 -> 4330768017 | DP5: ='TNC Sc4'!F6 -> 140430746.5 | DQ5: ='TNC Sc4'!G6 -> 56486241.22 | DR5: ='TNC Sc4'!I6 -> 0 | DS5: ='TNC Sc4'!J6 -> 3620145297 | DT5: ='TNC Sc4'!K6 -> 385821410.4 | DU5: ='TNC Sc4'!L6 -> 556498418.8 | DV5: ='TNC Sc4'!M6 -> 3620145297 | DW5: ='TNC Sc4'!P6 -> 5247995.866 | DX5: ='TNC Sc4'!Q6 -> 304571.1887 | DY5: ='TNC Sc4'!V6 -> 12191.7082 | DZ5: ='TNC Sc4'!W6 -> 6461.63616 | EA5: ='TNC Sc4'!X6 -> 86827.2561 | EB5: ='TNC Sc4'!Y6 -> 6837.411825 | EC5: ='TNC Sc4'!Z6 -> 120.771 | ED5: ='TNC Sc4'!AA6 -> 4931.216715 | EE5: ='TNC Sc4'!AB6 -> 117370 | EF5: ='TNC Sc4'!AC6 -> 11001.312 | EG5: ='TNC Sc4'!AD6 -> 29255.58135 | EH5: ='TNC Sc4'!AE6 -> 28499.4528 | EI5: ='TNC Sc4'!AF6 -> 80074.81516 | EJ5: ='TNC Sc4'!AG6 -> 148831.1613 | EK5: ='TNC Sc4'!AI6 -> 131.14008 | EL5: ='TNC Sc4'!AJ6 -> 12.722994 | EM5: ='TNC Sc4'!AK6 -> 4358.136926 | EN5: ='TNC Sc4'!AL6 -> 4502 | EO5: ='TNC Sc4'!AM6 -> 45020 | EP5: ='TNC Sc4'!AO6 -> 270703.1613 | EQ5: ='TNC Sc4'!AT6 -> 364.3915968 | ER5: ='TNC Sc4'!AU6 -> 0.173519808 | ES5: ='TNC Sc4'!AV6 -> 0.0168261632 | ET5: ='TNC Sc4'!AW6 -> 477.529246 | EU5: ='TNC Sc4'!AX6 -> 0.02513311821 | EV5: ='TNC Sc4'!AY6 -> 0.02513311821 | EW5: ='TNC Sc4'!AZ6 -> 14.82877764 | EX5: ='TNC Sc4'!BA6 -> 0.0145702728 | EY5: ='TNC Sc4'!BB6 -> 4.700088e-05 | EZ5: ='TNC Sc4'!BD6 -> 856.7496204 | FA5: ='TNC Sc4'!BE6 -> 0.213223199 | FB5: ='TNC Sc4'!BF6 -> 0.04200628229 | FC5: ='TNC Sc4'!BG6 -> 874.5980725
A6: ='UD1 BAU'!A9 -> 2012 | B6: ='TNC BAU'!B9 -> 1.028415531e+10 | C6: ='TNC BAU'!C9 -> 5649123755 | D6: ='TNC BAU'!D9 -> 4629397530 | E6: ='TNC BAU'!E9 -> 5634024.48 | F6: ='TNC BAU'!H9 -> 638987839.5 | G6: ='TNC BAU'!I9 -> 416028738.5 | H6: ='TNC BAU'!J9 -> 4394301372 | I6: ='TNC BAU'!K9 -> 142490897.6 | J6: ='TNC BAU'!L9 -> 57314907.27 | K6: ='TNC BAU'!O9 -> 391481498.5 | L6: ='TNC BAU'!P9 -> 564662377.6 | M6: ='TNC BAU'!Q9 -> 3673253654 | N6: ='TNC BAU'!T9 -> 5324985.163 | O6: ='TNC BAU'!U9 -> 309039.3175 | P6: ='TNC BAU'!AC9 -> 12398.8578 | Q6: ='TNC BAU'!AD9 -> 92660.01615 | R6: ='TNC BAU'!AE9 -> 7169.80152 | S6: ='TNC BAU'!AF9 -> 6926.6961 | T6: ='TNC BAU'!AG9 -> 269.5302 | U6: ='TNC BAU'!AH9 -> 3927.09823 | V6: ='TNC BAU'!AI9 -> 123352 | W6: ='TNC BAU'!AJ9 -> 11641.50225 | X6: ='TNC BAU'!AK9 -> 31271.91098 | Y6: ='TNC BAU'!AL9 -> 28939.8633 | Z6: ='TNC BAU'!AM9 -> 83151.82626 | AA6: ='TNC BAU'!AN9 -> 155005.1028 | AB6: ='TNC BAU'!AO9 -> 131.14008 | AC6: ='TNC BAU'!AP9 -> 12.722994 | AD6: ='TNC BAU'!AQ9 -> 4219.136926 | AE6: ='TNC BAU'!AR9 -> 4363 | AF6: ='TNC BAU'!AS9 -> 43630 | AG6: ='TNC BAU'!AU9 -> 282720.1028 | AH6: ='TNC BAU'!AY9 -> 382.9635533 | AI6: ='TNC BAU'!AZ9 -> 0.1823635968 | AJ6: ='TNC BAU'!BA9 -> 0.01768374272 | AK6: ='TNC BAU'!BB9 -> 497.3385224 | AL6: ='TNC BAU'!BC9 -> 0.02617571171 | AM6: ='TNC BAU'!BD9 -> 0.02617571171 | AN6: ='TNC BAU'!BE9 -> 14.37093666 | AO6: ='TNC BAU'!BF9 -> 0.0141204132 | AP6: ='TNC BAU'!BG9 -> 4.554972e-05 | AQ6: ='TNC BAU'!BI9 -> 894.6730124 | AR6: ='TNC BAU'!BJ9 -> 0.2226597217 | AS6: ='TNC BAU'!BK9 -> 0.04390500415 | AT6: ='TNC BAU'!BL9 -> 913.3231966 | AU6: ='TNC Sc2'!A10 -> 123352 | AV6: ='TNC Sc1'!B12 -> 155005.1028 | AW6: ='TNC Sc1'!C12 -> 4363 | AX6: ='TNC Sc1'!D12 -> 282720.1028 | AY6: ='TNC Sc1'!G12 -> 382.9635533 | AZ6: ='TNC Sc1'!H12 -> 0.1823635968 | BA6: ='TNC Sc1'!I12 -> 0.01768374272 | BB6: ='TNC Sc1'!J12 -> 497.3385224 | BC6: ='TNC Sc1'!K12 -> 0.02617571171 | BD6: ='TNC Sc1'!L12 -> 0.02617571171 | BE6: ='TNC Sc1'!M12 -> 14.37093666 | BF6: ='TNC Sc1'!N12 -> 0.0141204132 | BG6: ='TNC Sc1'!O12 -> 4.554972e-05 | BH6: ='TNC Sc1'!Q12 -> 894.6730124 | BI6: ='TNC Sc1'!R12 -> 0.2226597217 | BJ6: ='TNC Sc1'!S12 -> 0.04390500415 | BK6: ='TNC Sc1'!T12 -> 913.3231966 | BL6: ='TNC Sc2'!A10 -> 123352 | BM6: ='TNC Sc2'!B10 -> 155005.1028 | BN6: ='TNC Sc2'!C10 -> 4363 | BO6: ='TNC Sc2'!D10 -> 282720.1028 | BP6: ='TNC Sc2'!G10 -> 382.9635533 | BQ6: ='TNC Sc2'!H10 -> 0.1823635968 | BR6: ='TNC Sc2'!I10 -> 0.01768374272 | BS6: ='TNC Sc2'!J10 -> 497.3385224 | BT6: ='TNC Sc2'!K10 -> 0.02617571171 | BU6: ='TNC Sc2'!L10 -> 0.02617571171 | BV6: ='TNC Sc2'!M10 -> 14.37093666 | BW6: ='TNC Sc2'!N10 -> 0.0141204132 | BX6: ='TNC Sc2'!O10 -> 4.554972e-05 | BY6: ='TNC Sc2'!Q10 -> 894.6730124 | BZ6: ='TNC Sc2'!R10 -> 0.2226597217 | CA6: ='TNC Sc2'!S10 -> 0.04390500415 | CB6: ='TNC Sc2'!T10 -> 913.3231966 | CC6: ='TNC Sc3'!B11 -> 638987839.5 | CD6: ='TNC Sc3'!C11 -> 416028738.5 | CE6: ='TNC Sc3'!D11 -> 4394301372 | CF6: ='TNC Sc3'!E11 -> 142490897.6 | CG6: ='TNC Sc3'!F11 -> 57314907.27 | CH6: ='TNC Sc3'!G11 -> 0 | CI6: ='TNC Sc3'!K11 -> 12398.8578 | CJ6: ='TNC Sc3'!L11 -> 7169.80152 | CK6: ='TNC Sc3'!M11 -> 92660.01615 | CL6: ='TNC Sc3'!N11 -> 6926.6961 | CM6: ='TNC Sc3'!O11 -> 269.5302 | CN6: ='TNC Sc3'!P11 -> 3927.09823 | CO6: ='TNC Sc3'!Q11 -> 123352 | CP6: ='TNC Sc3'!S11 -> 155005.1028 | CQ6: ='TNC Sc3'!T11 -> 4363 | CR6: ='TNC Sc3'!V11 -> 282720.1028 | CS6: ='TNC Sc3'!Z11 -> 123352 | CT6: ='TNC Sc3'!AA11 -> 0 | CU6: ='TNC Sc3'!AB11 -> 123352 | CV6: ='TNC Sc3'!AC11 -> 155005.1028 | CW6: ='TNC Sc3'!AD11 -> 4363 | CX6: ='TNC Sc3'!AE11 -> 282720.1028 | CY6: ='TNC Sc3'!AI11 -> 382.9635533 | CZ6: ='TNC Sc3'!AJ11 -> 0.1823635968 | DA6: ='TNC Sc3'!AK11 -> 0.01768374272 | DB6: ='TNC Sc3'!AL11 -> 497.3385224 | DC6: ='TNC Sc3'!AM11 -> 0.02617571171 | DD6: ='TNC Sc3'!AN11 -> 0.02617571171 | DE6: ='TNC Sc3'!AO11 -> 14.37093666 | DF6: ='TNC Sc3'!AP11 -> 0.0141204132 | DG6: ='TNC Sc3'!AQ11 -> 4.554972e-05 | DH6: ='TNC Sc3'!AS11 -> 894.6730124 | DI6: ='TNC Sc3'!AT11 -> 0.2226597217 | DJ6: ='TNC Sc3'!AU11 -> 0.04390500415 | DK6: ='TNC Sc3'!AV11 -> 913.3231966 | DL6: ='TNC Sc4'!B7 -> 0 | DM6: ='TNC Sc4'!C7 -> 638987839.5 | DN6: ='TNC Sc4'!D7 -> 416028738.5 | DO6: ='TNC Sc4'!E7 -> 4394301372 | DP6: ='TNC Sc4'!F7 -> 142490897.6 | DQ6: ='TNC Sc4'!G7 -> 57314907.27 | DR6: ='TNC Sc4'!I7 -> 0 | DS6: ='TNC Sc4'!J7 -> 3673253654 | DT6: ='TNC Sc4'!K7 -> 391481498.5 | DU6: ='TNC Sc4'!L7 -> 564662377.6 | DV6: ='TNC Sc4'!M7 -> 3673253654 | DW6: ='TNC Sc4'!P7 -> 5324985.163 | DX6: ='TNC Sc4'!Q7 -> 309039.3175 | DY6: ='TNC Sc4'!V7 -> 12398.8578 | DZ6: ='TNC Sc4'!W7 -> 7169.80152 | EA6: ='TNC Sc4'!X7 -> 92660.01615 | EB6: ='TNC Sc4'!Y7 -> 6926.6961 | EC6: ='TNC Sc4'!Z7 -> 269.5302 | ED6: ='TNC Sc4'!AA7 -> 3927.09823 | EE6: ='TNC Sc4'!AB7 -> 123352 | EF6: ='TNC Sc4'!AC7 -> 11641.50225 | EG6: ='TNC Sc4'!AD7 -> 31271.91098 | EH6: ='TNC Sc4'!AE7 -> 28939.8633 | EI6: ='TNC Sc4'!AF7 -> 83151.82626 | EJ6: ='TNC Sc4'!AG7 -> 155005.1028 | EK6: ='TNC Sc4'!AI7 -> 131.14008 | EL6: ='TNC Sc4'!AJ7 -> 12.722994 | EM6: ='TNC Sc4'!AK7 -> 4219.136926 | EN6: ='TNC Sc4'!AL7 -> 4363 | EO6: ='TNC Sc4'!AM7 -> 43630 | EP6: ='TNC Sc4'!AO7 -> 282720.1028 | EQ6: ='TNC Sc4'!AT7 -> 382.9635533 | ER6: ='TNC Sc4'!AU7 -> 0.1823635968 | ES6: ='TNC Sc4'!AV7 -> 0.01768374272 | ET6: ='TNC Sc4'!AW7 -> 497.3385224 | EU6: ='TNC Sc4'!AX7 -> 0.02617571171 | EV6: ='TNC Sc4'!AY7 -> 0.02617571171 | EW6: ='TNC Sc4'!AZ7 -> 14.37093666 | EX6: ='TNC Sc4'!BA7 -> 0.0141204132 | EY6: ='TNC Sc4'!BB7 -> 4.554972e-05 | EZ6: ='TNC Sc4'!BD7 -> 894.6730124 | FA6: ='TNC Sc4'!BE7 -> 0.2226597217 | FB6: ='TNC Sc4'!BF7 -> 0.04390500415 | FC6: ='TNC Sc4'!BG7 -> 913.3231966
A7: ='UD1 BAU'!A10 -> 2013 | B7: ='TNC BAU'!B10 -> 1.042598896e+10 | C7: ='TNC BAU'!C10 -> 5727033492 | D7: ='TNC BAU'!D10 -> 4693243740 | E7: ='TNC BAU'!E10 -> 5711725.976 | F7: ='TNC BAU'!H10 -> 647800422.9 | G7: ='TNC BAU'!I10 -> 421766387.5 | H7: ='TNC BAU'!J10 -> 4454905260 | I7: ='TNC BAU'!K10 -> 144456057 | J7: ='TNC BAU'!L10 -> 58105364.25 | K7: ='TNC BAU'!O10 -> 396880604.9 | L7: ='TNC BAU'!P10 -> 572449903.4 | M7: ='TNC BAU'!Q10 -> 3723913232 | N7: ='TNC BAU'!T10 -> 5398424.551 | O7: ='TNC BAU'!U10 -> 313301.4248 | P7: ='TNC BAU'!AC10 -> 12426.2922 | Q7: ='TNC BAU'!AD10 -> 99708.29797 | R7: ='TNC BAU'!AE10 -> 7947.74568 | S7: ='TNC BAU'!AF10 -> 6974.093925 | T7: ='TNC BAU'!AG10 -> 532.5426 | U7: ='TNC BAU'!AH10 -> 1339.02762 | V7: ='TNC BAU'!AI10 -> 128928 | W7: ='TNC BAU'!AJ10 -> 12162.00825 | X7: ='TNC BAU'!AK10 -> 31277.09768 | Y7: ='TNC BAU'!AL10 -> 28998.5847 | Z7: ='TNC BAU'!AM10 -> 86346.37361 | AA7: ='TNC BAU'!AN10 -> 158784.0642 | AB7: ='TNC BAU'!AO10 -> 131.14008 | AC7: ='TNC BAU'!AP10 -> 12.722994 | AD7: ='TNC BAU'!AQ10 -> 3924.136926 | AE7: ='TNC BAU'!AR10 -> 4068 | AF7: ='TNC BAU'!AS10 -> 40680 | AG7: ='TNC BAU'!AU10 -> 291780.0642 | AH7: ='TNC BAU'!AY10 -> 400.2750259 | AI7: ='TNC BAU'!AZ10 -> 0.1906071552 | AJ7: ='TNC BAU'!BA10 -> 0.01848311808 | AK7: ='TNC BAU'!BB10 -> 509.4634336 | AL7: ='TNC BAU'!BC10 -> 0.02681386493 | AM7: ='TNC BAU'!BD10 -> 0.02681386493 | AN7: ='TNC BAU'!BE10 -> 13.39925976 | AO7: ='TNC BAU'!BF10 -> 0.0131656752 | AP7: ='TNC BAU'!BG10 -> 4.246992e-05 | AQ7: ='TNC BAU'!BI10 -> 923.1377193 | AR7: ='TNC BAU'!BJ10 -> 0.2305866953 | AS7: ='TNC BAU'!BK10 -> 0.04533945293 | AT7: ='TNC BAU'!BL10 -> 942.4135437 | AU7: ='TNC Sc2'!A11 -> 128928 | AV7: ='TNC Sc1'!B13 -> 158784.0642 | AW7: ='TNC Sc1'!C13 -> 4068 | AX7: ='TNC Sc1'!D13 -> 291780.0642 | AY7: ='TNC Sc1'!G13 -> 400.2750259 | AZ7: ='TNC Sc1'!H13 -> 0.1906071552 | BA7: ='TNC Sc1'!I13 -> 0.01848311808 | BB7: ='TNC Sc1'!J13 -> 509.4634336 | BC7: ='TNC Sc1'!K13 -> 0.02681386493 | BD7: ='TNC Sc1'!L13 -> 0.02681386493 | BE7: ='TNC Sc1'!M13 -> 13.39925976 | BF7: ='TNC Sc1'!N13 -> 0.0131656752 | BG7: ='TNC Sc1'!O13 -> 4.246992e-05 | BH7: ='TNC Sc1'!Q13 -> 923.1377193 | BI7: ='TNC Sc1'!R13 -> 0.2305866953 | BJ7: ='TNC Sc1'!S13 -> 0.04533945293 | BK7: ='TNC Sc1'!T13 -> 942.4135437 | BL7: ='TNC Sc2'!A11 -> 128928 | BM7: ='TNC Sc2'!B11 -> 158784.0642 | BN7: ='TNC Sc2'!C11 -> 4068 | BO7: ='TNC Sc2'!D11 -> 291780.0642 | BP7: ='TNC Sc2'!G11 -> 400.2750259 | BQ7: ='TNC Sc2'!H11 -> 0.1906071552 | BR7: ='TNC Sc2'!I11 -> 0.01848311808 | BS7: ='TNC Sc2'!J11 -> 509.4634336 | BT7: ='TNC Sc2'!K11 -> 0.02681386493 | BU7: ='TNC Sc2'!L11 -> 0.02681386493 | BV7: ='TNC Sc2'!M11 -> 13.39925976 | BW7: ='TNC Sc2'!N11 -> 0.0131656752 | BX7: ='TNC Sc2'!O11 -> 4.246992e-05 | BY7: ='TNC Sc2'!Q11 -> 923.1377193 | BZ7: ='TNC Sc2'!R11 -> 0.2305866953 | CA7: ='TNC Sc2'!S11 -> 0.04533945293 | CB7: ='TNC Sc2'!T11 -> 942.4135437 | CC7: ='TNC Sc3'!B12 -> 647800422.9 | CD7: ='TNC Sc3'!C12 -> 421766387.5 | CE7: ='TNC Sc3'!D12 -> 4454905260 | CF7: ='TNC Sc3'!E12 -> 144456057 | CG7: ='TNC Sc3'!F12 -> 58105364.25 | CH7: ='TNC Sc3'!G12 -> 0 | CI7: ='TNC Sc3'!K12 -> 12426.2922 | CJ7: ='TNC Sc3'!L12 -> 7947.74568 | CK7: ='TNC Sc3'!M12 -> 99708.29797 | CL7: ='TNC Sc3'!N12 -> 6974.093925 | CM7: ='TNC Sc3'!O12 -> 532.5426 | CN7: ='TNC Sc3'!P12 -> 1339.02762 | CO7: ='TNC Sc3'!Q12 -> 128928 | CP7: ='TNC Sc3'!S12 -> 158784.0642 | CQ7: ='TNC Sc3'!T12 -> 4068 | CR7: ='TNC Sc3'!V12 -> 291780.0642 | CS7: ='TNC Sc3'!Z12 -> 128928 | CT7: ='TNC Sc3'!AA12 -> 0 | CU7: ='TNC Sc3'!AB12 -> 128928 | CV7: ='TNC Sc3'!AC12 -> 158784.0642 | CW7: ='TNC Sc3'!AD12 -> 4068 | CX7: ='TNC Sc3'!AE12 -> 291780.0642 | CY7: ='TNC Sc3'!AI12 -> 400.2750259 | CZ7: ='TNC Sc3'!AJ12 -> 0.1906071552 | DA7: ='TNC Sc3'!AK12 -> 0.01848311808 | DB7: ='TNC Sc3'!AL12 -> 509.4634336 | DC7: ='TNC Sc3'!AM12 -> 0.02681386493 | DD7: ='TNC Sc3'!AN12 -> 0.02681386493 | DE7: ='TNC Sc3'!AO12 -> 13.39925976 | DF7: ='TNC Sc3'!AP12 -> 0.0131656752 | DG7: ='TNC Sc3'!AQ12 -> 4.246992e-05 | DH7: ='TNC Sc3'!AS12 -> 923.1377193 | DI7: ='TNC Sc3'!AT12 -> 0.2305866953 | DJ7: ='TNC Sc3'!AU12 -> 0.04533945293 | DK7: ='TNC Sc3'!AV12 -> 942.4135437 | DL7: ='TNC Sc4'!B8 -> 0 | DM7: ='TNC Sc4'!C8 -> 647800422.9 | DN7: ='TNC Sc4'!D8 -> 421766387.5 | DO7: ='TNC Sc4'!E8 -> 4454905260 | DP7: ='TNC Sc4'!F8 -> 144456057 | DQ7: ='TNC Sc4'!G8 -> 58105364.25 | DR7: ='TNC Sc4'!I8 -> 0 | DS7: ='TNC Sc4'!J8 -> 3723913232 | DT7: ='TNC Sc4'!K8 -> 396880604.9 | DU7: ='TNC Sc4'!L8 -> 572449903.4 | DV7: ='TNC Sc4'!M8 -> 3723913232 | DW7: ='TNC Sc4'!P8 -> 5398424.551 | DX7: ='TNC Sc4'!Q8 -> 313301.4248 | DY7: ='TNC Sc4'!V8 -> 12426.2922 | DZ7: ='TNC Sc4'!W8 -> 7947.74568 | EA7: ='TNC Sc4'!X8 -> 99708.29797 | EB7: ='TNC Sc4'!Y8 -> 6974.093925 | EC7: ='TNC Sc4'!Z8 -> 532.5426 | ED7: ='TNC Sc4'!AA8 -> 1339.02762 | EE7: ='TNC Sc4'!AB8 -> 128928 | EF7: ='TNC Sc4'!AC8 -> 12162.00825 | EG7: ='TNC Sc4'!AD8 -> 31277.09768 | EH7: ='TNC Sc4'!AE8 -> 28998.5847 | EI7: ='TNC Sc4'!AF8 -> 86346.37361 | EJ7: ='TNC Sc4'!AG8 -> 158784.0642 | EK7: ='TNC Sc4'!AI8 -> 131.14008 | EL7: ='TNC Sc4'!AJ8 -> 12.722994 | EM7: ='TNC Sc4'!AK8 -> 3924.136926 | EN7: ='TNC Sc4'!AL8 -> 4068 | EO7: ='TNC Sc4'!AM8 -> 40680 | EP7: ='TNC Sc4'!AO8 -> 291780.0642 | EQ7: ='TNC Sc4'!AT8 -> 400.2750259 | ER7: ='TNC Sc4'!AU8 -> 0.1906071552 | ES7: ='TNC Sc4'!AV8 -> 0.01848311808 | ET7: ='TNC Sc4'!AW8 -> 509.4634336 | EU7: ='TNC Sc4'!AX8 -> 0.02681386493 | EV7: ='TNC Sc4'!AY8 -> 0.02681386493 | EW7: ='TNC Sc4'!AZ8 -> 13.39925976 | EX7: ='TNC Sc4'!BA8 -> 0.0131656752 | EY7: ='TNC Sc4'!BB8 -> 4.246992e-05 | EZ7: ='TNC Sc4'!BD8 -> 923.1377193 | FA7: ='TNC Sc4'!BE8 -> 0.2305866953 | FB7: ='TNC Sc4'!BF8 -> 0.04533945293 | FC7: ='TNC Sc4'!BG8 -> 942.4135437
A8: ='UD1 BAU'!A11 -> 2014 | B8: ='TNC BAU'!B11 -> 1.056174115e+10 | C8: ='TNC BAU'!C11 -> 5801602664 | D8: ='TNC BAU'!D11 -> 4754352393 | E8: ='TNC BAU'!E11 -> 5786095.836 | F8: ='TNC BAU'!H11 -> 656235145.9 | G8: ='TNC BAU'!I11 -> 427258021.3 | H8: ='TNC BAU'!J11 -> 4512910613 | I8: ='TNC BAU'!K11 -> 146336955.4 | J8: ='TNC BAU'!L11 -> 58861928.53 | K8: ='TNC BAU'!O11 -> 402048211.9 | L8: ='TNC BAU'!P11 -> 579903520.6 | M8: ='TNC BAU'!Q11 -> 3772400661 | N8: ='TNC BAU'!T11 -> 5468715.052 | O8: ='TNC BAU'!U11 -> 317380.7843 | P8: ='TNC BAU'!AC11 -> 12297.0722 | Q8: ='TNC BAU'!AD11 -> 107193.3203 | R8: ='TNC BAU'!AE11 -> 8836.38168 | S8: ='TNC BAU'!AF11 -> 6893.62785 | T8: ='TNC BAU'!AG11 -> 699.3216 | U8: ='TNC BAU'!AH11 -> 1324.276345 | V8: ='TNC BAU'!AI11 -> 137244 | W8: ='TNC BAU'!AJ11 -> 12703.39875 | X8: ='TNC BAU'!AK11 -> 31448.25877 | Y8: ='TNC BAU'!AL11 -> 29419.4214 | Z8: ='TNC BAU'!AM11 -> 89662.72607 | AA8: ='TNC BAU'!AN11 -> 163233.805 | AB8: ='TNC BAU'!AO11 -> 132.3432 | AC8: ='TNC BAU'!AP11 -> 13.7832435 | AD8: ='TNC BAU'!AQ11 -> 3597.873556 | AE8: ='TNC BAU'!AR11 -> 3744 | AF8: ='TNC BAU'!AS11 -> 37440 | AG8: ='TNC BAU'!AU11 -> 304221.805 | AH8: ='TNC BAU'!AY11 -> 426.0932122 | AI8: ='TNC BAU'!AZ11 -> 0.2029015296 | AJ8: ='TNC BAU'!BA11 -> 0.01967529984 | AK8: ='TNC BAU'!BB11 -> 523.7405603 | AL8: ='TNC BAU'!BC11 -> 0.02756529265 | AM8: ='TNC BAU'!BD11 -> 0.02756529265 | AN8: ='TNC BAU'!BE11 -> 12.33206208 | AO8: ='TNC BAU'!BF11 -> 0.0121170816 | AP8: ='TNC BAU'!BG11 -> 3.908736e-05 | AQ8: ='TNC BAU'!BI11 -> 962.1658346 | AR8: ='TNC BAU'!BJ11 -> 0.2425839038 | AS8: ='TNC BAU'!BK11 -> 0.04727967985 | AT8: ='TNC BAU'!BL11 -> 982.3197768 | AU8: ='TNC Sc2'!A12 -> 137244 | AV8: ='TNC Sc1'!B14 -> 163233.805 | AW8: ='TNC Sc1'!C14 -> 3744 | AX8: ='TNC Sc1'!D14 -> 304221.805 | AY8: ='TNC Sc1'!G14 -> 426.0932122 | AZ8: ='TNC Sc1'!H14 -> 0.2029015296 | BA8: ='TNC Sc1'!I14 -> 0.01967529984 | BB8: ='TNC Sc1'!J14 -> 523.7405603 | BC8: ='TNC Sc1'!K14 -> 0.02756529265 | BD8: ='TNC Sc1'!L14 -> 0.02756529265 | BE8: ='TNC Sc1'!M14 -> 12.33206208 | BF8: ='TNC Sc1'!N14 -> 0.0121170816 | BG8: ='TNC Sc1'!O14 -> 3.908736e-05 | BH8: ='TNC Sc1'!Q14 -> 962.1658346 | BI8: ='TNC Sc1'!R14 -> 0.2425839038 | BJ8: ='TNC Sc1'!S14 -> 0.04727967985 | BK8: ='TNC Sc1'!T14 -> 982.3197768 | BL8: ='TNC Sc2'!A12 -> 137244 | BM8: ='TNC Sc2'!B12 -> 163233.805 | BN8: ='TNC Sc2'!C12 -> 3744 | BO8: ='TNC Sc2'!D12 -> 304221.805 | BP8: ='TNC Sc2'!G12 -> 426.0932122 | BQ8: ='TNC Sc2'!H12 -> 0.2029015296 | BR8: ='TNC Sc2'!I12 -> 0.01967529984 | BS8: ='TNC Sc2'!J12 -> 523.7405603 | BT8: ='TNC Sc2'!K12 -> 0.02756529265 | BU8: ='TNC Sc2'!L12 -> 0.02756529265 | BV8: ='TNC Sc2'!M12 -> 12.33206208 | BW8: ='TNC Sc2'!N12 -> 0.0121170816 | BX8: ='TNC Sc2'!O12 -> 3.908736e-05 | BY8: ='TNC Sc2'!Q12 -> 962.1658346 | BZ8: ='TNC Sc2'!R12 -> 0.2425839038 | CA8: ='TNC Sc2'!S12 -> 0.04727967985 | CB8: ='TNC Sc2'!T12 -> 982.3197768 | CC8: ='TNC Sc3'!B13 -> 656235145.9 | CD8: ='TNC Sc3'!C13 -> 427258021.3 | CE8: ='TNC Sc3'!D13 -> 4512910613 | CF8: ='TNC Sc3'!E13 -> 146336955.4 | CG8: ='TNC Sc3'!F13 -> 58861928.53 | CH8: ='TNC Sc3'!G13 -> 0 | CI8: ='TNC Sc3'!K13 -> 12297.0722 | CJ8: ='TNC Sc3'!L13 -> 8836.38168 | CK8: ='TNC Sc3'!M13 -> 107193.3203 | CL8: ='TNC Sc3'!N13 -> 6893.62785 | CM8: ='TNC Sc3'!O13 -> 699.3216 | CN8: ='TNC Sc3'!P13 -> 1324.276345 | CO8: ='TNC Sc3'!Q13 -> 137244 | CP8: ='TNC Sc3'!S13 -> 163233.805 | CQ8: ='TNC Sc3'!T13 -> 3744 | CR8: ='TNC Sc3'!V13 -> 304221.805 | CS8: ='TNC Sc3'!Z13 -> 137244 | CT8: ='TNC Sc3'!AA13 -> 0 | CU8: ='TNC Sc3'!AB13 -> 137244 | CV8: ='TNC Sc3'!AC13 -> 163233.805 | CW8: ='TNC Sc3'!AD13 -> 3744 | CX8: ='TNC Sc3'!AE13 -> 304221.805 | CY8: ='TNC Sc3'!AI13 -> 426.0932122 | CZ8: ='TNC Sc3'!AJ13 -> 0.2029015296 | DA8: ='TNC Sc3'!AK13 -> 0.01967529984 | DB8: ='TNC Sc3'!AL13 -> 523.7405603 | DC8: ='TNC Sc3'!AM13 -> 0.02756529265 | DD8: ='TNC Sc3'!AN13 -> 0.02756529265 | DE8: ='TNC Sc3'!AO13 -> 12.33206208 | DF8: ='TNC Sc3'!AP13 -> 0.0121170816 | DG8: ='TNC Sc3'!AQ13 -> 3.908736e-05 | DH8: ='TNC Sc3'!AS13 -> 962.1658346 | DI8: ='TNC Sc3'!AT13 -> 0.2425839038 | DJ8: ='TNC Sc3'!AU13 -> 0.04727967985 | DK8: ='TNC Sc3'!AV13 -> 982.3197768 | DL8: ='TNC Sc4'!B9 -> 0 | DM8: ='TNC Sc4'!C9 -> 656235145.9 | DN8: ='TNC Sc4'!D9 -> 427258021.3 | DO8: ='TNC Sc4'!E9 -> 4512910613 | DP8: ='TNC Sc4'!F9 -> 146336955.4 | DQ8: ='TNC Sc4'!G9 -> 58861928.53 | DR8: ='TNC Sc4'!I9 -> 0 | DS8: ='TNC Sc4'!J9 -> 3772400661 | DT8: ='TNC Sc4'!K9 -> 402048211.9 | DU8: ='TNC Sc4'!L9 -> 579903520.6 | DV8: ='TNC Sc4'!M9 -> 3772400661 | DW8: ='TNC Sc4'!P9 -> 5468715.052 | DX8: ='TNC Sc4'!Q9 -> 317380.7843 | DY8: ='TNC Sc4'!V9 -> 12297.0722 | DZ8: ='TNC Sc4'!W9 -> 8836.38168 | EA8: ='TNC Sc4'!X9 -> 107193.3203 | EB8: ='TNC Sc4'!Y9 -> 6893.62785 | EC8: ='TNC Sc4'!Z9 -> 699.3216 | ED8: ='TNC Sc4'!AA9 -> 1324.276345 | EE8: ='TNC Sc4'!AB9 -> 137244 | EF8: ='TNC Sc4'!AC9 -> 12703.39875 | EG8: ='TNC Sc4'!AD9 -> 31448.25877 | EH8: ='TNC Sc4'!AE9 -> 29419.4214 | EI8: ='TNC Sc4'!AF9 -> 89662.72607 | EJ8: ='TNC Sc4'!AG9 -> 163233.805 | EK8: ='TNC Sc4'!AI9 -> 132.3432 | EL8: ='TNC Sc4'!AJ9 -> 13.7832435 | EM8: ='TNC Sc4'!AK9 -> 3597.873556 | EN8: ='TNC Sc4'!AL9 -> 3744 | EO8: ='TNC Sc4'!AM9 -> 37440 | EP8: ='TNC Sc4'!AO9 -> 304221.805 | EQ8: ='TNC Sc4'!AT9 -> 426.0932122 | ER8: ='TNC Sc4'!AU9 -> 0.2029015296 | ES8: ='TNC Sc4'!AV9 -> 0.01967529984 | ET8: ='TNC Sc4'!AW9 -> 523.7405603 | EU8: ='TNC Sc4'!AX9 -> 0.02756529265 | EV8: ='TNC Sc4'!AY9 -> 0.02756529265 | EW8: ='TNC Sc4'!AZ9 -> 12.33206208 | EX8: ='TNC Sc4'!BA9 -> 0.0121170816 | EY8: ='TNC Sc4'!BB9 -> 3.908736e-05 | EZ8: ='TNC Sc4'!BD9 -> 962.1658346 | FA8: ='TNC Sc4'!BE9 -> 0.2425839038 | FB8: ='TNC Sc4'!BF9 -> 0.04727967985 | FC8: ='TNC Sc4'!BG9 -> 982.3197768
A9: ='UD1 BAU'!A12 -> 2015 | B9: ='TNC BAU'!B12 -> 1.06858682e+10 | C9: ='TNC BAU'!C12 -> 5869786101 | D9: ='TNC BAU'!D12 -> 4810228003 | E9: ='TNC BAU'!E12 -> 5854097.028 | F9: ='TNC BAU'!H12 -> 663947560.9 | G9: ='TNC BAU'!I12 -> 432279378.6 | H9: ='TNC BAU'!J12 -> 4565948674 | I9: ='TNC BAU'!K12 -> 148056783.1 | J9: ='TNC BAU'!L12 -> 59553704.37 | K9: ='TNC BAU'!O12 -> 406773290.5 | L9: ='TNC BAU'!P12 -> 586718846.9 | M9: ='TNC BAU'!Q12 -> 3816735865 | N9: ='TNC BAU'!T12 -> 5532986.221 | O9: ='TNC BAU'!U12 -> 321110.8074 | P9: ='TNC BAU'!AC12 -> 11785.06921 | Q9: ='TNC BAU'!AD12 -> 110904.4902 | R9: ='TNC BAU'!AE12 -> 9207.550765 | S9: ='TNC BAU'!AF12 -> 6362.545441 | T9: ='TNC BAU'!AG12 -> 890.17116 | U9: ='TNC BAU'!AH12 -> 3065.436845 | V9: ='TNC BAU'!AI12 -> 142215.2636 | W9: ='TNC BAU'!AJ12 -> 12738.42673 | X9: ='TNC BAU'!AK12 -> 29660.18171 | Y9: ='TNC BAU'!AL12 -> 28085.72349 | Z9: ='TNC BAU'!AM12 -> 93106.15791 | AA9: ='TNC BAU'!AN12 -> 163590.4898 | AB9: ='TNC BAU'!AO12 -> 134.74944 | AC9: ='TNC BAU'!AP12 -> 13.7832435 | AD9: ='TNC BAU'!AQ12 -> 3041.467316 | AE9: ='TNC BAU'!AR12 -> 3190 | AF9: ='TNC BAU'!AS12 -> 31900 | AG9: ='TNC BAU'!AU12 -> 308995.7534 | AH9: ='TNC BAU'!AY12 -> 441.5271959 | AI9: ='TNC BAU'!AZ12 -> 0.2102510457 | AJ9: ='TNC BAU'!BA12 -> 0.02038798019 | AK9: ='TNC BAU'!BB12 -> 524.8849943 | AL9: ='TNC BAU'!BC12 -> 0.02762552602 | AM9: ='TNC BAU'!BD12 -> 0.02762552602 | AN9: ='TNC BAU'!BE12 -> 10.5072858 | AO9: ='TNC BAU'!BF12 -> 0.010324116 | AP9: ='TNC BAU'!BG12 -> 3.33036e-05 | AQ9: ='TNC BAU'!BI12 -> 976.919476 | AR9: ='TNC BAU'!BJ12 -> 0.2482006877 | AS9: ='TNC BAU'!BK12 -> 0.0480468098 | AT9: ='TNC BAU'!BL12 -> 997.4424425 | AU9: ='TNC Sc2'!A13 -> 142215.2636 | AV9: ='TNC Sc1'!B15 -> 163590.4898 | AW9: ='TNC Sc1'!C15 -> 3190 | AX9: ='TNC Sc1'!D15 -> 308995.7534 | AY9: ='TNC Sc1'!G15 -> 441.5271959 | AZ9: ='TNC Sc1'!H15 -> 0.2102510457 | BA9: ='TNC Sc1'!I15 -> 0.02038798019 | BB9: ='TNC Sc1'!J15 -> 524.8849943 | BC9: ='TNC Sc1'!K15 -> 0.02762552602 | BD9: ='TNC Sc1'!L15 -> 0.02762552602 | BE9: ='TNC Sc1'!M15 -> 10.5072858 | BF9: ='TNC Sc1'!N15 -> 0.010324116 | BG9: ='TNC Sc1'!O15 -> 3.33036e-05 | BH9: ='TNC Sc1'!Q15 -> 976.919476 | BI9: ='TNC Sc1'!R15 -> 0.2482006877 | BJ9: ='TNC Sc1'!S15 -> 0.0480468098 | BK9: ='TNC Sc1'!T15 -> 997.4424425 | BL9: ='TNC Sc2'!A13 -> 142215.2636 | BM9: ='TNC Sc2'!B13 -> 163590.4898 | BN9: ='TNC Sc2'!C13 -> 3190 | BO9: ='TNC Sc2'!D13 -> 308995.7534 | BP9: ='TNC Sc2'!G13 -> 441.5271959 | BQ9: ='TNC Sc2'!H13 -> 0.2102510457 | BR9: ='TNC Sc2'!I13 -> 0.02038798019 | BS9: ='TNC Sc2'!J13 -> 524.8849943 | BT9: ='TNC Sc2'!K13 -> 0.02762552602 | BU9: ='TNC Sc2'!L13 -> 0.02762552602 | BV9: ='TNC Sc2'!M13 -> 10.5072858 | BW9: ='TNC Sc2'!N13 -> 0.010324116 | BX9: ='TNC Sc2'!O13 -> 3.33036e-05 | BY9: ='TNC Sc2'!Q13 -> 976.919476 | BZ9: ='TNC Sc2'!R13 -> 0.2482006877 | CA9: ='TNC Sc2'!S13 -> 0.0480468098 | CB9: ='TNC Sc2'!T13 -> 997.4424425 | CC9: ='TNC Sc3'!B14 -> 663947560.9 | CD9: ='TNC Sc3'!C14 -> 432279378.6 | CE9: ='TNC Sc3'!D14 -> 4565948674 | CF9: ='TNC Sc3'!E14 -> 148056783.1 | CG9: ='TNC Sc3'!F14 -> 59553704.37 | CH9: ='TNC Sc3'!G14 -> 0 | CI9: ='TNC Sc3'!K14 -> 11785.06921 | CJ9: ='TNC Sc3'!L14 -> 9207.550765 | CK9: ='TNC Sc3'!M14 -> 110904.4902 | CL9: ='TNC Sc3'!N14 -> 6362.545441 | CM9: ='TNC Sc3'!O14 -> 890.17116 | CN9: ='TNC Sc3'!P14 -> 3065.436845 | CO9: ='TNC Sc3'!Q14 -> 142215.2636 | CP9: ='TNC Sc3'!S14 -> 163590.4898 | CQ9: ='TNC Sc3'!T14 -> 3190 | CR9: ='TNC Sc3'!V14 -> 308995.7534 | CS9: ='TNC Sc3'!Z14 -> 142215.2636 | CT9: ='TNC Sc3'!AA14 -> 0 | CU9: ='TNC Sc3'!AB14 -> 142215.2636 | CV9: ='TNC Sc3'!AC14 -> 163590.4898 | CW9: ='TNC Sc3'!AD14 -> 3190 | CX9: ='TNC Sc3'!AE14 -> 308995.7534 | CY9: ='TNC Sc3'!AI14 -> 441.5271959 | CZ9: ='TNC Sc3'!AJ14 -> 0.2102510457 | DA9: ='TNC Sc3'!AK14 -> 0.02038798019 | DB9: ='TNC Sc3'!AL14 -> 524.8849943 | DC9: ='TNC Sc3'!AM14 -> 0.02762552602 | DD9: ='TNC Sc3'!AN14 -> 0.02762552602 | DE9: ='TNC Sc3'!AO14 -> 10.5072858 | DF9: ='TNC Sc3'!AP14 -> 0.010324116 | DG9: ='TNC Sc3'!AQ14 -> 3.33036e-05 | DH9: ='TNC Sc3'!AS14 -> 976.919476 | DI9: ='TNC Sc3'!AT14 -> 0.2482006877 | DJ9: ='TNC Sc3'!AU14 -> 0.0480468098 | DK9: ='TNC Sc3'!AV14 -> 997.4424425 | DL9: ='TNC Sc4'!B10 -> 0 | DM9: ='TNC Sc4'!C10 -> 663947560.9 | DN9: ='TNC Sc4'!D10 -> 432279378.6 | DO9: ='TNC Sc4'!E10 -> 4565948674 | DP9: ='TNC Sc4'!F10 -> 148056783.1 | DQ9: ='TNC Sc4'!G10 -> 59553704.37 | DR9: ='TNC Sc4'!I10 -> 0 | DS9: ='TNC Sc4'!J10 -> 3816735865 | DT9: ='TNC Sc4'!K10 -> 406773290.5 | DU9: ='TNC Sc4'!L10 -> 586718846.9 | DV9: ='TNC Sc4'!M10 -> 3816735865 | DW9: ='TNC Sc4'!P10 -> 5532986.221 | DX9: ='TNC Sc4'!Q10 -> 321110.8074 | DY9: ='TNC Sc4'!V10 -> 11785.06921 | DZ9: ='TNC Sc4'!W10 -> 9207.550765 | EA9: ='TNC Sc4'!X10 -> 110904.4902 | EB9: ='TNC Sc4'!Y10 -> 6362.545441 | EC9: ='TNC Sc4'!Z10 -> 890.17116 | ED9: ='TNC Sc4'!AA10 -> 3065.436845 | EE9: ='TNC Sc4'!AB10 -> 142215.2636 | EF9: ='TNC Sc4'!AC10 -> 12738.42673 | EG9: ='TNC Sc4'!AD10 -> 29660.18171 | EH9: ='TNC Sc4'!AE10 -> 28085.72349 | EI9: ='TNC Sc4'!AF10 -> 93106.15791 | EJ9: ='TNC Sc4'!AG10 -> 163590.4898 | EK9: ='TNC Sc4'!AI10 -> 134.74944 | EL9: ='TNC Sc4'!AJ10 -> 13.7832435 | EM9: ='TNC Sc4'!AK10 -> 3041.467316 | EN9: ='TNC Sc4'!AL10 -> 3190 | EO9: ='TNC Sc4'!AM10 -> 31900 | EP9: ='TNC Sc4'!AO10 -> 308995.7534 | EQ9: ='TNC Sc4'!AT10 -> 441.5271959 | ER9: ='TNC Sc4'!AU10 -> 0.2102510457 | ES9: ='TNC Sc4'!AV10 -> 0.02038798019 | ET9: ='TNC Sc4'!AW10 -> 524.8849943 | EU9: ='TNC Sc4'!AX10 -> 0.02762552602 | EV9: ='TNC Sc4'!AY10 -> 0.02762552602 | EW9: ='TNC Sc4'!AZ10 -> 10.5072858 | EX9: ='TNC Sc4'!BA10 -> 0.010324116 | EY9: ='TNC Sc4'!BB10 -> 3.33036e-05 | EZ9: ='TNC Sc4'!BD10 -> 976.919476 | FA9: ='TNC Sc4'!BE10 -> 0.2482006877 | FB9: ='TNC Sc4'!BF10 -> 0.0480468098 | FC9: ='TNC Sc4'!BG10 -> 997.4424425
A10: ='UD1 BAU'!A13 -> 2016 | B10: ='TNC BAU'!B13 -> 1.080548696e+10 | C10: ='TNC BAU'!C13 -> 5935493116 | D10: ='TNC BAU'!D13 -> 4864074211 | E10: ='TNC BAU'!E13 -> 5919628.418 | F10: ='TNC BAU'!H13 -> 671379861.2 | G10: ='TNC BAU'!I13 -> 437118360.4 | H10: ='TNC BAU'!J13 -> 4617060393 | I10: ='TNC BAU'!K13 -> 149714146.6 | J10: ='TNC BAU'!L13 -> 60220354.92 | K10: ='TNC BAU'!O13 -> 411326754.4 | L10: ='TNC BAU'!P13 -> 593286640.6 | M10: ='TNC BAU'!Q13 -> 3859460816 | N10: ='TNC BAU'!T13 -> 5594923.062 | O10: ='TNC BAU'!U13 -> 324705.3563 | P10: ='TNC BAU'!AC13 -> 11916.99254 | Q10: ='TNC BAU'!AD13 -> 112145.9669 | R10: ='TNC BAU'!AE13 -> 9310.621076 | S10: ='TNC BAU'!AF13 -> 6433.768457 | T10: ='TNC BAU'!AG13 -> 900.1358315 | U10: ='TNC BAU'!AH13 -> 3183.117545 | V10: ='TNC BAU'!AI13 -> 143890.6024 | W10: ='TNC BAU'!AJ13 -> 12881.02205 | X10: ='TNC BAU'!AK13 -> 29992.20096 | Y10: ='TNC BAU'!AL13 -> 28400.11809 | Z10: ='TNC BAU'!AM13 -> 96680.46018 | AA10: ='TNC BAU'!AN13 -> 167953.8013 | AB10: ='TNC BAU'!AO13 -> 131.2156693 | AC10: ='TNC BAU'!AP13 -> 13.42178135 | AD10: ='TNC BAU'!AQ13 -> 2825.523137 | AE10: ='TNC BAU'!AR13 -> 2970.160588 | AF10: ='TNC BAU'!AS13 -> 29701.60588 | AG10: ='TNC BAU'!AU13 -> 314814.5642 | AH10: ='TNC BAU'!AY13 -> 446.7285197 | AI10: ='TNC BAU'!AZ13 -> 0.2127278665 | AJ10: ='TNC BAU'!BA13 -> 0.02062815675 | AK10: ='TNC BAU'!BB13 -> 538.88481 | AL10: ='TNC BAU'!BC13 -> 0.02836235842 | AM10: ='TNC BAU'!BD13 -> 0.02836235842 | AN10: ='TNC BAU'!BE13 -> 9.783174347 | AO10: ='TNC BAU'!BF13 -> 0.009612627726 | AP10: ='TNC BAU'!BG13 -> 3.100847654e-05 | AQ10: ='TNC BAU'!BI13 -> 995.3965041 | AR10: ='TNC BAU'!BJ13 -> 0.2507028527 | AS10: ='TNC BAU'!BK13 -> 0.04902152365 | AT10: ='TNC BAU'!BL13 -> 1016.272489 | AU10: ='TNC Sc2'!A14 -> 143890.6024 | AV10: ='TNC Sc1'!B16 -> 166274.2633 | AW10: ='TNC Sc1'!C16 -> 2940.458982 | AX10: ='TNC Sc1'!D16 -> 311666.4186 | AY10: ='TNC Sc1'!G16 -> 442.2612345 | AZ10: ='TNC Sc1'!H16 -> 0.2106005879 | BA10: ='TNC Sc1'!I16 -> 0.02042187519 | BB10: ='TNC Sc1'!J16 -> 533.4959619 | BC10: ='TNC Sc1'!K16 -> 0.02807873484 | BD10: ='TNC Sc1'!L16 -> 0.02807873484 | BE10: ='TNC Sc1'!M16 -> 9.685342603 | BF10: ='TNC Sc1'!N16 -> 0.009516501449 | BG10: ='TNC Sc1'!O16 -> 3.069839177e-05 | BH10: ='TNC Sc1'!Q16 -> 985.442539 | BI10: ='TNC Sc1'!R16 -> 0.2481958241 | BJ10: ='TNC Sc1'!S16 -> 0.04853130842 | BK10: ='TNC Sc1'!T16 -> 1006.109765 | BL10: ='TNC Sc2'!A14 -> 143890.6024 | BM10: ='TNC Sc2'!B14 -> 167953.8013 | BN10: ='TNC Sc2'!C14 -> 2970.160588 | BO10: ='TNC Sc2'!D14 -> 314814.5642 | BP10: ='TNC Sc2'!G14 -> 446.7285197 | BQ10: ='TNC Sc2'!H14 -> 0.2127278665 | BR10: ='TNC Sc2'!I14 -> 0.02062815675 | BS10: ='TNC Sc2'!J14 -> 538.88481 | BT10: ='TNC Sc2'!K14 -> 0.02836235842 | BU10: ='TNC Sc2'!L14 -> 0.02836235842 | BV10: ='TNC Sc2'!M14 -> 9.783174347 | BW10: ='TNC Sc2'!N14 -> 0.009612627726 | BX10: ='TNC Sc2'!O14 -> 3.100847654e-05 | BY10: ='TNC Sc2'!Q14 -> 995.3965041 | BZ10: ='TNC Sc2'!R14 -> 0.2507028527 | CA10: ='TNC Sc2'!S14 -> 0.04902152365 | CB10: ='TNC Sc2'!T14 -> 1016.272489 | CC10: ='TNC Sc3'!B15 -> 671379861.2 | CD10: ='TNC Sc3'!C15 -> 437118360.4 | CE10: ='TNC Sc3'!D15 -> 4604595857 | CF10: ='TNC Sc3'!E15 -> 149714146.6 | CG10: ='TNC Sc3'!F15 -> 72684890.46 | CH10: ='TNC Sc3'!G15 -> 0 | CI10: ='TNC Sc3'!K15 -> 11916.99254 | CJ10: ='TNC Sc3'!L15 -> 9310.621076 | CK10: ='TNC Sc3'!M15 -> 111843.2099 | CL10: ='TNC Sc3'!N15 -> 6433.768457 | CM10: ='TNC Sc3'!O15 -> 1086.447836 | CN10: ='TNC Sc3'!P15 -> 3183.117545 | CO10: ='TNC Sc3'!Q15 -> 143774.1574 | CP10: ='TNC Sc3'!S15 -> 167953.8013 | CQ10: ='TNC Sc3'!T15 -> 2970.160588 | CR10: ='TNC Sc3'!V15 -> 314698.1192 | CS10: ='TNC Sc3'!Z15 -> 143774.1574 | CT10: ='TNC Sc3'!AA15 -> 0 | CU10: ='TNC Sc3'!AB15 -> 143774.1574 | CV10: ='TNC Sc3'!AC15 -> 167953.8013 | CW10: ='TNC Sc3'!AD15 -> 2970.160588 | CX10: ='TNC Sc3'!AE15 -> 314698.1192 | CY10: ='TNC Sc3'!AI15 -> 446.3669999 | CZ10: ='TNC Sc3'!AJ15 -> 0.2125557142 | DA10: ='TNC Sc3'!AK15 -> 0.0206114632 | DB10: ='TNC Sc3'!AL15 -> 538.88481 | DC10: ='TNC Sc3'!AM15 -> 0.02836235842 | DD10: ='TNC Sc3'!AN15 -> 0.02836235842 | DE10: ='TNC Sc3'!AO15 -> 9.783174347 | DF10: ='TNC Sc3'!AP15 -> 0.009612627726 | DG10: ='TNC Sc3'!AQ15 -> 3.100847654e-05 | DH10: ='TNC Sc3'!AS15 -> 995.0349843 | DI10: ='TNC Sc3'!AT15 -> 0.2505307004 | DJ10: ='TNC Sc3'!AU15 -> 0.0490048301 | DK10: ='TNC Sc3'!AV15 -> 1015.901691 | DL10: ='TNC Sc4'!B11 -> 0 | DM10: ='TNC Sc4'!C11 -> 671379861.2 | DN10: ='TNC Sc4'!D11 -> 437118360.4 | DO10: ='TNC Sc4'!E11 -> 4617060393 | DP10: ='TNC Sc4'!F11 -> 149714146.6 | DQ10: ='TNC Sc4'!G11 -> 60220354.92 | DR10: ='TNC Sc4'!I11 -> 0 | DS10: ='TNC Sc4'!J11 -> 3859460816 | DT10: ='TNC Sc4'!K11 -> 411326754.4 | DU10: ='TNC Sc4'!L11 -> 593286640.6 | DV10: ='TNC Sc4'!M11 -> 3859460816 | DW10: ='TNC Sc4'!P11 -> 5594923.062 | DX10: ='TNC Sc4'!Q11 -> 324705.3563 | DY10: ='TNC Sc4'!V11 -> 11916.99254 | DZ10: ='TNC Sc4'!W11 -> 9310.621076 | EA10: ='TNC Sc4'!X11 -> 112145.9669 | EB10: ='TNC Sc4'!Y11 -> 6433.768457 | EC10: ='TNC Sc4'!Z11 -> 900.1358315 | ED10: ='TNC Sc4'!AA11 -> 3183.117545 | EE10: ='TNC Sc4'!AB11 -> 143890.6024 | EF10: ='TNC Sc4'!AC11 -> 12881.02205 | EG10: ='TNC Sc4'!AD11 -> 29992.20096 | EH10: ='TNC Sc4'!AE11 -> 28400.11809 | EI10: ='TNC Sc4'!AF11 -> 96680.46018 | EJ10: ='TNC Sc4'!AG11 -> 167953.8013 | EK10: ='TNC Sc4'!AI11 -> 131.2156693 | EL10: ='TNC Sc4'!AJ11 -> 13.42178135 | EM10: ='TNC Sc4'!AK11 -> 2825.523137 | EN10: ='TNC Sc4'!AL11 -> 2970.160588 | EO10: ='TNC Sc4'!AM11 -> 29701.60588 | EP10: ='TNC Sc4'!AO11 -> 314814.5642 | EQ10: ='TNC Sc4'!AT11 -> 446.7285197 | ER10: ='TNC Sc4'!AU11 -> 0.2127278665 | ES10: ='TNC Sc4'!AV11 -> 0.02062815675 | ET10: ='TNC Sc4'!AW11 -> 538.88481 | EU10: ='TNC Sc4'!AX11 -> 0.02836235842 | EV10: ='TNC Sc4'!AY11 -> 0.02836235842 | EW10: ='TNC Sc4'!AZ11 -> 9.783174347 | EX10: ='TNC Sc4'!BA11 -> 0.009612627726 | EY10: ='TNC Sc4'!BB11 -> 3.100847654e-05 | EZ10: ='TNC Sc4'!BD11 -> 995.3965041 | FA10: ='TNC Sc4'!BE11 -> 0.2507028527 | FB10: ='TNC Sc4'!BF11 -> 0.04902152365 | FC10: ='TNC Sc4'!BG11 -> 1016.272489
A11: ='UD1 BAU'!A14 -> 2017 | B11: ='TNC BAU'!B14 -> 1.092045787e+10 | C11: ='TNC BAU'!C14 -> 5998647054 | D11: ='TNC BAU'!D14 -> 4915828199 | E11: ='TNC BAU'!E14 -> 5982613.555 | F11: ='TNC BAU'!H14 -> 678523375.8 | G11: ='TNC BAU'!I14 -> 441769321.1 | H11: ='TNC BAU'!J14 -> 4666186142 | I11: ='TNC BAU'!K14 -> 151307112.4 | J11: ='TNC BAU'!L14 -> 60861102.45 | K11: ='TNC BAU'!O14 -> 415703291.2 | L11: ='TNC BAU'!P14 -> 599599239.5 | M11: ='TNC BAU'!Q14 -> 3900525668 | N11: ='TNC BAU'!T14 -> 5654453.318 | O11: ='TNC BAU'!U14 -> 328160.2372 | P11: ='TNC BAU'!AC14 -> 12043.78992 | Q11: ='TNC BAU'!AD14 -> 113339.2055 | R11: ='TNC BAU'!AE14 -> 9409.68654 | S11: ='TNC BAU'!AF14 -> 6502.224069 | T11: ='TNC BAU'!AG14 -> 909.7133208 | U11: ='TNC BAU'!AH14 -> 3305.270772 | V11: ='TNC BAU'!AI14 -> 145509.8901 | W11: ='TNC BAU'!AJ14 -> 13018.07675 | X11: ='TNC BAU'!AK14 -> 30311.31945 | Y11: ='TNC BAU'!AL14 -> 28702.29674 | Z11: ='TNC BAU'!AM14 -> 100390.606 | AA11: ='TNC BAU'!AN14 -> 172422.2989 | AB11: ='TNC BAU'!AO14 -> 132.6118104 | AC11: ='TNC BAU'!AP14 -> 13.56458976 | AD11: ='TNC BAU'!AQ14 -> 2624.910994 | AE11: ='TNC BAU'!AR14 -> 2771.087394 | AF11: ='TNC BAU'!AS14 -> 27710.87394 | AG11: ='TNC BAU'!AU14 -> 320703.2764 | AH11: ='TNC BAU'!AY14 -> 451.7558253 | AI11: ='TNC BAU'!AZ14 -> 0.2151218216 | AJ11: ='TNC BAU'!BA14 -> 0.02086029785 | AK11: ='TNC BAU'!BB14 -> 553.2221188 | AL11: ='TNC BAU'!BC14 -> 0.02911695362 | AM11: ='TNC BAU'!BD14 -> 0.02911695362 | AN11: ='TNC BAU'!BE14 -> 9.127463082 | AO11: ='TNC BAU'!BF14 -> 0.008968347244 | AP11: ='TNC BAU'!BG14 -> 2.89301524e-05 | AQ11: ='TNC BAU'!BI14 -> 1014.105407 | AR11: ='TNC BAU'!BJ14 -> 0.2532071224 | AS11: ='TNC BAU'!BK14 -> 0.05000618162 | AT11: ='TNC BAU'!BL14 -> 1035.337427 | AU11: ='TNC Sc2'!A15 -> 145509.8901 | AV11: ='TNC Sc1'!B17 -> 170698.0759 | AW11: ='TNC Sc1'!C17 -> 2743.376521 | AX11: ='TNC Sc1'!D17 -> 317496.2437 | AY11: ='TNC Sc1'!G17 -> 447.238267 | AZ11: ='TNC Sc1'!H17 -> 0.2129706033 | BA11: ='TNC Sc1'!I17 -> 0.02065169487 | BB11: ='TNC Sc1'!J17 -> 547.6898976 | BC11: ='TNC Sc1'!K17 -> 0.02882578408 | BD11: ='TNC Sc1'!L17 -> 0.02882578408 | BE11: ='TNC Sc1'!M17 -> 9.036188451 | BF11: ='TNC Sc1'!N17 -> 0.008878663771 | BG11: ='TNC Sc1'!O17 -> 2.864085087e-05 | BH11: ='TNC Sc1'!Q17 -> 1003.964353 | BI11: ='TNC Sc1'!R17 -> 0.2506750512 | BJ11: ='TNC Sc1'!S17 -> 0.0495061198 | BK11: ='TNC Sc1'!T17 -> 1024.984053 | BL11: ='TNC Sc2'!A15 -> 145509.8901 | BM11: ='TNC Sc2'!B15 -> 172422.2989 | BN11: ='TNC Sc2'!C15 -> 2771.087394 | BO11: ='TNC Sc2'!D15 -> 320703.2764 | BP11: ='TNC Sc2'!G15 -> 451.7558253 | BQ11: ='TNC Sc2'!H15 -> 0.2151218216 | BR11: ='TNC Sc2'!I15 -> 0.02086029785 | BS11: ='TNC Sc2'!J15 -> 553.2221188 | BT11: ='TNC Sc2'!K15 -> 0.02911695362 | BU11: ='TNC Sc2'!L15 -> 0.02911695362 | BV11: ='TNC Sc2'!M15 -> 9.127463082 | BW11: ='TNC Sc2'!N15 -> 0.008968347244 | BX11: ='TNC Sc2'!O15 -> 2.89301524e-05 | BY11: ='TNC Sc2'!Q15 -> 1014.105407 | BZ11: ='TNC Sc2'!R15 -> 0.2532071224 | CA11: ='TNC Sc2'!S15 -> 0.05000618162 | CB11: ='TNC Sc2'!T15 -> 1035.337427 | CC11: ='TNC Sc3'!B16 -> 678523375.8 | CD11: ='TNC Sc3'!C16 -> 441769321.1 | CE11: ='TNC Sc3'!D16 -> 4640991824 | CF11: ='TNC Sc3'!E16 -> 151307112.4 | CG11: ='TNC Sc3'!F16 -> 86055420.07 | CH11: ='TNC Sc3'!G16 -> 0 | CI11: ='TNC Sc3'!K16 -> 12043.78992 | CJ11: ='TNC Sc3'!L16 -> 9409.68654 | CK11: ='TNC Sc3'!M16 -> 112727.2488 | CL11: ='TNC Sc3'!N16 -> 6502.224069 | CM11: ='TNC Sc3'!O16 -> 1286.302068 | CN11: ='TNC Sc3'!P16 -> 3305.270772 | CO11: ='TNC Sc3'!Q16 -> 145274.5222 | CP11: ='TNC Sc3'!S16 -> 172422.2989 | CQ11: ='TNC Sc3'!T16 -> 2771.087394 | CR11: ='TNC Sc3'!V16 -> 320467.9085 | CS11: ='TNC Sc3'!Z16 -> 145274.5222 | CT11: ='TNC Sc3'!AA16 -> 0 | CU11: ='TNC Sc3'!AB16 -> 145274.5222 | CV11: ='TNC Sc3'!AC16 -> 172422.2989 | CW11: ='TNC Sc3'!AD16 -> 2771.087394 | CX11: ='TNC Sc3'!AE16 -> 320467.9085 | CY11: ='TNC Sc3'!AI16 -> 451.0250925 | CZ11: ='TNC Sc3'!AJ16 -> 0.2147738535 | DA11: ='TNC Sc3'!AK16 -> 0.0208265555 | DB11: ='TNC Sc3'!AL16 -> 553.2221188 | DC11: ='TNC Sc3'!AM16 -> 0.02911695362 | DD11: ='TNC Sc3'!AN16 -> 0.02911695362 | DE11: ='TNC Sc3'!AO16 -> 9.127463082 | DF11: ='TNC Sc3'!AP16 -> 0.008968347244 | DG11: ='TNC Sc3'!AQ16 -> 2.89301524e-05 | DH11: ='TNC Sc3'!AS16 -> 1013.374674 | DI11: ='TNC Sc3'!AT16 -> 0.2528591544 | DJ11: ='TNC Sc3'!AU16 -> 0.04997243927 | DK11: ='TNC Sc3'!AV16 -> 1034.58794 | DL11: ='TNC Sc4'!B12 -> 0 | DM11: ='TNC Sc4'!C12 -> 678523375.8 | DN11: ='TNC Sc4'!D12 -> 441769321.1 | DO11: ='TNC Sc4'!E12 -> 4666186142 | DP11: ='TNC Sc4'!F12 -> 151307112.4 | DQ11: ='TNC Sc4'!G12 -> 60861102.45 | DR11: ='TNC Sc4'!I12 -> 0 | DS11: ='TNC Sc4'!J12 -> 3900525668 | DT11: ='TNC Sc4'!K12 -> 415703291.2 | DU11: ='TNC Sc4'!L12 -> 599599239.5 | DV11: ='TNC Sc4'!M12 -> 3900525668 | DW11: ='TNC Sc4'!P12 -> 5654453.318 | DX11: ='TNC Sc4'!Q12 -> 328160.2372 | DY11: ='TNC Sc4'!V12 -> 12043.78992 | DZ11: ='TNC Sc4'!W12 -> 9409.68654 | EA11: ='TNC Sc4'!X12 -> 113339.2055 | EB11: ='TNC Sc4'!Y12 -> 6502.224069 | EC11: ='TNC Sc4'!Z12 -> 909.7133208 | ED11: ='TNC Sc4'!AA12 -> 3305.270772 | EE11: ='TNC Sc4'!AB12 -> 145509.8901 | EF11: ='TNC Sc4'!AC12 -> 13018.07675 | EG11: ='TNC Sc4'!AD12 -> 30311.31945 | EH11: ='TNC Sc4'!AE12 -> 28702.29674 | EI11: ='TNC Sc4'!AF12 -> 100390.606 | EJ11: ='TNC Sc4'!AG12 -> 172422.2989 | EK11: ='TNC Sc4'!AI12 -> 132.6118104 | EL11: ='TNC Sc4'!AJ12 -> 13.56458976 | EM11: ='TNC Sc4'!AK12 -> 2624.910994 | EN11: ='TNC Sc4'!AL12 -> 2771.087394 | EO11: ='TNC Sc4'!AM12 -> 27710.87394 | EP11: ='TNC Sc4'!AO12 -> 320703.2764 | EQ11: ='TNC Sc4'!AT12 -> 451.7558253 | ER11: ='TNC Sc4'!AU12 -> 0.2151218216 | ES11: ='TNC Sc4'!AV12 -> 0.02086029785 | ET11: ='TNC Sc4'!AW12 -> 553.2221188 | EU11: ='TNC Sc4'!AX12 -> 0.02911695362 | EV11: ='TNC Sc4'!AY12 -> 0.02911695362 | EW11: ='TNC Sc4'!AZ12 -> 9.127463082 | EX11: ='TNC Sc4'!BA12 -> 0.008968347244 | EY11: ='TNC Sc4'!BB12 -> 2.89301524e-05 | EZ11: ='TNC Sc4'!BD12 -> 1014.105407 | FA11: ='TNC Sc4'!BE12 -> 0.2532071224 | FB11: ='TNC Sc4'!BF12 -> 0.05000618162 | FC11: ='TNC Sc4'!BG12 -> 1035.337427
A12: ='UD1 BAU'!A15 -> 2018 | B12: ='TNC BAU'!B15 -> 1.103066222e+10 | C12: ='TNC BAU'!C15 -> 6059182705 | D12: ='TNC BAU'!D15 -> 4965436529 | E12: ='TNC BAU'!E15 -> 6042987.403 | F12: ='TNC BAU'!H15 -> 685370728.9 | G12: ='TNC BAU'!I15 -> 446227458.7 | H12: ='TNC BAU'!J15 -> 4713275196 | I12: ='TNC BAU'!K15 -> 152834035.8 | J12: ='TNC BAU'!L15 -> 61475285.36 | K12: ='TNC BAU'!O15 -> 419898382.1 | L12: ='TNC BAU'!P15 -> 605650125.7 | M12: ='TNC BAU'!Q15 -> 3939888021 | N12: ='TNC BAU'!T15 -> 5711515.52 | O12: ='TNC BAU'!U15 -> 331471.8829 | P12: ='TNC BAU'!AC15 -> 12165.33044 | Q12: ='TNC BAU'!AD15 -> 114482.9738 | R12: ='TNC BAU'!AE15 -> 9504.64487 | S12: ='TNC BAU'!AF15 -> 6567.841593 | T12: ='TNC BAU'!AG15 -> 918.893739 | U12: ='TNC BAU'!AH15 -> 3432.066481 | V12: ='TNC BAU'!AI15 -> 147071.751 | W12: ='TNC BAU'!AJ15 -> 13149.44933 | X12: ='TNC BAU'!AK15 -> 30617.20767 | Y12: ='TNC BAU'!AL15 -> 28991.94742 | Z12: ='TNC BAU'!AM15 -> 104241.7574 | AA12: ='TNC BAU'!AN15 -> 177000.3618 | AB12: ='TNC BAU'!AO15 -> 133.9500693 | AC12: ='TNC BAU'!AP15 -> 13.70147751 | AD12: ='TNC BAU'!AQ15 -> 2438.542314 | AE12: ='TNC BAU'!AR15 -> 2586.19386 | AF12: ='TNC BAU'!AS15 -> 25861.9386 | AG12: ='TNC BAU'!AU15 -> 326658.3066 | AH12: ='TNC BAU'!AY15 -> 456.6048409 | AI12: ='TNC BAU'!AZ15 -> 0.2174308766 | AJ12: ='TNC BAU'!BA15 -> 0.02108420622 | AK12: ='TNC BAU'!BB15 -> 567.9109708 | AL12: ='TNC BAU'!BC15 -> 0.02989005109 | AM12: ='TNC BAU'!BD15 -> 0.02989005109 | AN12: ='TNC BAU'!BE15 -> 8.518457061 | AO12: ='TNC BAU'!BF15 -> 0.00836995781 | AP12: ='TNC BAU'!BG15 -> 2.69998639e-05 | AQ12: ='TNC BAU'!BI15 -> 1033.034269 | AR12: ='TNC BAU'!BJ15 -> 0.2556908855 | AS12: ='TNC BAU'!BK15 -> 0.05100125718 | AT12: ='TNC BAU'!BL15 -> 1054.624916 | AU12: ='TNC Sc2'!A16 -> 143394.9572 | AV12: ='TNC Sc1'!B18 -> 175230.3582 | AW12: ='TNC Sc1'!C18 -> 2560.331922 | AX12: ='TNC Sc1'!D18 -> 323391.7235 | AY12: ='TNC Sc1'!G18 -> 452.0387925 | AZ12: ='TNC Sc1'!H18 -> 0.2152565679 | BA12: ='TNC Sc1'!I18 -> 0.02087336416 | BB12: ='TNC Sc1'!J18 -> 562.2318611 | BC12: ='TNC Sc1'!K18 -> 0.02959115058 | BD12: ='TNC Sc1'!L18 -> 0.02959115058 | BE12: ='TNC Sc1'!M18 -> 8.433272491 | BF12: ='TNC Sc1'!N18 -> 0.008286258232 | BG12: ='TNC Sc1'!O18 -> 2.672986526e-05 | BH12: ='TNC Sc1'!Q18 -> 1022.703926 | BI12: ='TNC Sc1'!R18 -> 0.2531339767 | BJ12: ='TNC Sc1'!S18 -> 0.0504912446 | BK12: ='TNC Sc1'!T18 -> 1044.078666 | BL12: ='TNC Sc2'!A16 -> 143394.9572 | BM12: ='TNC Sc2'!B16 -> 172575.3527 | BN12: ='TNC Sc2'!C16 -> 2586.19386 | BO12: ='TNC Sc2'!D16 -> 318556.5038 | BP12: ='TNC Sc2'!G16 -> 445.1897199 | BQ12: ='TNC Sc2'!H16 -> 0.2119951047 | BR12: ='TNC Sc2'!I16 -> 0.02055710106 | BS12: ='TNC Sc2'!J16 -> 553.7131965 | BT12: ='TNC Sc2'!K16 -> 0.02914279982 | BU12: ='TNC Sc2'!L16 -> 0.02914279982 | BV12: ='TNC Sc2'!M16 -> 8.518457061 | BW12: ='TNC Sc2'!N16 -> 0.00836995781 | BX12: ='TNC Sc2'!O16 -> 2.69998639e-05 | BY12: ='TNC Sc2'!Q16 -> 1007.421373 | BZ12: ='TNC Sc2'!R16 -> 0.2495078623 | CA12: ='TNC Sc2'!S16 -> 0.04972690074 | CB12: ='TNC Sc2'!T16 -> 1028.477686 | CC12: ='TNC Sc3'!B17 -> 685370728.9 | CD12: ='TNC Sc3'!C17 -> 446227458.7 | CE12: ='TNC Sc3'!D17 -> 4675102345 | CF12: ='TNC Sc3'!E17 -> 152834035.8 | CG12: ='TNC Sc3'!F17 -> 99648136.4 | CH12: ='TNC Sc3'!G17 -> 0 | CI12: ='TNC Sc3'!K17 -> 12165.33044 | CJ12: ='TNC Sc3'!L17 -> 9504.64487 | CK12: ='TNC Sc3'!M17 -> 113555.7754 | CL12: ='TNC Sc3'!N17 -> 6567.841593 | CM12: ='TNC Sc3'!O17 -> 1489.477407 | CN12: ='TNC Sc3'!P17 -> 3432.066481 | CO12: ='TNC Sc3'!Q17 -> 146715.1362 | CP12: ='TNC Sc3'!S17 -> 177000.3618 | CQ12: ='TNC Sc3'!T17 -> 2586.19386 | CR12: ='TNC Sc3'!V17 -> 326301.6918 | CS12: ='TNC Sc3'!Z17 -> 146715.1362 | CT12: ='TNC Sc3'!AA17 -> 0 | CU12: ='TNC Sc3'!AB17 -> 146715.1362 | CV12: ='TNC Sc3'!AC17 -> 177000.3618 | CW12: ='TNC Sc3'!AD17 -> 2586.19386 | CX12: ='TNC Sc3'!AE17 -> 326301.6918 | CY12: ='TNC Sc3'!AI17 -> 455.4976804 | CZ12: ='TNC Sc3'!AJ17 -> 0.2169036573 | DA12: ='TNC Sc3'!AK17 -> 0.02103308192 | DB12: ='TNC Sc3'!AL17 -> 567.9109708 | DC12: ='TNC Sc3'!AM17 -> 0.02989005109 | DD12: ='TNC Sc3'!AN17 -> 0.02989005109 | DE12: ='TNC Sc3'!AO17 -> 8.518457061 | DF12: ='TNC Sc3'!AP17 -> 0.00836995781 | DG12: ='TNC Sc3'!AQ17 -> 2.69998639e-05 | DH12: ='TNC Sc3'!AS17 -> 1031.927108 | DI12: ='TNC Sc3'!AT17 -> 0.2551636662 | DJ12: ='TNC Sc3'!AU17 -> 0.05095013288 | DK12: ='TNC Sc3'!AV17 -> 1053.489339 | DL12: ='TNC Sc4'!B13 -> 208126000 | DM12: ='TNC Sc4'!C13 -> 685370728.9 | DN12: ='TNC Sc4'!D13 -> 446227458.7 | DO12: ='TNC Sc4'!E13 -> 4525961796 | DP12: ='TNC Sc4'!F13 -> 152834035.8 | DQ12: ='TNC Sc4'!G13 -> 61475285.36 | DR12: ='TNC Sc4'!I13 -> 369145000 | DS12: ='TNC Sc4'!J13 -> 3939888021 | DT12: ='TNC Sc4'!K13 -> 399085782.1 | DU12: ='TNC Sc4'!L13 -> 605650125.7 | DV12: ='TNC Sc4'!M13 -> 3570743021 | DW12: ='TNC Sc4'!P13 -> 5711515.52 | DX12: ='TNC Sc4'!Q13 -> 331471.8829 | DY12: ='TNC Sc4'!V13 -> 12165.33044 | DZ12: ='TNC Sc4'!W13 -> 9504.64487 | EA12: ='TNC Sc4'!X13 -> 109933.2299 | EB12: ='TNC Sc4'!Y13 -> 6567.841593 | EC12: ='TNC Sc4'!Z13 -> 918.893739 | ED12: ='TNC Sc4'!AA13 -> 3432.066481 | EE12: ='TNC Sc4'!AB13 -> 142522.0071 | EF12: ='TNC Sc4'!AC13 -> 12497.68633 | EG12: ='TNC Sc4'!AD13 -> 30617.20767 | EH12: ='TNC Sc4'!AE13 -> 26275.56757 | EI12: ='TNC Sc4'!AF13 -> 104241.7574 | EJ12: ='TNC Sc4'!AG13 -> 173632.2189 | EK12: ='TNC Sc4'!AI13 -> 133.9500693 | EL12: ='TNC Sc4'!AJ13 -> 13.70147751 | EM12: ='TNC Sc4'!AK13 -> 2438.542314 | EN12: ='TNC Sc4'!AL13 -> 2586.19386 | EO12: ='TNC Sc4'!AM13 -> 25861.9386 | EP12: ='TNC Sc4'!AO13 -> 318740.4199 | EQ12: ='TNC Sc4'!AT13 -> 442.479524 | ER12: ='TNC Sc4'!AU13 -> 0.2107045352 | ES12: ='TNC Sc4'!AV13 -> 0.02043195493 | ET12: ='TNC Sc4'!AW13 -> 557.1041834 | EU12: ='TNC Sc4'!AX13 -> 0.02932127281 | EV12: ='TNC Sc4'!AY13 -> 0.02932127281 | EW12: ='TNC Sc4'!AZ13 -> 8.518457061 | EX12: ='TNC Sc4'!BA13 -> 0.00836995781 | EY12: ='TNC Sc4'!BB13 -> 2.69998639e-05 | EZ12: ='TNC Sc4'!BD13 -> 1008.102164 | FA12: ='TNC Sc4'!BE13 -> 0.2483957659 | FB12: ='TNC Sc4'!BF13 -> 0.04978022761 | FC12: ='TNC Sc4'!BG13 -> 1029.146566
A13: ='UD1 BAU'!A16 -> 2019 | B13: ='TNC BAU'!B16 -> 1.113600338e+10 | C13: ='TNC BAU'!C16 -> 6117046985 | D13: ='TNC BAU'!D16 -> 5012855698 | E13: ='TNC BAU'!E16 -> 6100697.02 | F13: ='TNC BAU'!H16 -> 691915915.9 | G13: ='TNC BAU'!I16 -> 450488863.5 | H13: ='TNC BAU'!J16 -> 4758286263 | I13: ='TNC BAU'!K16 -> 154293577.8 | J13: ='TNC BAU'!L16 -> 62062365.05 | K13: ='TNC BAU'!O16 -> 423908348.2 | L13: ='TNC BAU'!P16 -> 611433992.9 | M13: ='TNC BAU'!Q16 -> 3977513357 | N13: ='TNC BAU'!T16 -> 5766059.631 | O13: ='TNC BAU'!U16 -> 334637.3893 | P13: ='TNC BAU'!AC16 -> 12281.50751 | Q13: ='TNC BAU'!AD16 -> 115576.269 | R13: ='TNC BAU'!AE16 -> 9595.412793 | S13: ='TNC BAU'!AF16 -> 6630.563488 | T13: ='TNC BAU'!AG16 -> 927.6690354 | U13: ='TNC BAU'!AH16 -> 3563.681087 | V13: ='TNC BAU'!AI16 -> 148575.1029 | W13: ='TNC BAU'!AJ16 -> 13275.02459 | X13: ='TNC BAU'!AK16 -> 30909.59738 | Y13: ='TNC BAU'!AL16 -> 29268.81614 | Z13: ='TNC BAU'!AM16 -> 108239.2725 | AA13: ='TNC BAU'!AN16 -> 181692.7106 | AB13: ='TNC BAU'!AO16 -> 135.2292722 | AC13: ='TNC BAU'!AP16 -> 13.83232455 | AD13: ='TNC BAU'!AQ16 -> 2265.405809 | AE13: ='TNC BAU'!AR16 -> 2414.467406 | AF13: ='TNC BAU'!AS16 -> 24144.67406 | AG13: ='TNC BAU'!AU16 -> 332682.2809 | AH13: ='TNC BAU'!AY16 -> 461.2722074 | AI13: ='TNC BAU'!AZ16 -> 0.2196534321 | AJ13: ='TNC BAU'!BA16 -> 0.02129972675 | AK13: ='TNC BAU'!BB16 -> 582.9665128 | AL13: ='TNC BAU'!BC16 -> 0.03068244804 | AM13: ='TNC BAU'!BD16 -> 0.03068244804 | AN13: ='TNC BAU'!BE16 -> 7.952821032 | AO13: ='TNC BAU'!BF16 -> 0.007814182313 | AP13: ='TNC BAU'!BG16 -> 2.520703972e-05 | AQ13: ='TNC BAU'!BI16 -> 1052.191541 | AR13: ='TNC BAU'!BJ16 -> 0.2581500624 | AS13: ='TNC BAU'!BK16 -> 0.05200738183 | AT13: ='TNC BAU'!BL16 -> 1074.143493 | AU13: ='TNC Sc2'!A17 -> 141146.3477 | AV13: ='TNC Sc1'!B19 -> 179875.7835 | AW13: ='TNC Sc1'!C19 -> 2390.322732 | AX13: ='TNC Sc1'!D19 -> 329355.4581 | AY13: ='TNC Sc1'!G19 -> 456.6594853 | AZ13: ='TNC Sc1'!H19 -> 0.2174568978 | BA13: ='TNC Sc1'!I19 -> 0.02108672948 | BB13: ='TNC Sc1'!J19 -> 577.1368477 | BC13: ='TNC Sc1'!K19 -> 0.03037562356 | BD13: ='TNC Sc1'!L19 -> 0.03037562356 | BE13: ='TNC Sc1'!M19 -> 7.873292821 | BF13: ='TNC Sc1'!N19 -> 0.00773604049 | BG13: ='TNC Sc1'!O19 -> 2.495496932e-05 | BH13: ='TNC Sc1'!Q19 -> 1041.669626 | BI13: ='TNC Sc1'!R19 -> 0.2555685618 | BJ13: ='TNC Sc1'!S19 -> 0.05148730801 | BK13: ='TNC Sc1'!T19 -> 1063.402058 | BL13: ='TNC Sc2'!A17 -> 141146.3477 | BM13: ='TNC Sc2'!B17 -> 172608.0751 | BN13: ='TNC Sc2'!C17 -> 2414.467406 | BO13: ='TNC Sc2'!D17 -> 316168.8902 | BP13: ='TNC Sc2'!G17 -> 438.208597 | BQ13: ='TNC Sc2'!H17 -> 0.2086707605 | BR13: ='TNC Sc2'!I17 -> 0.02023474041 | BS13: ='TNC Sc2'!J17 -> 553.8181872 | BT13: ='TNC Sc2'!K17 -> 0.02914832564 | BU13: ='TNC Sc2'!L17 -> 0.02914832564 | BV13: ='TNC Sc2'!M17 -> 7.952821032 | BW13: ='TNC Sc2'!N17 -> 0.007814182313 | BX13: ='TNC Sc2'!O17 -> 2.520703972e-05 | BY13: ='TNC Sc2'!Q17 -> 999.9796052 | BZ13: ='TNC Sc2'!R17 -> 0.2456332684 | CA13: ='TNC Sc2'!S17 -> 0.04940827309 | CB13: ='TNC Sc2'!T17 -> 1020.844102 | CC13: ='TNC Sc3'!B18 -> 691915915.9 | CD13: ='TNC Sc3'!C18 -> 450488863.5 | CE13: ='TNC Sc3'!D18 -> 4706903068 | CF13: ='TNC Sc3'!E18 -> 154293577.8 | CG13: ='TNC Sc3'!F18 -> 113445559.7 | CH13: ='TNC Sc3'!G18 -> 0 | CI13: ='TNC Sc3'!K18 -> 12281.50751 | CJ13: ='TNC Sc3'!L18 -> 9595.412793 | CK13: ='TNC Sc3'!M18 -> 114328.1982 | CL13: ='TNC Sc3'!N18 -> 6630.563488 | CM13: ='TNC Sc3'!O18 -> 1695.712577 | CN13: ='TNC Sc3'!P18 -> 3563.681087 | CO13: ='TNC Sc3'!Q18 -> 148095.0757 | CP13: ='TNC Sc3'!S18 -> 181692.7106 | CQ13: ='TNC Sc3'!T18 -> 2414.467406 | CR13: ='TNC Sc3'!V18 -> 332202.2537 | CS13: ='TNC Sc3'!Z18 -> 148095.0757 | CT13: ='TNC Sc3'!AA18 -> 0 | CU13: ='TNC Sc3'!AB18 -> 148095.0757 | CV13: ='TNC Sc3'!AC18 -> 181692.7106 | CW13: ='TNC Sc3'!AD18 -> 2414.467406 | CX13: ='TNC Sc3'!AE18 -> 332202.2537 | CY13: ='TNC Sc3'!AI18 -> 459.7818957 | CZ13: ='TNC Sc3'!AJ18 -> 0.2189437598 | DA13: ='TNC Sc3'!AK18 -> 0.02123091005 | DB13: ='TNC Sc3'!AL18 -> 582.9665128 | DC13: ='TNC Sc3'!AM18 -> 0.03068244804 | DD13: ='TNC Sc3'!AN18 -> 0.03068244804 | DE13: ='TNC Sc3'!AO18 -> 7.952821032 | DF13: ='TNC Sc3'!AP18 -> 0.007814182313 | DG13: ='TNC Sc3'!AQ18 -> 2.520703972e-05 | DH13: ='TNC Sc3'!AS18 -> 1050.70123 | DI13: ='TNC Sc3'!AT18 -> 0.2574403902 | DJ13: ='TNC Sc3'!AU18 -> 0.05193856513 | DK13: ='TNC Sc3'!AV18 -> 1072.614932 | DL13: ='TNC Sc4'!B14 -> 207682160 | DM13: ='TNC Sc4'!C14 -> 691915915.9 | DN13: ='TNC Sc4'!D14 -> 450488863.5 | DO13: ='TNC Sc4'!E14 -> 4571372319 | DP13: ='TNC Sc4'!F14 -> 154293577.8 | DQ13: ='TNC Sc4'!G14 -> 62062365.05 | DR13: ='TNC Sc4'!I14 -> 370156500 | DS13: ='TNC Sc4'!J14 -> 3977513357 | DT13: ='TNC Sc4'!K14 -> 403140132.2 | DU13: ='TNC Sc4'!L14 -> 611433992.9 | DV13: ='TNC Sc4'!M14 -> 3607356857 | DW13: ='TNC Sc4'!P14 -> 5766059.631 | DX13: ='TNC Sc4'!Q14 -> 334637.3893 | DY13: ='TNC Sc4'!V14 -> 12281.50751 | DZ13: ='TNC Sc4'!W14 -> 9595.412793 | EA13: ='TNC Sc4'!X14 -> 111036.2276 | EB13: ='TNC Sc4'!Y14 -> 6630.563488 | EC13: ='TNC Sc4'!Z14 -> 927.6690354 | ED13: ='TNC Sc4'!AA14 -> 3563.681087 | EE13: ='TNC Sc4'!AB14 -> 144035.0615 | EF13: ='TNC Sc4'!AC14 -> 12624.65151 | EG13: ='TNC Sc4'!AD14 -> 30909.59738 | EH13: ='TNC Sc4'!AE14 -> 26544.9931 | EI13: ='TNC Sc4'!AF14 -> 108239.2725 | EJ13: ='TNC Sc4'!AG14 -> 178318.5145 | EK13: ='TNC Sc4'!AI14 -> 135.2292722 | EL13: ='TNC Sc4'!AJ14 -> 13.83232455 | EM13: ='TNC Sc4'!AK14 -> 2265.405809 | EN13: ='TNC Sc4'!AL14 -> 2414.467406 | EO13: ='TNC Sc4'!AM14 -> 24144.67406 | EP13: ='TNC Sc4'!AO14 -> 324768.0434 | EQ13: ='TNC Sc4'!AT14 -> 447.1770135 | ER13: ='TNC Sc4'!AU14 -> 0.212941435 | ES13: ='TNC Sc4'!AV14 -> 0.02064886642 | ET13: ='TNC Sc4'!AW14 -> 572.1403033 | EU13: ='TNC Sc4'!AX14 -> 0.03011264754 | EV13: ='TNC Sc4'!AY14 -> 0.03011264754 | EW13: ='TNC Sc4'!AZ14 -> 7.952821032 | EX13: ='TNC Sc4'!BA14 -> 0.007814182313 | EY13: ='TNC Sc4'!BB14 -> 2.520703972e-05 | EZ13: ='TNC Sc4'!BD14 -> 1027.270138 | FA13: ='TNC Sc4'!BE14 -> 0.2508682648 | FB13: ='TNC Sc4'!BF14 -> 0.05078672101 | FC13: ='TNC Sc4'!BG14 -> 1048.676287
A14: ='UD1 BAU'!A17 -> 2020 | B14: ='TNC BAU'!B17 -> 1.122644152e+10 | C14: ='TNC BAU'!C17 -> 6166724985 | D14: ='TNC BAU'!D17 -> 5053566297 | E14: ='TNC BAU'!E17 -> 6150242.239 | F14: ='TNC BAU'!H17 -> 697535130.4 | G14: ='TNC BAU'!I17 -> 454147391.3 | H14: ='TNC BAU'!J17 -> 4796929443 | I14: ='TNC BAU'!K17 -> 155546632.8 | J14: ='TNC BAU'!L17 -> 62566388.35 | K14: ='TNC BAU'!O17 -> 427351009.3 | L14: ='TNC BAU'!P17 -> 616399594.5 | M14: ='TNC BAU'!Q17 -> 4009815693 | N14: ='TNC BAU'!T17 -> 5812887.18 | O14: ='TNC BAU'!U17 -> 337355.0595 | P14: ='TNC BAU'!AC17 -> 12381.24856 | Q14: ='TNC BAU'!AD17 -> 116514.8915 | R14: ='TNC BAU'!AE17 -> 9673.339434 | S14: ='TNC BAU'!AF17 -> 6684.411879 | T14: ='TNC BAU'!AG17 -> 935.2028574 | U14: ='TNC BAU'!AH17 -> 3700.334152 | V14: ='TNC BAU'!AI17 -> 149889.4283 | W14: ='TNC BAU'!AJ17 -> 13382.83424 | X14: ='TNC BAU'!AK17 -> 31160.62161 | Y14: ='TNC BAU'!AL17 -> 29506.51519 | Z14: ='TNC BAU'!AM17 -> 112389.8202 | AA14: ='TNC BAU'!AN17 -> 186439.7913 | AB14: ='TNC BAU'!AO17 -> 136.3275014 | AC14: ='TNC BAU'!AP17 -> 13.94466016 | AD14: ='TNC BAU'!AQ17 -> 2104.561997 | AE14: ='TNC BAU'!AR17 -> 2254.834159 | AF14: ='TNC BAU'!AS17 -> 22548.34159 | AG14: ='TNC BAU'!AU17 -> 338584.0538 | AH14: ='TNC BAU'!AY17 -> 465.3527148 | AI14: ='TNC BAU'!AZ17 -> 0.2215965309 | AJ14: ='TNC BAU'!BA17 -> 0.02148814845 | AK14: ='TNC BAU'!BB17 -> 598.1976635 | AL14: ='TNC BAU'!BC17 -> 0.03148408755 | AM14: ='TNC BAU'!BD17 -> 0.03148408755 | AN14: ='TNC BAU'!BE17 -> 7.427017848 | AO14: ='TNC BAU'!BF17 -> 0.007297545271 | AP14: ='TNC BAU'!BG17 -> 2.354046862e-05 | AQ14: ='TNC BAU'!BI17 -> 1070.977396 | AR14: ='TNC BAU'!BJ17 -> 0.2603781637 | AS14: ='TNC BAU'!BK17 -> 0.05299577647 | AT14: ='TNC BAU'!BL17 -> 1093.279592 | AU14: ='TNC Sc2'!A18 -> 142394.9569 | AV14: ='TNC Sc1'!B20 -> 184575.3934 | AW14: ='TNC Sc1'!C20 -> 2232.285817 | AX14: ='TNC Sc1'!D20 -> 335198.2132 | AY14: ='TNC Sc1'!G20 -> 460.6991877 | AZ14: ='TNC Sc1'!H20 -> 0.2193805656 | BA14: ='TNC Sc1'!I20 -> 0.02127326696 | BB14: ='TNC Sc1'!J20 -> 592.2156868 | BC14: ='TNC Sc1'!K20 -> 0.03116924668 | BD14: ='TNC Sc1'!L20 -> 0.03116924668 | BE14: ='TNC Sc1'!M20 -> 7.35274767 | BF14: ='TNC Sc1'!N20 -> 0.007224569818 | BG14: ='TNC Sc1'!O20 -> 2.330506393e-05 | BH14: ='TNC Sc1'!Q20 -> 1060.267622 | BI14: ='TNC Sc1'!R20 -> 0.2577743821 | BJ14: ='TNC Sc1'!S20 -> 0.0524658187 | BK14: ='TNC Sc1'!T20 -> 1082.346796 | BL14: ='TNC Sc2'!A18 -> 142394.9569 | BM14: ='TNC Sc2'!B18 -> 177117.8017 | BN14: ='TNC Sc2'!C18 -> 2254.834159 | BO14: ='TNC Sc2'!D18 -> 321767.5928 | BP14: ='TNC Sc2'!G18 -> 442.0850791 | BQ14: ='TNC Sc2'!H18 -> 0.2105167043 | BR14: ='TNC Sc2'!I18 -> 0.02041374103 | BS14: ='TNC Sc2'!J18 -> 568.2877803 | BT14: ='TNC Sc2'!K18 -> 0.02990988317 | BU14: ='TNC Sc2'!L18 -> 0.02990988317 | BV14: ='TNC Sc2'!M18 -> 7.427017848 | BW14: ='TNC Sc2'!N18 -> 0.007297545271 | BX14: ='TNC Sc2'!O18 -> 2.354046862e-05 | BY14: ='TNC Sc2'!Q18 -> 1017.799877 | BZ14: ='TNC Sc2'!R18 -> 0.2477241328 | CA14: ='TNC Sc2'!S18 -> 0.05034716467 | CB14: ='TNC Sc2'!T18 -> 1038.996436 | CC14: ='TNC Sc3'!B19 -> 697535130.4 | CD14: ='TNC Sc3'!C19 -> 454147391.3 | CE14: ='TNC Sc3'!D19 -> 4732178830 | CF14: ='TNC Sc3'!E19 -> 155546632.8 | CG14: ='TNC Sc3'!F19 -> 127317000.7 | CH14: ='TNC Sc3'!G19 -> 0 | CI14: ='TNC Sc3'!K19 -> 12381.24856 | CJ14: ='TNC Sc3'!L19 -> 9673.339434 | CK14: ='TNC Sc3'!M19 -> 114942.1332 | CL14: ='TNC Sc3'!N19 -> 6684.411879 | CM14: ='TNC Sc3'!O19 -> 1903.054116 | CN14: ='TNC Sc3'!P19 -> 3700.334152 | CO14: ='TNC Sc3'!Q19 -> 149284.5213 | CP14: ='TNC Sc3'!S19 -> 186439.7913 | CQ14: ='TNC Sc3'!T19 -> 2254.834159 | CR14: ='TNC Sc3'!V19 -> 337979.1467 | CS14: ='TNC Sc3'!Z19 -> 149284.5213 | CT14: ='TNC Sc3'!AA19 -> 2139.508929 | CU14: ='TNC Sc3'!AB19 -> 147145.0124 | CV14: ='TNC Sc3'!AC19 -> 186439.7913 | CW14: ='TNC Sc3'!AD19 -> 2254.834159 | CX14: ='TNC Sc3'!AE19 -> 335839.6378 | CY14: ='TNC Sc3'!AI19 -> 456.8322912 | CZ14: ='TNC Sc3'!AJ19 -> 0.2175391863 | DA14: ='TNC Sc3'!AK19 -> 0.02109470898 | DB14: ='TNC Sc3'!AL19 -> 598.1976635 | DC14: ='TNC Sc3'!AM19 -> 0.03148408755 | DD14: ='TNC Sc3'!AN19 -> 0.03148408755 | DE14: ='TNC Sc3'!AO19 -> 7.427017848 | DF14: ='TNC Sc3'!AP19 -> 0.007297545271 | DG14: ='TNC Sc3'!AQ19 -> 2.354046862e-05 | DH14: ='TNC Sc3'!AS19 -> 1062.456973 | DI14: ='TNC Sc3'!AT19 -> 0.2563208191 | DJ14: ='TNC Sc3'!AU19 -> 0.05260233699 | DK14: ='TNC Sc3'!AV19 -> 1084.540489 | DL14: ='TNC Sc4'!B15 -> 207238320 | DM14: ='TNC Sc4'!C15 -> 697535130.4 | DN14: ='TNC Sc4'!D15 -> 454147391.3 | DO14: ='TNC Sc4'!E15 -> 4610414955 | DP14: ='TNC Sc4'!F15 -> 155546632.8 | DQ14: ='TNC Sc4'!G15 -> 62566388.35 | DR14: ='TNC Sc4'!I15 -> 371168000 | DS14: ='TNC Sc4'!J15 -> 4009815693 | DT14: ='TNC Sc4'!K15 -> 406627177.3 | DU14: ='TNC Sc4'!L15 -> 616399594.5 | DV14: ='TNC Sc4'!M15 -> 3638647693 | DW14: ='TNC Sc4'!P15 -> 5812887.18 | DX14: ='TNC Sc4'!Q15 -> 337355.0595 | DY14: ='TNC Sc4'!V15 -> 12381.24856 | DZ14: ='TNC Sc4'!W15 -> 9673.339434 | EA14: ='TNC Sc4'!X15 -> 111984.5527 | EB14: ='TNC Sc4'!Y15 -> 6684.411879 | EC14: ='TNC Sc4'!Z15 -> 935.2028574 | ED14: ='TNC Sc4'!AA15 -> 3700.334152 | EE14: ='TNC Sc4'!AB15 -> 145359.0896 | EF14: ='TNC Sc4'!AC15 -> 12733.85108 | EG14: ='TNC Sc4'!AD15 -> 31160.62161 | EH14: ='TNC Sc4'!AE15 -> 26775.24895 | EI14: ='TNC Sc4'!AF15 -> 112389.8202 | EJ14: ='TNC Sc4'!AG15 -> 183059.5419 | EK14: ='TNC Sc4'!AI15 -> 136.3275014 | EL14: ='TNC Sc4'!AJ15 -> 13.94466016 | EM14: ='TNC Sc4'!AK15 -> 2104.561997 | EN14: ='TNC Sc4'!AL15 -> 2254.834159 | EO14: ='TNC Sc4'!AM15 -> 22548.34159 | EP14: ='TNC Sc4'!AO15 -> 330673.4656 | EQ14: ='TNC Sc4'!AT15 -> 451.2876439 | ER14: ='TNC Sc4'!AU15 -> 0.2148988781 | ES14: ='TNC Sc4'!AV15 -> 0.02083867909 | ET14: ='TNC Sc4'!AW15 -> 587.3520319 | EU14: ='TNC Sc4'!AX15 -> 0.03091326483 | EV14: ='TNC Sc4'!AY15 -> 0.03091326483 | EW14: ='TNC Sc4'!AZ15 -> 7.427017848 | EX14: ='TNC Sc4'!BA15 -> 0.007297545271 | EY14: ='TNC Sc4'!BB15 -> 2.354046862e-05 | EZ14: ='TNC Sc4'!BD15 -> 1046.066694 | FA14: ='TNC Sc4'!BE15 -> 0.2531096882 | FB14: ='TNC Sc4'!BF15 -> 0.05177548439 | FC14: ='TNC Sc4'!BG15 -> 1067.82353
A15: ='UD1 BAU'!A18 -> 2021 | B15: ='TNC BAU'!B18 -> 1.131136566e+10 | C15: ='TNC BAU'!C18 -> 6213374120 | D15: ='TNC BAU'!D18 -> 5091794772 | E15: ='TNC BAU'!E18 -> 6196766.687 | F15: ='TNC BAU'!H18 -> 702811741.5 | G15: ='TNC BAU'!I18 -> 457582858.6 | H15: ='TNC BAU'!J18 -> 4833216549 | I15: ='TNC BAU'!K18 -> 156723289.1 | J15: ='TNC BAU'!L18 -> 63039681.36 | K15: ='TNC BAU'!O18 -> 430583771.3 | L15: ='TNC BAU'!P18 -> 621062443.5 | M15: ='TNC BAU'!Q18 -> 4040148557 | N15: ='TNC BAU'!T18 -> 5856859.654 | O15: ='TNC BAU'!U18 -> 339907.0335 | P15: ='TNC BAU'!AC18 -> 12474.90841 | Q15: ='TNC BAU'!AD18 -> 117396.2862 | R15: ='TNC BAU'!AE18 -> 9746.514889 | S15: ='TNC BAU'!AF18 -> 6734.977135 | T15: ='TNC BAU'!AG18 -> 942.2773424 | U15: ='TNC BAU'!AH18 -> 3842.179309 | V15: ='TNC BAU'!AI18 -> 151137.1433 | W15: ='TNC BAU'!AJ18 -> 13484.07073 | X15: ='TNC BAU'!AK18 -> 31396.3409 | Y15: ='TNC BAU'!AL18 -> 29729.72174 | Z15: ='TNC BAU'!AM18 -> 116698.0667 | AA15: ='TNC BAU'!AN18 -> 191308.2001 | AB15: ='TNC BAU'!AO18 -> 137.3587717 | AC15: ='TNC BAU'!AP18 -> 14.05014668 | AD15: ='TNC BAU'!AQ18 -> 1955.138095 | AE15: ='TNC BAU'!AR18 -> 2106.547014 | AF15: ='TNC BAU'!AS18 -> 21065.47014 | AG15: ='TNC BAU'!AU18 -> 344551.8904 | AH15: ='TNC BAU'!AY18 -> 469.2264205 | AI15: ='TNC BAU'!AZ18 -> 0.2234411526 | AJ15: ='TNC BAU'!BA18 -> 0.02166702086 | AK15: ='TNC BAU'!BB18 -> 613.8180992 | AL15: ='TNC BAU'!BC18 -> 0.03230621575 | AM15: ='TNC BAU'!BD18 -> 0.03230621575 | AN15: ='TNC BAU'!BE18 -> 6.938586684 | AO15: ='TNC BAU'!BF18 -> 0.006817628755 | AP15: ='TNC BAU'!BG18 -> 2.199235082e-05 | AQ15: ='TNC BAU'!BI18 -> 1089.983106 | AR15: ='TNC BAU'!BJ18 -> 0.2625649971 | AS15: ='TNC BAU'!BK18 -> 0.05399522896 | AT15: ='TNC BAU'!BL18 -> 1112.63781 | AU15: ='TNC Sc2'!A19 -> 143580.2861 | AV15: ='TNC Sc1'!B21 -> 188438.5771 | AW15: ='TNC Sc1'!C21 -> 2074.948808 | AX15: ='TNC Sc1'!D21 -> 339383.612 | AY15: ='TNC Sc1'!G21 -> 462.1880242 | AZ15: ='TNC Sc1'!H21 -> 0.2200895353 | BA15: ='TNC Sc1'!I21 -> 0.02134201555 | BB15: ='TNC Sc1'!J21 -> 604.6108277 | BC15: ='TNC Sc1'!K21 -> 0.03182162251 | BD15: ='TNC Sc1'!L21 -> 0.03182162251 | BE15: ='TNC Sc1'!M21 -> 6.834507884 | BF15: ='TNC Sc1'!N21 -> 0.006715364323 | BG15: ='TNC Sc1'!O21 -> 2.166246556e-05 | BH15: ='TNC Sc1'!Q21 -> 1073.63336 | BI15: ='TNC Sc1'!R21 -> 0.2586265221 | BJ15: ='TNC Sc1'!S21 -> 0.05318530052 | BK15: ='TNC Sc1'!T21 -> 1095.948242 | BL15: ='TNC Sc2'!A19 -> 143580.2861 | BM15: ='TNC Sc2'!B19 -> 181742.7901 | BN15: ='TNC Sc2'!C19 -> 2106.547014 | BO15: ='TNC Sc2'!D19 -> 327429.6232 | BP15: ='TNC Sc2'!G19 -> 445.7650994 | BQ15: ='TNC Sc2'!H19 -> 0.212269095 | BR15: ='TNC Sc2'!I19 -> 0.02058366982 | BS15: ='TNC Sc2'!J19 -> 583.1271943 | BT15: ='TNC Sc2'!K19 -> 0.03069090496 | BU15: ='TNC Sc2'!L19 -> 0.03069090496 | BV15: ='TNC Sc2'!M19 -> 6.938586684 | BW15: ='TNC Sc2'!N19 -> 0.006817628755 | BX15: ='TNC Sc2'!O19 -> 2.199235082e-05 | BY15: ='TNC Sc2'!Q19 -> 1035.83088 | BZ15: ='TNC Sc2'!R19 -> 0.2497776287 | CA15: ='TNC Sc2'!S19 -> 0.05129656713 | CB15: ='TNC Sc2'!T19 -> 1057.361698 | CC15: ='TNC Sc3'!B20 -> 702811741.5 | CD15: ='TNC Sc3'!C20 -> 457582858.6 | CE15: ='TNC Sc3'!D20 -> 4730695876 | CF15: ='TNC Sc3'!E20 -> 156723289.1 | CG15: ='TNC Sc3'!F20 -> 159346980.2 | CH15: ='TNC Sc3'!G20 -> 6213374.12 | CI15: ='TNC Sc3'!K20 -> 12474.90841 | CJ15: ='TNC Sc3'!L20 -> 9746.514889 | CK15: ='TNC Sc3'!M20 -> 114906.113 | CL15: ='TNC Sc3'!N20 -> 6734.977135 | CM15: ='TNC Sc3'!O20 -> 2381.81802 | CN15: ='TNC Sc3'!P20 -> 3842.179309 | CO15: ='TNC Sc3'!Q20 -> 150086.5108 | CP15: ='TNC Sc3'!S20 -> 191308.2001 | CQ15: ='TNC Sc3'!T20 -> 2106.547014 | CR15: ='TNC Sc3'!V20 -> 343501.2579 | CS15: ='TNC Sc3'!Z20 -> 150086.5108 | CT15: ='TNC Sc3'!AA20 -> 2567.410714 | CU15: ='TNC Sc3'!AB20 -> 147519.1 | CV15: ='TNC Sc3'!AC20 -> 191308.2001 | CW15: ='TNC Sc3'!AD20 -> 2106.547014 | CX15: ='TNC Sc3'!AE20 -> 340933.8471 | CY15: ='TNC Sc3'!AI20 -> 457.9936987 | CZ15: ='TNC Sc3'!AJ20 -> 0.2180922375 | DA15: ='TNC Sc3'!AK20 -> 0.02114833818 | DB15: ='TNC Sc3'!AL20 -> 613.8180992 | DC15: ='TNC Sc3'!AM20 -> 0.03230621575 | DD15: ='TNC Sc3'!AN20 -> 0.03230621575 | DE15: ='TNC Sc3'!AO20 -> 6.938586684 | DF15: ='TNC Sc3'!AP20 -> 0.006817628755 | DG15: ='TNC Sc3'!AQ20 -> 2.199235082e-05 | DH15: ='TNC Sc3'!AS20 -> 1078.750385 | DI15: ='TNC Sc3'!AT20 -> 0.257216082 | DJ15: ='TNC Sc3'!AU20 -> 0.05347654628 | DK15: ='TNC Sc3'!AV20 -> 1101.116798 | DL15: ='TNC Sc4'!B16 -> 206794480 | DM15: ='TNC Sc4'!C16 -> 702811741.5 | DN15: ='TNC Sc4'!D16 -> 457582858.6 | DO15: ='TNC Sc4'!E16 -> 4647101517 | DP15: ='TNC Sc4'!F16 -> 156723289.1 | DQ15: ='TNC Sc4'!G16 -> 63039681.36 | DR15: ='TNC Sc4'!I16 -> 372179500 | DS15: ='TNC Sc4'!J16 -> 4040148557 | DT15: ='TNC Sc4'!K16 -> 409904323.3 | DU15: ='TNC Sc4'!L16 -> 621062443.5 | DV15: ='TNC Sc4'!M16 -> 3667969057 | DW15: ='TNC Sc4'!P16 -> 5856859.654 | DX15: ='TNC Sc4'!Q16 -> 339907.0335 | DY15: ='TNC Sc4'!V16 -> 12474.90841 | DZ15: ='TNC Sc4'!W16 -> 9746.514889 | EA15: ='TNC Sc4'!X16 -> 112875.65 | EB15: ='TNC Sc4'!Y16 -> 6734.977135 | EC15: ='TNC Sc4'!Z16 -> 942.2773424 | ED15: ='TNC Sc4'!AA16 -> 3842.179309 | EE15: ='TNC Sc4'!AB16 -> 146616.5071 | EF15: ='TNC Sc4'!AC16 -> 12836.47749 | EG15: ='TNC Sc4'!AD16 -> 31396.3409 | EH15: ='TNC Sc4'!AE16 -> 26991.01231 | EI15: ='TNC Sc4'!AF16 -> 116698.0667 | EJ15: ='TNC Sc4'!AG16 -> 187921.8974 | EK15: ='TNC Sc4'!AI16 -> 137.3587717 | EL15: ='TNC Sc4'!AJ16 -> 14.05014668 | EM15: ='TNC Sc4'!AK16 -> 1955.138095 | EN15: ='TNC Sc4'!AL16 -> 2106.547014 | EO15: ='TNC Sc4'!AM16 -> 21065.47014 | EP15: ='TNC Sc4'!AO16 -> 336644.9515 | EQ15: ='TNC Sc4'!AT16 -> 455.1914726 | ER15: ='TNC Sc4'!AU16 -> 0.2167578441 | ES15: ='TNC Sc4'!AV16 -> 0.02101894246 | ET15: ='TNC Sc4'!AW16 -> 602.9530455 | EU15: ='TNC Sc4'!AX16 -> 0.03173437082 | EV15: ='TNC Sc4'!AY16 -> 0.03173437082 | EW15: ='TNC Sc4'!AZ16 -> 6.938586684 | EX15: ='TNC Sc4'!BA16 -> 0.006817628755 | EY15: ='TNC Sc4'!BB16 -> 2.199235082e-05 | EZ15: ='TNC Sc4'!BD16 -> 1065.083105 | FA15: ='TNC Sc4'!BE16 -> 0.2553098437 | FB15: ='TNC Sc4'!BF16 -> 0.05277530562 | FC15: ='TNC Sc4'!BG16 -> 1087.192892
A16: ='UD1 BAU'!A19 -> 2022 | B16: ='TNC BAU'!B19 -> 1.139076842e+10 | C16: ='TNC BAU'!C19 -> 6256990347 | D16: ='TNC BAU'!D19 -> 5127537812 | E16: ='TNC BAU'!E19 -> 6240266.334 | F16: ='TNC BAU'!H19 -> 707745292.3 | G16: ='TNC BAU'!I19 -> 460794968.1 | H16: ='TNC BAU'!J19 -> 4867144438 | I16: ='TNC BAU'!K19 -> 157823444.8 | J16: ='TNC BAU'!L19 -> 63482203.09 | K16: ='TNC BAU'!O19 -> 433606354.4 | L16: ='TNC BAU'!P19 -> 625422136 | M16: ='TNC BAU'!Q19 -> 4068509321 | N16: ='TNC BAU'!T19 -> 5897973.244 | O16: ='TNC BAU'!U19 -> 342293.0901 | P16: ='TNC BAU'!AC19 -> 12562.47894 | Q16: ='TNC BAU'!AD19 -> 118220.3768 | R16: ='TNC BAU'!AE19 -> 9814.932821 | S16: ='TNC BAU'!AF19 -> 6782.254876 | T16: ='TNC BAU'!AG19 -> 948.8918777 | U16: ='TNC BAU'!AH19 -> 3989.413856 | V16: ='TNC BAU'!AI19 -> 152318.3491 | W16: ='TNC BAU'!AJ19 -> 13578.72531 | X16: ='TNC BAU'!AK19 -> 31616.73482 | Y16: ='TNC BAU'!AL19 -> 29938.41645 | Z16: ='TNC BAU'!AM19 -> 121170.0046 | AA16: ='TNC BAU'!AN19 -> 196303.8811 | AB16: ='TNC BAU'!AO19 -> 138.3229936 | AC16: ='TNC BAU'!AP19 -> 14.14877496 | AD16: ='TNC BAU'!AQ19 -> 1816.32329 | AE16: ='TNC BAU'!AR19 -> 1968.795059 | AF16: ='TNC BAU'!AS19 -> 19687.95059 | AG16: ='TNC BAU'!AU19 -> 350591.0253 | AH16: ='TNC BAU'!AY19 -> 472.8936394 | AI16: ='TNC BAU'!AZ19 -> 0.2251874473 | AJ16: ='TNC BAU'!BA19 -> 0.02183635853 | AK16: ='TNC BAU'!BB19 -> 629.8468917 | AL16: ='TNC BAU'!BC19 -> 0.03314983641 | AM16: ='TNC BAU'!BD19 -> 0.03314983641 | AN16: ='TNC BAU'!BE19 -> 6.484856541 | AO16: ='TNC BAU'!BF19 -> 0.006371808329 | AP16: ='TNC BAU'!BG19 -> 2.055422042e-05 | AQ16: ='TNC BAU'!BI19 -> 1109.225388 | AR16: ='TNC BAU'!BJ19 -> 0.2647090921 | AS16: ='TNC BAU'!BK19 -> 0.05500674916 | AT16: ='TNC BAU'!BL19 -> 1132.235126 | AU16: ='TNC Sc2'!A20 -> 144702.4317 | AV16: ='TNC Sc1'!B22 -> 193359.3229 | AW16: ='TNC Sc1'!C22 -> 1939.263133 | AX16: ='TNC Sc1'!D22 -> 345332.1599 | AY16: ='TNC Sc1'!G22 -> 465.8002348 | AZ16: ='TNC Sc1'!H22 -> 0.2218096356 | BA16: ='TNC Sc1'!I22 -> 0.02150881315 | BB16: ='TNC Sc1'!J22 -> 620.3991884 | BC16: ='TNC Sc1'!K22 -> 0.03265258886 | BD16: ='TNC Sc1'!L22 -> 0.03265258886 | BE16: ='TNC Sc1'!M22 -> 6.387583693 | BF16: ='TNC Sc1'!N22 -> 0.006276231204 | BG16: ='TNC Sc1'!O22 -> 2.024590711e-05 | BH16: ='TNC Sc1'!Q22 -> 1092.587007 | BI16: ='TNC Sc1'!R22 -> 0.2607384557 | BJ16: ='TNC Sc1'!S22 -> 0.05418164792 | BK16: ='TNC Sc1'!T22 -> 1115.251599 | BL16: ='TNC Sc2'!A20 -> 144702.4317 | BM16: ='TNC Sc2'!B20 -> 186488.6871 | BN16: ='TNC Sc2'!C20 -> 1968.795059 | BO16: ='TNC Sc2'!D20 -> 333159.9138 | BP16: ='TNC Sc2'!G20 -> 449.2489574 | BQ16: ='TNC Sc2'!H20 -> 0.213928075 | BR16: ='TNC Sc2'!I20 -> 0.0207445406 | BS16: ='TNC Sc2'!J20 -> 598.3545471 | BT16: ='TNC Sc2'!K20 -> 0.03149234459 | BU16: ='TNC Sc2'!L20 -> 0.03149234459 | BV16: ='TNC Sc2'!M20 -> 6.484856541 | BW16: ='TNC Sc2'!N20 -> 0.006371808329 | BX16: ='TNC Sc2'!O20 -> 2.055422042e-05 | BY16: ='TNC Sc2'!Q20 -> 1054.088361 | BZ16: ='TNC Sc2'!R20 -> 0.2517922279 | CA16: ='TNC Sc2'!S20 -> 0.05225743941 | CB16: ='TNC Sc2'!T20 -> 1075.955884 | CC16: ='TNC Sc3'!B21 -> 707745292.3 | CD16: ='TNC Sc3'!C21 -> 460794968.1 | CE16: ='TNC Sc3'!D21 -> 4726362156 | CF16: ='TNC Sc3'!E21 -> 157823444.8 | CG16: ='TNC Sc3'!F21 -> 191750505.2 | CH16: ='TNC Sc3'!G21 -> 12513980.69 | CI16: ='TNC Sc3'!K21 -> 12562.47894 | CJ16: ='TNC Sc3'!L21 -> 9814.932821 | CK16: ='TNC Sc3'!M21 -> 114800.8492 | CL16: ='TNC Sc3'!N21 -> 6782.254876 | CM16: ='TNC Sc3'!O21 -> 2866.165446 | CN16: ='TNC Sc3'!P21 -> 3989.413856 | CO16: ='TNC Sc3'!Q21 -> 150816.0951 | CP16: ='TNC Sc3'!S21 -> 196303.8811 | CQ16: ='TNC Sc3'!T21 -> 1968.795059 | CR16: ='TNC Sc3'!V21 -> 349088.7713 | CS16: ='TNC Sc3'!Z21 -> 150816.0951 | CT16: ='TNC Sc3'!AA21 -> 2995.3125 | CU16: ='TNC Sc3'!AB21 -> 147820.7826 | CV16: ='TNC Sc3'!AC21 -> 196303.8811 | CW16: ='TNC Sc3'!AD21 -> 1968.795059 | CX16: ='TNC Sc3'!AE21 -> 346093.4588 | CY16: ='TNC Sc3'!AI21 -> 458.9303146 | CZ16: ='TNC Sc3'!AJ21 -> 0.2185382451 | DA16: ='TNC Sc3'!AK21 -> 0.0211915874 | DB16: ='TNC Sc3'!AL21 -> 629.8468917 | DC16: ='TNC Sc3'!AM21 -> 0.03314983641 | DD16: ='TNC Sc3'!AN21 -> 0.03314983641 | DE16: ='TNC Sc3'!AO21 -> 6.484856541 | DF16: ='TNC Sc3'!AP21 -> 0.006371808329 | DG16: ='TNC Sc3'!AQ21 -> 2.055422042e-05 | DH16: ='TNC Sc3'!AS21 -> 1095.262063 | DI16: ='TNC Sc3'!AT21 -> 0.2580598898 | DJ16: ='TNC Sc3'!AU21 -> 0.05436197803 | DK16: ='TNC Sc3'!AV21 -> 1117.91343 | DL16: ='TNC Sc4'!B17 -> 206350640 | DM16: ='TNC Sc4'!C17 -> 707745292.3 | DN16: ='TNC Sc4'!D17 -> 460794968.1 | DO16: ='TNC Sc4'!E17 -> 4681428862 | DP16: ='TNC Sc4'!F17 -> 157823444.8 | DQ16: ='TNC Sc4'!G17 -> 63482203.09 | DR16: ='TNC Sc4'!I17 -> 373191000 | DS16: ='TNC Sc4'!J17 -> 4068509321 | DT16: ='TNC Sc4'!K17 -> 412971290.4 | DU16: ='TNC Sc4'!L17 -> 625422136 | DV16: ='TNC Sc4'!M17 -> 3695318321 | DW16: ='TNC Sc4'!P17 -> 5897973.244 | DX16: ='TNC Sc4'!Q17 -> 342293.0901 | DY16: ='TNC Sc4'!V17 -> 12562.47894 | DZ16: ='TNC Sc4'!W17 -> 9814.932821 | EA16: ='TNC Sc4'!X17 -> 113709.4432 | EB16: ='TNC Sc4'!Y17 -> 6782.254876 | EC16: ='TNC Sc4'!Z17 -> 948.8918777 | ED16: ='TNC Sc4'!AA17 -> 3989.413856 | EE16: ='TNC Sc4'!AB17 -> 147807.4155 | EF16: ='TNC Sc4'!AC17 -> 12932.52199 | EG16: ='TNC Sc4'!AD17 -> 31616.73482 | EH16: ='TNC Sc4'!AE17 -> 27192.26382 | EI16: ='TNC Sc4'!AF17 -> 121170.0046 | EJ16: ='TNC Sc4'!AG17 -> 192911.5252 | EK16: ='TNC Sc4'!AI17 -> 138.3229936 | EL16: ='TNC Sc4'!AJ17 -> 14.14877496 | EM16: ='TNC Sc4'!AK17 -> 1816.32329 | EN16: ='TNC Sc4'!AL17 -> 1968.795059 | EO16: ='TNC Sc4'!AM17 -> 19687.95059 | EP16: ='TNC Sc4'!AO17 -> 342687.7358 | EQ16: ='TNC Sc4'!AT17 -> 458.8888145 | ER16: ='TNC Sc4'!AU17 -> 0.2185184831 | ES16: ='TNC Sc4'!AV17 -> 0.02118967109 | ET16: ='TNC Sc4'!AW17 -> 618.9624159 | EU16: ='TNC Sc4'!AX17 -> 0.03257696926 | EV16: ='TNC Sc4'!AY17 -> 0.03257696926 | EW16: ='TNC Sc4'!AZ17 -> 6.484856541 | EX16: ='TNC Sc4'!BA17 -> 0.006371808329 | EY16: ='TNC Sc4'!BB17 -> 2.055422042e-05 | EZ16: ='TNC Sc4'!BD17 -> 1084.336087 | FA16: ='TNC Sc4'!BE17 -> 0.2574672607 | FB16: ='TNC Sc4'!BF17 -> 0.05378719457 | FC16: ='TNC Sc4'!BG17 -> 1106.801352
A17: ='UD1 BAU'!A20 -> 2023 | B17: ='TNC BAU'!B20 -> 1.146467056e+10 | C17: ='TNC BAU'!C20 -> 6297585055 | D17: ='TNC BAU'!D20 -> 5160804748 | E17: ='TNC BAU'!E20 -> 6280752.539 | F17: ='TNC BAU'!H20 -> 712337070.8 | G17: ='TNC BAU'!I20 -> 463784558.4 | H17: ='TNC BAU'!J20 -> 4898721970 | I17: ='TNC BAU'!K20 -> 158847387 | J17: ='TNC BAU'!L20 -> 63894069.08 | K17: ='TNC BAU'!O20 -> 436419547.7 | L17: ='TNC BAU'!P20 -> 629479810.4 | M17: ='TNC BAU'!Q20 -> 4094905390 | N17: ='TNC BAU'!T20 -> 5936238.687 | O17: ='TNC BAU'!U20 -> 344513.8523 | P17: ='TNC BAU'!AC20 -> 12643.98301 | Q17: ='TNC BAU'!AD20 -> 118987.3784 | R17: ='TNC BAU'!AE20 -> 9878.611093 | S17: ='TNC BAU'!AF20 -> 6826.257446 | T17: ='TNC BAU'!AG20 -> 955.0481904 | U17: ='TNC BAU'!AH20 -> 4142.24259 | V17: ='TNC BAU'!AI20 -> 153433.5207 | W17: ='TNC BAU'!AJ20 -> 13666.82268 | X17: ='TNC BAU'!AK20 -> 31821.86094 | Y17: ='TNC BAU'!AL20 -> 30132.65381 | Z17: ='TNC BAU'!AM20 -> 125811.854 | AA17: ='TNC BAU'!AN20 -> 201433.1914 | AB17: ='TNC BAU'!AO20 -> 139.2204189 | AC17: ='TNC BAU'!AP20 -> 14.24057075 | AD17: ='TNC BAU'!AQ20 -> 1687.364337 | AE17: ='TNC BAU'!AR20 -> 1840.825326 | AF17: ='TNC BAU'!AS20 -> 18408.25326 | AG17: ='TNC BAU'!AU20 -> 356707.5374 | AH17: ='TNC BAU'!AY20 -> 476.3558457 | AI17: ='TNC BAU'!AZ20 -> 0.226836117 | AJ17: ='TNC BAU'!BA20 -> 0.02199622953 | AK17: ='TNC BAU'!BB20 -> 646.3044377 | AL17: ='TNC BAU'!BC20 -> 0.03401602303 | AM17: ='TNC BAU'!BD20 -> 0.03401602303 | AN17: ='TNC BAU'!BE20 -> 6.063347277 | AO17: ='TNC BAU'!BF20 -> 0.005957647086 | AP17: ='TNC BAU'!BG20 -> 1.921821641e-05 | AQ17: ='TNC BAU'!BI20 -> 1128.723631 | AR17: ='TNC BAU'!BJ20 -> 0.2668097871 | AS17: ='TNC BAU'!BK20 -> 0.05603147078 | AT17: ='TNC BAU'!BL20 -> 1152.091254 | AU17: ='TNC Sc2'!A21 -> 145761.8447 | AV17: ='TNC Sc1'!B23 -> 198411.6935 | AW17: ='TNC Sc1'!C23 -> 1813.212947 | AX17: ='TNC Sc1'!D23 -> 351356.9244 | AY17: ='TNC Sc1'!G23 -> 469.210508 | AZ17: ='TNC Sc1'!H23 -> 0.2234335752 | BA17: ='TNC Sc1'!I23 -> 0.02166628608 | BB17: ='TNC Sc1'!J23 -> 636.6098711 | BC17: ='TNC Sc1'!K23 -> 0.03350578269 | BD17: ='TNC Sc1'!L23 -> 0.03350578269 | BE17: ='TNC Sc1'!M23 -> 5.972397068 | BF17: ='TNC Sc1'!N23 -> 0.00586828238 | BG17: ='TNC Sc1'!O23 -> 1.892994316e-05 | BH17: ='TNC Sc1'!Q23 -> 1111.792776 | BI17: ='TNC Sc1'!R23 -> 0.2628076403 | BJ17: ='TNC Sc1'!S23 -> 0.05519099872 | BK17: ='TNC Sc1'!T23 -> 1134.809885 | BL17: ='TNC Sc2'!A21 -> 145761.8447 | BM17: ='TNC Sc2'!B21 -> 191361.5318 | BN17: ='TNC Sc2'!C21 -> 1840.825326 | BO17: ='TNC Sc2'!D21 -> 338964.2018 | BP17: ='TNC Sc2'!G21 -> 452.5380534 | BQ17: ='TNC Sc2'!H21 -> 0.2154943111 | BR17: ='TNC Sc2'!I21 -> 0.02089641805 | BS17: ='TNC Sc2'!J21 -> 613.9892158 | BT17: ='TNC Sc2'!K21 -> 0.03231522188 | BU17: ='TNC Sc2'!L21 -> 0.03231522188 | BV17: ='TNC Sc2'!M21 -> 6.063347277 | BW17: ='TNC Sc2'!N21 -> 0.005957647086 | BX17: ='TNC Sc2'!O21 -> 1.921821641e-05 | BY17: ='TNC Sc2'!Q21 -> 1072.590616 | BZ17: ='TNC Sc2'!R21 -> 0.2537671801 | CA17: ='TNC Sc2'!S21 -> 0.05323085815 | CB17: ='TNC Sc2'!T21 -> 1094.797592 | CC17: ='TNC Sc3'!B22 -> 712337070.8 | CD17: ='TNC Sc3'!C22 -> 463784558.4 | CE17: ='TNC Sc3'!D22 -> 4719240796 | CF17: ='TNC Sc3'!E22 -> 158847387 | CG17: ='TNC Sc3'!F22 -> 224482488 | CH17: ='TNC Sc3'!G22 -> 18892755.16 | CI17: ='TNC Sc3'!K22 -> 12643.98301 | CJ17: ='TNC Sc3'!L22 -> 9878.611093 | CK17: ='TNC Sc3'!M22 -> 114627.8751 | CL17: ='TNC Sc3'!N22 -> 6826.257446 | CM17: ='TNC Sc3'!O22 -> 3355.422452 | CN17: ='TNC Sc3'!P22 -> 4142.24259 | CO17: ='TNC Sc3'!Q22 -> 151474.3917 | CP17: ='TNC Sc3'!S22 -> 201433.1914 | CQ17: ='TNC Sc3'!T22 -> 1840.825326 | CR17: ='TNC Sc3'!V22 -> 354748.4084 | CS17: ='TNC Sc3'!Z22 -> 151474.3917 | CT17: ='TNC Sc3'!AA22 -> 3423.214286 | CU17: ='TNC Sc3'!AB22 -> 148051.1774 | CV17: ='TNC Sc3'!AC22 -> 201433.1914 | CW17: ='TNC Sc3'!AD22 -> 1840.825326 | CX17: ='TNC Sc3'!AE22 -> 351325.1942 | CY17: ='TNC Sc3'!AI22 -> 459.6456075 | CZ17: ='TNC Sc3'!AJ22 -> 0.2188788607 | DA17: ='TNC Sc3'!AK22 -> 0.02122461679 | DB17: ='TNC Sc3'!AL22 -> 646.3044377 | DC17: ='TNC Sc3'!AM22 -> 0.03401602303 | DD17: ='TNC Sc3'!AN22 -> 0.03401602303 | DE17: ='TNC Sc3'!AO22 -> 6.063347277 | DF17: ='TNC Sc3'!AP22 -> 0.005957647086 | DG17: ='TNC Sc3'!AQ22 -> 1.921821641e-05 | DH17: ='TNC Sc3'!AS22 -> 1112.013392 | DI17: ='TNC Sc3'!AT22 -> 0.2588525308 | DJ17: ='TNC Sc3'!AU22 -> 0.05525985805 | DK17: ='TNC Sc3'!AV22 -> 1134.952143 | DL17: ='TNC Sc4'!B18 -> 205906800 | DM17: ='TNC Sc4'!C18 -> 712337070.8 | DN17: ='TNC Sc4'!D18 -> 463784558.4 | DO17: ='TNC Sc4'!E18 -> 4713405850 | DP17: ='TNC Sc4'!F18 -> 158847387 | DQ17: ='TNC Sc4'!G18 -> 63894069.08 | DR17: ='TNC Sc4'!I18 -> 374202500 | DS17: ='TNC Sc4'!J18 -> 4094905390 | DT17: ='TNC Sc4'!K18 -> 415828867.7 | DU17: ='TNC Sc4'!L18 -> 629479810.4 | DV17: ='TNC Sc4'!M18 -> 3720702890 | DW17: ='TNC Sc4'!P18 -> 5936238.687 | DX17: ='TNC Sc4'!Q18 -> 344513.8523 | DY17: ='TNC Sc4'!V18 -> 12643.98301 | DZ17: ='TNC Sc4'!W18 -> 9878.611093 | EA17: ='TNC Sc4'!X18 -> 114486.1473 | EB17: ='TNC Sc4'!Y18 -> 6826.257446 | EC17: ='TNC Sc4'!Z18 -> 955.0481904 | ED17: ='TNC Sc4'!AA18 -> 4142.24259 | EE17: ='TNC Sc4'!AB18 -> 148932.2897 | EF17: ='TNC Sc4'!AC18 -> 13022.00928 | EG17: ='TNC Sc4'!AD18 -> 31821.86094 | EH17: ='TNC Sc4'!AE18 -> 27379.05798 | EI17: ='TNC Sc4'!AF18 -> 125811.854 | EJ17: ='TNC Sc4'!AG18 -> 198034.7822 | EK17: ='TNC Sc4'!AI18 -> 139.2204189 | EL17: ='TNC Sc4'!AJ18 -> 14.24057075 | EM17: ='TNC Sc4'!AK18 -> 1687.364337 | EN17: ='TNC Sc4'!AL18 -> 1840.825326 | EO17: ='TNC Sc4'!AM18 -> 18408.25326 | EP17: ='TNC Sc4'!AO18 -> 348807.8972 | EQ17: ='TNC Sc4'!AT18 -> 462.3811438 | ER17: ='TNC Sc4'!AU18 -> 0.2201814971 | ES17: ='TNC Sc4'!AV18 -> 0.02135093305 | ET17: ='TNC Sc4'!AW18 -> 635.4005397 | EU17: ='TNC Sc4'!AX18 -> 0.03344213367 | EV17: ='TNC Sc4'!AY18 -> 0.03344213367 | EW17: ='TNC Sc4'!AZ18 -> 6.063347277 | EX17: ='TNC Sc4'!BA18 -> 0.005957647086 | EY17: ='TNC Sc4'!BB18 -> 1.921821641e-05 | EZ17: ='TNC Sc4'!BD18 -> 1103.845031 | FA17: ='TNC Sc4'!BE18 -> 0.2595812778 | FB17: ='TNC Sc4'!BF18 -> 0.05481228493 | FC17: ='TNC Sc4'!BG18 -> 1126.668624
A18: ='UD1 BAU'!A21 -> 2024 | B18: ='TNC BAU'!B21 -> 1.153312077e+10 | C18: ='TNC BAU'!C21 -> 6335185004 | D18: ='TNC BAU'!D21 -> 5191617512 | E18: ='TNC BAU'!E21 -> 6318251.989 | F18: ='TNC BAU'!H21 -> 716590103.9 | G18: ='TNC BAU'!I21 -> 466553600.1 | H18: ='TNC BAU'!J21 -> 4927969959 | I18: ='TNC BAU'!K21 -> 159795790.8 | J18: ='TNC BAU'!L21 -> 64275550.83 | K18: ='TNC BAU'!O21 -> 439025205.7 | L18: ='TNC BAU'!P21 -> 633238141.3 | M18: ='TNC BAU'!Q21 -> 4119354165 | N18: ='TNC BAU'!T21 -> 5971681.205 | O18: ='TNC BAU'!U21 -> 346570.7842 | P18: ='TNC BAU'!AC21 -> 12719.47434 | Q18: ='TNC BAU'!AD21 -> 119697.7966 | R18: ='TNC BAU'!AE21 -> 9937.591682 | S18: ='TNC BAU'!AF21 -> 6867.013853 | T18: ='TNC BAU'!AG21 -> 960.7503387 | U18: ='TNC BAU'!AH21 -> 4300.878092 | V18: ='TNC BAU'!AI21 -> 154483.5049 | W18: ='TNC BAU'!AJ21 -> 13748.42092 | X18: ='TNC BAU'!AK21 -> 32011.85446 | Y18: ='TNC BAU'!AL21 -> 30312.56186 | Z18: ='TNC BAU'!AM21 -> 130630.0717 | AA18: ='TNC BAU'!AN21 -> 206702.9089 | AB18: ='TNC BAU'!AO21 -> 140.0516392 | AC18: ='TNC BAU'!AP21 -> 14.32559457 | AD18: ='TNC BAU'!AQ21 -> 1567.561469 | AE18: ='TNC BAU'!AR21 -> 1721.938703 | AF18: ='TNC BAU'!AS21 -> 17219.38703 | AG18: ='TNC BAU'!AU21 -> 362908.3526 | AH18: ='TNC BAU'!AY21 -> 479.6156688 | AI18: ='TNC BAU'!AZ21 -> 0.2283884137 | AJ18: ='TNC BAU'!BA21 -> 0.02214675527 | AK18: ='TNC BAU'!BB21 -> 663.2124843 | AL18: ='TNC BAU'!BC21 -> 0.03490592023 | AM18: ='TNC BAU'!BD21 -> 0.03490592023 | AN18: ='TNC BAU'!BE21 -> 5.671756138 | AO18: ='TNC BAU'!BF21 -> 0.005572882417 | AP18: ='TNC BAU'!BG21 -> 1.797704006e-05 | AQ18: ='TNC BAU'!BI21 -> 1148.499909 | AR18: ='TNC BAU'!BJ21 -> 0.2688672163 | AS18: ='TNC BAU'!BK21 -> 0.05707065254 | AT18: ='TNC BAU'!BL21 -> 1172.228644 | AU18: ='TNC Sc2'!A22 -> 146759.3297 | AV18: ='TNC Sc1'!B24 -> 203602.3653 | AW18: ='TNC Sc1'!C24 -> 1696.109622 | AX18: ='TNC Sc1'!D24 -> 357464.7273 | AY18: ='TNC Sc1'!G24 -> 472.4214337 | AZ18: ='TNC Sc1'!H24 -> 0.2249625875 | BA18: ='TNC Sc1'!I24 -> 0.02181455394 | BB18: ='TNC Sc1'!J24 -> 653.2642971 | BC18: ='TNC Sc1'!K24 -> 0.03438233142 | BD18: ='TNC Sc1'!L24 -> 0.03438233142 | BE18: ='TNC Sc1'!M24 -> 5.586679796 | BF18: ='TNC Sc1'!N24 -> 0.005489289181 | BG18: ='TNC Sc1'!O24 -> 1.770738445e-05 | BH18: ='TNC Sc1'!Q24 -> 1131.272411 | BI18: ='TNC Sc1'!R24 -> 0.2648342081 | BJ18: ='TNC Sc1'!S24 -> 0.05621459275 | BK18: ='TNC Sc1'!T24 -> 1154.645214 | BL18: ='TNC Sc2'!A22 -> 146759.3297 | BM18: ='TNC Sc2'!B22 -> 196367.7635 | BN18: ='TNC Sc2'!C22 -> 1721.938703 | BO18: ='TNC Sc2'!D22 -> 344849.0319 | BP18: ='TNC Sc2'!G22 -> 455.6348853 | BQ18: ='TNC Sc2'!H22 -> 0.216968993 | BR18: ='TNC Sc2'!I22 -> 0.0210394175 | BS18: ='TNC Sc2'!J22 -> 630.0518601 | BT18: ='TNC Sc2'!K22 -> 0.03316062422 | BU18: ='TNC Sc2'!L22 -> 0.03316062422 | BV18: ='TNC Sc2'!M22 -> 5.671756138 | BW18: ='TNC Sc2'!N22 -> 0.005572882417 | BX18: ='TNC Sc2'!O22 -> 1.797704006e-05 | BY18: ='TNC Sc2'!Q22 -> 1091.358502 | BZ18: ='TNC Sc2'!R22 -> 0.2557024996 | CA18: ='TNC Sc2'!S22 -> 0.05421801876 | CB18: ='TNC Sc2'!T22 -> 1113.908034 | CC18: ='TNC Sc3'!B23 -> 716590103.9 | CD18: ='TNC Sc3'!C23 -> 466553600.1 | CE18: ='TNC Sc3'!D23 -> 4709406076 | CF18: ='TNC Sc3'!E23 -> 159795790.8 | CG18: ='TNC Sc3'!F23 -> 257498693.5 | CH18: ='TNC Sc3'!G23 -> 25340740.02 | CI18: ='TNC Sc3'!K23 -> 12719.47434 | CJ18: ='TNC Sc3'!L23 -> 9937.591682 | CK18: ='TNC Sc3'!M23 -> 114388.995 | CL18: ='TNC Sc3'!N23 -> 6867.013853 | CM18: ='TNC Sc3'!O23 -> 3848.927839 | CN18: ='TNC Sc3'!P23 -> 4300.878092 | CO18: ='TNC Sc3'!Q23 -> 152062.8808 | CP18: ='TNC Sc3'!S23 -> 206702.9089 | CQ18: ='TNC Sc3'!T23 -> 1721.938703 | CR18: ='TNC Sc3'!V23 -> 360487.7284 | CS18: ='TNC Sc3'!Z23 -> 152062.8808 | CT18: ='TNC Sc3'!AA23 -> 3851.116071 | CU18: ='TNC Sc3'!AB23 -> 148211.7647 | CV18: ='TNC Sc3'!AC23 -> 206702.9089 | CW18: ='TNC Sc3'!AD23 -> 1721.938703 | CX18: ='TNC Sc3'!AE23 -> 356636.6123 | CY18: ='TNC Sc3'!AI23 -> 460.1441731 | CZ18: ='TNC Sc3'!AJ23 -> 0.2191162729 | DA18: ='TNC Sc3'!AK23 -> 0.02124763859 | DB18: ='TNC Sc3'!AL23 -> 663.2124843 | DC18: ='TNC Sc3'!AM23 -> 0.03490592023 | DD18: ='TNC Sc3'!AN23 -> 0.03490592023 | DE18: ='TNC Sc3'!AO23 -> 5.671756138 | DF18: ='TNC Sc3'!AP23 -> 0.005572882417 | DG18: ='TNC Sc3'!AQ23 -> 1.797704006e-05 | DH18: ='TNC Sc3'!AS23 -> 1129.028414 | DI18: ='TNC Sc3'!AT23 -> 0.2595950756 | DJ18: ='TNC Sc3'!AU23 -> 0.05617153585 | DK18: ='TNC Sc3'!AV23 -> 1152.257408 | DL18: ='TNC Sc4'!B19 -> 205462960 | DM18: ='TNC Sc4'!C19 -> 716590103.9 | DN18: ='TNC Sc4'!D19 -> 466553600.1 | DO18: ='TNC Sc4'!E19 -> 4743053295 | DP18: ='TNC Sc4'!F19 -> 159795790.8 | DQ18: ='TNC Sc4'!G19 -> 64275550.83 | DR18: ='TNC Sc4'!I19 -> 375214000 | DS18: ='TNC Sc4'!J19 -> 4119354165 | DT18: ='TNC Sc4'!K19 -> 418478909.7 | DU18: ='TNC Sc4'!L19 -> 633238141.3 | DV18: ='TNC Sc4'!M19 -> 3744140165 | DW18: ='TNC Sc4'!P19 -> 5971681.205 | DX18: ='TNC Sc4'!Q19 -> 346570.7842 | DY18: ='TNC Sc4'!V19 -> 12719.47434 | DZ18: ='TNC Sc4'!W19 -> 9937.591682 | EA18: ='TNC Sc4'!X19 -> 115206.2682 | EB18: ='TNC Sc4'!Y19 -> 6867.013853 | EC18: ='TNC Sc4'!Z19 -> 960.7503387 | ED18: ='TNC Sc4'!AA19 -> 4300.878092 | EE18: ='TNC Sc4'!AB19 -> 149991.9765 | EF18: ='TNC Sc4'!AC19 -> 13104.99744 | EG18: ='TNC Sc4'!AD19 -> 32011.85446 | EH18: ='TNC Sc4'!AE19 -> 27551.52284 | EI18: ='TNC Sc4'!AF19 -> 130630.0717 | EJ18: ='TNC Sc4'!AG19 -> 203298.4464 | EK18: ='TNC Sc4'!AI19 -> 140.0516392 | EL18: ='TNC Sc4'!AJ19 -> 14.32559457 | EM18: ='TNC Sc4'!AK19 -> 1567.561469 | EN18: ='TNC Sc4'!AL19 -> 1721.938703 | EO18: ='TNC Sc4'!AM19 -> 17219.38703 | EP18: ='TNC Sc4'!AO19 -> 355012.3616 | EQ18: ='TNC Sc4'!AT19 -> 465.6710899 | ER18: ='TNC Sc4'!AU19 -> 0.221748138 | ES18: ='TNC Sc4'!AV19 -> 0.02150284975 | ET18: ='TNC Sc4'!AW19 -> 652.2891643 | EU18: ='TNC Sc4'!AX19 -> 0.03433100865 | EV18: ='TNC Sc4'!AY19 -> 0.03433100865 | EW18: ='TNC Sc4'!AZ19 -> 5.671756138 | EX18: ='TNC Sc4'!BA19 -> 0.005572882417 | EY18: ='TNC Sc4'!BB19 -> 1.797704006e-05 | EZ18: ='TNC Sc4'!BD19 -> 1123.63201 | FA18: ='TNC Sc4'!BE19 -> 0.2616520291 | FB18: ='TNC Sc4'!BF19 -> 0.05585183544 | FC18: ='TNC Sc4'!BG19 -> 1146.817158
A19: ='UD1 BAU'!A22 -> 2025 | B19: ='TNC BAU'!B22 -> 1.15799686e+10 | C19: ='TNC BAU'!C22 -> 6360918689 | D19: ='TNC BAU'!D22 -> 5212705996 | E19: ='TNC BAU'!E22 -> 6343916.892 | F19: ='TNC BAU'!H22 -> 719500911.4 | G19: ='TNC BAU'!I22 -> 468448752.9 | H19: ='TNC BAU'!J22 -> 4947987500 | I19: ='TNC BAU'!K22 -> 160444885.4 | J19: ='TNC BAU'!L22 -> 64536639.77 | K19: ='TNC BAU'!O22 -> 440808537.5 | L19: ='TNC BAU'!P22 -> 635810371 | M19: ='TNC BAU'!Q22 -> 4136087088 | N19: ='TNC BAU'!T22 -> 5995938.328 | O19: ='TNC BAU'!U22 -> 347978.5637 | P19: ='TNC BAU'!AC22 -> 12771.14118 | Q19: ='TNC BAU'!AD22 -> 120184.0122 | R19: ='TNC BAU'!AE22 -> 9977.958436 | S19: ='TNC BAU'!AF22 -> 6894.90784 | T19: ='TNC BAU'!AG22 -> 964.6529314 | U19: ='TNC BAU'!AH22 -> 4465.593607 | V19: ='TNC BAU'!AI22 -> 155258.2662 | W19: ='TNC BAU'!AJ22 -> 13804.26736 | X19: ='TNC BAU'!AK22 -> 32141.88744 | Y19: ='TNC BAU'!AL22 -> 30435.69227 | Z19: ='TNC BAU'!AM22 -> 135632.9569 | AA19: ='TNC BAU'!AN22 -> 212014.804 | AB19: ='TNC BAU'!AO22 -> 140.6205326 | AC19: ='TNC BAU'!AP22 -> 14.3837855 | AD19: ='TNC BAU'!AQ22 -> 1456.264605 | AE19: ='TNC BAU'!AR22 -> 1611.268923 | AF19: ='TNC BAU'!AS22 -> 16112.68923 | AG19: ='TNC BAU'!AU22 -> 368884.3391 | AH19: ='TNC BAU'!AY22 -> 482.0210235 | AI19: ='TNC BAU'!AZ22 -> 0.2295338207 | AJ19: ='TNC BAU'!BA22 -> 0.02225782504 | AK19: ='TNC BAU'!BB22 -> 680.255859 | AL19: ='TNC BAU'!BC22 -> 0.03580293995 | AM19: ='TNC BAU'!BD22 -> 0.03580293995 | AN19: ='TNC BAU'!BE22 -> 5.307229803 | AO19: ='TNC BAU'!BF22 -> 0.005214710741 | AP19: ='TNC BAU'!BG22 -> 1.682164755e-05 | AQ19: ='TNC BAU'!BI22 -> 1167.584112 | AR19: ='TNC BAU'!BJ22 -> 0.2705514714 | AS19: ='TNC BAU'!BK22 -> 0.05807758663 | AT19: ='TNC BAU'!BL22 -> 1191.65502 | AU19: ='TNC Sc2'!A23 -> 147495.3529 | AV19: ='TNC Sc1'!B25 -> 208834.5819 | AW19: ='TNC Sc1'!C25 -> 1587.099889 | AX19: ='TNC Sc1'!D25 -> 363351.074 | AY19: ='TNC Sc1'!G25 -> 474.7907081 | AZ19: ='TNC Sc1'!H25 -> 0.2260908134 | BA19: ='TNC Sc1'!I25 -> 0.02192395766 | BB19: ='TNC Sc1'!J25 -> 670.0520211 | BC19: ='TNC Sc1'!K25 -> 0.03526589585 | BD19: ='TNC Sc1'!L25 -> 0.03526589585 | BE19: ='TNC Sc1'!M25 -> 5.227621356 | BF19: ='TNC Sc1'!N25 -> 0.00513649008 | BG19: ='TNC Sc1'!O25 -> 1.656932284e-05 | BH19: ='TNC Sc1'!Q25 -> 1150.070351 | BI19: ='TNC Sc1'!R25 -> 0.2664931993 | BJ19: ='TNC Sc1'!S25 -> 0.05720642283 | BK19: ='TNC Sc1'!T25 -> 1173.780195 | BL19: ='TNC Sc2'!A23 -> 147495.3529 | BM19: ='TNC Sc2'!B23 -> 201414.0638 | BN19: ='TNC Sc2'!C23 -> 1611.268923 | BO19: ='TNC Sc2'!D23 -> 350520.6856 | BP19: ='TNC Sc2'!G23 -> 457.9199723 | BQ19: ='TNC Sc2'!H23 -> 0.2180571297 | BR19: ='TNC Sc2'!I23 -> 0.02114493378 | BS19: ='TNC Sc2'!J23 -> 646.2430661 | BT19: ='TNC Sc2'!K23 -> 0.03401279295 | BU19: ='TNC Sc2'!L23 -> 0.03401279295 | BV19: ='TNC Sc2'!M23 -> 5.307229803 | BW19: ='TNC Sc2'!N23 -> 0.005214710741 | BX19: ='TNC Sc2'!O23 -> 1.682164755e-05 | BY19: ='TNC Sc2'!Q23 -> 1109.470268 | BZ19: ='TNC Sc2'!R23 -> 0.2572846333 | CA19: ='TNC Sc2'!S23 -> 0.05517454838 | CB19: ='TNC Sc2'!T23 -> 1132.344399 | CC19: ='TNC Sc3'!B24 -> 719500911.4 | CD19: ='TNC Sc3'!C24 -> 468448752.9 | CE19: ='TNC Sc3'!D24 -> 4690370293 | CF19: ='TNC Sc3'!E24 -> 160444885.4 | CG19: ='TNC Sc3'!F24 -> 290349253.2 | CH19: ='TNC Sc3'!G24 -> 31804593.45 | CI19: ='TNC Sc3'!K24 -> 12771.14118 | CJ19: ='TNC Sc3'!L24 -> 9977.958436 | CK19: ='TNC Sc3'!M24 -> 113926.6258 | CL19: ='TNC Sc3'!N24 -> 6894.90784 | CM19: ='TNC Sc3'!O24 -> 4339.957259 | CN19: ='TNC Sc3'!P24 -> 4465.593607 | CO19: ='TNC Sc3'!Q24 -> 152376.1841 | CP19: ='TNC Sc3'!S24 -> 212014.804 | CQ19: ='TNC Sc3'!T24 -> 1611.268923 | CR19: ='TNC Sc3'!V24 -> 366002.257 | CS19: ='TNC Sc3'!Z24 -> 152376.1841 | CT19: ='TNC Sc3'!AA24 -> 4279.017857 | CU19: ='TNC Sc3'!AB24 -> 148097.1663 | CV19: ='TNC Sc3'!AC24 -> 212014.804 | CW19: ='TNC Sc3'!AD24 -> 1611.268923 | CX19: ='TNC Sc3'!AE24 -> 361723.2392 | CY19: ='TNC Sc3'!AI24 -> 459.7883863 | CZ19: ='TNC Sc3'!AJ24 -> 0.2189468506 | DA19: ='TNC Sc3'!AK24 -> 0.02123120976 | DB19: ='TNC Sc3'!AL24 -> 680.255859 | DC19: ='TNC Sc3'!AM24 -> 0.03580293995 | DD19: ='TNC Sc3'!AN24 -> 0.03580293995 | DE19: ='TNC Sc3'!AO24 -> 5.307229803 | DF19: ='TNC Sc3'!AP24 -> 0.005214710741 | DG19: ='TNC Sc3'!AQ24 -> 1.682164755e-05 | DH19: ='TNC Sc3'!AS24 -> 1145.351475 | DI19: ='TNC Sc3'!AT24 -> 0.2599645013 | DJ19: ='TNC Sc3'!AU24 -> 0.05705097135 | DK19: ='TNC Sc3'!AV24 -> 1168.851777 | DL19: ='TNC Sc4'!B20 -> 205019120 | DM19: ='TNC Sc4'!C20 -> 719500911.4 | DN19: ='TNC Sc4'!D20 -> 468448752.9 | DO19: ='TNC Sc4'!E20 -> 4763470292 | DP19: ='TNC Sc4'!F20 -> 160444885.4 | DQ19: ='TNC Sc4'!G20 -> 64536639.77 | DR19: ='TNC Sc4'!I20 -> 376225500 | DS19: ='TNC Sc4'!J20 -> 4136087088 | DT19: ='TNC Sc4'!K20 -> 420306625.5 | DU19: ='TNC Sc4'!L20 -> 635810371 | DV19: ='TNC Sc4'!M20 -> 3759861588 | DW19: ='TNC Sc4'!P20 -> 5995938.328 | DX19: ='TNC Sc4'!Q20 -> 347978.5637 | DY19: ='TNC Sc4'!V20 -> 12771.14118 | DZ19: ='TNC Sc4'!W20 -> 9977.958436 | EA19: ='TNC Sc4'!X20 -> 115702.1863 | EB19: ='TNC Sc4'!Y20 -> 6894.90784 | EC19: ='TNC Sc4'!Z20 -> 964.6529314 | ED19: ='TNC Sc4'!AA20 -> 4465.593607 | EE19: ='TNC Sc4'!AB20 -> 150776.4403 | EF19: ='TNC Sc4'!AC20 -> 13162.2338 | EG19: ='TNC Sc4'!AD20 -> 32141.88744 | EH19: ='TNC Sc4'!AE20 -> 27667.21005 | EI19: ='TNC Sc4'!AF20 -> 135632.9569 | EJ19: ='TNC Sc4'!AG20 -> 208604.2882 | EK19: ='TNC Sc4'!AI20 -> 140.6205326 | EL19: ='TNC Sc4'!AJ20 -> 14.3837855 | EM19: ='TNC Sc4'!AK20 -> 1456.264605 | EN19: ='TNC Sc4'!AL20 -> 1611.268923 | EO19: ='TNC Sc4'!AM20 -> 16112.68923 | EP19: ='TNC Sc4'!AO20 -> 360991.9974 | EQ19: ='TNC Sc4'!AT20 -> 468.1065676 | ER19: ='TNC Sc4'!AU20 -> 0.2229078893 | ES19: ='TNC Sc4'!AV20 -> 0.02161531048 | ET19: ='TNC Sc4'!AW20 -> 669.3131169 | EU19: ='TNC Sc4'!AX20 -> 0.03522700615 | EV19: ='TNC Sc4'!AY20 -> 0.03522700615 | EW19: ='TNC Sc4'!AZ20 -> 5.307229803 | EX19: ='TNC Sc4'!BA20 -> 0.005214710741 | EY19: ='TNC Sc4'!BB20 -> 1.682164755e-05 | EZ19: ='TNC Sc4'!BD20 -> 1142.726914 | FA19: ='TNC Sc4'!BE20 -> 0.2633496062 | FB19: ='TNC Sc4'!BF20 -> 0.05685913828 | FC19: ='TNC Sc4'!BG20 -> 1166.254678
A20: ='UD1 BAU'!A23 -> 2026 | B20: ='TNC BAU'!B23 -> 1.162086829e+10 | C20: ='TNC BAU'!C23 -> 6383385039 | D20: ='TNC BAU'!D23 -> 5231116933 | E20: ='TNC BAU'!E23 -> 6366323.192 | F20: ='TNC BAU'!H23 -> 722042141.6 | G20: ='TNC BAU'!I23 -> 470103283.3 | H20: ='TNC BAU'!J23 -> 4965463468 | I20: ='TNC BAU'!K23 -> 161011566.3 | J20: ='TNC BAU'!L23 -> 64764578.97 | K20: ='TNC BAU'!O23 -> 442365444.4 | L20: ='TNC BAU'!P23 -> 638056011.7 | M20: ='TNC BAU'!Q23 -> 4150695477 | N20: ='TNC BAU'!T23 -> 6017115.591 | O20: ='TNC BAU'!U23 -> 349207.6012 | P20: ='TNC BAU'!AC23 -> 12816.24801 | Q20: ='TNC BAU'!AD23 -> 120608.4942 | R20: ='TNC BAU'!AE23 -> 10013.19993 | S20: ='TNC BAU'!AF23 -> 6919.260204 | T20: ='TNC BAU'!AG23 -> 968.0600225 | U20: ='TNC BAU'!AH23 -> 4636.565587 | V20: ='TNC BAU'!AI23 -> 155961.828 | W20: ='TNC BAU'!AJ23 -> 13853.02313 | X20: ='TNC BAU'!AK23 -> 32255.41049 | Y20: ='TNC BAU'!AL23 -> 30543.18915 | Z20: ='TNC BAU'!AM23 -> 140825.8691 | AA20: ='TNC BAU'!AN23 -> 217477.4918 | AB20: ='TNC BAU'!AO23 -> 141.1171951 | AC20: ='TNC BAU'!AP23 -> 14.43458809 | AD20: ='TNC BAU'!AQ23 -> 1352.869818 | AE20: ='TNC BAU'!AR23 -> 1508.421601 | AF20: ='TNC BAU'!AS23 -> 15084.21601 | AG20: ='TNC BAU'!AU23 -> 374947.7414 | AH20: ='TNC BAU'!AY23 -> 484.2053297 | AI20: ='TNC BAU'!AZ23 -> 0.2305739665 | AJ20: ='TNC BAU'!BA23 -> 0.02235868766 | AK20: ='TNC BAU'!BB23 -> 697.7830569 | AL20: ='TNC BAU'!BC23 -> 0.03672542405 | AM20: ='TNC BAU'!BD23 -> 0.03672542405 | AN20: ='TNC BAU'!BE23 -> 4.968469237 | AO20: ='TNC BAU'!BF23 -> 0.004881855669 | AP20: ='TNC BAU'!BG23 -> 1.574792151e-05 | AQ20: ='TNC BAU'!BI23 -> 1186.956856 | AR20: ='TNC BAU'!BJ23 -> 0.2721812462 | AS20: ='TNC BAU'!BK23 -> 0.05909985963 | AT20: ='TNC BAU'!BL23 -> 1211.373145 | AU20: ='TNC Sc2'!A24 -> 148163.7366 | AV20: ='TNC Sc1'!B26 -> 214215.3295 | AW20: ='TNC Sc1'!C26 -> 1485.795277 | AX20: ='TNC Sc1'!D26 -> 369323.5253 | AY20: ='TNC Sc1'!G26 -> 476.9422498 | AZ20: ='TNC Sc1'!H26 -> 0.227115357 | BA20: ='TNC Sc1'!I26 -> 0.02202330735 | BB20: ='TNC Sc1'!J26 -> 687.316311 | BC20: ='TNC Sc1'!K26 -> 0.03617454269 | BD20: ='TNC Sc1'!L26 -> 0.03617454269 | BE20: ='TNC Sc1'!M26 -> 4.893942199 | BF20: ='TNC Sc1'!N26 -> 0.004808627834 | BG20: ='TNC Sc1'!O26 -> 1.551170269e-05 | BH20: ='TNC Sc1'!Q26 -> 1169.152503 | BI20: ='TNC Sc1'!R26 -> 0.2680985275 | BJ20: ='TNC Sc1'!S26 -> 0.05821336174 | BK20: ='TNC Sc1'!T26 -> 1193.202548 | BL20: ='TNC Sc2'!A24 -> 148163.7366 | BM20: ='TNC Sc2'!B24 -> 206603.6172 | BN20: ='TNC Sc2'!C24 -> 1508.421601 | BO20: ='TNC Sc2'!D24 -> 356275.7755 | BP20: ='TNC Sc2'!G24 -> 459.9950632 | BQ20: ='TNC Sc2'!H24 -> 0.2190452682 | BR20: ='TNC Sc2'!I24 -> 0.02124075328 | BS20: ='TNC Sc2'!J24 -> 662.893904 | BT20: ='TNC Sc2'!K24 -> 0.03488915284 | BU20: ='TNC Sc2'!L24 -> 0.03488915284 | BV20: ='TNC Sc2'!M24 -> 4.968469237 | BW20: ='TNC Sc2'!N24 -> 0.004881855669 | BX20: ='TNC Sc2'!O24 -> 1.574792151e-05 | BY20: ='TNC Sc2'!Q24 -> 1127.857436 | BZ20: ='TNC Sc2'!R24 -> 0.2588162767 | CA20: ='TNC Sc2'!S24 -> 0.05614565405 | CB20: ='TNC Sc2'!T24 -> 1151.059248 | CC20: ='TNC Sc3'!B25 -> 722042141.6 | CD20: ='TNC Sc3'!C25 -> 470103283.3 | CE20: ='TNC Sc3'!D25 -> 4646294217 | CF20: ='TNC Sc3'!E25 -> 161011566.3 | CG20: ='TNC Sc3'!F25 -> 339250135.6 | CH20: ='TNC Sc3'!G25 -> 44683695.27 | CI20: ='TNC Sc3'!K25 -> 12816.24801 | CJ20: ='TNC Sc3'!L25 -> 10013.19993 | CK20: ='TNC Sc3'!M25 -> 112856.0411 | CL20: ='TNC Sc3'!N25 -> 6919.260204 | CM20: ='TNC Sc3'!O25 -> 5070.896764 | CN20: ='TNC Sc3'!P25 -> 4636.565587 | CO20: ='TNC Sc3'!Q25 -> 152312.2116 | CP20: ='TNC Sc3'!S25 -> 217477.4918 | CQ20: ='TNC Sc3'!T25 -> 1508.421601 | CR20: ='TNC Sc3'!V25 -> 371298.125 | CS20: ='TNC Sc3'!Z25 -> 152312.2116 | CT20: ='TNC Sc3'!AA25 -> 4706.919643 | CU20: ='TNC Sc3'!AB25 -> 147605.292 | CV20: ='TNC Sc3'!AC25 -> 217477.4918 | CW20: ='TNC Sc3'!AD25 -> 1508.421601 | CX20: ='TNC Sc3'!AE25 -> 366591.2054 | CY20: ='TNC Sc3'!AI25 -> 458.2612936 | CZ20: ='TNC Sc3'!AJ25 -> 0.2182196636 | DA20: ='TNC Sc3'!AK25 -> 0.02116069466 | DB20: ='TNC Sc3'!AL25 -> 697.7830569 | DC20: ='TNC Sc3'!AM25 -> 0.03672542405 | DD20: ='TNC Sc3'!AN25 -> 0.03672542405 | DE20: ='TNC Sc3'!AO25 -> 4.968469237 | DF20: ='TNC Sc3'!AP25 -> 0.004881855669 | DG20: ='TNC Sc3'!AQ25 -> 1.574792151e-05 | DH20: ='TNC Sc3'!AS25 -> 1161.01282 | DI20: ='TNC Sc3'!AT25 -> 0.2598269434 | DJ20: ='TNC Sc3'!AU25 -> 0.05790186662 | DK20: ='TNC Sc3'!AV25 -> 1184.76325 | DL20: ='TNC Sc4'!B21 -> 204575280 | DM20: ='TNC Sc4'!C21 -> 722042141.6 | DN20: ='TNC Sc4'!D21 -> 470103283.3 | DO20: ='TNC Sc4'!E21 -> 4781345716 | DP20: ='TNC Sc4'!F21 -> 161011566.3 | DQ20: ='TNC Sc4'!G21 -> 64764578.97 | DR20: ='TNC Sc4'!I21 -> 377237000 | DS20: ='TNC Sc4'!J21 -> 4150695477 | DT20: ='TNC Sc4'!K21 -> 421907916.4 | DU20: ='TNC Sc4'!L21 -> 638056011.7 | DV20: ='TNC Sc4'!M21 -> 3773458477 | DW20: ='TNC Sc4'!P21 -> 6017115.591 | DX20: ='TNC Sc4'!Q21 -> 349207.6012 | DY20: ='TNC Sc4'!V21 -> 12816.24801 | DZ20: ='TNC Sc4'!W21 -> 10013.19993 | EA20: ='TNC Sc4'!X21 -> 116136.371 | EB20: ='TNC Sc4'!Y21 -> 6919.260204 | EC20: ='TNC Sc4'!Z21 -> 968.0600225 | ED20: ='TNC Sc4'!AA21 -> 4636.565587 | EE20: ='TNC Sc4'!AB21 -> 151489.7047 | EF20: ='TNC Sc4'!AC21 -> 13212.37949 | EG20: ='TNC Sc4'!AD21 -> 32255.41049 | EH20: ='TNC Sc4'!AE21 -> 27767.26374 | EI20: ='TNC Sc4'!AF21 -> 140825.8691 | EJ20: ='TNC Sc4'!AG21 -> 214060.9228 | EK20: ='TNC Sc4'!AI21 -> 141.1171951 | EL20: ='TNC Sc4'!AJ21 -> 14.43458809 | EM20: ='TNC Sc4'!AK21 -> 1352.869818 | EN20: ='TNC Sc4'!AL21 -> 1508.421601 | EO20: ='TNC Sc4'!AM21 -> 15084.21601 | EP20: ='TNC Sc4'!AO21 -> 367059.0491 | EQ20: ='TNC Sc4'!AT21 -> 470.3209969 | ER20: ='TNC Sc4'!AU21 -> 0.2239623795 | ES20: ='TNC Sc4'!AV21 -> 0.02171756407 | ET20: ='TNC Sc4'!AW21 -> 686.8208926 | EU20: ='TNC Sc4'!AX21 -> 0.03614846803 | EV20: ='TNC Sc4'!AY21 -> 0.03614846803 | EW20: ='TNC Sc4'!AZ21 -> 4.968469237 | EX20: ='TNC Sc4'!BA21 -> 0.004881855669 | EY20: ='TNC Sc4'!BB21 -> 1.574792151e-05 | EZ20: ='TNC Sc4'!BD21 -> 1162.110359 | FA20: ='TNC Sc4'!BE21 -> 0.2649927032 | FB20: ='TNC Sc4'!BF21 -> 0.05788178002 | FC20: ='TNC Sc4'!BG21 -> 1185.983947
A21: ='UD1 BAU'!A24 -> 2027 | B21: ='TNC BAU'!B24 -> 1.165599279e+10 | C21: ='TNC BAU'!C24 -> 6402679050 | D21: ='TNC BAU'!D24 -> 5246928172 | E21: ='TNC BAU'!E24 -> 6385565.633 | F21: ='TNC BAU'!H24 -> 724224540 | G21: ='TNC BAU'!I24 -> 471524187.4 | H21: ='TNC BAU'!J24 -> 4980471760 | I21: ='TNC BAU'!K24 -> 161498229.5 | J21: ='TNC BAU'!L24 -> 64960332.24 | K21: ='TNC BAU'!O24 -> 443702509.9 | L21: ='TNC BAU'!P24 -> 639984559 | M21: ='TNC BAU'!Q24 -> 4163241103 | N21: ='TNC BAU'!T24 -> 6035302.539 | O21: ='TNC BAU'!U24 -> 350263.0938 | P21: ='TNC BAU'!AC24 -> 12854.98558 | Q21: ='TNC BAU'!AD24 -> 120973.0378 | R21: ='TNC BAU'!AE24 -> 10043.46519 | S21: ='TNC BAU'!AF24 -> 6940.173917 | T21: ='TNC BAU'!AG24 -> 970.9860187 | U21: ='TNC BAU'!AH24 -> 4814.03178 | V21: ='TNC BAU'!AI24 -> 156596.6803 | W21: ='TNC BAU'!AJ24 -> 13894.89439 | X21: ='TNC BAU'!AK24 -> 32352.90363 | Y21: ='TNC BAU'!AL24 -> 30635.50703 | Z21: ='TNC BAU'!AM24 -> 146216.0292 | AA21: ='TNC BAU'!AN24 -> 223099.3342 | AB21: ='TNC BAU'!AO24 -> 141.5437269 | AC21: ='TNC BAU'!AP24 -> 14.47821716 | AD21: ='TNC BAU'!AQ24 -> 1256.816061 | AE21: ='TNC BAU'!AR24 -> 1412.838005 | AF21: ='TNC BAU'!AS24 -> 14128.38005 | AG21: ='TNC BAU'!AU24 -> 381108.8525 | AH21: ='TNC BAU'!AY24 -> 486.1763174 | AI21: ='TNC BAU'!AZ24 -> 0.2315125321 | AJ21: ='TNC BAU'!BA24 -> 0.02244970008 | AK21: ='TNC BAU'!BB24 -> 715.8209068 | AL21: ='TNC BAU'!BC24 -> 0.03767478457 | AM21: ='TNC BAU'!BD24 -> 0.03767478457 | AN21: ='TNC BAU'!BE24 -> 4.653634077 | AO21: ='TNC BAU'!BF24 -> 0.004572508918 | AP21: ='TNC BAU'!BG24 -> 1.475002877e-05 | AQ21: ='TNC BAU'!BI24 -> 1206.650858 | AR21: ='TNC BAU'!BJ24 -> 0.2737598256 | AS21: ='TNC BAU'!BK24 -> 0.06013923468 | AT21: ='TNC BAU'!BL24 -> 1231.416346 | AU21: ='TNC Sc2'!A25 -> 148766.8462 | AV21: ='TNC Sc1'!B27 -> 219752.8442 | AW21: ='TNC Sc1'!C27 -> 1391.645435 | AX21: ='TNC Sc1'!D27 -> 375392.2197 | AY21: ='TNC Sc1'!G27 -> 478.8836726 | AZ21: ='TNC Sc1'!H27 -> 0.2280398441 | BA21: ='TNC Sc1'!I27 -> 0.02211295458 | BB21: ='TNC Sc1'!J27 -> 705.0835932 | BC21: ='TNC Sc1'!K27 -> 0.0371096628 | BD21: ='TNC Sc1'!L27 -> 0.0371096628 | BE21: ='TNC Sc1'!M27 -> 4.583829565 | BF21: ='TNC Sc1'!N27 -> 0.004503921285 | BG21: ='TNC Sc1'!O27 -> 1.452877834e-05 | BH21: ='TNC Sc1'!Q27 -> 1188.551095 | BI21: ='TNC Sc1'!R27 -> 0.2696534282 | BJ21: ='TNC Sc1'!S27 -> 0.05923714616 | BK21: ='TNC Sc1'!T27 -> 1212.945101 | BL21: ='TNC Sc2'!A25 -> 148766.8462 | BM21: ='TNC Sc2'!B25 -> 211944.3675 | BN21: ='TNC Sc2'!C25 -> 1412.838005 | BO21: ='TNC Sc2'!D25 -> 362124.0517 | BP21: ='TNC Sc2'!G25 -> 461.8675015 | BQ21: ='TNC Sc2'!H25 -> 0.2199369055 | BR21: ='TNC Sc2'!I25 -> 0.02132721508 | BS21: ='TNC Sc2'!J25 -> 680.0298615 | BT21: ='TNC Sc2'!K25 -> 0.03579104534 | BU21: ='TNC Sc2'!L25 -> 0.03579104534 | BV21: ='TNC Sc2'!M25 -> 4.653634077 | BW21: ='TNC Sc2'!N25 -> 0.004572508918 | BX21: ='TNC Sc2'!O25 -> 1.475002877e-05 | BY21: ='TNC Sc2'!Q25 -> 1146.550997 | BZ21: ='TNC Sc2'!R25 -> 0.2603004597 | CA21: ='TNC Sc2'!S25 -> 0.05713301045 | CB21: ='TNC Sc2'!T25 -> 1170.084146 | CC21: ='TNC Sc3'!B26 -> 724224540 | CD21: ='TNC Sc3'!C26 -> 471524187.4 | CE21: ='TNC Sc3'!D26 -> 4599512357 | CF21: ='TNC Sc3'!E26 -> 161498229.5 | CG21: ='TNC Sc3'!F26 -> 388295624.2 | CH21: ='TNC Sc3'!G26 -> 57624111.45 | CI21: ='TNC Sc3'!K26 -> 12854.98558 | CJ21: ='TNC Sc3'!L26 -> 10043.46519 | CK21: ='TNC Sc3'!M26 -> 111719.7344 | CL21: ='TNC Sc3'!N26 -> 6940.173917 | CM21: ='TNC Sc3'!O26 -> 5803.997752 | CN21: ='TNC Sc3'!P26 -> 4814.03178 | CO21: ='TNC Sc3'!Q26 -> 152176.3886 | CP21: ='TNC Sc3'!S26 -> 223099.3342 | CQ21: ='TNC Sc3'!T26 -> 1412.838005 | CR21: ='TNC Sc3'!V26 -> 376688.5608 | CS21: ='TNC Sc3'!Z26 -> 152176.3886 | CT21: ='TNC Sc3'!AA26 -> 5134.821429 | CU21: ='TNC Sc3'!AB26 -> 147041.5672 | CV21: ='TNC Sc3'!AC26 -> 223099.3342 | CW21: ='TNC Sc3'!AD26 -> 1412.838005 | CX21: ='TNC Sc3'!AE26 -> 371553.7394 | CY21: ='TNC Sc3'!AI26 -> 456.511131 | CZ21: ='TNC Sc3'!AJ26 -> 0.2173862529 | DA21: ='TNC Sc3'!AK26 -> 0.02107987907 | DB21: ='TNC Sc3'!AL26 -> 715.8209068 | DC21: ='TNC Sc3'!AM26 -> 0.03767478457 | DD21: ='TNC Sc3'!AN26 -> 0.03767478457 | DE21: ='TNC Sc3'!AO26 -> 4.653634077 | DF21: ='TNC Sc3'!AP26 -> 0.004572508918 | DG21: ='TNC Sc3'!AQ26 -> 1.475002877e-05 | DH21: ='TNC Sc3'!AS26 -> 1176.985672 | DI21: ='TNC Sc3'!AT26 -> 0.2596335464 | DJ21: ='TNC Sc3'!AU26 -> 0.05876941366 | DK21: ='TNC Sc3'!AV26 -> 1200.989796 | DL21: ='TNC Sc4'!B22 -> 204131440 | DM21: ='TNC Sc4'!C22 -> 724224540 | DN21: ='TNC Sc4'!D22 -> 471524187.4 | DO21: ='TNC Sc4'!E22 -> 4796753464 | DP21: ='TNC Sc4'!F22 -> 161498229.5 | DQ21: ='TNC Sc4'!G22 -> 64960332.24 | DR21: ='TNC Sc4'!I22 -> 378248500 | DS21: ='TNC Sc4'!J22 -> 4163241103 | DT21: ='TNC Sc4'!K22 -> 423289365.9 | DU21: ='TNC Sc4'!L22 -> 639984559 | DV21: ='TNC Sc4'!M22 -> 3784992603 | DW21: ='TNC Sc4'!P22 -> 6035302.539 | DX21: ='TNC Sc4'!Q22 -> 350263.0938 | DY21: ='TNC Sc4'!V22 -> 12854.98558 | DZ21: ='TNC Sc4'!W22 -> 10043.46519 | EA21: ='TNC Sc4'!X22 -> 116510.617 | EB21: ='TNC Sc4'!Y22 -> 6940.173917 | EC21: ='TNC Sc4'!Z22 -> 970.9860187 | ED21: ='TNC Sc4'!AA22 -> 4814.03178 | EE21: ='TNC Sc4'!AB22 -> 152134.2595 | EF21: ='TNC Sc4'!AC22 -> 13255.64067 | EG21: ='TNC Sc4'!AD22 -> 32352.90363 | EH21: ='TNC Sc4'!AE22 -> 27852.13843 | EI21: ='TNC Sc4'!AF22 -> 146216.0292 | EJ21: ='TNC Sc4'!AG22 -> 219676.7119 | EK21: ='TNC Sc4'!AI22 -> 141.5437269 | EL21: ='TNC Sc4'!AJ22 -> 14.47821716 | EM21: ='TNC Sc4'!AK22 -> 1256.816061 | EN21: ='TNC Sc4'!AL22 -> 1412.838005 | EO21: ='TNC Sc4'!AM22 -> 14128.38005 | EP21: ='TNC Sc4'!AO22 -> 373223.8094 | EQ21: ='TNC Sc4'!AT22 -> 472.3221075 | ER21: ='TNC Sc4'!AU22 -> 0.2249152893 | ES21: ='TNC Sc4'!AV22 -> 0.02180996745 | ET21: ='TNC Sc4'!AW22 -> 704.8393204 | EU21: ='TNC Sc4'!AX22 -> 0.03709680634 | EV21: ='TNC Sc4'!AY22 -> 0.03709680634 | EW21: ='TNC Sc4'!AZ22 -> 4.653634077 | EX21: ='TNC Sc4'!BA22 -> 0.004572508918 | EY21: ='TNC Sc4'!BB22 -> 1.475002877e-05 | EZ21: ='TNC Sc4'!BD22 -> 1181.815062 | FA21: ='TNC Sc4'!BE22 -> 0.2665846046 | FB21: ='TNC Sc4'!BF22 -> 0.05892152381 | FC21: ='TNC Sc4'!BG22 -> 1206.038291
A22: ='UD1 BAU'!A25 -> 2028 | B22: ='TNC BAU'!B25 -> 1.16855425e+10 | C22: ='TNC BAU'!C25 -> 6418910813 | D22: ='TNC BAU'!D25 -> 5260229931 | E22: ='TNC BAU'!E25 -> 6401754.011 | F22: ='TNC BAU'!H25 -> 726060559.1 | G22: ='TNC BAU'!I25 -> 472719572.7 | H22: ='TNC BAU'!J25 -> 4993098012 | I22: ='TNC BAU'!K25 -> 161907652.1 | J22: ='TNC BAU'!L25 -> 65125016.54 | K22: ='TNC BAU'!O25 -> 444827363.1 | L22: ='TNC BAU'!P25 -> 641607017 | M22: ='TNC BAU'!Q25 -> 4173795551 | N22: ='TNC BAU'!T25 -> 6050602.947 | O22: ='TNC BAU'!U25 -> 351151.0639 | P22: ='TNC BAU'!AC25 -> 12887.57492 | Q22: ='TNC BAU'!AD25 -> 121279.7228 | R22: ='TNC BAU'!AE25 -> 10068.9269 | S22: ='TNC BAU'!AF25 -> 6957.768311 | T22: ='TNC BAU'!AG25 -> 973.4476157 | U22: ='TNC BAU'!AH25 -> 4998.238964 | V22: ='TNC BAU'!AI25 -> 157165.6795 | W22: ='TNC BAU'!AJ25 -> 13930.12005 | X22: ='TNC BAU'!AK25 -> 32434.92315 | Y22: ='TNC BAU'!AL25 -> 30713.17269 | Z22: ='TNC BAU'!AM25 -> 151810.9326 | AA22: ='TNC BAU'!AN25 -> 228889.1485 | AB22: ='TNC BAU'!AO25 -> 141.9025617 | AC22: ='TNC BAU'!AP25 -> 14.51492163 | AD22: ='TNC BAU'!AQ25 -> 1167.58212 | AE22: ='TNC BAU'!AR25 -> 1323.999604 | AF22: ='TNC BAU'!AS25 -> 13239.99604 | AG22: ='TNC BAU'!AU25 -> 387378.8276 | AH22: ='TNC BAU'!AY25 -> 487.9428552 | AI22: ='TNC BAU'!AZ25 -> 0.2323537406 | AJ22: ='TNC BAU'!BA25 -> 0.02253127181 | AK22: ='TNC BAU'!BB25 -> 734.3976996 | AL22: ='TNC BAU'!BC25 -> 0.03865251051 | AM22: ='TNC BAU'!BD25 -> 0.03865251051 | AN22: ='TNC BAU'!BE25 -> 4.361016375 | AO22: ='TNC BAU'!BF25 -> 0.004284992317 | AP22: ='TNC BAU'!BG25 -> 1.382255586e-05 | AQ22: ='TNC BAU'!BI25 -> 1226.701571 | AR22: ='TNC BAU'!BJ25 -> 0.2752912434 | AS22: ='TNC BAU'!BK25 -> 0.06119760487 | AT22: ='TNC BAU'!BL25 -> 1251.820739 | AU22: ='TNC Sc2'!A26 -> 149307.3955 | AV22: ='TNC Sc1'!B28 -> 225455.8113 | AW22: ='TNC Sc1'!C28 -> 1304.13961 | AX22: ='TNC Sc1'!D28 -> 381568.1452 | AY22: ='TNC Sc1'!G28 -> 480.6237123 | AZ22: ='TNC Sc1'!H28 -> 0.2288684344 | BA22: ='TNC Sc1'!I28 -> 0.02219330273 | BB22: ='TNC Sc1'!J28 -> 723.3817341 | BC22: ='TNC Sc1'!K28 -> 0.03807272285 | BD22: ='TNC Sc1'!L28 -> 0.03807272285 | BE22: ='TNC Sc1'!M28 -> 4.295601129 | BF22: ='TNC Sc1'!N28 -> 0.004220717433 | BG22: ='TNC Sc1'!O28 -> 1.361521752e-05 | BH22: ='TNC Sc1'!Q28 -> 1208.301048 | BI22: ='TNC Sc1'!R28 -> 0.2711618747 | BJ22: ='TNC Sc1'!S28 -> 0.0602796408 | BK22: ='TNC Sc1'!T28 -> 1233.043427 | BL22: ='TNC Sc2'!A26 -> 149307.3955 | BM22: ='TNC Sc2'!B26 -> 217444.6911 | BN22: ='TNC Sc2'!C26 -> 1323.999604 | BO22: ='TNC Sc2'!D26 -> 368076.0862 | BP22: ='TNC Sc2'!G26 -> 463.5457124 | BQ22: ='TNC Sc2'!H26 -> 0.2207360535 | BR22: ='TNC Sc2'!I26 -> 0.02140470822 | BS22: ='TNC Sc2'!J26 -> 697.6778147 | BT22: ='TNC Sc2'!K26 -> 0.03671988498 | BU22: ='TNC Sc2'!L26 -> 0.03671988498 | BV22: ='TNC Sc2'!M26 -> 4.361016375 | BW22: ='TNC Sc2'!N26 -> 0.004284992317 | BX22: ='TNC Sc2'!O26 -> 1.382255586e-05 | BY22: ='TNC Sc2'!Q26 -> 1165.584543 | BZ22: ='TNC Sc2'!R26 -> 0.2617409308 | CA22: ='TNC Sc2'!S26 -> 0.05813841576 | CB22: ='TNC Sc2'!T26 -> 1189.453315 | CC22: ='TNC Sc3'!B27 -> 726060559.1 | CD22: ='TNC Sc3'!C27 -> 472719572.7 | CE22: ='TNC Sc3'!D27 -> 4550193166 | CF22: ='TNC Sc3'!E27 -> 161907652.1 | CG22: ='TNC Sc3'!F27 -> 437421843.7 | CH22: ='TNC Sc3'!G27 -> 70608018.94 | CI22: ='TNC Sc3'!K27 -> 12887.57492 | CJ22: ='TNC Sc3'!L27 -> 10068.9269 | CK22: ='TNC Sc3'!M27 -> 110521.7972 | CL22: ='TNC Sc3'!N27 -> 6957.768311 | CM22: ='TNC Sc3'!O27 -> 6538.305453 | CN22: ='TNC Sc3'!P27 -> 4998.238964 | CO22: ='TNC Sc3'!Q27 -> 151972.6117 | CP22: ='TNC Sc3'!S27 -> 228889.1485 | CQ22: ='TNC Sc3'!T27 -> 1323.999604 | CR22: ='TNC Sc3'!V27 -> 382185.7598 | CS22: ='TNC Sc3'!Z27 -> 151972.6117 | CT22: ='TNC Sc3'!AA27 -> 5562.723214 | CU22: ='TNC Sc3'!AB27 -> 146409.8885 | CV22: ='TNC Sc3'!AC27 -> 228889.1485 | CW22: ='TNC Sc3'!AD27 -> 1323.999604 | CX22: ='TNC Sc3'!AE27 -> 376623.0366 | CY22: ='TNC Sc3'!AI27 -> 454.5499962 | CZ22: ='TNC Sc3'!AJ27 -> 0.2164523792 | DA22: ='TNC Sc3'!AK27 -> 0.02098932162 | DB22: ='TNC Sc3'!AL27 -> 734.3976996 | DC22: ='TNC Sc3'!AM27 -> 0.03865251051 | DD22: ='TNC Sc3'!AN27 -> 0.03865251051 | DE22: ='TNC Sc3'!AO27 -> 4.361016375 | DF22: ='TNC Sc3'!AP27 -> 0.004284992317 | DG22: ='TNC Sc3'!AQ27 -> 1.382255586e-05 | DH22: ='TNC Sc3'!AS27 -> 1193.308712 | DI22: ='TNC Sc3'!AT27 -> 0.259389882 | DJ22: ='TNC Sc3'!AU27 -> 0.05965565468 | DK22: ='TNC Sc3'!AV27 -> 1217.570844 | DL22: ='TNC Sc4'!B23 -> 203687600 | DM22: ='TNC Sc4'!C23 -> 726060559.1 | DN22: ='TNC Sc4'!D23 -> 472719572.7 | DO22: ='TNC Sc4'!E23 -> 4809779172 | DP22: ='TNC Sc4'!F23 -> 161907652.1 | DQ22: ='TNC Sc4'!G23 -> 65125016.54 | DR22: ='TNC Sc4'!I23 -> 379260000 | DS22: ='TNC Sc4'!J23 -> 4173795551 | DT22: ='TNC Sc4'!K23 -> 424458603.1 | DU22: ='TNC Sc4'!L23 -> 641607017 | DV22: ='TNC Sc4'!M23 -> 3794535551 | DW22: ='TNC Sc4'!P23 -> 6050602.947 | DX22: ='TNC Sc4'!Q23 -> 351151.0639 | DY22: ='TNC Sc4'!V23 -> 12887.57492 | DZ22: ='TNC Sc4'!W23 -> 10068.9269 | EA22: ='TNC Sc4'!X23 -> 116827.0046 | EB22: ='TNC Sc4'!Y23 -> 6957.768311 | EC22: ='TNC Sc4'!Z23 -> 973.4476157 | ED22: ='TNC Sc4'!AA23 -> 4998.238964 | EE22: ='TNC Sc4'!AB23 -> 152712.9613 | EF22: ='TNC Sc4'!AC23 -> 13292.25625 | EG22: ='TNC Sc4'!AD23 -> 32434.92315 | EH22: ='TNC Sc4'!AE23 -> 27922.36089 | EI22: ='TNC Sc4'!AF23 -> 151810.9326 | EJ22: ='TNC Sc4'!AG23 -> 225460.4729 | EK22: ='TNC Sc4'!AI23 -> 141.9025617 | EL22: ='TNC Sc4'!AJ23 -> 14.51492163 | EM22: ='TNC Sc4'!AK23 -> 1167.58212 | EN22: ='TNC Sc4'!AL23 -> 1323.999604 | EO22: ='TNC Sc4'!AM23 -> 13239.99604 | EP22: ='TNC Sc4'!AO23 -> 379497.4338 | EQ22: ='TNC Sc4'!AT23 -> 474.1187683 | ER22: ='TNC Sc4'!AU23 -> 0.2257708421 | ES22: ='TNC Sc4'!AV23 -> 0.02189293014 | ET22: ='TNC Sc4'!AW23 -> 723.3966911 | EU22: ='TNC Sc4'!AX23 -> 0.03807351006 | EV22: ='TNC Sc4'!AY23 -> 0.03807351006 | EW22: ='TNC Sc4'!AZ23 -> 4.361016375 | EX22: ='TNC Sc4'!BA23 -> 0.004284992317 | EY22: ='TNC Sc4'!BB23 -> 1.382255586e-05 | EZ22: ='TNC Sc4'!BD23 -> 1201.876476 | FA22: ='TNC Sc4'!BE23 -> 0.2681293444 | FB22: ='TNC Sc4'!BF23 -> 0.05998026275 | FC22: ='TNC Sc4'!BG23 -> 1226.453828
A23: ='UD1 BAU'!A26 -> 2029 | B23: ='TNC BAU'!B26 -> 1.170974285e+10 | C23: ='TNC BAU'!C26 -> 6432204154 | D23: ='TNC BAU'!D26 -> 5271123685 | E23: ='TNC BAU'!E26 -> 6415011.821 | F23: ='TNC BAU'!H26 -> 727564205.2 | G23: ='TNC BAU'!I26 -> 473698558.5 | H23: ='TNC BAU'!J26 -> 5003438545 | I23: ='TNC BAU'!K26 -> 162242957.2 | J23: ='TNC BAU'!L26 -> 65259888.18 | K23: ='TNC BAU'!O26 -> 445748585.1 | L23: ='TNC BAU'!P26 -> 642935762.8 | M23: ='TNC BAU'!Q26 -> 4182439337 | N23: ='TNC BAU'!T26 -> 6063133.535 | O23: ='TNC BAU'!U26 -> 351878.2855 | P23: ='TNC BAU'!AC26 -> 12914.26464 | Q23: ='TNC BAU'!AD26 -> 121530.8889 | R23: ='TNC BAU'!AE26 -> 10089.7793 | S23: ='TNC BAU'!AF26 -> 6972.177608 | T23: ='TNC BAU'!AG26 -> 975.4635918 | U23: ='TNC BAU'!AH26 -> 5189.443297 | V23: ='TNC BAU'!AI26 -> 157672.0173 | W23: ='TNC BAU'!AJ26 -> 13958.96885 | X23: ='TNC BAU'!AK26 -> 32502.09474 | Y23: ='TNC BAU'!AL26 -> 30776.77861 | Z23: ='TNC BAU'!AM26 -> 157618.3597 | AA23: ='TNC BAU'!AN26 -> 234856.2019 | AB23: ='TNC BAU'!AO26 -> 142.196437 | AC23: ='TNC BAU'!AP26 -> 14.54498153 | AD23: ='TNC BAU'!AQ26 -> 1084.68379 | AE23: ='TNC BAU'!AR26 -> 1241.425208 | AF23: ='TNC BAU'!AS26 -> 12414.25208 | AG23: ='TNC BAU'!AU26 -> 393769.6444 | AH23: ='TNC BAU'!AY26 -> 489.5148518 | AI23: ='TNC BAU'!AZ26 -> 0.2331023104 | AJ23: ='TNC BAU'!BA26 -> 0.0226038604 | AK23: ='TNC BAU'!BB26 -> 753.5431693 | AL23: ='TNC BAU'!BC26 -> 0.03966016681 | AM23: ='TNC BAU'!BD26 -> 0.03966016681 | AN23: ='TNC BAU'!BE26 -> 4.08903118 | AO23: ='TNC BAU'!BF26 -> 0.004017748544 | AP23: ='TNC BAU'!BG26 -> 1.296047917e-05 | AQ23: ='TNC BAU'!BI26 -> 1247.147052 | AR23: ='TNC BAU'!BJ26 -> 0.2767802257 | AS23: ='TNC BAU'!BK26 -> 0.06227698768 | AT23: ='TNC BAU'!BL26 -> 1272.6251 | AU23: ='TNC Sc2'!A27 -> 149788.4164 | AV23: ='TNC Sc1'!B29 -> 231333.3588 | AW23: ='TNC Sc1'!C29 -> 1222.80383 | AX23: ='TNC Sc1'!D29 -> 387863.0997 | AY23: ='TNC Sc1'!G29 -> 482.172129 | AZ23: ='TNC Sc1'!H29 -> 0.2296057757 | BA23: ='TNC Sc1'!I29 -> 0.02226480249 | BB23: ='TNC Sc1'!J29 -> 742.2400218 | BC23: ='TNC Sc1'!K29 -> 0.0390652643 | BD23: ='TNC Sc1'!L29 -> 0.0390652643 | BE23: ='TNC Sc1'!M29 -> 4.027695712 | BF23: ='TNC Sc1'!N29 -> 0.003957482316 | BG23: ='TNC Sc1'!O29 -> 1.276607199e-05 | BH23: ='TNC Sc1'!Q29 -> 1228.439846 | BI23: ='TNC Sc1'!R29 -> 0.2726285223 | BJ23: ='TNC Sc1'!S29 -> 0.06134283287 | BK23: ='TNC Sc1'!T29 -> 1253.535724 | BL23: ='TNC Sc2'!A27 -> 149788.4164 | BM23: ='TNC Sc2'!B27 -> 223113.3918 | BN23: ='TNC Sc2'!C27 -> 1241.425208 | BO23: ='TNC Sc2'!D27 -> 374143.2334 | BP23: ='TNC Sc2'!G27 -> 465.0391092 | BQ23: ='TNC Sc2'!H27 -> 0.2214471948 | BR23: ='TNC Sc2'!I27 -> 0.02147366738 | BS23: ='TNC Sc2'!J27 -> 715.8660109 | BT23: ='TNC Sc2'!K27 -> 0.03767715847 | BU23: ='TNC Sc2'!L27 -> 0.03767715847 | BV23: ='TNC Sc2'!M27 -> 4.08903118 | BW23: ='TNC Sc2'!N27 -> 0.004017748544 | BX23: ='TNC Sc2'!O27 -> 1.296047917e-05 | BY23: ='TNC Sc2'!Q27 -> 1184.994151 | BZ23: ='TNC Sc2'!R27 -> 0.2631421019 | CA23: ='TNC Sc2'!S27 -> 0.05916378632 | CB23: ='TNC Sc2'!T27 -> 1209.203512 | CC23: ='TNC Sc3'!B28 -> 727564205.2 | CD23: ='TNC Sc3'!C28 -> 473698558.5 | CE23: ='TNC Sc3'!D28 -> 4498510518 | CF23: ='TNC Sc3'!E28 -> 162242957.2 | CG23: ='TNC Sc3'!F28 -> 486569260.3 | CH23: ='TNC Sc3'!G28 -> 83618654 | CI23: ='TNC Sc3'!K28 -> 12914.26464 | CJ23: ='TNC Sc3'!L28 -> 10089.7793 | CK23: ='TNC Sc3'!M28 -> 109266.4529 | CL23: ='TNC Sc3'!N28 -> 6972.177608 | CM23: ='TNC Sc3'!O28 -> 7272.929995 | CN23: ='TNC Sc3'!P28 -> 5189.443297 | CO23: ='TNC Sc3'!Q28 -> 151705.0477 | CP23: ='TNC Sc3'!S28 -> 234856.2019 | CQ23: ='TNC Sc3'!T28 -> 1241.425208 | CR23: ='TNC Sc3'!V28 -> 387802.6748 | CS23: ='TNC Sc3'!Z28 -> 151705.0477 | CT23: ='TNC Sc3'!AA28 -> 5990.625 | CU23: ='TNC Sc3'!AB28 -> 145714.4227 | CV23: ='TNC Sc3'!AC28 -> 234856.2019 | CW23: ='TNC Sc3'!AD28 -> 1241.425208 | CX23: ='TNC Sc3'!AE28 -> 381812.0498 | CY23: ='TNC Sc3'!AI28 -> 452.3908253 | CZ23: ='TNC Sc3'!AJ28 -> 0.2154242025 | DA23: ='TNC Sc3'!AK28 -> 0.02088961964 | DB23: ='TNC Sc3'!AL28 -> 753.5431693 | DC23: ='TNC Sc3'!AM28 -> 0.03966016681 | DD23: ='TNC Sc3'!AN28 -> 0.03966016681 | DE23: ='TNC Sc3'!AO28 -> 4.08903118 | DF23: ='TNC Sc3'!AP28 -> 0.004017748544 | DG23: ='TNC Sc3'!AQ28 -> 1.296047917e-05 | DH23: ='TNC Sc3'!AS28 -> 1210.023026 | DI23: ='TNC Sc3'!AT28 -> 0.2591021179 | DJ23: ='TNC Sc3'!AU28 -> 0.06056274692 | DK23: ='TNC Sc3'!AV28 -> 1234.548277 | DL23: ='TNC Sc4'!B24 -> 205225840 | DM23: ='TNC Sc4'!C24 -> 727564205.2 | DN23: ='TNC Sc4'!D24 -> 473698558.5 | DO23: ='TNC Sc4'!E24 -> 4818735289 | DP23: ='TNC Sc4'!F24 -> 162242957.2 | DQ23: ='TNC Sc4'!G24 -> 65259888.18 | DR23: ='TNC Sc4'!I24 -> 380989000 | DS23: ='TNC Sc4'!J24 -> 4182439337 | DT23: ='TNC Sc4'!K24 -> 425226001.1 | DU23: ='TNC Sc4'!L24 -> 642935762.8 | DV23: ='TNC Sc4'!M24 -> 3801450337 | DW23: ='TNC Sc4'!P24 -> 6063133.535 | DX23: ='TNC Sc4'!Q24 -> 351878.2855 | DY23: ='TNC Sc4'!V24 -> 12914.26464 | DZ23: ='TNC Sc4'!W24 -> 10089.7793 | EA23: ='TNC Sc4'!X24 -> 117044.544 | EB23: ='TNC Sc4'!Y24 -> 6972.177608 | EC23: ='TNC Sc4'!Z24 -> 975.4635918 | ED23: ='TNC Sc4'!AA24 -> 5189.443297 | EE23: ='TNC Sc4'!AB24 -> 153185.6724 | EF23: ='TNC Sc4'!AC24 -> 13316.28793 | EG23: ='TNC Sc4'!AD24 -> 32502.09474 | EH23: ='TNC Sc4'!AE24 -> 27973.24384 | EI23: ='TNC Sc4'!AF24 -> 157618.3597 | EJ23: ='TNC Sc4'!AG24 -> 231409.9862 | EK23: ='TNC Sc4'!AI24 -> 142.196437 | EL23: ='TNC Sc4'!AJ24 -> 14.54498153 | EM23: ='TNC Sc4'!AK24 -> 1084.68379 | EN23: ='TNC Sc4'!AL24 -> 1241.425208 | EO23: ='TNC Sc4'!AM24 -> 12414.25208 | EP23: ='TNC Sc4'!AO24 -> 385837.0838 | EQ23: ='TNC Sc4'!AT24 -> 475.586366 | ER23: ='TNC Sc4'!AU24 -> 0.2264696981 | ES23: ='TNC Sc4'!AV24 -> 0.021960698 | ET23: ='TNC Sc4'!AW24 -> 742.4858829 | EU23: ='TNC Sc4'!AX24 -> 0.03907820436 | EV23: ='TNC Sc4'!AY24 -> 0.03907820436 | EW23: ='TNC Sc4'!AZ24 -> 4.08903118 | EX23: ='TNC Sc4'!BA24 -> 0.004017748544 | EY23: ='TNC Sc4'!BB24 -> 1.296047917e-05 | EZ23: ='TNC Sc4'!BD24 -> 1222.16128 | FA23: ='TNC Sc4'!BE24 -> 0.269565651 | FB23: ='TNC Sc4'!BF24 -> 0.06105186284 | FC23: ='TNC Sc4'!BG24 -> 1247.093876
A24: ='UD1 BAU'!A27 -> 2030 | B24: ='TNC BAU'!B27 -> 1.172884144e+10 | C24: ='TNC BAU'!C27 -> 6442695076 | D24: ='TNC BAU'!D27 -> 5279720885 | E24: ='TNC BAU'!E27 -> 6425474.702 | F24: ='TNC BAU'!H27 -> 728750862.1 | G24: ='TNC BAU'!I27 -> 474471160.7 | H24: ='TNC BAU'!J27 -> 5011599151 | I24: ='TNC BAU'!K27 -> 162507575.4 | J24: ='TNC BAU'!L27 -> 65366327.03 | K24: ='TNC BAU'!O27 -> 446475600.8 | L24: ='TNC BAU'!P27 -> 643984390.7 | M24: ='TNC BAU'!Q27 -> 4189260893 | N24: ='TNC BAU'!T27 -> 6073022.503 | O24: ='TNC BAU'!U27 -> 352452.1988 | P24: ='TNC BAU'!AC27 -> 12935.3278 | Q24: ='TNC BAU'!AD27 -> 121729.1057 | R24: ='TNC BAU'!AE27 -> 10106.23572 | S24: ='TNC BAU'!AF27 -> 6983.549226 | T24: ='TNC BAU'!AG27 -> 977.0545725 | U24: ='TNC BAU'!AH27 -> 5387.910671 | V24: ='TNC BAU'!AI27 -> 158119.1837 | W24: ='TNC BAU'!AJ27 -> 13981.73592 | X24: ='TNC BAU'!AK27 -> 32555.10565 | Y24: ='TNC BAU'!AL27 -> 30826.97552 | Z24: ='TNC BAU'!AM27 -> 163646.3862 | AA24: ='TNC BAU'!AN27 -> 241010.2033 | AB24: ='TNC BAU'!AO27 -> 142.4283593 | AC24: ='TNC BAU'!AP27 -> 14.56870439 | AD24: ='TNC BAU'!AQ27 -> 1007.671241 | AE24: ='TNC BAU'!AR27 -> 1164.668304 | AF24: ='TNC BAU'!AS27 -> 11646.68304 | AG24: ='TNC BAU'!AU27 -> 400294.0553 | AH24: ='TNC BAU'!AY27 -> 490.9031424 | AI24: ='TNC BAU'!AZ27 -> 0.2337634011 | AJ24: ='TNC BAU'!BA27 -> 0.02266796617 | AK24: ='TNC BAU'!BB27 -> 773.2884675 | AL24: ='TNC BAU'!BC27 -> 0.04069939303 | AM24: ='TNC BAU'!BD27 -> 0.04069939303 | AN24: ='TNC BAU'!BE27 -> 3.836207754 | AO24: ='TNC BAU'!BF27 -> 0.0037693325 | AP24: ='TNC BAU'!BG27 -> 1.21591371e-05 | AQ24: ='TNC BAU'!BI27 -> 1268.027818 | AR24: ='TNC BAU'!BJ27 -> 0.2782321267 | AS24: ='TNC BAU'!BK27 -> 0.06337951834 | AT24: ='TNC BAU'!BL27 -> 1293.870717 | AU24: ='TNC Sc2'!A28 -> 150213.2245 | AV24: ='TNC Sc1'!B30 -> 237395.0502 | AW24: ='TNC Sc1'!C30 -> 1147.19828 | AX24: ='TNC Sc1'!D30 -> 394289.6444 | AY24: ='TNC Sc1'!G30 -> 483.5395953 | AZ24: ='TNC Sc1'!H30 -> 0.2302569501 | BA24: ='TNC Sc1'!I30 -> 0.02232794668 | BB24: ='TNC Sc1'!J30 -> 761.6891405 | BC24: ='TNC Sc1'!K30 -> 0.04008890213 | BD24: ='TNC Sc1'!L30 -> 0.04008890213 | BE24: ='TNC Sc1'!M30 -> 3.778664638 | BF24: ='TNC Sc1'!N30 -> 0.003712792513 | BG24: ='TNC Sc1'!O30 -> 1.197675004e-05 | BH24: ='TNC Sc1'!Q30 -> 1249.0074 | BI24: ='TNC Sc1'!R30 -> 0.2740586448 | BJ24: ='TNC Sc1'!S30 -> 0.06242882556 | BK24: ='TNC Sc1'!T30 -> 1274.462657 | BL24: ='TNC Sc2'!A28 -> 150213.2245 | BM24: ='TNC Sc2'!B28 -> 228959.6931 | BN24: ='TNC Sc2'!C28 -> 1164.668304 | BO24: ='TNC Sc2'!D28 -> 380337.5859 | BP24: ='TNC Sc2'!G28 -> 466.3579853 | BQ24: ='TNC Sc2'!H28 -> 0.2220752311 | BR24: ='TNC Sc2'!I28 -> 0.02153456786 | BS24: ='TNC Sc2'!J28 -> 734.6240442 | BT24: ='TNC Sc2'!K28 -> 0.03866442338 | BU24: ='TNC Sc2'!L28 -> 0.03866442338 | BV24: ='TNC Sc2'!M28 -> 3.836207754 | BW24: ='TNC Sc2'!N28 -> 0.0037693325 | BX24: ='TNC Sc2'!O28 -> 1.21591371e-05 | BY24: ='TNC Sc2'!Q28 -> 1204.818237 | BZ24: ='TNC Sc2'!R28 -> 0.264508987 | CA24: ='TNC Sc2'!S28 -> 0.06021115038 | CB24: ='TNC Sc2'!T28 -> 1229.373885 | CC24: ='TNC Sc3'!B29 -> 728750862.1 | CD24: ='TNC Sc3'!C29 -> 474471160.7 | CE24: ='TNC Sc3'!D29 -> 4444641984 | CF24: ='TNC Sc3'!E29 -> 162507575.4 | CG24: ='TNC Sc3'!F29 -> 535683067.6 | CH24: ='TNC Sc3'!G29 -> 96640426.14 | CI24: ='TNC Sc3'!K29 -> 12935.3278 | CJ24: ='TNC Sc3'!L29 -> 10106.23572 | CK24: ='TNC Sc3'!M29 -> 107958.0145 | CL24: ='TNC Sc3'!N29 -> 6983.549226 | CM24: ='TNC Sc3'!O29 -> 8007.052168 | CN24: ='TNC Sc3'!P29 -> 5387.910671 | CO24: ='TNC Sc3'!Q29 -> 151378.0901 | CP24: ='TNC Sc3'!S29 -> 241010.2033 | CQ24: ='TNC Sc3'!T29 -> 1164.668304 | CR24: ='TNC Sc3'!V29 -> 393552.9617 | CS24: ='TNC Sc3'!Z29 -> 151378.0901 | CT24: ='TNC Sc3'!AA29 -> 6418.526786 | CU24: ='TNC Sc3'!AB29 -> 144959.5633 | CV24: ='TNC Sc3'!AC29 -> 241010.2033 | CW24: ='TNC Sc3'!AD29 -> 1164.668304 | CX24: ='TNC Sc3'!AE29 -> 387134.4349 | CY24: ='TNC Sc3'!AI29 -> 450.0472586 | CZ24: ='TNC Sc3'!AJ29 -> 0.2143082184 | DA24: ='TNC Sc3'!AK29 -> 0.020781403 | DB24: ='TNC Sc3'!AL29 -> 773.2884675 | DC24: ='TNC Sc3'!AM29 -> 0.04069939303 | DD24: ='TNC Sc3'!AN29 -> 0.04069939303 | DE24: ='TNC Sc3'!AO29 -> 3.836207754 | DF24: ='TNC Sc3'!AP29 -> 0.0037693325 | DG24: ='TNC Sc3'!AQ29 -> 1.21591371e-05 | DH24: ='TNC Sc3'!AS29 -> 1227.171934 | DI24: ='TNC Sc3'!AT29 -> 0.2587769439 | DJ24: ='TNC Sc3'!AU29 -> 0.06149295516 | DK24: ='TNC Sc3'!AV29 -> 1251.966258 | DL24: ='TNC Sc4'!B25 -> 206764080 | DM24: ='TNC Sc4'!C25 -> 728750862.1 | DN24: ='TNC Sc4'!D25 -> 474471160.7 | DO24: ='TNC Sc4'!E25 -> 4825511479 | DP24: ='TNC Sc4'!F25 -> 162507575.4 | DQ24: ='TNC Sc4'!G25 -> 65366327.03 | DR24: ='TNC Sc4'!I25 -> 382718000 | DS24: ='TNC Sc4'!J25 -> 4189260893 | DT24: ='TNC Sc4'!K25 -> 425799192.8 | DU24: ='TNC Sc4'!L25 -> 643984390.7 | DV24: ='TNC Sc4'!M25 -> 3806542893 | DW24: ='TNC Sc4'!P25 -> 6073022.503 | DX24: ='TNC Sc4'!Q25 -> 352452.1988 | DY24: ='TNC Sc4'!V25 -> 12935.3278 | DZ24: ='TNC Sc4'!W25 -> 10106.23572 | EA24: ='TNC Sc4'!X25 -> 117209.1341 | EB24: ='TNC Sc4'!Y25 -> 6983.549226 | EC24: ='TNC Sc4'!Z25 -> 977.0545725 | ED24: ='TNC Sc4'!AA25 -> 5387.910671 | EE24: ='TNC Sc4'!AB25 -> 153599.2121 | EF24: ='TNC Sc4'!AC25 -> 13334.23788 | EG24: ='TNC Sc4'!AD25 -> 32555.10565 | EH24: ='TNC Sc4'!AE25 -> 28010.71778 | EI24: ='TNC Sc4'!AF25 -> 163646.3862 | EJ24: ='TNC Sc4'!AG25 -> 237546.4475 | EK24: ='TNC Sc4'!AI25 -> 142.4283593 | EL24: ='TNC Sc4'!AJ25 -> 14.56870439 | EM24: ='TNC Sc4'!AK25 -> 1007.671241 | EN24: ='TNC Sc4'!AL25 -> 1164.668304 | EO24: ='TNC Sc4'!AM25 -> 11646.68304 | EP24: ='TNC Sc4'!AO25 -> 392310.3279 | EQ24: ='TNC Sc4'!AT25 -> 476.8702577 | ER24: ='TNC Sc4'!AU25 -> 0.2270810751 | ES24: ='TNC Sc4'!AV25 -> 0.02201998304 | ET24: ='TNC Sc4'!AW25 -> 762.1749032 | EU24: ='TNC Sc4'!AX25 -> 0.04011446859 | EV24: ='TNC Sc4'!AY25 -> 0.04011446859 | EW24: ='TNC Sc4'!AZ25 -> 3.836207754 | EX24: ='TNC Sc4'!BA25 -> 0.0037693325 | EY24: ='TNC Sc4'!BB25 -> 1.21591371e-05 | EZ24: ='TNC Sc4'!BD25 -> 1242.881369 | FA24: ='TNC Sc4'!BE25 -> 0.2709648762 | FB24: ='TNC Sc4'!BF25 -> 0.06214661077 | FC24: ='TNC Sc4'!BG25 -> 1268.175181
A25: ='UD1 BAU'!A28 -> 2031 | B25: ='TNC BAU'!B28 -> 1.173543952e+10 | C25: ='TNC BAU'!C28 -> 6446319425 | D25: ='TNC BAU'!D28 -> 5282691001 | E25: ='TNC BAU'!E28 -> 6429089.364 | F25: ='TNC BAU'!H28 -> 729160822.2 | G25: ='TNC BAU'!I28 -> 474738075.3 | H25: ='TNC BAU'!J28 -> 5014418435 | I25: ='TNC BAU'!K28 -> 162598994.3 | J25: ='TNC BAU'!L28 -> 65403098.98 | K25: ='TNC BAU'!O28 -> 446726766.5 | L25: ='TNC BAU'!P28 -> 644346665.3 | M25: ='TNC BAU'!Q28 -> 4191617570 | N25: ='TNC BAU'!T28 -> 6076438.893 | O25: ='TNC BAU'!U28 -> 352650.4715 | P25: ='TNC BAU'!AC28 -> 12942.60459 | Q25: ='TNC BAU'!AD28 -> 121797.5846 | R25: ='TNC BAU'!AE28 -> 10111.921 | S25: ='TNC BAU'!AF28 -> 6987.477834 | T25: ='TNC BAU'!AG28 -> 977.6042163 | U25: ='TNC BAU'!AH28 -> 5550.562401 | V25: ='TNC BAU'!AI28 -> 158367.7547 | W25: ='TNC BAU'!AJ28 -> 13989.60137 | X25: ='TNC BAU'!AK28 -> 32573.41958 | Y25: ='TNC BAU'!AL28 -> 30844.31729 | Z25: ='TNC BAU'!AM28 -> 168586.5883 | AA25: ='TNC BAU'!AN28 -> 245993.9266 | AB25: ='TNC BAU'!AO28 -> 142.5084827 | AC25: ='TNC BAU'!AP28 -> 14.57690004 | AD25: ='TNC BAU'!AQ28 -> 936.1265826 | AE25: ='TNC BAU'!AR28 -> 1093.211965 | AF25: ='TNC BAU'!AS28 -> 10932.11965 | AG25: ='TNC BAU'!AU28 -> 405454.8932 | AH25: ='TNC BAU'!AY28 -> 491.6748658 | AI25: ='TNC BAU'!AZ28 -> 0.2341308885 | AJ25: ='TNC BAU'!BA28 -> 0.02270360131 | AK25: ='TNC BAU'!BB28 -> 789.2788932 | AL25: ='TNC BAU'!BC28 -> 0.04154099438 | AM25: ='TNC BAU'!BD28 -> 0.04154099438 | AN25: ='TNC BAU'!BE28 -> 3.600843436 | AO25: ='TNC BAU'!BF28 -> 0.003538071205 | AP25: ='TNC BAU'!BG28 -> 1.141313292e-05 | AQ25: ='TNC BAU'!BI28 -> 1284.554602 | AR25: ='TNC BAU'!BJ28 -> 0.2792099541 | AS25: ='TNC BAU'!BK28 -> 0.06425600882 | AT25: ='TNC BAU'!BL28 -> 1310.683142 | AU25: ='TNC Sc2'!A29 -> 150449.3669 | AV25: ='TNC Sc1'!B31 -> 242304.0177 | AW25: ='TNC Sc1'!C31 -> 1076.813786 | AX25: ='TNC Sc1'!D31 -> 399373.0698 | AY25: ='TNC Sc1'!G31 -> 484.2997428 | AZ25: ='TNC Sc1'!H31 -> 0.2306189252 | BA25: ='TNC Sc1'!I31 -> 0.02236304729 | BB25: ='TNC Sc1'!J31 -> 777.4397098 | BC25: ='TNC Sc1'!K31 -> 0.04091787946 | BD25: ='TNC Sc1'!L31 -> 0.04091787946 | BE25: ='TNC Sc1'!M31 -> 3.546830784 | BF25: ='TNC Sc1'!N31 -> 0.003485000136 | BG25: ='TNC Sc1'!O31 -> 1.124193592e-05 | BH25: ='TNC Sc1'!Q31 -> 1265.286283 | BI25: ='TNC Sc1'!R31 -> 0.2750218048 | BJ25: ='TNC Sc1'!S31 -> 0.06329216869 | BK25: ='TNC Sc1'!T31 -> 1291.022895 | BL25: ='TNC Sc2'!A29 -> 150449.3669 | BM25: ='TNC Sc2'!B29 -> 233694.2302 | BN25: ='TNC Sc2'!C29 -> 1093.211965 | BO25: ='TNC Sc2'!D29 -> 385236.8091 | BP25: ='TNC Sc2'!G29 -> 467.0911225 | BQ25: ='TNC Sc2'!H29 -> 0.2224243441 | BR25: ='TNC Sc2'!I29 -> 0.02156842124 | BS25: ='TNC Sc2'!J29 -> 749.8149486 | BT25: ='TNC Sc2'!K29 -> 0.03946394466 | BU25: ='TNC Sc2'!L29 -> 0.03946394466 | BV25: ='TNC Sc2'!M29 -> 3.600843436 | BW25: ='TNC Sc2'!N29 -> 0.003538071205 | BX25: ='TNC Sc2'!O29 -> 1.141313292e-05 | BY25: ='TNC Sc2'!Q29 -> 1220.506915 | BZ25: ='TNC Sc2'!R29 -> 0.2654263599 | CA25: ='TNC Sc2'!S29 -> 0.06104377904 | CB25: ='TNC Sc2'!T29 -> 1245.33362 | CC25: ='TNC Sc3'!B30 -> 729160822.2 | CD25: ='TNC Sc3'!C30 -> 474738075.3 | CE25: ='TNC Sc3'!D30 -> 4356893853 | CF25: ='TNC Sc3'!E30 -> 162598994.3 | CG25: ='TNC Sc3'!F30 -> 600447611.3 | CH25: ='TNC Sc3'!G30 -> 122480069.1 | CI25: ='TNC Sc3'!K30 -> 12942.60459 | CJ25: ='TNC Sc3'!L30 -> 10111.921 | CK25: ='TNC Sc3'!M30 -> 105826.6586 | CL25: ='TNC Sc3'!N30 -> 6987.477834 | CM25: ='TNC Sc3'!O30 -> 8975.111663 | CN25: ='TNC Sc3'!P30 -> 5550.562401 | CO25: ='TNC Sc3'!Q30 -> 150394.3361 | CP25: ='TNC Sc3'!S30 -> 245993.9266 | CQ25: ='TNC Sc3'!T30 -> 1093.211965 | CR25: ='TNC Sc3'!V30 -> 397481.4746 | CS25: ='TNC Sc3'!Z30 -> 150394.3361 | CT25: ='TNC Sc3'!AA30 -> 6846.428571 | CU25: ='TNC Sc3'!AB30 -> 143547.9075 | CV25: ='TNC Sc3'!AC30 -> 245993.9266 | CW25: ='TNC Sc3'!AD30 -> 1093.211965 | CX25: ='TNC Sc3'!AE30 -> 390635.0461 | CY25: ='TNC Sc3'!AI30 -> 445.6645756 | CZ25: ='TNC Sc3'!AJ30 -> 0.2122212265 | DA25: ='TNC Sc3'!AK30 -> 0.02057902802 | DB25: ='TNC Sc3'!AL30 -> 789.2788932 | DC25: ='TNC Sc3'!AM30 -> 0.04154099438 | DD25: ='TNC Sc3'!AN30 -> 0.04154099438 | DE25: ='TNC Sc3'!AO30 -> 3.600843436 | DF25: ='TNC Sc3'!AP30 -> 0.003538071205 | DG25: ='TNC Sc3'!AQ30 -> 1.141313292e-05 | DH25: ='TNC Sc3'!AS30 -> 1238.544312 | DI25: ='TNC Sc3'!AT30 -> 0.2573002921 | DJ25: ='TNC Sc3'!AU30 -> 0.06213143554 | DK25: ='TNC Sc3'!AV30 -> 1263.491987 | DL25: ='TNC Sc4'!B26 -> 208302320 | DM25: ='TNC Sc4'!C26 -> 729160822.2 | DN25: ='TNC Sc4'!D26 -> 474738075.3 | DO25: ='TNC Sc4'!E26 -> 4826946347 | DP25: ='TNC Sc4'!F26 -> 162598994.3 | DQ25: ='TNC Sc4'!G26 -> 65403098.98 | DR25: ='TNC Sc4'!I26 -> 384447000 | DS25: ='TNC Sc4'!J26 -> 4191617570 | DT25: ='TNC Sc4'!K26 -> 425896534.5 | DU25: ='TNC Sc4'!L26 -> 644346665.3 | DV25: ='TNC Sc4'!M26 -> 3807170570 | DW25: ='TNC Sc4'!P26 -> 6076438.893 | DX25: ='TNC Sc4'!Q26 -> 352650.4715 | DY25: ='TNC Sc4'!V26 -> 12942.60459 | DZ25: ='TNC Sc4'!W26 -> 10111.921 | EA25: ='TNC Sc4'!X26 -> 117243.9863 | EB25: ='TNC Sc4'!Y26 -> 6987.477834 | EC25: ='TNC Sc4'!Z26 -> 977.6042163 | ED25: ='TNC Sc4'!AA26 -> 5550.562401 | EE25: ='TNC Sc4'!AB26 -> 153814.1563 | EF25: ='TNC Sc4'!AC26 -> 13337.28621 | EG25: ='TNC Sc4'!AD26 -> 32573.41958 | EH25: ='TNC Sc4'!AE26 -> 28015.33658 | EI25: ='TNC Sc4'!AF26 -> 168586.5883 | EJ25: ='TNC Sc4'!AG26 -> 242512.6307 | EK25: ='TNC Sc4'!AI26 -> 142.5084827 | EL25: ='TNC Sc4'!AJ26 -> 14.57690004 | EM25: ='TNC Sc4'!AK26 -> 936.1265826 | EN25: ='TNC Sc4'!AL26 -> 1093.211965 | EO25: ='TNC Sc4'!AM26 -> 10932.11965 | EP25: ='TNC Sc4'!AO26 -> 397419.999 | EQ25: ='TNC Sc4'!AT26 -> 477.5375822 | ER25: ='TNC Sc4'!AU26 -> 0.2273988487 | ES25: ='TNC Sc4'!AV26 -> 0.02205079745 | ET25: ='TNC Sc4'!AW26 -> 778.109051 | EU25: ='TNC Sc4'!AX26 -> 0.04095310795 | EV25: ='TNC Sc4'!AY26 -> 0.04095310795 | EW25: ='TNC Sc4'!AZ26 -> 3.600843436 | EX25: ='TNC Sc4'!BA26 -> 0.003538071205 | EY25: ='TNC Sc4'!BB26 -> 1.141313292e-05 | EZ25: ='TNC Sc4'!BD26 -> 1259.247477 | FA25: ='TNC Sc4'!BE26 -> 0.2718900278 | FB25: ='TNC Sc4'!BF26 -> 0.06301531853 | FC25: ='TNC Sc4'!BG26 -> 1284.823292
